{"text_format":"1","workbook":"xlsx","n_sheets":6,"sheets":["INICIO","Indicadores_PES 2019-2022","Mapa_EstrategicoSectorial","Estructura_Planeación_Estr","Plan de Accion Sectorial","Listas"],"not_rendered":{"charts":0,"images":10,"macros":1,"external_links":3,"defined_names":23,"comments":1,"pivot_tables":0},"unopened":[],"bounds":{"document_bytes":16777216,"sheet_cells":100000,"rows_first":2000,"rows_last":500,"rows_between":2000,"halvings":0,"cell_chars":16384,"cell_head_chars":4096},"cells_cut":0,"cells_raw":0,"read":"whole","date_system":"1900"}

{"sheet":"INICIO","index":0,"n_rows":0,"n_cols":0,"rows_kept":0,"cut":false,"hidden":false,"merged":[]}

{"sheet":"Indicadores_PES 2019-2022","index":1,"n_rows":40,"n_cols":31,"rows_kept":40,"cut":false,"hidden":false,"merged":[[1,2,1,19],[3,8,3,10],[3,11,3,14],[5,5,5,10],[5,11,5,15],[5,21,5,22],[5,24,5,30]]}
[]
[null,null,"INDICADORES \nPLAN ESTRATÉGICO SECTORIAL 2019-2022"]
[]
[null,null,"Versión:",6.0,null,"Fecha: ","17 de diciembre de 2022",null,"Fecha publicación de la actualización: "]
[]
[null,null,"Perspectiva ","Objetivo Estratégico","Iniciativa Estratégica","Indicador",null,null,null,null,null,"METAS",null,null,null,null,"Entidad","Responsable del indicador","Responsable de la variable","Observaciones","Pacto PND","Modelo Integrado de Planeación y Gestión",null,"Estado","Control de cambios"]
[null,null,null,null,null,"Nombre","Fórmula","Tipo de indicador","Periodicidad","Rezago (días)","Línea base (2018)",2019.0,2020.0,2021.0,2022.0,"Cuatrienio",null,null,null,null,null,"Dimensión","Política",null,"Cambio 1","Cambio 2","Cambio 3","Cambio 4","Cambio 5","Cambio 6","Observaciones"]
[null,null,"GESTIÓN MISIONAL","GM1. Contribuir al logro de los pactos del Plan Nacional de Desarrollo en los cuales participa el Sector Hacienda","SH.Ini.2019.2022.GM1.Desarrollar las acciones misionales que contribuyan al logro de los objetivos del sector y del Gobierno nacional. ","Pequeñas y medianas empresas beneficiarias de productos financieros","Sumatoria del número de las empresas que recibieron desembolsos de Bancóldex en el periodo, y que por su tamaño son clasificadas como pequeñas y medianas empresas","Producto - SINERGIA","Mensual",90.0,5000.0,6300.0,7000.0,8000.0,8700.0,30000.0,"BANCOLDEX","Jorge Andres Arcieri\n","N/A","Se mide a traves del aplicativo SINERGIA del DNP","Pacto: II. Pacto por el emprendimiento, la formalización y la productividad: una economía dinámica, incluyente y sostenible que potencie todos nuestros talentos","N/A","N/A","Activo"]
[null,null,"GESTIÓN MISIONAL","GM1. Contribuir al logro de los pactos del Plan Nacional de Desarrollo en los cuales participa el Sector Hacienda","SH.Ini.2019.2022.GM1.Desarrollar las acciones misionales que contribuyan al logro de los objetivos del sector y del Gobierno nacional. ","Compromisos de inversión en fondos de capital de riesgo","Sumatoria de los compromisos acumulados en los cortes de seguimiento","Producto - SINERGIA","Mensual",15.0,184000.0,198500.0,213000.0,227500.0,228000.0,228000.0,"BANCOLDEX","Margarita Coronado Gomez\nDirectora Departamento Fondos de Capital Privado\n\nmargarita.coronado@bancoldex.com","N/A","Se mide a traves del aplicativo SINERGIA del DNP","Pacto: II. Pacto por el emprendimiento, la formalización y la productividad: una economía dinámica, incluyente y sostenible que potencie todos nuestros talentos","N/A","N/A","Activo"]
[null,null,"GESTIÓN MISIONAL","GM1. Contribuir al logro de los pactos del Plan Nacional de Desarrollo en los cuales participa el Sector Hacienda","SH.Ini.2019.2022.GM1.Desarrollar las acciones misionales que contribuyan al logro de los objetivos del sector y del Gobierno nacional. ","Derechos de explotación recaudados anualmente por concepto de Juegos de Suerte y Azar de carácter nacional ","Recaudo efectivo por Derechos de Explotación de Juegos de Suerte y Azar de carácter nacional","Resultado - SINERGIA","Mensual",35.0,545503.0,610219.0,678669.0,740568.0,810756.0,2840212.0,"COLJUEGOS","\nRoger Jose Carrillo Campo\n\n","N/A","Se mide a traves del aplicativo SINERGIA del DNP","Pacto por la equidad: política social moderna centrada en la familia, eficiente, de calidad y conectada a mercados","N/A","N/A","Activo"]
[null,null,"GESTIÓN MISIONAL","GM1. Contribuir al logro de los pactos del Plan Nacional de Desarrollo en los cuales participa el Sector Hacienda","SH.Ini.2019.2022.GM1.Desarrollar las acciones misionales que contribuyan al logro de los objetivos del sector y del Gobierno nacional. ","Porcentaje de declaraciones de importación anticipadas","Declaraciones de Importación anticipadas con autorización de levante / Total Declaraciones de Importación inicial y anticipada con autorización de levante","Resultado - SINERGIA","Trimestral",15.0,12.0,14.0,16.0,18.0,20.0,20.0,"DIAN","Ingrid Magnolia Díaz Rincón","N/A","Se mide a traves del aplicativo SINERGIA del DNP","Pacto por el emprendimiento, la formalización y la productividad: una economía dinámica, incluyente y sostenible que potencie todos nuestros talentos","N/A","N/A","Activo"]
[null,null,"GESTIÓN MISIONAL","GM1. Contribuir al logro de los pactos del Plan Nacional de Desarrollo en los cuales participa el Sector Hacienda","SH.Ini.2019.2022.GM1.Desarrollar las acciones misionales que contribuyan al logro de los objetivos del sector y del Gobierno nacional. ","Recaudo tributario neto (porcentaje del PIB)","El Indicador de Recaudo Tributario Neto (IRN) corresponde a la siguiente expresión matemática: Sumatoria del total de recaudo neto trimestral acumulado del año corrido de los impuestos nacionales reportado por la Subdirección de Gestión de Recaudo y Cobranzas ) / PIB trimestral acumulado del año corrido generado por el DANE )*100.        IRTN= (∑RTN trimestral / PIB trimestral) * 100 ","Resultado - SINERGIA","Trimestral",90.0,0.139,0.143,0.142,0.143,0.147,0.147,"DIAN","Pastor Hamleth Sierra Reyes","N/A","Se mide a traves del aplicativo SINERGIA del DNP","Pacto por la descentralización: conectar territorios, gobiernos y poblaciones","N/A","N/A","Activo"]
[null,null,"GESTIÓN MISIONAL","GM1. Contribuir al logro de los pactos del Plan Nacional de Desarrollo en los cuales participa el Sector Hacienda","SH.Ini.2019.2022.GM1.Desarrollar las acciones misionales que contribuyan al logro de los objetivos del sector y del Gobierno nacional. ","Tiempo de desaduanamiento en exportaciones en modo de transporte aéreo","Fecha y hora de autorización del embarque de la mercancía - Fecha y hora de presentación y aceptación de la de la Solicitud de Autorización de Embarque (SAE)","Resultado - SINERGIA","Semestral",30.0,"10",9.0,8.5,8.0,7.5,7.5,"DIAN","Ingrid Magnolia Díaz Rincón","N/A","Se mide a traves del aplicativo SINERGIA del DNP","Pacto por el emprendimiento, la formalización y la productividad: una economía dinámica, incluyente y sostenible que potencie todos nuestros talentos","N/A","N/A","Activo"]
[null,null,"GESTIÓN MISIONAL","GM1. Contribuir al logro de los pactos del Plan Nacional de Desarrollo en los cuales participa el Sector Hacienda","SH.Ini.2019.2022.GM1.Desarrollar las acciones misionales que contribuyan al logro de los objetivos del sector y del Gobierno nacional. ","Tiempo de desaduanamiento en exportaciones en modo de transporte marítimo","Fecha y hora de autorización del embarque de la mercancía - Fecha y hora de presentación y aceptación de la de la Solicitud de Autorización de Embarque (SAE)","Resultado - SINERGIA","Semestral",30.0,34.0,29.0,26.2,25.5,25.0,25.0,"DIAN","Ingrid Magnolia Díaz Rincón","N/A","Se mide a traves del aplicativo SINERGIA del DNP","Pacto por el emprendimiento, la formalización y la productividad: una economía dinámica, incluyente y sostenible que potencie todos nuestros talentos","N/A","N/A","Activo"]
[null,null,"GESTIÓN MISIONAL","GM1. Contribuir al logro de los pactos del Plan Nacional de Desarrollo en los cuales participa el Sector Hacienda","SH.Ini.2019.2022.GM1.Desarrollar las acciones misionales que contribuyan al logro de los objetivos del sector y del Gobierno nacional. ","Tiempo de desaduanamiento en importaciones","Fecha y hora de autorización de levante de la declaración de importación - Fecha y hora de presentación y aceptación de la declaración de importación","Resultado - SINERGIA","Semestral",30.0,22.0,21.5,21.0,19.0,18.0,18.0,"DIAN","Ingrid Magnolia Díaz Rincón","N/A","Se mide a traves del aplicativo SINERGIA del DNP","Pacto por el emprendimiento, la formalización y la productividad: una economía dinámica, incluyente y sostenible que potencie todos nuestros talentos","N/A","N/A","Activo"]
[null,null,"GESTIÓN MISIONAL","GM1. Contribuir al logro de los pactos del Plan Nacional de Desarrollo en los cuales participa el Sector Hacienda","SH.Ini.2019.2022.GM1.Desarrollar las acciones misionales que contribuyan al logro de los objetivos del sector y del Gobierno nacional. ","Valor de créditos garantízados por el FNG","Sumatoria del valor de creditos garantizados","Resultado - SINERGIA","Anual",30.0,"$49 Billones","$13,6 Billones","$14,2 billones","$14,9 Billones","$15,8 Billones","$58,5 Billones","FNG","Ivan Dario Ruiz ","N/A","Se mide a traves del aplicativo SINERGIA del DNP","II Pacto por el emprendimiento, la formalización y la productividad","N/A","N/A","Activo"]
[null,null,"GESTIÓN MISIONAL","GM1. Contribuir al logro de los pactos del Plan Nacional de Desarrollo en los cuales participa el Sector Hacienda","SH.Ini.2019.2022.GM1.Desarrollar las acciones misionales que contribuyan al logro de los objetivos del sector y del Gobierno nacional. ","Balance primario del Sector Público No Financiero (SPNF) (% del PIB)              \n","(Balance total SPNF + Intereses del SPNF)/PIB","Resultado - SINERGIA","Anual",120.0,"0,17",0.2,0.9,1.2,1.6,1.6,"MHCP","Juan Camilo Forero Buitrago","N/A","Se mide a traves del aplicativo SINERGIA del DNP","XXVI. Consistencia macroeconómica, fiscal y de resultados económicos y sociales","N/A","N/A","Activo"]
[null,null,"GESTIÓN MISIONAL","GM1. Contribuir al logro de los pactos del Plan Nacional de Desarrollo en los cuales participa el Sector Hacienda","SH.Ini.2019.2022.GM1.Desarrollar las acciones misionales que contribuyan al logro de los objetivos del sector y del Gobierno nacional. ","Tasa de inversión (% del PIB)","(Formación bruta de capital/PIB)*100","Orientador - SINERGIA","Anual",120.0,0.212,0.23,0.24,0.251,0.261,0.261,"MHCP","Juan Guillermo Salazar","N/A","Se mide a traves del aplicativo SINERGIA del DNP","XXVI. Consistencia macroeconómica, fiscal y de resultados económicos y sociales","N/A","N/A","Suspendido","Eliminado en Comité 29 y 30 abril 2020, indicador que será medido por DNP"]
[null,null,"GESTIÓN MISIONAL","GM1. Contribuir al logro de los pactos del Plan Nacional de Desarrollo en los cuales participa el Sector Hacienda","SH.Ini.2019.2022.GM1.Desarrollar las acciones misionales que contribuyan al logro de los objetivos del sector y del Gobierno nacional. ","Balance fiscal estructural del Gobierno Nacional Central (porcentaje del PIB)","(Ingreso estructural - gasto estructural)/PIB","Resultado - SINERGIA","Anual",90.0,-1.9,-1.8,-1.6,-1.3,-1.0,-1.0,"MHCP","Sammy Libos","N/A","Se mide a traves del aplicativo SINERGIA del DNP","XXVI. Consistencia macroeconómica, fiscal y de resultados económicos y sociales","N/A","N/A","Suspendido","No continua la medición dado que la regla fiscal se reestructurará según lo dispuesto en la ley 2155 del 14 de Septiembre de 2021 (Inversión Social).\n"]
[null,null,"GESTIÓN MISIONAL","GM1. Contribuir al logro de los pactos del Plan Nacional de Desarrollo en los cuales participa el Sector Hacienda","SH.Ini.2019.2022.GM1.Desarrollar las acciones misionales que contribuyan al logro de los objetivos del sector y del Gobierno nacional. ","Porcentaje de entidades territoriales con el catálogo de cuentas presupuestales implementado","Número de Entidades Territoriales y sus descentralizadas con el Catálogo de Clasificación Presupuestal - CCPET, implementado","Producto - SINERGIA","Anual",60.0,0.0,null,25.0,75.0,100.0,100.0,"MHCP","Néstor Mario Urrea Duque","N/A","Se mide a traves del aplicativo SINERGIA del DNP","Pacto por la descentralización: conectar territorios, gobiernos y poblaciones","N/A","N/A","Activo"]
[null,null,"GESTIÓN MISIONAL","GM1. Contribuir al logro de los pactos del Plan Nacional de Desarrollo en los cuales participa el Sector Hacienda","SH.Ini.2019.2022.GM1.Desarrollar las acciones misionales que contribuyan al logro de los objetivos del sector y del Gobierno nacional. ","Recaudo de ingresos tributarios, tasas y contribuciones territoriales como porcentaje del PIB","(Recaudo tributario terrritorial / PIB) * 100%","Resultado - SINERGIA","Anual",90.0,3.3,3.4,3.45,3.65,3.7,3.7,"MHCP","Néstor Mario Urrea Duque","N/A","Se mide a traves del aplicativo SINERGIA del DNP","Pacto por la descentralización: conectar territorios, gobiernos y poblaciones","N/A","N/A","Activo"]
[null,null,"GESTIÓN MISIONAL","GM1. Contribuir al logro de los pactos del Plan Nacional de Desarrollo en los cuales participa el Sector Hacienda","SH.Ini.2019.2022.GM1.Desarrollar las acciones misionales que contribuyan al logro de los objetivos del sector y del Gobierno nacional. ","Tipologías articuladas en el marco de las mesas estratégicas llevadas al Centro de Coordinación Contra las Finanzas de Organizaciones de Delito Transnacional y Terrorismo","Sumatoria de tipologías llevadas, abordadas y aprobadas en las mesas de trabajo estratégicas realizadas en el Centro de Coordinación Contra las Finanzas de Organizaciones de Delito Transnacional y Terrorismo e incluidas en la cartilla de tipologías","Producto - SINERGIA","Anual",15.0,0.0,1.0,1.0,1.0,1.0,4.0,"UIAF","Carlos Julio Buitrago Ortiz","N/A","Se mide a traves del aplicativo SINERGIA del DNP","Pacto por la legalidad: seguridad efectiva y justicia transparente para que todos vivamos con libertad y en democracia","N/A","N/A","Activo"]
[null,null,"GESTIÓN MISIONAL","GM1. Contribuir al logro de los pactos del Plan Nacional de Desarrollo en los cuales participa el Sector Hacienda","SH.Ini.2019.2022.GM1.Desarrollar las acciones misionales que contribuyan al logro de los objetivos del sector y del Gobierno nacional. ","Estructuras criminales entregadas a la Fiscalía General de la Nación ","Sumatoria de Informes de Inteligencia financiera difundidos a la Fiscalía General de la Nación de  estructuras criminales, personas naturales y/o juridicas relacionadas con operaciones sospechosas de Lavado de Activos y Financiación del Terrorismo - ALA/CFT","Producto - SINERGIA","Trimestral",15.0,44.0,60.0,60.0,60.0,70.0,250.0,"UIAF","Carlos Julio Buitrago Ortiz","N/A","Confidencial en SINERGIA","Pacto por la legalidad: seguridad efectiva y justicia transparente para que todos vivamos con libertad y en democracia","N/A","N/A","Activo"]
[null,null,"GESTIÓN MISIONAL","GM1. Contribuir al logro de los pactos del Plan Nacional de Desarrollo en los cuales participa el Sector Hacienda","SH.Ini.2019.2022.GM1.Desarrollar las acciones misionales que contribuyan al logro de los objetivos del sector y del Gobierno nacional. ","Porcentaje de adultos que cuenta con algún tipo de producto financiero en zonas rural y rural disperso ","(Población adulta con al menos un producto financiero en zonas rural y rural disperso / Población adulta total en zonas rural y rural disperso) *100","Resultado - SINERGIA","Trimestral",90.0,60.7,62.0,64.0,66.0,68.0,68.0,"URF","Ana María Prieto Ariza","N/A","Se mide a traves del aplicativo SINERGIA del DNP","Pacto por el emprendimiento, la formalización y la productividad: una economía dinámica, incluyente y sostenible que potencie todos nuestros talentos","N/A","N/A","Activo"]
[null,null,"GESTIÓN MISIONAL","GM1. Contribuir al logro de los pactos del Plan Nacional de Desarrollo en los cuales participa el Sector Hacienda","SH.Ini.2019.2022.GM1.Desarrollar las acciones misionales que contribuyan al logro de los objetivos del sector y del Gobierno nacional. ","Porcentaje de adultos que tienen un producto financiero activo o vigente ","(Población adulta con al menos un producto financiero activo o vigente / Población adulta total)*100","Resultado - SINERGIA","Trimestral",90.0,68.5,70.0,72.0,74.0,77.0,77.0,"URF","Ana María Prieto Ariza","N/A","Se mide a traves del aplicativo SINERGIA del DNP","Consistencia macroeconómica, fiscal y de resultados económicos y sociales","N/A","N/A","Activo"]
[null,null,"GESTIÓN MISIONAL","GM1. Contribuir al logro de los pactos del Plan Nacional de Desarrollo en los cuales participa el Sector Hacienda","SH.Ini.2019.2022.GM1.Desarrollar las acciones misionales que contribuyan al logro de los objetivos del sector y del Gobierno nacional. ","Porcentaje de población adulta que cuenta con algún tipo de producto financiero ","(Población adulta con al menos un producto financiero / Población adulta total) *100","Resultado - SINERGIA","Trimestral",90.0,81.4,82.0,83.0,84.0,85.0,85.0,"URF","Ana María Prieto Ariza","N/A","Se mide a traves del aplicativo SINERGIA del DNP","Consistencia macroeconómica, fiscal y de resultados económicos y sociales","N/A","N/A","Activo"]
[null,null,"GESTIÓN PARA EL RESULTADO","GR1.Fortalecer las relaciones de las entidades del Sector Hacienda con sus grupos de valor ","SH.Ini.2019.2022.GR1.001 Promover el seguimiento y mejora continua de las acciones que se realizan para fortalecer las relaciones con los grupos de valor en las entidades del Sector Hacienda.","Porcentaje de avance del Sector Hacienda frente al servicio al ciudadano","% de avance del SH frente al servicio al ciudadano","Resultado","Anual","N/A","74% del resultado del diagnóstico y calificación de entidades",0.0,0.0,0.0,0.83,0.83,"MHCP","Carlos Gil ","N/A","N/A","N/A","Gestión con valores para el resultado (Ventanilla hacia afuera)","Servicio al Ciudadano","Activo","19-12-2019: Se modifican las metas del indicador","20-04-2020: Se ajusta el indicador (Formula-Metas) acorde con lo registrado en la ficha técnica aprobada"]
[null,null,"GESTIÓN PARA EL RESULTADO","GR1.Fortalecer las relaciones de las entidades del Sector Hacienda con sus grupos de valor ","SH.Ini.2019.2022.GR1.001 Promover el seguimiento y mejora continua de las acciones que se realizan para fortalecer las relaciones con los grupos de valor en las entidades del Sector Hacienda.","Porcentaje de trámites u otros procedimientos administrativos racionalizados registrados en el SUIT","Porcentaje de trámites u otros procedimientos administrativos  racionalizados registrados en el SUIT= promedio de trámites u OPA de las entidades, racionalizados en cada vigencia","Resultado","Anual","N/A",1.0,0.85,0.85,0.85,0.85,"85% de trámites u OPA racionalizados de las entidades del SH que aplica","MHCP","Aura Ruth Herrera ","N/A","*Para el calculo de indicador, se tiene en cuenta los trámites y OPA registrados en el SUIT de las entidades, acorde con la información de DAFP: Banco Agrario, CISA,Coljuegos, Contaduría, DIAN,  Finagro,  Fogacoop, Fogafin, FNA, FNG, Grupo Bicentenario, ICETEX, MHCP, Positiva, SAE, Superfinanciera, Supersolidaria, UGPP, UIAF","N/A","Gestión con valores para el resultado (Ventanilla hacia afuera)","Racionalización de Trámites","Activo"]
[null,null,"GESTIÓN PARA EL RESULTADO","GR1.Fortalecer las relaciones de las entidades del Sector Hacienda con sus grupos de valor ","SH.Ini.2019.2022.GR1.001 Promover el seguimiento y mejora continua de las acciones que se realizan para fortalecer las relaciones con los grupos de valor en las entidades del Sector Hacienda.","% de entidades del sector que adelantaron por lo menos una acción de participación ciudadana.","Número de entidades que registraron acciones de participación ciudadana / Total Entidades","Resultado","Anual","N/A",0.99,1.0,1.0,1.0,1.0,1.0,"MHCP","Catherine Cifuentes","Todas las entidades. No aplica para Previsora","N/A","N/A","Gestión con valores para el resultado (Ventanilla hacia afuera)","Participación Ciudadana en la Gestión Pública","Activo","20-04-2020: Cambio de responsables de registro"]
[null,null,"GESTIÓN PARA EL RESULTADO","GR1.Fortalecer las relaciones de las entidades del Sector Hacienda con sus grupos de valor ","SH.Ini.2019.2022.GR1.001 Promover el seguimiento y mejora continua de las acciones que se realizan para fortalecer las relaciones con los grupos de valor en las entidades del Sector Hacienda.","% de entidades del Sector Hacienda que identificaron oportunidades de mejora (por lo menos una) como resultado de los ejercicios de participación ciudadana realizados.","Número de entidades que registraron oportunidades de mejora / Total Entidades","Resultado","Anual","N/A","Sin línea base","N/A",1.0,1.0,1.0,1.0,"MHCP","Catherine Cifuentes ","Todas las entidades. No aplica para Previsora","N/A","N/A","Gestión con valores para el resultado (Ventanilla hacia afuera)","Participación Ciudadana en la Gestión Pública","Activo","19-12-2019: Nuevo indicador","20-04-2020: Cambio de responsables de registro"]
[null,null,"GESTIÓN PARA EL RESULTADO","GR1.Fortalecer las relaciones de las entidades del Sector Hacienda con sus grupos de valor ","SH.Ini.2019.2022.GR1.002 Contribuir a la obtención de niveles de excelencia en el ejercicio de la función disciplinaria","Porcentaje de asistencia a las sesiones llevadas a cabo por el Colectivo Sectorial de Control Disciplinario Interno ","% de asistencia a las sesiones llevadas a cabo por el Colectivo Sectorial de Control Disciplinario Interno  = # de sesiones asistidas / # de sesiones programadas *100","Resultado","Anual","N/A","Sin línea base","N/A",0.8,0.8,0.8,0.8,"MHCP","Nathaly Andrea Durango Perez","Todas las entidades. No aplica para FDN - Fiducoldex - Bancoldex","N/A","N/A","Información y Comunicación ","Transparencia, Acceso a la Información Pública y Lucha Contra la Corrupción","Activo","19-12-2019: Se deja un solo indicador se elimina el indicador \"Promedio de cumplimiento de participación en las sesiones del Colectivo Sectorial de Control Disciplinario Interno\", el cual no aplicaba medición.","20-04-2020: Cambio de responsable de registro","30-04-2020: aprobación en Comité la modificación del indicador (Nombre, fórmula, metas)","Se cambia nombre del responsable de documentar","4-02-2020: Cambio de responsable de documentar","SS- XXX Cambio de responsable"]
[null,null,"GESTIÓN PARA EL RESULTADO","GR2.Fortalecer la Gestión TIC y de la Información en las Entidades del Sector Hacienda","SH.Ini.2019.2022.GR2.001 Fortalecer la  Gestión Documental en las entidades del SH","Porcentaje de avance del Sector Hacienda frente a la gestión documental","% de avance del SH frente a la gestión documental","Resultado","Anual","N/A","81% resultado del diagnóstico y calificación de entidades",0.0,0.0,0.0,0.9,0.9,"MHCP","Carlos Gil ","N/A","N/A","N/A","Información y Comunicación ","Gestión Documental","Activo","19-12-2019: Se modifica el indicador inicial \"% de entidades que mejoraron el índice de gestión documental en las entidades del Sector Hacienda\", junto con las metas y formula","20-04-2020: Se ajusta el indicador (Metas) acorde con lo registrado en la ficha técnica aprobada"]
[null,null,"GESTIÓN PARA EL RESULTADO","GR2.Fortalecer la Gestión TIC y de la Información en las Entidades del Sector Hacienda","SH.Ini.2019.2022.GR2.002 Fortalecer el Gobierno Digital en las entidades del SH","Avance de la definición  del plan estratégico de TI del Sector Hacienda.","% de avance en la definición del PETI para el Sector Hacienda = Actividades planeadas/ actividades ejecutadas*100","Resultado","Anual","N/A","Sin línea base",0.0,0.0,"100% de las actividades definidas",0.0,1.0,"MHCP","Fredy Ramirez","N/A","N/A","N/A","Gestión con valores para el resultado (Ventanilla hacia afuera-hacia adentro)","Gobierno Digital","Activo","20-04-2020: Se ajusta el indicador (Metas) acorde con lo registrado en la ficha técnica aprobada","29-07-2020: Se solicita modificar la meta de 2020 debido a que la actividad se elimina y se traslada a 2021. Aprobación en Comité","SS-1164: 27 enero 2021. solicitud cambio de metas"]
[null,null,"GESTIÓN PARA EL RESULTADO","GR2.Fortalecer la Gestión TIC y de la Información en las Entidades del Sector Hacienda","SH.Ini.2019.2022.GR2.003 Fortalecer la Seguridad Digital en las entidades del SH","Porcentaje de las actividades de acompañamiento para la Implementación del Anexo 4 de la Guía de Gestión de Riesgos de gestión, corrupción y seguridad digital","% actividades de acompañamiento para la implementación del Anexo 4 = # de actividades de acompañamiento realizadas / # de actividades de acompañamiento programadas","Resultado","Anual","N/A",0.0,1.0,1.0,1.0,1.0,1.0,"MHCP","Alejandro Ignacio Cruz","N/A","N/A","N/A","Gestión con valores para el resultado (Ventanilla hacia afuera-hacia adentro)","Seguridad Digital","Activo","19-12-2019: Se modifica el nombre y metas del indicador","20-04-2020: Se ajusta el indicador (Metas) acorde con lo registrado en la ficha técnica aprobada","Se solicita modificación del nombre"]
[null,null,"GESTIÓN PARA EL RESULTADO","GR3. Fortalecer la gestión organizacional y por procesos de las entidades del Sector Hacienda","SH.Ini.2019.2022GR3.001 Desarrollar acciones encaminadas a fortalecer la gestión organizacional y por procesos de la entidades del Sector Hacienda","Porcentaje de avance de las acciones de fortalecimiento organizacional y por procesos","Porcentaje de avance de las acciones de fortalecimiento organizacional y por procesos=Actividades desarrolladas en PES relacionadas con la iniciativa/Actividades programadas en PES relacionadas con la iniciativa","Resultado","Anual","N/A","Sin línea base",1.0,1.0,1.0,1.0,1.0,"MHCP","Yeinmy Yolanda Rozo","N/A","N/A","N/A","Gestión con valores para el resultado (Ventanilla hacia adentro)","Transparencia, Acceso a la Información Pública y Lucha Contra la Corrupción","Activo","20-04-2020: Cambio de responsable de registro"]
[null,null,"GESTIÓN DE CAPACIDADES INSTITUCIONALES","GCI1. Fortalecer las capacidades del Talento Humano y la Innovación en las entidades del Sector Hacienda","SH.Ini.2019.2022.GCI1.001 Fortalecer la implementación de la política del Talento Humano en las Entidades del Sector","Porcentaje de avance en la implementación de las rutas de creación de valor","Porcentaje de avance en la implementación de las rutas de creación de valor = promedio de avance de todas las entidades del SH","Resultado","Anual","N/A","73% resultado FURAG 2018",0.75,0.78,0.81,0.83,0.83,"MHCP","Hilda Veronica Tapasco ","Todas las entidades. No aplica para CISA, FDN, FOGAFIN, FOGACOOP, SAE, FIDUCOLDEX","N/A","N/A","Talento Humano","Talento Humano","Activo","19-12-2019: Se ajusta la meta de 2022"]
[null,null,"GESTIÓN DE CAPACIDADES INSTITUCIONALES","GCI1. Fortalecer las capacidades del Talento Humano y la Innovación en las entidades del Sector Hacienda","SH.Ini.2019.2022.GCI1.002 Fortalecer la implementación de la política de integridad en las Entidades del Sector","Porcentaje de avance en la implementación de la política de integridad","% de avance en la implementación de la política de integridad= promedio de avance de todas las entidades del SH","Resultado","Anual","N/A",0.74,0.76,0.79,0.81,0.84,0.84,"MHCP","Lia Carolina Cabrejo ","Todas las entidades. No aplica para FIDUCOLDEX","N/A","N/A","Talento Humano","Integridad","Activo","20-04-2020: Cambio de responsables de registro","20-04-2020: Se ajusta el indicador (Metas) acorde con lo registrado en la ficha técnica aprobada"]
[null,null,"GESTIÓN DE CAPACIDADES INSTITUCIONALES","GCI1. Fortalecer las capacidades del Talento Humano y la Innovación en las entidades del Sector Hacienda","SH.Ini.2019.2022.GCI1.003 Fortalecer la implementación de la política de Gestión de Conocimiento e Innovación en las Entidades del Sector","Porcentaje de avance en la implementación de la política de Gestión de Conocimiento e Innovación","% de avance en la implementación de la política de Gestión de Conocimiento e Innovación = promedio de avance de todas las entidades del SH","Resultado","Anual","N/A",0.7414,0.7664,0.7914,0.8164,0.8414,0.8414,"MHCP","Lia Carolina Cabrejo \nCamilo Sanchez ","Todas las entidades. No aplica para FIDUCOLDEX","N/A","N/A","Gestión de Conocimiento ","Defensa Jurídica ","Activo","20-04-2020: Cambio de responsables de registro","20-04-2020: Cambio de periodicidad a 31 Julio 2020"]
[null,null,"GESTIÓN DE CAPACIDADES INSTITUCIONALES","GCI2. Promover la adecuada administración de los recursos físicos, financieros y la defensa técnica de las Entidades del Sector Hacienda.","SH.Ini.2019.2022.GCI2.001 Implementar buenas practicas para la administración de recursos financieros en las Entidades del Sector Hacienda","Promedio de ejecución del presupuesto de las entidades con PGN del Sector Hacienda","Promedio de ejecución del presupuesto de las entidades con PGN del sector hacienda","Resultado","Anual","N/A",0.87,0.85,0.85,0.85,0.85,0.85,"MHCP","Victor Manuel Ciro ","Entidades con PGN","N/A","N/A","Gestión con valores para el resultado (Ventanilla hacia adentro)","Gestión Presupuestal y Eficiencia del Gasto Público  ","Activo","20-04-2020: Cambio línea base acorde con lo registrado en la ficha aprobada"]
[null,null,"GESTIÓN DE CAPACIDADES INSTITUCIONALES","GCI2. Promover la adecuada administración de los recursos físicos, financieros y la defensa técnica de las Entidades del Sector Hacienda.","SH.Ini.2019.2022.GCI2.002 Desarrollar mecanismos para un adecuado ejercicio de defensa jurídica de las Entidades del Sector Hacienda","Porcentaje de cumplimiento en las sesiones programadas de defensa jurídica","# de sesiones participadas de defensa jurídica / # de sesiones programadas de defensa jurídica","Resultado","Anual","N/A","Sin línea base",1.0,1.0,1.0,1.0,1.0,"MHCP","Sandra Díaz Castellanos","Todas las entidades. No aplica URF","N/A","N/A","Gestión con valores para el resultado (Ventanilla hacia adentro)","Defensa Jurídica ","Activo","29-07-2020: Se realizo ajuste de nombre y formula. Aprobación en Comité"]

{"sheet":"Mapa_EstrategicoSectorial","index":2,"n_rows":5,"n_cols":1,"rows_kept":5,"cut":false,"hidden":true,"merged":[[3,1,3,12],[4,0,4,12]]}
[]
[]
[]
[]
["Versión 1 aprobada mediante Comité Sectorial de Gestión y Desempeño - 31 de enero 2019"]

{"sheet":"Estructura_Planeación_Estr","index":3,"n_rows":70,"n_cols":10,"rows_kept":70,"cut":false,"hidden":true,"merged":[[7,9,10,9],[14,9,17,9],[20,9,23,9],[25,1,25,9],[36,1,36,9],[38,2,38,3],[39,2,39,3],[40,2,40,3],[41,2,41,3],[42,2,42,3],[43,2,43,3],[44,2,44,3],[45,2,45,3],[46,2,46,3],[47,2,47,3],[48,2,48,3],[49,2,49,3],[50,2,50,3],[51,2,51,3],[52,2,52,3],[53,2,53,3],[54,2,54,3],[55,2,55,3],[56,2,56,3],[57,2,57,3],[58,2,58,3],[59,2,59,3],[60,2,60,3],[68,2,68,3],[69,1,69,3],[61,2,61,3],[62,2,62,3],[63,2,63,3],[64,2,64,3],[65,2,65,3],[66,2,66,3],[67,2,67,3]]}
[]
[]
[]
[]
[]
[]
[null,null,null,null,null,2019.0,2020.0,2021.0,2022.0,"Avance Plan"]
[null,null,null,null,"Objetivos estratégicos",1.0,1.0,1.0]
[null,null,null,null,"Iniciativas estrategicas",0.0,0.0,1.0]
[null,null,null,null,"Indicadores PND",16.0,15.0,18.0]
[null,null,null,null,"Tareas del Plan de Acción Anual",0.0,0.0,10.0]
[]
[]
[null,null,null,null,null,2019.0,2020.0,2021.0,2022.0,"Avance Plan"]
[null,null,null,null,"Objetivos estratégicos",3.0,3.0,3.0]
[null,null,null,null,"Iniciativas estrategicas",7.0,7.0,7.0]
[null,null,null,null,"Indicadores PES",8.0,9.0,9.0]
[null,null,null,null,"Tareas del Plan de Acción Anual",155.0,103.0,133.0]
[]
[null,null,null,null,null,2019.0,2020.0,2021.0,2022.0,"Avance Plan"]
[null,null,null,null,"Objetivos estratégicos",2.0,2.0,2.0]
[null,null,null,null,"Iniciativas estrategicas",5.0,5.0,5.0]
[null,null,null,null,"Indicadores PES",6.0,5.0,5.0]
[null,null,null,null,"Tareas del Plan de Acción Anual",133.0,135.0,207.0]
[]
[null,"TOTALES"]
[]
[null,null,null,null,null,2019.0,2020.0,2021.0,2022.0]
[null,null,null,null,"Objetivos estratégicos",{"$f":"+F8+F15+F21","v":6},6,6]
[null,null,null,null,"Iniciativas estrategicas",{"$f":"+F9+F16+F22","v":12},12,13]
[null,null,null,null,"Indicadores PND",{"$f":"+F10","v":16},15,18]
[null,null,null,null,"Indicadores PES",{"$f":"+F17+F23","v":14},14,14]
[null,null,null,null,"Tareas del Plan de Acción Anual",{"$f":"+F11+F18+F24","v":288},238,350]
[]
[]
[]
[null,"Despliegue tareas  - Entidades"]
[]
[null,"N°","ENTIDAD",null,2019.0,2020.0,"2021(Versión inicial)",2021.0,2022.0,"Total"]
[null,1.0,"BANCO AGRARIO",null,"N/A","N/A",0.0,11.0,null,{"$f":"SUM(E40:I40)","v":11}]
[null,2.0,"BANCOLDEX",null,"N/A","N/A",0.0,10.0,null,10]
[null,3.0,"CGN - CONTADURÍA",null,14.0,12.0,13.0,13.0,null,52]
[null,4.0,"CISA",null,10.0,12.0,11.0,11.0,null,44]
[null,5.0,"COLJUEGOS",null,6.0,12.0,11.0,11.0,null,40]
[null,6.0,"DIAN",null,21.0,12.0,11.0,11.0,null,55]
[null,7.0,"ENTERRITORIO",null,"N/A","N/A",0.0,11.0,null,11]
[null,8.0,"FDN",null,9.0,8.0,8.0,8.0,null,33]
[null,9.0,"FIDUAGRARIA",null,"N/A","N/A",0.0,11.0,null,11]
[null,10.0,"FIDUCOLDEX",null,"N/A","N/A",0.0,9.0,null,9]
[null,11.0,"FIDUPREVISORA",null,17.0,12.0,11.0,11.0,null,51]
[null,12.0,"FINAGRO",null,"N/A","N/A",0.0,11.0,null,11]
[null,13.0,"FINDETER",null,37.0,12.0,11.0,11.0,null,71]
[null,14.0,"FOGACOOP",null,11.0,10.0,10.0,10.0,null,41]
[null,15.0,"FOGAFÍN",null,5.0,11.0,11.0,11.0,null,38]
[null,16.0,"FONDO ADAPTACIÓN",null,10.0,12.0,11.0,11.0,null,44]
[null,17.0,"FNA",null,"N/A","N/A",0.0,11.0,null,11]
[null,18.0,"FNG",null,"N/A","N/A",0.0,11.0,null,11]
[null,19.0,"GRUPO BICENTENARIO",null,"N/A","N/A",0.0,12.0,null,12]
[null,20.0,"ICETEX",null,"N/A","N/A",0.0,12.0,null,12]
[null,21.0,"ITRC",null,16.0,12.0,11.0,11.0,null,50]
[null,22.0,"MHCP",null,29.0,20.0,24.0,24.0,null,97]
[null,23.0,"POSITIVA",null,6.0,12.0,11.0,11.0,null,40]
[null,24.0,"PREVISORA",null,10.0,11.0,10.0,10.0,null,41]
[null,25.0,"SAE",null,18.0,11.0,11.0,11.0,null,51]
[null,26.0,"SUPERFINANCIERA",null,13.0,12.0,13.0,13.0,null,51]
[null,27.0,"SUPERSOLIDARIA",null,16.0,12.0,11.0,11.0,null,50]
[null,28.0,"UGPP",null,28.0,12.0,13.0,13.0,null,66]
[null,29.0,"UIAF",null,6.0,12.0,11.0,9.0,null,38]
[null,30.0,"URF",null,6.0,11.0,11.0,11.0,null,39]
[null,"TOTAL",null,null,{"$f":"SUM(E40:E69)","v":288},238,234,341,0,1101]

{"sheet":"Plan de Accion Sectorial","index":4,"n_rows":434,"n_cols":34,"rows_kept":434,"cut":false,"hidden":false,"merged":[[8,18,8,19],[8,20,8,21],[5,1,5,2],[5,6,5,7],[5,10,5,12],[7,16,7,23],[7,26,7,27],[7,28,7,32],[8,16,8,17],[8,22,8,23]]}
[]
[]
[]
[]
[]
[null,"Versión: ",null,1.0,null,"Fecha aprobación: ","17 de diciembre de 2021",null,null,"Fecha publicación de la actualización: "]
[]
[null,"N°","Perspectiva","Objetivo Estratégico","Iniciativa Estratégica","Entidad ","Categoría","Responsable de aprobar\n(Jefe delegado de entidad - Hacienda Líder Sectorial)","Nombre de la Tarea","Descripción de la Tarea y Entregable","Estado SMGI 2021","Responsable de documentar","Colaboradores en las entidades (Recurso SMGI)","Responsable en el Plan de acción anual 2022","Dependencia responsable","Entidades participantes","Año de ejecución de la actividad",null,null,null,null,null,null,null,"Fuente de información de la tarea","Pacto PND 2018-2022","Modelo Integrado de Planeación y Gestión",null,"Control de cambios"]
[null,null,null,null,null,null,null,null,null,null,null,null,null,null,null,null,2019.0,null,2020.0,null,2021.0,null,2022.0,null,null,null,"Dimensión ","Políticas","Cambio 1","Cambio 2","Cambio 3","Cambio 4","Observaciones"]
[null,null,null,null,null,null,null,null,null,null,null,null,null,null,null,null,"Inicial","final","Inicial","final","Inicial","final","Inicial","final"]
[null,null,"GESTIÓN MISIONAL","GM1. Contribuir al logro de los pactos del Plan Nacional de Desarrollo en los cuales participa el Sector Hacienda","SH.Ini.2019.2022.GM1.Desarrollar las acciones misionales que contribuyan al logro de los objetivos del sector y del Gobierno nacional. ","CGN","CGN>PAA 2022>Gestión Misional","Henry Ramírez Montes","Participar en el plan operativo del Sistema Integrado de Gestión Financiera pública para 2022","Participar en la elaboración del plan operativo del Sistema Integrado de Gestión Financiera Pública -SIGFP -CONPES 4008.","En desarrollo","Wilson Eduardo Cifuentes","Iván Castillo\nDiana Paola Vargas - MHCP",null,"Subcontaduría de Consolidación de la Información","MHCP - Dirección General de Política Macro ","-","-","-","-","2021-07-01","2021-12-31","2022-01-01","2022-12-31","Necesidades del SH","XV. Pacto por una gestión pública efectiva ; XXVI. Consistencia macroeconómica, fiscal y de resultados económicos y sociales","N/A","N/A"]
[null,null,"GESTIÓN MISIONAL","GM1. Contribuir al logro de los pactos del Plan Nacional de Desarrollo en los cuales participa el Sector Hacienda","SH.Ini.2019.2022.GM1.Desarrollar las acciones misionales que contribuyan al logro de los objetivos del sector y del Gobierno nacional. ","CGN","CGN>PAA 2022>Gestión Misional","Henry Ramírez Montes","Participar en los avances Tecnológicos del Sistema Integrado de Gestión Financiera pública","Participar en los avances tecnológicos del plan operativo del Sistema Integrado de Gestión Financiera Pública -SIGFP -CONPES 4008.","En desarrollo","Wilson Eduardo Cifuentes","Iván Castillo\nDiana Paola Vargas - MHCP",null,"Subcontaduría de Consolidación de la Información","MHCP - Dirección General de Política Macro ","-","-","-","-","2021-07-01","2021-12-31","2022-01-01","2022-12-31","Necesidades del SH","XV. Pacto por una gestión pública efectiva ; XXVI. Consistencia macroeconómica, fiscal y de resultados económicos y sociales","N/A","N/A"]
[null,null,"GESTIÓN MISIONAL","GM1. Contribuir al logro de los pactos del Plan Nacional de Desarrollo en los cuales participa el Sector Hacienda","SH.Ini.2019.2022.GM1.Desarrollar las acciones misionales que contribuyan al logro de los objetivos del sector y del Gobierno nacional. ","CGN","CGN>PAA 2022>Gestión Misional","Henry Ramírez Montes","Realizar los desarrollos normativos, conceptuales y metodológicos del Subsistema de contabilidad para su interoperabilidad con el Sistema Unificado de Gestión de Información Financiera Pública (SUGIFP)","Expedir las normas, conceptos y metodologías necesarias para que el Subsistema de contabilidad interopere con el Sistema Unificado de Gestión de Información Financiera Pública (SUGIFP)\nEntregables: Normas, Conceptos y guías metodologías",null,"Wilson Eduardo Cifuentes","Iván Castillo\nLelio Rodríguez Pabón - MHCP",null,"Subcontaduría de Consolidación de la Información","MHCP - Subdirección de análisis y consolidación presupuestal ",null,null,null,null,null,null,"2022-01-01","2022-12-31","Necesidades del SH","XV. Pacto por una gestión pública efectiva ; XXVI. Consistencia macroeconómica, fiscal y de resultados económicos y sociales","N/A","N/A"]
[null,null,"GESTIÓN MISIONAL","GM1. Contribuir al logro de los pactos del Plan Nacional de Desarrollo en los cuales participa el Sector Hacienda","SH.Ini.2019.2022.GM1.Desarrollar las acciones misionales que contribuyan al logro de los objetivos del sector y del Gobierno nacional. ","FINDETER","FINDETER>PAA 2022>Gestión Misional","Laura Mercedes Peña Rodríguez","Implementar acciones de participación ciudadana en desarrollo de los programas de planificación territorial en las regiones.","El programa de planificación tiene como objetivo validar, identificar y priorizar acciones para promover la sostenibilidad de Colombia y liderar su transformación, con la participación de las autoridades locales (electas), sector privado y público, academia y ciudadanía, quienes apoyan la identificación de la problemática y necesidades de inversión de las ciudades.\n \nCon esas acciones de participación ciudadana, se propicia la integración regional o para la priorización de proyectos que contribuyen de manera integral al desarrollo de los entes territoriales.\n","N/A","Jorge Luis Giraldo",null,null,null,"N/A","-","-","-","-","-","-","2022-01-01","2022-12-31","Open Hacienda","N/A","N/A","N/A"]
[null,null,"GESTIÓN MISIONAL","GM1. Contribuir al logro de los pactos del Plan Nacional de Desarrollo en los cuales participa el Sector Hacienda","SH.Ini.2019.2022.GM1.Desarrollar las acciones misionales que contribuyan al logro de los objetivos del sector y del Gobierno nacional. ","GRUPO BICENTENARIO","GRUPO BICENTENARIO>PAA 2022>Gestión Misional","Oscar Laureano Rosero Jiménez","Optimizar el modelo de gestión de empresas","Consolidar la integración de las entidades en el Grupo Bicentenario\nInforme de Gestión y Resultados.","Nueva","Oscar Laureano Rosero Jiménez ","María Juliana Gutiérrez",null,"Área Estrategia","Entidades del Grupo Bicentenario","-","-","-","-","2021-01-01","2021-12-31","2022-01-01","2022-12-31","Necesidades del SH","XV. Pacto por una gestión pública efectiva","N/A","N/A"]
[null,null,"GESTIÓN MISIONAL","GM1. Contribuir al logro de los pactos del Plan Nacional de Desarrollo en los cuales participa el Sector Hacienda","SH.Ini.2019.2022.GM1.Desarrollar las acciones misionales que contribuyan al logro de los objetivos del sector y del Gobierno nacional. ","GRUPO BICENTENARIO","GRUPO BICENTENARIO>PAA 2022>Gestión Misional","Oscar Laureano Rosero Jiménez","Fortalecer el Gobierno Corporativo.","Incorporar iniciativas de gobierno corporativo en el Grupo Bicentenario.\nDocumentos de gobierno corporativo implementados en el Grupo.","Nueva","Pablo Cabarcas","Sebastian Echeverri Alvarez ",null,"Área Jurídica","Área Jurídica","-","-","-","-","2021-01-01","2021-12-31","2022-01-01","2022-06-30","Necesidades del SH","XV. Pacto por una gestión pública efectiva","N/A","N/A"]
[null,null,"GESTIÓN MISIONAL","GM1. Contribuir al logro de los pactos del Plan Nacional de Desarrollo en los cuales participa el Sector Hacienda","SH.Ini.2019.2022.GM1.Desarrollar las acciones misionales que contribuyan al logro de los objetivos del sector y del Gobierno nacional. ","MHCP","MHCP>PAA 2022>Gestión Misional","María del Pilar Florido Caicedo","Implementar el plan integral de gestión del cambio climático del Sector Hacienda","Implementar el plan integral de gestión del cambio climático del Sector Hacienda, a través del establecimiento de mesas de trabajo con las entidades del Sector Hacienda en el marco de la Ley 1931 de 2018, para el fortalecimiento del plan integral  de gestión del cambio climático del Sector Hacienda","Para aprobación","Laura Marcela Ruiz","N/A",null,"Viceministerio Técnico","N/A","-","-","-","-","2021-01-05","2021-12-31","2022-01-01","2022-12-31","Necesidades del SH","N/A","N/A","N/A"]
[null,null,"GESTIÓN MISIONAL","GM1. Contribuir al logro de los pactos del Plan Nacional de Desarrollo en los cuales participa el Sector Hacienda","SH.Ini.2019.2022.GM1.Desarrollar las acciones misionales que contribuyan al logro de los objetivos del sector y del Gobierno nacional. ","SUPERFINANCIERA","SUPERFINANCIERA>PAA 2022>Gestión Misional","José Gabriel Sánchez Sousa","Coordinar el subgrupo de trabajo de Ciberseguridad de la Alianza del Pacífico ","Definir y coordinar las actividades que se realizan en 2022 por parte del subgrupo de trabajo de ciberseguridad durante la presidencia pro tempore de Colombia","En desarrollo","Sergio Esteban Varela Guzman","Miguel Ángel Villalobos Hernández- SFC  \nCamilo Hernández de la URF",null,"Delegatura Adjunta para Riesgos","URF y SFC","-","-","-","-","2021-01-01","2021-12-31","-","-","Necesidades del SH","N/A","N/A","N/A"]
[null,null,"GESTIÓN MISIONAL","GM1. Contribuir al logro de los pactos del Plan Nacional de Desarrollo en los cuales participa el Sector Hacienda","SH.Ini.2019.2022.GM1.Desarrollar las acciones misionales que contribuyan al logro de los objetivos del sector y del Gobierno nacional. ","SUPERFINANCIERA","SUPERFINANCIERA>PAA 2022>Gestión Misional","José Gabriel Sánchez Sousa","Generar mayores competencias, conocimiento y confianza en el sistema financiero y sectores asociados para desincentivar el uso del efectivo y promover el uso de los servicios financieros formales.","Diseñar, en articulación con los otros actores de la CIEEF, Objetos Virtuales de Aprendizaje (OVA) sobre EEF dirigido a Secretarios de Educación, Docentes y Directivos Docentes, los cuales serán publicados en los edusitios de la escuela de secretarios y contacto maestro, los cuales hacen parte del Portal Colombia Aprende.\n\n2021: Objetos Virtuales de Aprendizaje (OVA) sobre educación económica y financiera diseñados e implementados\n2022: Objetos Virtuales de Aprendizaje (OVA) sobre educación económica y financiera diseñados e implementados","En desarrollo","Sergio Esteban Varela Guzman","Ministerio de Educación Nacional - Claudia Molina; Ministerio de Hacienda y Crédito Público - Laura Ruiz; Superintendencia Financiera de Colombia - Angelica Osorio; Departamento Nacional de Planeación - Ximena Pardo; Fondo de Garantías de Instituciones Financieras - Juan Carlos López; Fondo de Garantías de Entidades Cooperativas - Adriana Macallister Braidy; Unidad de Regulación Financiera - Ana María Prieto.",null," Delegatura para el Consumidor Financiero","Ministerio de Educación Nacional; Ministerio de Hacienda y Crédito Público; Departamento Nacional de Planeación; Fondo de Garantías de Instituciones Financieras; Fondo de Garantías de Entidades Cooperativas; Unidad de Regulación Financiera","-","-","-","-","2021-01-01","2021-12-31","2022-01-01","2022-12-31","Necesidades del SH","N/A","N/A","N/A"]
[null,null,"GESTIÓN MISIONAL","GM1. Contribuir al logro de los pactos del Plan Nacional de Desarrollo en los cuales participa el Sector Hacienda","SH.Ini.2019.2022.GM1.Desarrollar las acciones misionales que contribuyan al logro de los objetivos del sector y del Gobierno nacional. ","UGPP","UGPP>PAA 2022>Gestión Misional","Ana María Cadena","Validar el cumplimiento de los requisitos de postulantes del Programa de Apoyo al Empleo Formal PAEF y calcular el aporte estatal correspondiente.","La UGPP realiza las validaciones de las postulaciones de los solicitantes a partir de la información reportada y disponible y remite a las entidades financieras los conceptos de conformidad respectivos. El aporte estatal depende del género del empleado y de la actividad económica del postulante, en los términos establecidos por la Ley 2060 de 2020 y la resolución 2162 de 2020 del MHCP.","Finalizada","Germán Vega Rodríguez","N/A",null,"Dirección de Parafiscales","N/A","-","-","-","-","2021-01-01","2021-05-31","2022-01-01","2022-12-31","Necesidades del SH","N/A","N/A","N/A"]
[null,null,"GESTIÓN MISIONAL","GM1. Contribuir al logro de los pactos del Plan Nacional de Desarrollo en los cuales participa el Sector Hacienda","SH.Ini.2019.2022.GM1.Desarrollar las acciones misionales que contribuyan al logro de los objetivos del sector y del Gobierno nacional. ","UGPP","UGPP>PAA 2022>Gestión Misional","Ana María Cadena","Iniciar el proceso de fiscalización de los beneficiarios del Programa PAEF","De acuerdo con lo establecido en la normatividad vigente,  la UGPP,  dentro de las labores de fiscalización que adelante durante los 4 años siguientes a la finalización del Programa PAEF, podrá verificar el cumplimiento de los requisitos establecidos en el Decreto Legislativo para acceder al mismo.","En desarrollo","Germán Vega Rodríguez","N/A",null,"Dirección de Parafiscales","N/A","-","-","-","-","2021-04-01","2021-12-31","2022-01-01","2022-12-31","Necesidades del SH","N/A","N/A","N/A"]
[null,null,"GESTIÓN PARA EL RESULTADO","GR1. Fortalecer las relaciones de las entidades del Sector Hacienda con sus grupos de valor ","SH.Ini.2019.2022.GR1.001 Promover el seguimiento y mejora continua de las acciones que se realizan para fortalecer las relaciones con los grupos de valor en las entidades del Sector Hacienda.","BANCO AGRARIO","BANCO AGRARIO> PAA 2022> Relacionamiento con el Ciudadano","Sandra Patricia Villabona","Verificar que los tramites inscritos en el SUIT, estén cargados en el portal GOV.CO, con el fin de actualizar, socializar y potencializarlo a través de diferentes canales de comunicación.","Se revisará el estado de avance de la incorporación de los trámites en el portal GOV.CO; y se divulgará los beneficios a través de los diferentes canales de comunicación.","N/A",null,null,null,null,"N/A","-","-","-","-","-","-","2022-04-01","2022-12-31","Open Hacienda","N/A","Gestión con valores para el resultado (Ventanilla hacia afuera)","Racionalización de Trámites"]
[null,null,"GESTIÓN PARA EL RESULTADO","GR1. Fortalecer las relaciones de las entidades del Sector Hacienda con sus grupos de valor ","SH.Ini.2019.2022.GR1.001 Promover el seguimiento y mejora continua de las acciones que se realizan para fortalecer las relaciones con los grupos de valor en las entidades del Sector Hacienda.","CISA","CISA> PAA 2022> Relacionamiento con el Ciudadano","Juan Felipe Robles","Verificar que los tramites inscritos en el SUIT, estén cargados en el portal GOV.CO, con el fin de actualizar, socializar y potencializarlo a través de diferentes canales de comunicación.","Se revisará el estado de avance de la incorporación de los trámites en el portal GOV.CO; y se divulgará los beneficios a través de los diferentes canales de comunicación.",null,"Sandra Viviana Neira ","N.A",null,"Servicio Integral al Usuario","N/A","-","-","-","-","-","-","2022-01-01","2022-12-31","Open Hacienda","N/A","Gestión con valores para el resultado (Ventanilla hacia afuera)","Racionalización de Trámites"]
[null,null,"GESTIÓN PARA EL RESULTADO","GR1. Fortalecer las relaciones de las entidades del Sector Hacienda con sus grupos de valor ","SH.Ini.2019.2022.GR1.001 Promover el seguimiento y mejora continua de las acciones que se realizan para fortalecer las relaciones con los grupos de valor en las entidades del Sector Hacienda.","COLJUEGOS","COLJUEGOS> PAA 2022> Relacionamiento con el Ciudadano","Roger José Carrillo Campo ","Verificar que los tramites inscritos en el SUIT, estén cargados en el portal GOV.CO, con el fin de actualizar, socializar y potencializarlo a través de diferentes canales de comunicación.","Se revisará el estado de avance de la incorporación de los trámites en el portal GOV.CO; y se divulgará los beneficios a través de los diferentes canales de comunicación.",null,"Alexandra Torres Gonzalez","Juan Felipe Mahecha Cordoba",null,"Oficina Asesora de Planeación","N/A","-","-","-","-","-","-","2022-01-01","2022-12-31","Open Hacienda","N/A","Gestión con valores para el resultado (Ventanilla hacia afuera)","Racionalización de Trámites"]
[null,null,"GESTIÓN PARA EL RESULTADO","GR1. Fortalecer las relaciones de las entidades del Sector Hacienda con sus grupos de valor ","SH.Ini.2019.2022.GR1.001 Promover el seguimiento y mejora continua de las acciones que se realizan para fortalecer las relaciones con los grupos de valor en las entidades del Sector Hacienda.","CONTADURÍA","CGN> PAA 2022> Relacionamiento con el Ciudadano","Henry Ramírez Montes ","Verificar que los tramites inscritos en el SUIT, estén cargados en el portal GOV.CO, con el fin de actualizar, socializar y potencializarlo a través de diferentes canales de comunicación.","Se revisará el estado de avance de la incorporación de los trámites en el portal GOV.CO; y se divulgará los beneficios a través de los diferentes canales de comunicación.",null,"Wilson Eduardo Cifuentes","N/A",null,"GIT de Planeación","N/A","-","-","-","-","-","-","2022-01-01","2022-12-31","Open Hacienda","N/A","Gestión con valores para el resultado (Ventanilla hacia afuera)","Racionalización de Trámites"]
[null,null,"GESTIÓN PARA EL RESULTADO","GR1. Fortalecer las relaciones de las entidades del Sector Hacienda con sus grupos de valor ","SH.Ini.2019.2022.GR1.001 Promover el seguimiento y mejora continua de las acciones que se realizan para fortalecer las relaciones con los grupos de valor en las entidades del Sector Hacienda."," DIAN","DIAN> PAA 2022> Relacionamiento con el Ciudadano","Catalina Garcia Cure","Verificar que los tramites inscritos en el SUIT, estén cargados en el portal GOV.CO, con el fin de actualizar, socializar y potencializarlo a través de diferentes canales de comunicación.","Se revisará el estado de avance de la incorporación de los trámites en el portal GOV.CO; y se divulgará los beneficios a través de los diferentes canales de comunicación.",null,"Constanza Del Pilar Rodríguez Páez",null,null,"Subdirección de Gestión de Asistencia al Cliente","N/A","-","-","-","-","-","-","2022-01-01","2022-12-31","Open Hacienda","N/A","Gestión con valores para el resultado (Ventanilla hacia afuera)","Racionalización de Trámites"]
[null,null,"GESTIÓN PARA EL RESULTADO","GR1. Fortalecer las relaciones de las entidades del Sector Hacienda con sus grupos de valor ","SH.Ini.2019.2022.GR1.001 Promover el seguimiento y mejora continua de las acciones que se realizan para fortalecer las relaciones con los grupos de valor en las entidades del Sector Hacienda.","FIDUPREVISORA","FIDUPREVISORA> PAA 2022> Relacionamiento con el Ciudadano","Magda Nancy Manosalva Cely","Verificar que los tramites inscritos en el SUIT, estén cargados en el portal GOV.CO, con el fin de actualizar, socializar y potencializarlo a través de diferentes canales de comunicación.","Se revisará el estado de avance de la incorporación de los trámites en el portal GOV.CO; y se divulgará los beneficios a través de los diferentes canales de comunicación.",null,"Karen Pardo",null,null,null,"N/A",null,null,null,null,null,null,"2022-01-01","2022-12-31"]
[null,null,"GESTIÓN PARA EL RESULTADO","GR1. Fortalecer las relaciones de las entidades del Sector Hacienda con sus grupos de valor ","SH.Ini.2019.2022.GR1.001 Promover el seguimiento y mejora continua de las acciones que se realizan para fortalecer las relaciones con los grupos de valor en las entidades del Sector Hacienda.","FOGACOOP","FOGACOOP> PAA 2022>Relacionamiento con el Ciudadano","Adriana Mcallister Braidy","Verificar que los tramites inscritos en el SUIT, estén cargados en el portal GOV.CO, con el fin de actualizar, socializar y potencializarlo a través de diferentes canales de comunicación.","Se revisará el estado de avance de la incorporación de los trámites en el portal GOV.CO; y se divulgará los beneficios a través de los diferentes canales de comunicación.",null,null,null,null,null,"N/A","-","-","-","-","-","-","2022-01-01","2022-12-31","Open Hacienda","N/A","Gestión con valores para el resultado (Ventanilla hacia afuera)","Racionalización de Trámites"]
[null,null,"GESTIÓN PARA EL RESULTADO","GR1. Fortalecer las relaciones de las entidades del Sector Hacienda con sus grupos de valor ","SH.Ini.2019.2022.GR1.001 Promover el seguimiento y mejora continua de las acciones que se realizan para fortalecer las relaciones con los grupos de valor en las entidades del Sector Hacienda.","FOGAFIN","FOGAFIN> PAA 2022> Relacionamiento con el Ciudadano","Carlos Alberto Sánchez del Valle","Verificar que los tramites inscritos en el SUIT, estén cargados en el portal GOV.CO, con el fin de actualizar, socializar y potencializarlo a través de diferentes canales de comunicación.","Se revisará el estado de avance de la incorporación de los trámites en el portal GOV.CO; y se divulgará los beneficios a través de los diferentes canales de comunicación.",null,null,null,null,null,"N/A","-","-","-","-","-","-","2022-01-01","2022-12-31","Open Hacienda","N/A","Gestión con valores para el resultado (Ventanilla hacia afuera)","Racionalización de Trámites"]
[null,null,"GESTIÓN PARA EL RESULTADO","GR1. Fortalecer las relaciones de las entidades del Sector Hacienda con sus grupos de valor ","SH.Ini.2019.2022.GR1.001 Promover el seguimiento y mejora continua de las acciones que se realizan para fortalecer las relaciones con los grupos de valor en las entidades del Sector Hacienda.","FONDO NACIONAL DEL AHORRO","FNA> PAA 2022> Relacionamiento con el Ciudadano","Kennicher Arias Roa","Verificar que los tramites inscritos en el SUIT, estén cargados en el portal GOV.CO, con el fin de actualizar, socializar y potencializarlo a través de diferentes canales de comunicación.","Se revisará el estado de avance de la incorporación de los trámites en el portal GOV.CO; y se divulgará los beneficios a través de los diferentes canales de comunicación.",null,null,null,null,null,"N/A","-","-","-","-","-","-","2022-01-01","2022-12-31","Open Hacienda","N/A","Gestión con valores para el resultado (Ventanilla hacia afuera)","Racionalización de Trámites"]
[null,null,"GESTIÓN PARA EL RESULTADO","GR1. Fortalecer las relaciones de las entidades del Sector Hacienda con sus grupos de valor ","SH.Ini.2019.2022.GR1.001 Promover el seguimiento y mejora continua de las acciones que se realizan para fortalecer las relaciones con los grupos de valor en las entidades del Sector Hacienda.","FONDO NACIONAL DE GARANTIAS","FNG> PAA 2022> Relacionamiento con el Ciudadano","Maria Angelica Burbano Sánchez","Verificar que los tramites inscritos en el SUIT, estén cargados en el portal GOV.CO, con el fin de actualizar, socializar y potencializarlo a través de diferentes canales de comunicación.","Se revisará el estado de avance de la incorporación de los trámites en el portal GOV.CO; y se divulgará los beneficios a través de los diferentes canales de comunicación.",null,null,null,null,null,"N/A","-","-","-","-","-","-","2022-01-01","2022-12-31","Open Hacienda","N/A","Gestión con valores para el resultado (Ventanilla hacia afuera)","Racionalización de Trámites"]
[null,null,"GESTIÓN PARA EL RESULTADO","GR1. Fortalecer las relaciones de las entidades del Sector Hacienda con sus grupos de valor ","SH.Ini.2019.2022.GR1.001 Promover el seguimiento y mejora continua de las acciones que se realizan para fortalecer las relaciones con los grupos de valor en las entidades del Sector Hacienda.","ICETEX","ICETEX> PAA 2022> Relacionamiento con el Ciudadano","Beatriz Helena Torres Lizarazo\n","Verificar que los tramites inscritos en el SUIT, estén cargados en el portal GOV.CO, con el fin de actualizar, socializar y potencializarlo a través de diferentes canales de comunicación.","Se revisará el estado de avance de la incorporación de los trámites en el portal GOV.CO; y se divulgará los beneficios a través de los diferentes canales de comunicación.",null,null,null,null,null,"N/A","-","-","-","-","-","-","2022-01-01","2022-12-31","Open Hacienda","N/A","Gestión con valores para el resultado (Ventanilla hacia afuera)","Racionalización de Trámites"]
[null,null,"GESTIÓN PARA EL RESULTADO","GR1. Fortalecer las relaciones de las entidades del Sector Hacienda con sus grupos de valor ","SH.Ini.2019.2022.GR1.001 Promover el seguimiento y mejora continua de las acciones que se realizan para fortalecer las relaciones con los grupos de valor en las entidades del Sector Hacienda.","MHCP","MHCP> PAA 2022> Relacionamiento con el Ciudadano","María del Pilar Florido Caicedo","Verificar que los tramites inscritos en el SUIT, estén cargados en el portal GOV.CO, con el fin de actualizar, socializar y potencializarlo a través de diferentes canales de comunicación.","Se revisará el estado de avance de la incorporación de los trámites en el portal GOV.CO; y se divulgará los beneficios a través de los diferentes canales de comunicación.","N/A","Aura Ruth Herrera","Carlos Gil\nCatherine Cifuentes \nGiovanny Montenegro ",null,"Oficina Asesora de Planeación","N/A","-","-","-","-","-","-","2022-01-01","2022-12-31","Open Hacienda","N/A","Gestión con valores para el resultado (Ventanilla hacia afuera)","Racionalización de Trámites"]
[null,null,"GESTIÓN PARA EL RESULTADO","GR1. Fortalecer las relaciones de las entidades del Sector Hacienda con sus grupos de valor ","SH.Ini.2019.2022.GR1.001 Promover el seguimiento y mejora continua de las acciones que se realizan para fortalecer las relaciones con los grupos de valor en las entidades del Sector Hacienda.","POSITIVA","POSITIVA> PAA 2022> Relacionamiento con el Ciudadano","Carlos Augusto Mesa Diaz","Verificar que los tramites inscritos en el SUIT, estén cargados en el portal GOV.CO, con el fin de actualizar, socializar y potencializarlo a través de diferentes canales de comunicación.","Se revisará el estado de avance de la incorporación de los trámites en el portal GOV.CO; y se divulgará los beneficios a través de los diferentes canales de comunicación.",null,null,null,null,null,"N/A","-","-","-","-","-","-","2022-01-01","2022-12-31","Open Hacienda","N/A","Gestión con valores para el resultado (Ventanilla hacia afuera)","Racionalización de Trámites"]
[null,null,"GESTIÓN PARA EL RESULTADO","GR1. Fortalecer las relaciones de las entidades del Sector Hacienda con sus grupos de valor ","SH.Ini.2019.2022.GR1.001 Promover el seguimiento y mejora continua de las acciones que se realizan para fortalecer las relaciones con los grupos de valor en las entidades del Sector Hacienda."," SAE","SAE> PAA 2022> Relacionamiento con el Ciudadano","Jaime Leon Gómez Salazar","Verificar que los tramites inscritos en el SUIT, estén cargados en el portal GOV.CO, con el fin de actualizar, socializar y potencializarlo a través de diferentes canales de comunicación.","Se revisará el estado de avance de la incorporación de los trámites en el portal GOV.CO; y se divulgará los beneficios a través de los diferentes canales de comunicación.",null,null,null,null,null,"N/A","-","-","-","-","-","-","2022-01-01","2022-12-31","Open Hacienda","N/A","Gestión con valores para el resultado (Ventanilla hacia afuera)","Racionalización de Trámites"]
[null,null,"GESTIÓN PARA EL RESULTADO","GR1. Fortalecer las relaciones de las entidades del Sector Hacienda con sus grupos de valor ","SH.Ini.2019.2022.GR1.001 Promover el seguimiento y mejora continua de las acciones que se realizan para fortalecer las relaciones con los grupos de valor en las entidades del Sector Hacienda.","SUPERFINANCIERA","SUPERFINANCIERA> PAA 2022> Relacionamiento con el Ciudadano","José Gabriel Sánchez Sousa","Verificar que los tramites inscritos en el SUIT, estén cargados en el portal GOV.CO, con el fin de actualizar, socializar y potencializarlo a través de diferentes canales de comunicación.","Se revisará el estado de avance de la incorporación de los trámites en el portal GOV.CO; y se divulgará los beneficios a través de los diferentes canales de comunicación.",null,null,null,null,null,"N/A","-","-","-","-","-","-","2022-01-01","2022-12-31","Open Hacienda","N/A","Gestión con valores para el resultado (Ventanilla hacia afuera)","Racionalización de Trámites"]
[null,null,"GESTIÓN PARA EL RESULTADO","GR1. Fortalecer las relaciones de las entidades del Sector Hacienda con sus grupos de valor ","SH.Ini.2019.2022.GR1.001 Promover el seguimiento y mejora continua de las acciones que se realizan para fortalecer las relaciones con los grupos de valor en las entidades del Sector Hacienda.","SUPERSOLIDARIA","SUPERSOLIDARIA> PAA 2022> Relacionamiento con el Ciudadano","Robín Andrey Suarez Toscano","Verificar que los tramites inscritos en el SUIT, estén cargados en el portal GOV.CO, con el fin de actualizar, socializar y potencializarlo a través de diferentes canales de comunicación.\n\nEje posicionamiento / Gestionar grupos de interes ","Se revisará el estado de avance de la incorporación de los trámites en el portal GOV.CO; y se divulgará los beneficios a través de los diferentes canales de comunicación.",null,"Felipe Mancera Rojas ","N/A",null,"Oficina Asesora de Planeación y Sistemas ","N/A","-","-","-","-","-","-","2022-01-01","2022-12-31","Open Hacienda","N/A","Gestión con valores para el resultado (Ventanilla hacia afuera)","Racionalización de Trámites"]
[null,null,"GESTIÓN PARA EL RESULTADO","GR1. Fortalecer las relaciones de las entidades del Sector Hacienda con sus grupos de valor ","SH.Ini.2019.2022.GR1.001 Promover el seguimiento y mejora continua de las acciones que se realizan para fortalecer las relaciones con los grupos de valor en las entidades del Sector Hacienda."," UGPP","UGPP> PAA 2022> Relacionamiento con el Ciudadano","Ana María Cadena","Verificar que los tramites inscritos en el SUIT, estén cargados en el portal GOV.CO, con el fin de actualizar, socializar y potencializarlo a través de diferentes canales de comunicación.","Se revisará el estado de avance de la incorporación de los trámites en el portal GOV.CO; y se divulgará los beneficios a través de los diferentes canales de comunicación.",null,null,null,null,null,"N/A","-","-","-","-","-","-","2022-01-01","2022-12-31","Open Hacienda","N/A","Gestión con valores para el resultado (Ventanilla hacia afuera)","Racionalización de Trámites"]
[null,null,"GESTIÓN PARA EL RESULTADO","GR1. Fortalecer las relaciones de las entidades del Sector Hacienda con sus grupos de valor ","SH.Ini.2019.2022.GR1.001 Promover el seguimiento y mejora continua de las acciones que se realizan para fortalecer las relaciones con los grupos de valor en las entidades del Sector Hacienda."," UIAF","UIAF> PAA 2022> Relacionamiento con el Ciudadano","Ivonnie Edith Gallardo ","Verificar que los tramites inscritos en el SUIT, estén cargados en el portal GOV.CO, con el fin de actualizar, socializar y potencializarlo a través de diferentes canales de comunicación.","Se revisará el estado de avance de la incorporación de los trámites en el portal GOV.CO; y se divulgará los beneficios a través de los diferentes canales de comunicación.",null,null,null,null,null,"N/A","-","-","-","-","-","-","2022-01-01","2022-12-31","Open Hacienda","N/A","Gestión con valores para el resultado (Ventanilla hacia afuera)","Racionalización de Trámites"]
[null,null,"GESTIÓN PARA EL RESULTADO","GR1. Fortalecer las relaciones de las entidades del Sector Hacienda con sus grupos de valor ","SH.Ini.2019.2022.GR1.001 Promover el seguimiento y mejora continua de las acciones que se realizan para fortalecer las relaciones con los grupos de valor en las entidades del Sector Hacienda.","MHCP","MHCP> PAA 2022> Relacionamiento con el Ciudadano","Carlos Andrés Gil Santamaría","Realizar diagnóstico sectorial incluyendo la viabilidad del uso de asistencia virtual e inteligencia artificial, propuesto en el ejercicio de participación en OPEN HACIENDA. ","Realizar diagnóstico sectorial incluyendo la viabilidad del uso de asistencia virtual e inteligencia artificial, propuesto en el ejercicio de participación en OPEN HACIENDA. ","N/A","Carlos Andres Gil Santamaria","Aura Ruth Herrera\nCatherine Cifuentes \nFreddy Ramirez\nGiovanny Montenegro",null," Subdireccion de Servicios y Relación con el Ciudadano\n\nOficina Asesora de Planeación\n\nDirección de Tecnología","N/A","-","-","-","-","-","-","2022-01-01","2022-12-31","Open Hacienda","N/A","Gestión con valores para el resultado (Ventanilla hacia afuera)","Transparencia -Participación Ciudadana - Racionalización de Trámites - Servicio al Ciudadano"]
[null,null,"GESTIÓN MISIONAL","GM1. Contribuir al logro de los pactos del Plan Nacional de Desarrollo en los cuales participa el Sector Hacienda","SH.Ini.2019.2022.GM1.Desarrollar las acciones misionales que contribuyan al logro de los objetivos del sector y del Gobierno nacional. ","MHCP","MHCP> PAA 2022> Relacionamiento con el Ciudadano","María del Pilar Florido Caicedo","Coordinar una capacitación para conocer lineamientos respecto de la actualización del portafolio de servicos, acorde con la normatividad vigente","Coordinar una capacitación con Función Pública o con las entidades que tengan experiencia en la estrucuturación de portafolios de productos y servicios, para recibir orientación en nuevas tendencias y criterios de accesibilidad, lenguaje claro y gobierno abierto.",null,"Catherine Cifuentes","N/A",null,"Oficina Asesora de Planeación","N/A","-","-","-","-","-","-","2022-01-01","2022-04-30","Open Hacienda","N/A","Gestión con valores para el resultado (Ventanilla hacia afuera)","Transparencia -Participación Ciudadana - Racionalización de Trámites - Servicio al Ciudadano"]
[null,null,"GESTIÓN PARA EL RESULTADO","GR1. Fortalecer las relaciones de las entidades del Sector Hacienda con sus grupos de valor ","SH.Ini.2019.2022.GR1.001 Promover el seguimiento y mejora continua de las acciones que se realizan para fortalecer las relaciones con los grupos de valor en las entidades del Sector Hacienda.","BANCO AGRARIO","BANCO AGRARIO> PAA 2022> Relacionamiento con el Ciudadano","Sandra Patricia Villabona","Actualizar el portafolio de servicios de cada entidad y ponerlo a disposición de los grupos de valor en los diferentes canales de comunicación ","De acuerdo a la misionalidad de la entidad actualizar el portafolio de productos y servicios, y gestionar la publicación en los diferentes canales de comunicación, con el fin de orientar a los grupos de valor, y que tenga criterios de accesibilidad, lenguaje claro y gobierno abierto.","N/A","Leonardo Leal Díaz","N/A",null,"Vicepresidencia Ejecutiva","N/A","-","-","-","-","-","-","2022-05-01","2022-12-31","Open Hacienda","N/A","Gestión con valores para el resultado (Ventanilla hacia afuera)","Transparencia -Participación Ciudadana - Racionalización de Trámites - Servicio al Ciudadano"]
[null,null,"GESTIÓN PARA EL RESULTADO","GR1. Fortalecer las relaciones de las entidades del Sector Hacienda con sus grupos de valor ","SH.Ini.2019.2022.GR1.001 Promover el seguimiento y mejora continua de las acciones que se realizan para fortalecer las relaciones con los grupos de valor en las entidades del Sector Hacienda.","BANCOLDEX","BANCOLDEX> PAA 2022> Relacionamiento con el Ciudadano","María José Naranjo","Actualizar el portafolio de servicios de cada entidad y ponerlo a disposición de los grupos de valor en los diferentes canales de comunicación ","De acuerdo a la misionalidad de la entidad actualizar el portafolio de productos y servicios, y gestionar la publicación en los diferentes canales de comunicación, con el fin de orientar a los grupos de valor, y que tenga criterios de accesibilidad, lenguaje claro y gobierno abierto.","N/A","Juan Esteban Salas","N/A",null,"Oficina de efectividad de fuerza de ventas ","N/A","-","-","-","-","-","-","2022-05-01","2022-12-31","Open Hacienda","N/A","Gestión con valores para el resultado (Ventanilla hacia afuera)","Transparencia -Participación Ciudadana - Racionalización de Trámites - Servicio al Ciudadano"]
[null,null,"GESTIÓN PARA EL RESULTADO","GR1. Fortalecer las relaciones de las entidades del Sector Hacienda con sus grupos de valor ","SH.Ini.2019.2022.GR1.001 Promover el seguimiento y mejora continua de las acciones que se realizan para fortalecer las relaciones con los grupos de valor en las entidades del Sector Hacienda.","CISA","CISA> PAA 2022> Relacionamiento con el Ciudadano","Juan Felipe Robles","Actualizar el portafolio de servicios de cada entidad y ponerlo a disposición de los grupos de valor en los diferentes canales de comunicación ","De acuerdo a la misionalidad de la entidad actualizar el portafolio de productos y servicios, y gestionar la publicación en los diferentes canales de comunicación, con el fin de orientar a los grupos de valor, y que tenga criterios de accesibilidad, lenguaje claro y gobierno abierto.","N/A","Sandra Viviana Neira ","N.A",null,"Servicio Integral al Usuario","N/A","-","-","-","-","-","-","2022-05-01","2022-12-31","Open Hacienda","N/A","Gestión con valores para el resultado (Ventanilla hacia afuera)","Transparencia -Participación Ciudadana - Racionalización de Trámites - Servicio al Ciudadano"]
[null,null,"GESTIÓN PARA EL RESULTADO","GR1. Fortalecer las relaciones de las entidades del Sector Hacienda con sus grupos de valor ","SH.Ini.2019.2022.GR1.001 Promover el seguimiento y mejora continua de las acciones que se realizan para fortalecer las relaciones con los grupos de valor en las entidades del Sector Hacienda.","COLJUEGOS","COLJUEGOS> PAA 2022> Relacionamiento con el Ciudadano","Roger José Carrillo Campo ","Actualizar el portafolio de servicios de cada entidad y ponerlo a disposición de los grupos de valor en los diferentes canales de comunicación ","De acuerdo a la misionalidad de la entidad actualizar el portafolio de productos y servicios, y gestionar la publicación en los diferentes canales de comunicación, con el fin de orientar a los grupos de valor, y que tenga criterios de accesibilidad, lenguaje claro y gobierno abierto.","N/A","Alexandra Torres Gonzalez","Juan Felipe Mahecha Cordoba",null,"Oficina Asesora de Planeación","N/A","-","-","-","-","-","-","2022-05-01","2022-12-31","Open Hacienda","N/A","Gestión con valores para el resultado (Ventanilla hacia afuera)","Transparencia -Participación Ciudadana - Racionalización de Trámites - Servicio al Ciudadano"]
[null,null,"GESTIÓN PARA EL RESULTADO","GR1. Fortalecer las relaciones de las entidades del Sector Hacienda con sus grupos de valor ","SH.Ini.2019.2022.GR1.001 Promover el seguimiento y mejora continua de las acciones que se realizan para fortalecer las relaciones con los grupos de valor en las entidades del Sector Hacienda.","CGN","CGN> PAA 2022> Relacionamiento con el Ciudadano","Henry Ramírez Montes ","Actualizar el portafolio de servicios de cada entidad y ponerlo a disposición de los grupos de valor en los diferentes canales de comunicación ","De acuerdo a la misionalidad de la entidad actualizar el portafolio de productos y servicios, y gestionar la publicación en los diferentes canales de comunicación, con el fin de orientar a los grupos de valor, y que tenga criterios de accesibilidad, lenguaje claro y gobierno abierto.","N/A","Wilson Eduardo Cifuentes","N/A",null,"GIT de Planeación","N/A","-","-","-","-","-","-","2022-05-01","2022-12-31","Open Hacienda","N/A","Gestión con valores para el resultado (Ventanilla hacia afuera)","Transparencia -Participación Ciudadana - Racionalización de Trámites - Servicio al Ciudadano"]
[null,null,"GESTIÓN PARA EL RESULTADO","GR1. Fortalecer las relaciones de las entidades del Sector Hacienda con sus grupos de valor ","SH.Ini.2019.2022.GR1.001 Promover el seguimiento y mejora continua de las acciones que se realizan para fortalecer las relaciones con los grupos de valor en las entidades del Sector Hacienda.","DIAN","DIAN> PAA 2022> Relacionamiento con el Ciudadano","Catalina Garcia Cure","Actualizar el portafolio de servicios de cada entidad y ponerlo a disposición de los grupos de valor en los diferentes canales de comunicación ","De acuerdo a la misionalidad de la entidad actualizar el portafolio de productos y servicios, y gestionar la publicación en los diferentes canales de comunicación, con el fin de orientar a los grupos de valor, y que tenga criterios de accesibilidad, lenguaje claro y gobierno abierto.","N/A","Constanza Del Pilar Rodríguez Páez","Adriana del Pilar Solano",null,"Subdirección de Gestión de Asistencia al Cliente","N/A","-","-","-","-","-","-","2022-05-01","2022-12-31","Open Hacienda","N/A","Gestión con valores para el resultado (Ventanilla hacia afuera)","Transparencia -Participación Ciudadana - Racionalización de Trámites - Servicio al Ciudadano"]
[null,null,"GESTIÓN PARA EL RESULTADO","GR1. Fortalecer las relaciones de las entidades del Sector Hacienda con sus grupos de valor ","SH.Ini.2019.2022.GR1.001 Promover el seguimiento y mejora continua de las acciones que se realizan para fortalecer las relaciones con los grupos de valor en las entidades del Sector Hacienda.","ENTERRITORIO","ENTERRITORIO> PAA 2022> Relacionamiento con el Ciudadano","Carlos Eduardo Umaña Lizarazo","Actualizar el portafolio de servicios de cada entidad y ponerlo a disposición de los grupos de valor en los diferentes canales de comunicación ","De acuerdo a la misionalidad de la entidad actualizar el portafolio de productos y servicios, y gestionar la publicación en los diferentes canales de comunicación, con el fin de orientar a los grupos de valor, y que tenga criterios de accesibilidad, lenguaje claro y gobierno abierto.","N/A","Marta Liced Rodriguez Quimbayo","Anny Alvarez Mendoza",null,"Grupo de Planeación y Gestión de Riesgos","N/A","-","-","-","-","-","-","2022-05-01","2022-12-31","Open Hacienda","N/A","Gestión con valores para el resultado (Ventanilla hacia afuera)","Transparencia -Participación Ciudadana - Racionalización de Trámites - Servicio al Ciudadano"]
[null,null,"GESTIÓN PARA EL RESULTADO","GR1. Fortalecer las relaciones de las entidades del Sector Hacienda con sus grupos de valor ","SH.Ini.2019.2022.GR1.001 Promover el seguimiento y mejora continua de las acciones que se realizan para fortalecer las relaciones con los grupos de valor en las entidades del Sector Hacienda.","FDN","FDN> PAA 2022> Relacionamiento con el Ciudadano","Carolina Hernández","Actualizar el portafolio de servicios de cada entidad y ponerlo a disposición de los grupos de valor en los diferentes canales de comunicación ","De acuerdo a la misionalidad de la entidad actualizar el portafolio de productos y servicios, y gestionar la publicación en los diferentes canales de comunicación, con el fin de orientar a los grupos de valor, y que tenga criterios de accesibilidad, lenguaje claro y gobierno abierto.","N/A","Maria Alejandra Rueda","N/A",null,"Vinculación","N/A","-","-","-","-","-","-","2022-05-01","2022-12-31","Open Hacienda","N/A","Gestión con valores para el resultado (Ventanilla hacia afuera)","Transparencia -Participación Ciudadana - Racionalización de Trámites - Servicio al Ciudadano"]
[null,null,"GESTIÓN PARA EL RESULTADO","GR1. Fortalecer las relaciones de las entidades del Sector Hacienda con sus grupos de valor ","SH.Ini.2019.2022.GR1.001 Promover el seguimiento y mejora continua de las acciones que se realizan para fortalecer las relaciones con los grupos de valor en las entidades del Sector Hacienda.","FIDUAGRARIA","FIDUAGRARIA> PAA 2022> Relacionamiento con el Ciudadano","Luz Marina Fernández Bello ","Actualizar el portafolio de servicios de cada entidad y ponerlo a disposición de los grupos de valor en los diferentes canales de comunicación ","De acuerdo a la misionalidad de la entidad actualizar el portafolio de productos y servicios, y gestionar la publicación en los diferentes canales de comunicación, con el fin de orientar a los grupos de valor, y que tenga criterios de accesibilidad, lenguaje claro y gobierno abierto.","N/A","Adriana Marcela Fuente Estrada","Marisol Valero Buitrago\nAlejandra Jimenez Acuña ",null,"SAC y Comunicaciones","N/A","-","-","-","-","-","-","2022-05-01","2022-12-31","Open Hacienda","N/A","Gestión con valores para el resultado (Ventanilla hacia afuera)","Transparencia -Participación Ciudadana - Racionalización de Trámites - Servicio al Ciudadano"]
[null,null,"GESTIÓN PARA EL RESULTADO","GR1. Fortalecer las relaciones de las entidades del Sector Hacienda con sus grupos de valor ","SH.Ini.2019.2022.GR1.001 Promover el seguimiento y mejora continua de las acciones que se realizan para fortalecer las relaciones con los grupos de valor en las entidades del Sector Hacienda.","FIDUCOLDEX","FIDUCOLDEX> PAA 2022> Relacionamiento con el Ciudadano","Andrés Barco","Actualizar el portafolio de servicios de cada entidad y ponerlo a disposición de los grupos de valor en los diferentes canales de comunicación ","De acuerdo a la misionalidad de la entidad actualizar el portafolio de productos y servicios, y gestionar la publicación en los diferentes canales de comunicación, con el fin de orientar a los grupos de valor, y que tenga criterios de accesibilidad, lenguaje claro y gobierno abierto.","N/A","Angelly Coy","N/A",null,"Dirección Administrativa y Servicio al Cliente","N/A","-","-","-","-","-","-","2022-05-01","2022-12-31","Open Hacienda","N/A","Gestión con valores para el resultado (Ventanilla hacia afuera)","Transparencia -Participación Ciudadana - Racionalización de Trámites - Servicio al Ciudadano"]
[null,null,"GESTIÓN PARA EL RESULTADO","GR1. Fortalecer las relaciones de las entidades del Sector Hacienda con sus grupos de valor ","SH.Ini.2019.2022.GR1.001 Promover el seguimiento y mejora continua de las acciones que se realizan para fortalecer las relaciones con los grupos de valor en las entidades del Sector Hacienda.","FIDUPREVISORA","FIDUPREVISORA> PAA 2022> Relacionamiento con el Ciudadano","Magda Nancy Manosalva Cely","Actualizar el portafolio de servicios de cada entidad y ponerlo a disposición de los grupos de valor en los diferentes canales de comunicación ","De acuerdo a la misionalidad de la entidad actualizar el portafolio de productos y servicios, y gestionar la publicación en los diferentes canales de comunicación, con el fin de orientar a los grupos de valor, y que tenga criterios de accesibilidad, lenguaje claro y gobierno abierto.","N/A","Karen Pardo","Santiago Narváez",null,"Vicepresidencia de Transformación - Dirección de Servicio al Cliente y Comunicaciones","N/A","-","-","-","-","-","-","2022-05-01","2022-12-31","Open Hacienda","N/A","Gestión con valores para el resultado (Ventanilla hacia afuera)","Transparencia -Participación Ciudadana - Racionalización de Trámites - Servicio al Ciudadano"]
[null,null,"GESTIÓN PARA EL RESULTADO","GR1. Fortalecer las relaciones de las entidades del Sector Hacienda con sus grupos de valor ","SH.Ini.2019.2022.GR1.001 Promover el seguimiento y mejora continua de las acciones que se realizan para fortalecer las relaciones con los grupos de valor en las entidades del Sector Hacienda.","FINAGRO","FINAGRO> PAA 2022> Relacionamiento con el Ciudadano","Juan Carlos Restrepo González","Actualizar el portafolio de servicios de cada entidad y ponerlo a disposición de los grupos de valor en los diferentes canales de comunicación ","De acuerdo a la misionalidad de la entidad actualizar el portafolio de productos y servicios, y gestionar la publicación en los diferentes canales de comunicación, con el fin de orientar a los grupos de valor, y que tenga criterios de accesibilidad, lenguaje claro y gobierno abierto.","N/A","Juan Carlos Botero Restrepo","Isabel Cristina Jaramillo\n María Helena Reyes Donadlo \n",null,"Dirección de Servicio al Cliente","N/A","-","-","-","-","-","-","2022-05-01","2022-12-31","Open Hacienda","N/A","Gestión con valores para el resultado (Ventanilla hacia afuera)","Transparencia -Participación Ciudadana - Racionalización de Trámites - Servicio al Ciudadano"]
[null,null,"GESTIÓN PARA EL RESULTADO","GR1. Fortalecer las relaciones de las entidades del Sector Hacienda con sus grupos de valor ","SH.Ini.2019.2022.GR1.001 Promover el seguimiento y mejora continua de las acciones que se realizan para fortalecer las relaciones con los grupos de valor en las entidades del Sector Hacienda.","FINDETER","FINDETER> PAA 2022> Relacionamiento con el Ciudadano","Laura Mercedes Peña Rodríguez","Actualizar el portafolio de servicios de cada entidad y ponerlo a disposición de los grupos de valor en los diferentes canales de comunicación ","De acuerdo a la misionalidad de la entidad actualizar el portafolio de productos y servicios, y gestionar la publicación en los diferentes canales de comunicación, con el fin de orientar a los grupos de valor, y que tenga criterios de accesibilidad, lenguaje claro y gobierno abierto.","N/A","Laura Mercedes Peña","N/A",null,"Gerencia de Comunicaciones, Mercadeo y Responsabilidad Social - Jefatura de Mercadeo","N/A","-","-","-","-","-","-","2022-05-01","2022-12-31","Open Hacienda","N/A","Gestión con valores para el resultado (Ventanilla hacia afuera)","Transparencia -Participación Ciudadana - Racionalización de Trámites - Servicio al Ciudadano"]
[null,null,"GESTIÓN PARA EL RESULTADO","GR1. Fortalecer las relaciones de las entidades del Sector Hacienda con sus grupos de valor ","SH.Ini.2019.2022.GR1.001 Promover el seguimiento y mejora continua de las acciones que se realizan para fortalecer las relaciones con los grupos de valor en las entidades del Sector Hacienda.","FOGACOOP","FOGACOOP> PAA 2022>Relacionamiento con el Ciudadano","Adriana Mcallister Braidy","Actualizar el portafolio de servicios de cada entidad y ponerlo a disposición de los grupos de valor en los diferentes canales de comunicación ","De acuerdo a la misionalidad de la entidad actualizar el portafolio de productos y servicios, y gestionar la publicación en los diferentes canales de comunicación, con el fin de orientar a los grupos de valor, y que tenga criterios de accesibilidad, lenguaje claro y gobierno abierto.","N/A","Ruben Mauricio Ariza","Zulma Liliana López Zuluaga",null,"Secretaría General y de Gestión Administrativa","N/A","-","-","-","-","-","-","2022-05-01","2022-12-31","Open Hacienda","N/A","Gestión con valores para el resultado (Ventanilla hacia afuera)","Transparencia -Participación Ciudadana - Racionalización de Trámites - Servicio al Ciudadano"]
[null,null,"GESTIÓN PARA EL RESULTADO","GR1. Fortalecer las relaciones de las entidades del Sector Hacienda con sus grupos de valor ","SH.Ini.2019.2022.GR1.001 Promover el seguimiento y mejora continua de las acciones que se realizan para fortalecer las relaciones con los grupos de valor en las entidades del Sector Hacienda.","FOGAFIN","FOGAFIN> PAA 2022> Relacionamiento con el Ciudadano","Carlos Alberto Sánchez del Valle","Actualizar el portafolio de servicios de cada entidad y ponerlo a disposición de los grupos de valor en los diferentes canales de comunicación ","De acuerdo a la misionalidad de la entidad actualizar el portafolio de productos y servicios, y gestionar la publicación en los diferentes canales de comunicación, con el fin de orientar a los grupos de valor, y que tenga criterios de accesibilidad, lenguaje claro y gobierno abierto.","N/A","Carlos Alberto Sánchez del Valle","N/A",null,"Departamento de Comunicaciones y Relaciones Corporativas","N/A","-","-","-","-","-","-","2022-05-01","2022-12-31","Open Hacienda","N/A","Gestión con valores para el resultado (Ventanilla hacia afuera)","Transparencia -Participación Ciudadana - Racionalización de Trámites - Servicio al Ciudadano"]
[null,null,"GESTIÓN PARA EL RESULTADO","GR1. Fortalecer las relaciones de las entidades del Sector Hacienda con sus grupos de valor ","SH.Ini.2019.2022.GR1.001 Promover el seguimiento y mejora continua de las acciones que se realizan para fortalecer las relaciones con los grupos de valor en las entidades del Sector Hacienda.","FONDO ADAPTACIÓN","FONDO ADAPTACIÓN> PAA 2022> Relacionamiento con el Ciudadano","Alejandro Venegas ","Actualizar el portafolio de servicios de cada entidad y ponerlo a disposición de los grupos de valor en los diferentes canales de comunicación ","De acuerdo a la misionalidad de la entidad actualizar el portafolio de productos y servicios, y gestionar la publicación en los diferentes canales de comunicación, con el fin de orientar a los grupos de valor, y que tenga criterios de accesibilidad, lenguaje claro y gobierno abierto.","N/A","Victor Alejandro Venegas","Myriam Gutiérrez ",null,"Atención al Ciudadano","N/A","-","-","-","-","-","-","2022-05-01","2022-12-31","Open Hacienda","N/A","Gestión con valores para el resultado (Ventanilla hacia afuera)","Transparencia -Participación Ciudadana - Racionalización de Trámites - Servicio al Ciudadano"]
[null,null,"GESTIÓN PARA EL RESULTADO","GR1. Fortalecer las relaciones de las entidades del Sector Hacienda con sus grupos de valor ","SH.Ini.2019.2022.GR1.001 Promover el seguimiento y mejora continua de las acciones que se realizan para fortalecer las relaciones con los grupos de valor en las entidades del Sector Hacienda.","FONDO NACIONAL DEL AHORRO","FONDO NACIONAL DEL AHORRO> PAA 2022> Relacionamiento con el Ciudadano","Kennicher Arias Roa","Actualizar el portafolio de servicios de cada entidad y ponerlo a disposición de los grupos de valor en los diferentes canales de comunicación ","De acuerdo a la misionalidad de la entidad actualizar el portafolio de productos y servicios, y gestionar la publicación en los diferentes canales de comunicación, con el fin de orientar a los grupos de valor, y que tenga criterios de accesibilidad, lenguaje claro y gobierno abierto.","N/A","Angelica María Zapata","Helga Viviana Valencia  \nJosé Antonio  Dueñas\nMartha Milena Ramirez ",null,"Oficina de Planeación ","N/A","-","-","-","-","-","-","2022-05-01","2022-12-31","Open Hacienda","N/A","Gestión con valores para el resultado (Ventanilla hacia afuera)","Transparencia -Participación Ciudadana - Racionalización de Trámites - Servicio al Ciudadano"]
[null,null,"GESTIÓN PARA EL RESULTADO","GR1. Fortalecer las relaciones de las entidades del Sector Hacienda con sus grupos de valor ","SH.Ini.2019.2022.GR1.001 Promover el seguimiento y mejora continua de las acciones que se realizan para fortalecer las relaciones con los grupos de valor en las entidades del Sector Hacienda.","FONDO NACIONAL DE GARANTIAS","FONDO NACIONAL DE GARANTIAS> PAA 2022> Relacionamiento con el Ciudadano","Maria Angelica Burbano Sánchez","Actualizar el portafolio de servicios de cada entidad y ponerlo a disposición de los grupos de valor en los diferentes canales de comunicación ","De acuerdo a la misionalidad de la entidad actualizar el portafolio de productos y servicios, y gestionar la publicación en los diferentes canales de comunicación, con el fin de orientar a los grupos de valor, y que tenga criterios de accesibilidad, lenguaje claro y gobierno abierto.","N/A","Diana Carolina Restrepo Velez","Andrés Estrada Cardona ",null,"Subdirección de Servicio al Cliente","N/A","-","-","-","-","-","-","2022-05-01","2022-12-31","Open Hacienda","N/A","Gestión con valores para el resultado (Ventanilla hacia afuera)","Transparencia -Participación Ciudadana - Racionalización de Trámites - Servicio al Ciudadano"]
[null,null,"GESTIÓN PARA EL RESULTADO","GR1. Fortalecer las relaciones de las entidades del Sector Hacienda con sus grupos de valor ","SH.Ini.2019.2022.GR1.001 Promover el seguimiento y mejora continua de las acciones que se realizan para fortalecer las relaciones con los grupos de valor en las entidades del Sector Hacienda.","GRUPO BICENTENARIO","GRUPO BICENTENARIO> PAA 2022> Relacionamiento con el Ciudadano","Oscar Laureano Rosero Jiménez","Actualizar el portafolio de servicios de cada entidad y ponerlo a disposición de los grupos de valor en los diferentes canales de comunicación ","De acuerdo a la misionalidad de la entidad actualizar el portafolio de productos y servicios, y gestionar la publicación en los diferentes canales de comunicación, con el fin de orientar a los grupos de valor, y que tenga criterios de accesibilidad, lenguaje claro y gobierno abierto.","N/A","Lucía Patricia Esparza Baena","N/A",null,"Área Estrategia","N/A","-","-","-","-","-","-","2022-05-01","2022-12-31","Open Hacienda","N/A","Gestión con valores para el resultado (Ventanilla hacia afuera)","Transparencia -Participación Ciudadana - Racionalización de Trámites - Servicio al Ciudadano"]
[null,null,"GESTIÓN PARA EL RESULTADO","GR1. Fortalecer las relaciones de las entidades del Sector Hacienda con sus grupos de valor ","SH.Ini.2019.2022.GR1.001 Promover el seguimiento y mejora continua de las acciones que se realizan para fortalecer las relaciones con los grupos de valor en las entidades del Sector Hacienda.","ICETEX","ICETEX> PAA 2022> Relacionamiento con el Ciudadano","Beatriz Helena Torres Lizarazo\n","Actualizar el portafolio de servicios de cada entidad y ponerlo a disposición de los grupos de valor en los diferentes canales de comunicación ","De acuerdo a la misionalidad de la entidad actualizar el portafolio de productos y servicios, y gestionar la publicación en los diferentes canales de comunicación, con el fin de orientar a los grupos de valor, y que tenga criterios de accesibilidad, lenguaje claro y gobierno abierto.","N/A","Libia Esperanza Fonseca Marín ","Rosa Maria Gonzalez Carvajal \nJohana Niño Acosta \nYeimmy Marisol Castellanos Alvarado",null,"Oficina Comercial y de Mercadeo - ICETEX","N/A","-","-","-","-","-","-","2022-05-01","2022-12-31","Open Hacienda","N/A","Gestión con valores para el resultado (Ventanilla hacia afuera)","Transparencia -Participación Ciudadana - Racionalización de Trámites - Servicio al Ciudadano"]
[null,null,"GESTIÓN PARA EL RESULTADO","GR1. Fortalecer las relaciones de las entidades del Sector Hacienda con sus grupos de valor ","SH.Ini.2019.2022.GR1.001 Promover el seguimiento y mejora continua de las acciones que se realizan para fortalecer las relaciones con los grupos de valor en las entidades del Sector Hacienda.","ITRC","ITRC> PAA 2022> Relacionamiento con el Ciudadano","Nohora Beltrán Céspedes","Actualizar el portafolio de servicios de cada entidad y ponerlo a disposición de los grupos de valor en los diferentes canales de comunicación ","De acuerdo a la misionalidad de la entidad actualizar el portafolio de productos y servicios, y gestionar la publicación en los diferentes canales de comunicación, con el fin de orientar a los grupos de valor, y que tenga criterios de accesibilidad, lenguaje claro y gobierno abierto.","N/A","William Jaime Bernal Ávila","N/A",null,"Secretaría General","N/A","-","-","-","-","-","-","2022-05-01","2022-12-31","Open Hacienda","N/A","Gestión con valores para el resultado (Ventanilla hacia afuera)","Transparencia -Participación Ciudadana - Racionalización de Trámites - Servicio al Ciudadano"]
[null,null,"GESTIÓN PARA EL RESULTADO","GR1. Fortalecer las relaciones de las entidades del Sector Hacienda con sus grupos de valor ","SH.Ini.2019.2022.GR1.001 Promover el seguimiento y mejora continua de las acciones que se realizan para fortalecer las relaciones con los grupos de valor en las entidades del Sector Hacienda.","MHCP","MHCP> PAA 2022> Relacionamiento con el Ciudadano","María del Pilar Florido Caicedo","Actualizar el portafolio de servicios de cada entidad y ponerlo a disposición de los grupos de valor en los diferentes canales de comunicación ","De acuerdo a la misionalidad de la entidad actualizar el portafolio de productos y servicios, y gestionar la publicación en los diferentes canales de comunicación, con el fin de orientar a los grupos de valor, y que tenga criterios de accesibilidad, lenguaje claro y gobierno abierto.","N/A","Catherine Cifuentes","Carlos Gil\nOlga Ximena Novoa",null,"Oficina Asesora de Planeación",null,"-","-","-","-","-","-","2022-05-01","2022-12-31","Open Hacienda","N/A","Gestión con valores para el resultado (Ventanilla hacia afuera)","Transparencia -Participación Ciudadana - Racionalización de Trámites - Servicio al Ciudadano"]
[null,null,"GESTIÓN PARA EL RESULTADO","GR1. Fortalecer las relaciones de las entidades del Sector Hacienda con sus grupos de valor ","SH.Ini.2019.2022.GR1.001 Promover el seguimiento y mejora continua de las acciones que se realizan para fortalecer las relaciones con los grupos de valor en las entidades del Sector Hacienda.","POSITIVA","POSITIVA> PAA 2022> Relacionamiento con el Ciudadano","Carlos Augusto Mesa Diaz","Actualizar el portafolio de servicios de cada entidad y ponerlo a disposición de los grupos de valor en los diferentes canales de comunicación ","De acuerdo a la misionalidad de la entidad actualizar el portafolio de productos y servicios, y gestionar la publicación en los diferentes canales de comunicación, con el fin de orientar a los grupos de valor, y que tenga criterios de accesibilidad, lenguaje claro y gobierno abierto.","N/A","Oscar Saul Guerrero Bohórquez ","Diana Carolina Suarez Leal ",null,"Gerencia de Experiencia del Cliente","N/A","-","-","-","-","-","-","2022-05-01","2022-12-31","Open Hacienda","N/A","Gestión con valores para el resultado (Ventanilla hacia afuera)","Transparencia -Participación Ciudadana - Racionalización de Trámites - Servicio al Ciudadano"]
[null,null,"GESTIÓN PARA EL RESULTADO","GR1. Fortalecer las relaciones de las entidades del Sector Hacienda con sus grupos de valor ","SH.Ini.2019.2022.GR1.001 Promover el seguimiento y mejora continua de las acciones que se realizan para fortalecer las relaciones con los grupos de valor en las entidades del Sector Hacienda.","PREVISORA","PREVISORA> PAA 2022> Relacionamiento con el Ciudadano","José Fernando Pulido Sierra","Actualizar el portafolio de servicios de cada entidad y ponerlo a disposición de los grupos de valor en los diferentes canales de comunicación ","De acuerdo a la misionalidad de la entidad actualizar el portafolio de productos y servicios, y gestionar la publicación en los diferentes canales de comunicación, con el fin de orientar a los grupos de valor, y que tenga criterios de accesibilidad, lenguaje claro y gobierno abierto.","N/A","Diana Paola Aragón","N/A",null,"Gerencia de Servicio","N/A","-","-","-","-","-","-","2022-05-01","2022-12-31","Open Hacienda","N/A","Gestión con valores para el resultado (Ventanilla hacia afuera)","Transparencia -Participación Ciudadana - Racionalización de Trámites - Servicio al Ciudadano"]
[null,null,"GESTIÓN PARA EL RESULTADO","GR1. Fortalecer las relaciones de las entidades del Sector Hacienda con sus grupos de valor ","SH.Ini.2019.2022.GR1.001 Promover el seguimiento y mejora continua de las acciones que se realizan para fortalecer las relaciones con los grupos de valor en las entidades del Sector Hacienda.","SAE","SAE> PAA 2022> Relacionamiento con el Ciudadano","Jaime Leon Gómez Salazar","Actualizar el portafolio de servicios de cada entidad y ponerlo a disposición de los grupos de valor en los diferentes canales de comunicación ","De acuerdo a la misionalidad de la entidad actualizar el portafolio de productos y servicios, y gestionar la publicación en los diferentes canales de comunicación, con el fin de orientar a los grupos de valor, y que tenga criterios de accesibilidad, lenguaje claro y gobierno abierto.","N/A","Luz Amparo Guerra ","Ana Nelsy Franco",null,"Oficina de Comunicaciones y Atención al Ciudadano","N/A","-","-","-","-","-","-","2022-05-01","2022-12-31","Open Hacienda","N/A","Gestión con valores para el resultado (Ventanilla hacia afuera)","Transparencia -Participación Ciudadana - Racionalización de Trámites - Servicio al Ciudadano"]
[null,null,"GESTIÓN PARA EL RESULTADO","GR1. Fortalecer las relaciones de las entidades del Sector Hacienda con sus grupos de valor ","SH.Ini.2019.2022.GR1.001 Promover el seguimiento y mejora continua de las acciones que se realizan para fortalecer las relaciones con los grupos de valor en las entidades del Sector Hacienda.","SUPERFINANCIERA","SUPERFINANCIERA> PAA 2022> Relacionamiento con el Ciudadano","José Gabriel Sánchez Sousa","Actualizar el portafolio de servicios de cada entidad y ponerlo a disposición de los grupos de valor en los diferentes canales de comunicación ","De acuerdo a la misionalidad de la entidad actualizar el portafolio de productos y servicios, y gestionar la publicación en los diferentes canales de comunicación, con el fin de orientar a los grupos de valor, y que tenga criterios de accesibilidad, lenguaje claro y gobierno abierto.","N/A","Sergio Esteban Varela Guzman","Luis Alfredo Leal Mojica",null,"Grupo Servicio al Ciudadano","N/A","-","-","-","-","-","-","2022-05-01","2022-12-31","Open Hacienda","N/A","Gestión con valores para el resultado (Ventanilla hacia afuera)","Transparencia -Participación Ciudadana - Racionalización de Trámites - Servicio al Ciudadano"]
[null,null,"GESTIÓN PARA EL RESULTADO","GR1. Fortalecer las relaciones de las entidades del Sector Hacienda con sus grupos de valor ","SH.Ini.2019.2022.GR1.001 Promover el seguimiento y mejora continua de las acciones que se realizan para fortalecer las relaciones con los grupos de valor en las entidades del Sector Hacienda.","SUPERSOLIDARIA","SUPERSOLIDARIA> PAA 2022> Relacionamiento con el Ciudadano","Robín Andrey Suarez Toscano","Actualizar el portafolio de servicios de cada entidad y ponerlo a disposición de los grupos de valor en los diferentes canales de comunicación ","De acuerdo a la misionalidad de la entidad actualizar el portafolio de productos y servicios, y gestionar la publicación en los diferentes canales de comunicación, con el fin de orientar a los grupos de valor, y que tenga criterios de accesibilidad, lenguaje claro y gobierno abierto.","N/A","Felipe Mancera Rojas ","N/A",null,"Oficina Asesora de Planeación y Sistemas ","N/A","-","-","-","-","-","-","2022-05-01","2022-12-31","Open Hacienda","N/A","Gestión con valores para el resultado (Ventanilla hacia afuera)","Transparencia -Participación Ciudadana - Racionalización de Trámites - Servicio al Ciudadano"]
[null,null,"GESTIÓN PARA EL RESULTADO","GR1. Fortalecer las relaciones de las entidades del Sector Hacienda con sus grupos de valor ","SH.Ini.2019.2022.GR1.001 Promover el seguimiento y mejora continua de las acciones que se realizan para fortalecer las relaciones con los grupos de valor en las entidades del Sector Hacienda.","UGPP","UGPP> PAA 2022> Relacionamiento con el Ciudadano","Ana María Cadena","Actualizar el portafolio de servicios de cada entidad y ponerlo a disposición de los grupos de valor en los diferentes canales de comunicación ","De acuerdo a la misionalidad de la entidad actualizar el portafolio de productos y servicios, y gestionar la publicación en los diferentes canales de comunicación, con el fin de orientar a los grupos de valor, y que tenga criterios de accesibilidad, lenguaje claro y gobierno abierto.","N/A","Germán Vega Rodríguez","N/A",null,"Dirección de Servicios Integrados de Atención","N/A","-","-","-","-","-","-","2022-05-01","2022-12-31","Open Hacienda","N/A","Gestión con valores para el resultado (Ventanilla hacia afuera)","Transparencia -Participación Ciudadana - Racionalización de Trámites - Servicio al Ciudadano"]
[null,null,"GESTIÓN PARA EL RESULTADO","GR1. Fortalecer las relaciones de las entidades del Sector Hacienda con sus grupos de valor ","SH.Ini.2019.2022.GR1.001 Promover el seguimiento y mejora continua de las acciones que se realizan para fortalecer las relaciones con los grupos de valor en las entidades del Sector Hacienda.","UIAF","UIAF> PAA 2022> Relacionamiento con el Ciudadano","Nilgen Vargas Garcés","Actualizar el portafolio de servicios de cada entidad y ponerlo a disposición de los grupos de valor en los diferentes canales de comunicación ","De acuerdo a la misionalidad de la entidad actualizar el portafolio de productos y servicios, y gestionar la publicación en los diferentes canales de comunicación, con el fin de orientar a los grupos de valor, y que tenga criterios de accesibilidad, lenguaje claro y gobierno abierto.","N/A","Carlos Julio Buitrago Ortiz","Laura Alejandra Centeno Pérez",null,"Subdirección Administrativa y Financiera","N/A","-","-","-","-","-","-","2022-05-01","2022-12-31","Open Hacienda","N/A","Gestión con valores para el resultado (Ventanilla hacia afuera)","Transparencia -Participación Ciudadana - Racionalización de Trámites - Servicio al Ciudadano"]
[null,null,"GESTIÓN PARA EL RESULTADO","GR1. Fortalecer las relaciones de las entidades del Sector Hacienda con sus grupos de valor ","SH.Ini.2019.2022.GR1.001 Promover el seguimiento y mejora continua de las acciones que se realizan para fortalecer las relaciones con los grupos de valor en las entidades del Sector Hacienda.","URF","URF> PAA 2022> Relacionamiento con el Ciudadano","Ivonnie Edith Gallardo ","Actualizar el portafolio de servicios de cada entidad y ponerlo a disposición de los grupos de valor en los diferentes canales de comunicación ","De acuerdo a la misionalidad de la entidad actualizar el portafolio de productos y servicios, y gestionar la publicación en los diferentes canales de comunicación, con el fin de orientar a los grupos de valor, y que tenga criterios de accesibilidad, lenguaje claro y gobierno abierto.","N/A","Carolina Rojas Díaz","N/A",null,"Subdirección Jurídica y de Gestión Institucional ","N/A","-","-","-","-","-","-","2022-05-01","2022-12-31","Open Hacienda","N/A","Gestión con valores para el resultado (Ventanilla hacia afuera)","Transparencia -Participación Ciudadana - Racionalización de Trámites - Servicio al Ciudadano"]
[null,null,"GESTIÓN PARA EL RESULTADO","GR1. Fortalecer las relaciones de las entidades del Sector Hacienda con sus grupos de valor ","SH.Ini.2019.2022.GR1.001 Promover el seguimiento y mejora continua de las acciones que se realizan para fortalecer las relaciones con los grupos de valor en las entidades del Sector Hacienda.","MHCP","MHCP> PAA 2022> Relacionamiento con el Ciudadano","María del Pilar Florido Caicedo","Coordinar la realización de las mesas sectoriales de relacionamiento con el ciudadano","Adelantar las mesas de trabajo sectoriales y acompañar a las entidades en la implementación de acciones que fortalezcan las políticas que tienen relación con el estado-ciudadano.\n En la primera mesa se tiene previsto contar con la presencia del DAFP, para recibir la retroalimentación del PAAC, aclarar dudas y promover espacios para fortalecer cada una de las políticas.\n\nEntregable. Registros de asistencia, presentaciones, informes","N/A","Catherine Cifuentes","Carlos Andrés Gil\nJeimy Peñuela\nAura Ruth Herrera\nGiovanny Montenegro\nJosé Peña",null,"Subdirección de Servicios y Relacionamiento con el Ciudadano\n\nOficina Asesora de Planeción","N/A","-","-","-","-","-","-","2022-01-01","2022-12-31","Necesidades del SH","N/A","Gestión con valores para el resultado (Ventanilla hacia afuera)","Transparencia -Participación Ciudadana - Racionalización de Trámites - Servicio al Ciudadano"]
[null,null,"GESTIÓN PARA EL RESULTADO","GR1. Fortalecer las relaciones de las entidades del Sector Hacienda con sus grupos de valor ","SH.Ini.2019.2022.GR1.001 Promover el seguimiento y mejora continua de las acciones que se realizan para fortalecer las relaciones con los grupos de valor en las entidades del Sector Hacienda.","BANCO AGRARIO","BANCO AGRARIO> PAA 2022> Relacionamiento con el ciudadano","Sandra Patricia Villabona","Participar en las mesas sectoriales programadas para las políticas que tienen relación con el Estado -Ciudadano","Las entidades del Sector Hacienda participaran en las mesas sectoriales programadas.\n\nEn el marco de la Ley 2052 de 2020, se integran las políticas de Servicio al Ciudadano, Racionalización de Trámites, Participación Ciudadana y Transparencia; esta última se incorpora dada la importancia que tiene la publicación de la información.\n\nEntregable. Registros de asistencia, presentaciones, informes","N/A","Leonardo Leal Díaz","N/A",null,"Vicepresidencia Ejecutiva","N/A","-","-","-","-","-","-","2022-01-01","2022-12-31","Necesidades del SH","N/A","Gestión con valores para el resultado (Ventanilla hacia afuera)","Transparencia -Participación Ciudadana - Racionalización de Trámites - Servicio al Ciudadano"]
[null,null,"GESTIÓN PARA EL RESULTADO","GR1. Fortalecer las relaciones de las entidades del Sector Hacienda con sus grupos de valor ","SH.Ini.2019.2022.GR1.001 Promover el seguimiento y mejora continua de las acciones que se realizan para fortalecer las relaciones con los grupos de valor en las entidades del Sector Hacienda.","BANCOLDEX","BANCOLDEX> PAA 2022>  Relacionamiento con el ciudadano","María José Naranjo","Participar en las mesas sectoriales programadas para las políticas que tienen relación con el Estado -Ciudadano","Las entidades del Sector Hacienda participaran en las mesas sectoriales programadas.\n\nEn el marco de la Ley 2052 de 2020, se integran las políticas de Servicio al Ciudadano, Racionalización de Trámites, Participación Ciudadana y Transparencia; esta última se incorpora dada la importancia que tiene la publicación de la información.\n\nEntregable. Registros de asistencia, presentaciones, informes","N/A","Juan Esteban Salas","N/A",null,"Oficina de efectividad de fuerza de ventas ","N/A","-","-","-","-","-","-","2022-01-01","2022-12-31","Necesidades del SH","N/A","Gestión con valores para el resultado (Ventanilla hacia afuera)","Transparencia -Participación Ciudadana - Racionalización de Trámites - Servicio al Ciudadano"]
[null,null,"GESTIÓN PARA EL RESULTADO","GR1. Fortalecer las relaciones de las entidades del Sector Hacienda con sus grupos de valor ","SH.Ini.2019.2022.GR1.001 Promover el seguimiento y mejora continua de las acciones que se realizan para fortalecer las relaciones con los grupos de valor en las entidades del Sector Hacienda.","CISA","CISA> PAA 2022>  Relacionamiento con el ciudadano","Juan Felipe Robles","Participar en las mesas sectoriales programadas para las políticas que tienen relación con el Estado -Ciudadano","Las entidades del Sector Hacienda participaran en las mesas sectoriales programadas.\n\nEn el marco de la Ley 2052 de 2020, se integran las políticas de Servicio al Ciudadano, Racionalización de Trámites, Participación Ciudadana y Transparencia; esta última se incorpora dada la importancia que tiene la publicación de la información.\n\nEntregable. Registros de asistencia, presentaciones, informes","N/A","Sandra Viviana Neira ","N.A",null,"Servicio Integral al Usuario","N/A","-","-","-","-","-","-","2022-01-01","2022-12-31","Necesidades del SH","N/A","Gestión con valores para el resultado (Ventanilla hacia afuera)","Transparencia -Participación Ciudadana - Racionalización de Trámites - Servicio al Ciudadano"]
[null,null,"GESTIÓN PARA EL RESULTADO","GR1. Fortalecer las relaciones de las entidades del Sector Hacienda con sus grupos de valor ","SH.Ini.2019.2022.GR1.001 Promover el seguimiento y mejora continua de las acciones que se realizan para fortalecer las relaciones con los grupos de valor en las entidades del Sector Hacienda.","COLJUEGOS","COLJUEGOS>PAA 2022>  Relacionamiento con el ciudadano","Roger José Carrillo Campo ","Participar en las mesas sectoriales programadas para las políticas que tienen relación con el Estado -Ciudadano","Las entidades del Sector Hacienda participaran en las mesas sectoriales programadas.\n\nEn el marco de la Ley 2052 de 2020, se integran las políticas de Servicio al Ciudadano, Racionalización de Trámites, Participación Ciudadana y Transparencia; esta última se incorpora dada la importancia que tiene la publicación de la información.\n\nEntregable. Registros de asistencia, presentaciones, informes","N/A","Alexandra Torres Gonzalez","Juan Felipe Mahecha Cordoba",null,"Oficina Asesora de Planeación","N/A","-","-","-","-","-","-","2022-01-01","2022-12-31","Necesidades del SH","N/A","Gestión con valores para el resultado (Ventanilla hacia afuera)","Transparencia -Participación Ciudadana - Racionalización de Trámites - Servicio al Ciudadano"]
[null,null,"GESTIÓN PARA EL RESULTADO","GR1. Fortalecer las relaciones de las entidades del Sector Hacienda con sus grupos de valor ","SH.Ini.2019.2022.GR1.001 Promover el seguimiento y mejora continua de las acciones que se realizan para fortalecer las relaciones con los grupos de valor en las entidades del Sector Hacienda.","CGN","CGN> PAA 2022>  Relacionamiento con el ciudadano","Henry Ramírez Montes ","Participar en las mesas sectoriales programadas para las políticas que tienen relación con el Estado -Ciudadano","Las entidades del Sector Hacienda participaran en las mesas sectoriales programadas.\n\nEn el marco de la Ley 2052 de 2020, se integran las políticas de Servicio al Ciudadano, Racionalización de Trámites, Participación Ciudadana y Transparencia; esta última se incorpora dada la importancia que tiene la publicación de la información.\n\nEntregable. Registros de asistencia, presentaciones, informes","N/A","Wilson Eduardo Cifuentes","N/A",null,"GIT de Planeación","N/A","-","-","-","-","-","-","2022-01-01","2022-12-31","Necesidades del SH","N/A","Gestión con valores para el resultado (Ventanilla hacia afuera)","Transparencia -Participación Ciudadana - Racionalización de Trámites - Servicio al Ciudadano"]
[null,null,"GESTIÓN PARA EL RESULTADO","GR1. Fortalecer las relaciones de las entidades del Sector Hacienda con sus grupos de valor ","SH.Ini.2019.2022.GR1.001 Promover el seguimiento y mejora continua de las acciones que se realizan para fortalecer las relaciones con los grupos de valor en las entidades del Sector Hacienda.","DIAN","DIAN>PAA 2022>  Relacionamiento con el ciudadano","Catalina Garcia Cure","Participar en las mesas sectoriales programadas para las políticas que tienen relación con el Estado -Ciudadano","Las entidades del Sector Hacienda participaran en las mesas sectoriales programadas.\n\nEn el marco de la Ley 2052 de 2020, se integran las políticas de Servicio al Ciudadano, Racionalización de Trámites, Participación Ciudadana y Transparencia; esta última se incorpora dada la importancia que tiene la publicación de la información.\n\nEntregable. Registros de asistencia, presentaciones, informes","N/A","Constanza Del Pilar Rodríguez Páez","Adriana del Pilar Solano",null,"Subdirección de Gestión de Asistencia al Cliente","N/A","-","-","-","-","-","-","2022-01-01","2022-12-31","Necesidades del SH","N/A","Gestión con valores para el resultado (Ventanilla hacia afuera)","Transparencia -Participación Ciudadana - Racionalización de Trámites - Servicio al Ciudadano"]
[null,null,"GESTIÓN PARA EL RESULTADO","GR1. Fortalecer las relaciones de las entidades del Sector Hacienda con sus grupos de valor ","SH.Ini.2019.2022.GR1.001 Promover el seguimiento y mejora continua de las acciones que se realizan para fortalecer las relaciones con los grupos de valor en las entidades del Sector Hacienda.","ENTERRITORIO","ENTERRITORIO>PAA 2022>  Relacionamiento con el ciudadano","Carlos Eduardo Umaña Lizarazo","Participar en las mesas sectoriales programadas para las políticas que tienen relación con el Estado -Ciudadano","Las entidades del Sector Hacienda participaran en las mesas sectoriales programadas.\n\nEn el marco de la Ley 2052 de 2020, se integran las políticas de Servicio al Ciudadano, Racionalización de Trámites, Participación Ciudadana y Transparencia; esta última se incorpora dada la importancia que tiene la publicación de la información.\n\nEntregable. Registros de asistencia, presentaciones, informes","N/A","Marta Liced Rodriguez Quimbayo","Anny Alvarez Mendoza",null,"Grupo de Planeación y Gestión de Riesgos","N/A","-","-","-","-","-","-","2022-01-01","2022-12-31","Necesidades del SH","N/A","Gestión con valores para el resultado (Ventanilla hacia afuera)","Transparencia -Participación Ciudadana - Racionalización de Trámites - Servicio al Ciudadano"]
[null,null,"GESTIÓN PARA EL RESULTADO","GR1. Fortalecer las relaciones de las entidades del Sector Hacienda con sus grupos de valor ","SH.Ini.2019.2022.GR1.001 Promover el seguimiento y mejora continua de las acciones que se realizan para fortalecer las relaciones con los grupos de valor en las entidades del Sector Hacienda.","FDN","FDN>PAA 2022>  Relacionamiento con el ciudadano","Carolina Hernández","Participar en las mesas sectoriales programadas para las políticas que tienen relación con el Estado -Ciudadano","Las entidades del Sector Hacienda participaran en las mesas sectoriales programadas.\n\nEn el marco de la Ley 2052 de 2020, se integran las políticas de Servicio al Ciudadano, Racionalización de Trámites, Participación Ciudadana y Transparencia; esta última se incorpora dada la importancia que tiene la publicación de la información.\n\nEntregable. Registros de asistencia, presentaciones, informes","N/A","Maria Alejandra Rueda","N/A",null,"Vinculación","N/A","-","-","-","-","-","-","2022-01-01","2022-12-31","Necesidades del SH","N/A","Gestión con valores para el resultado (Ventanilla hacia afuera)","Transparencia -Participación Ciudadana - Racionalización de Trámites - Servicio al Ciudadano"]
[null,null,"GESTIÓN PARA EL RESULTADO","GR1. Fortalecer las relaciones de las entidades del Sector Hacienda con sus grupos de valor ","SH.Ini.2019.2022.GR1.001 Promover el seguimiento y mejora continua de las acciones que se realizan para fortalecer las relaciones con los grupos de valor en las entidades del Sector Hacienda.","FIDUAGRARIA","FIDUAGRARIA> PAA 2022> Relacionamiento con el ciudadano","Luz Marina Fernández Bello ","Participar en las mesas sectoriales programadas para las políticas que tienen relación con el Estado -Ciudadano","Las entidades del Sector Hacienda participaran en las mesas sectoriales programadas.\n\nEn el marco de la Ley 2052 de 2020, se integran las políticas de Servicio al Ciudadano, Racionalización de Trámites, Participación Ciudadana y Transparencia; esta última se incorpora dada la importancia que tiene la publicación de la información.\n\nEntregable. Registros de asistencia, presentaciones, informes","N/A","Adriana Marcela Fuente Estrada","Marisol Valero Buitrago\nAlejandra Jimenez Acuña ",null,"SAC y Comunicaciones","N/A","-","-","-","-","-","-","2022-01-01","2022-12-31","Necesidades del SH","N/A","Gestión con valores para el resultado (Ventanilla hacia afuera)","Transparencia -Participación Ciudadana - Racionalización de Trámites - Servicio al Ciudadano"]
[null,null,"GESTIÓN PARA EL RESULTADO","GR1. Fortalecer las relaciones de las entidades del Sector Hacienda con sus grupos de valor ","SH.Ini.2019.2022.GR1.001 Promover el seguimiento y mejora continua de las acciones que se realizan para fortalecer las relaciones con los grupos de valor en las entidades del Sector Hacienda.","FIDUCOLDEX","FIDUCOLDEX>PAA 2022>  Relacionamiento con el ciudadano","Andrés Barco","Participar en las mesas sectoriales programadas para las políticas que tienen relación con el Estado -Ciudadano","Las entidades del Sector Hacienda participaran en las mesas sectoriales programadas.\n\nEn el marco de la Ley 2052 de 2020, se integran las políticas de Servicio al Ciudadano, Racionalización de Trámites, Participación Ciudadana y Transparencia; esta última se incorpora dada la importancia que tiene la publicación de la información.\n\nEntregable. Registros de asistencia, presentaciones, informes","N/A","Angelly Coy","N/A",null,"Dirección Administrativa y Servicio al Cliente","N/A","-","-","-","-","-","-","2022-01-01","2022-12-31","Necesidades del SH","N/A","Gestión con valores para el resultado (Ventanilla hacia afuera)","Transparencia -Participación Ciudadana - Racionalización de Trámites - Servicio al Ciudadano"]
[null,null,"GESTIÓN PARA EL RESULTADO","GR1. Fortalecer las relaciones de las entidades del Sector Hacienda con sus grupos de valor ","SH.Ini.2019.2022.GR1.001 Promover el seguimiento y mejora continua de las acciones que se realizan para fortalecer las relaciones con los grupos de valor en las entidades del Sector Hacienda.","FIDUPREVISORA","FIDUPREVISORA>PAA 2022>Relacionamiento con el ciudadano","Magda Nancy Manosalva Cely","Participar en las mesas sectoriales programadas para las políticas que tienen relación con el Estado -Ciudadano","Las entidades del Sector Hacienda participaran en las mesas sectoriales programadas.\n\nEn el marco de la Ley 2052 de 2020, se integran las políticas de Servicio al Ciudadano, Racionalización de Trámites, Participación Ciudadana y Transparencia; esta última se incorpora dada la importancia que tiene la publicación de la información.\n\nEntregable. Registros de asistencia, presentaciones, informes","N/A","Karen Pardo","Santiago Narváez",null,"Vicepresidencia de Transformación - Dirección de Servicio al Cliente y Comunicaciones","N/A","-","-","-","-","-","-","2022-01-01","2022-12-31","Necesidades del SH","N/A","Gestión con Valores para el Resultado","Transparencia -Participación Ciudadana - Racionalización de Trámites - Servicio al Ciudadano"]
[null,null,"GESTIÓN PARA EL RESULTADO","GR1. Fortalecer las relaciones de las entidades del Sector Hacienda con sus grupos de valor ","SH.Ini.2019.2022.GR1.001 Promover el seguimiento y mejora continua de las acciones que se realizan para fortalecer las relaciones con los grupos de valor en las entidades del Sector Hacienda.","FINAGRO","FINAGRO>PAA 2022>  Relacionamiento con el ciudadano","Juan Carlos Restrepo González","Participar en las mesas sectoriales programadas para las políticas que tienen relación con el Estado -Ciudadano","Las entidades del Sector Hacienda participaran en las mesas sectoriales programadas.\n\nEn el marco de la Ley 2052 de 2020, se integran las políticas de Servicio al Ciudadano, Racionalización de Trámites, Participación Ciudadana y Transparencia; esta última se incorpora dada la importancia que tiene la publicación de la información.\n\nEntregable. Registros de asistencia, presentaciones, informes","N/A","Juan Carlos Botero Restrepo","Isabel Cristina Jaramillo\n María Helena Reyes Donadlo \n",null,"Dirección de Servicio al Cliente","N/A","-","-","-","-","-","-","2022-01-01","2022-12-31","Necesidades del SH","N/A","Gestión con Valores para el Resultado","Transparencia -Participación Ciudadana - Racionalización de Trámites - Servicio al Ciudadano"]
[null,null,"GESTIÓN PARA EL RESULTADO","GR1. Fortalecer las relaciones de las entidades del Sector Hacienda con sus grupos de valor ","SH.Ini.2019.2022.GR1.001 Promover el seguimiento y mejora continua de las acciones que se realizan para fortalecer las relaciones con los grupos de valor en las entidades del Sector Hacienda.","FINDETER","FINDETER>PAA 2022>  Relacionamiento con el ciudadano","Laura Mercedes Peña Rodríguez","Participar en las mesas sectoriales programadas para las políticas que tienen relación con el Estado -Ciudadano","Las entidades del Sector Hacienda participaran en las mesas sectoriales programadas.\n\nEn el marco de la Ley 2052 de 2020, se integran las políticas de Servicio al Ciudadano, Racionalización de Trámites, Participación Ciudadana y Transparencia; esta última se incorpora dada la importancia que tiene la publicación de la información.\n\nEntregable. Registros de asistencia, presentaciones, informes","N/A","Laura Mercedes Peña","N/A",null,"Gerencia de Comunicaciones, Mercadeo y Responsabilidad Social - Jefatura de Mercadeo","N/A","-","-","-","-","-","-","2022-01-01","2022-12-31","Necesidades del SH","N/A","Gestión con Valores para el Resultado","Transparencia -Participación Ciudadana - Racionalización de Trámites - Servicio al Ciudadano"]
[null,null,"GESTIÓN PARA EL RESULTADO","GR1. Fortalecer las relaciones de las entidades del Sector Hacienda con sus grupos de valor ","SH.Ini.2019.2022.GR1.001 Promover el seguimiento y mejora continua de las acciones que se realizan para fortalecer las relaciones con los grupos de valor en las entidades del Sector Hacienda.","FOGACOOP","FOGACOOP>PAA 2022>  Relacionamiento con el ciudadano","Adriana Mcallister Braidy","Participar en las mesas sectoriales programadas para las políticas que tienen relación con el Estado -Ciudadano","Las entidades del Sector Hacienda participaran en las mesas sectoriales programadas.\n\nEn el marco de la Ley 2052 de 2020, se integran las políticas de Servicio al Ciudadano, Racionalización de Trámites, Participación Ciudadana y Transparencia; esta última se incorpora dada la importancia que tiene la publicación de la información.\n\nEntregable. Registros de asistencia, presentaciones, informes","N/A","Ruben Mauricio Ariza","Zulma Liliana López Zuluaga",null,"Secretaría General y de Gestión Administrativa","N/A","-","-","-","-","-","-","2022-01-01","2022-12-31","Necesidades del SH","N/A","Gestión con Valores para el Resultado","Transparencia -Participación Ciudadana - Racionalización de Trámites - Servicio al Ciudadano"]
[null,null,"GESTIÓN PARA EL RESULTADO","GR1. Fortalecer las relaciones de las entidades del Sector Hacienda con sus grupos de valor ","SH.Ini.2019.2022.GR1.001 Promover el seguimiento y mejora continua de las acciones que se realizan para fortalecer las relaciones con los grupos de valor en las entidades del Sector Hacienda.","FOGAFIN","FOGAFIN>PAA 2022>  Relacionamiento con el ciudadano","Carlos Alberto Sánchez del Valle","Participar en las mesas sectoriales programadas para las políticas que tienen relación con el Estado -Ciudadano","Las entidades del Sector Hacienda participaran en las mesas sectoriales programadas.\n\nEn el marco de la Ley 2052 de 2020, se integran las políticas de Servicio al Ciudadano, Racionalización de Trámites, Participación Ciudadana y Transparencia; esta última se incorpora dada la importancia que tiene la publicación de la información.\n\nEntregable. Registros de asistencia, presentaciones, informes","N/A","Carlos Alberto Sánchez del Valle","N/A",null,"Departamento de Comunicaciones y Relaciones Corporativas","N/A","-","-","-","-","-","-","2022-01-01","2022-12-31","Necesidades del SH","N/A","Gestión con Valores para el Resultado","Transparencia -Participación Ciudadana - Racionalización de Trámites - Servicio al Ciudadano"]
[null,null,"GESTIÓN PARA EL RESULTADO","GR1. Fortalecer las relaciones de las entidades del Sector Hacienda con sus grupos de valor ","SH.Ini.2019.2022.GR1.001 Promover el seguimiento y mejora continua de las acciones que se realizan para fortalecer las relaciones con los grupos de valor en las entidades del Sector Hacienda.","FONDO ADAPTACIÓN","FONDO ADAPTACIÓN>PAA 2022>Relacionamiento con el ciudadano","Alejandro Venegas ","Participar en las mesas sectoriales programadas para las políticas que tienen relación con el Estado -Ciudadano","Las entidades del Sector Hacienda participaran en las mesas sectoriales programadas.\n\nEn el marco de la Ley 2052 de 2020, se integran las políticas de Servicio al Ciudadano, Racionalización de Trámites, Participación Ciudadana y Transparencia; esta última se incorpora dada la importancia que tiene la publicación de la información.\n\nEntregable. Registros de asistencia, presentaciones, informes","N/A","Victor Alejandro Venegas","Myriam Gutiérrez ",null,"Atención al Ciudadano","N/A","-","-","-","-","-","-","2022-01-01","2022-12-31","Necesidades del SH","N/A","Gestión con Valores para el Resultado","Transparencia -Participación Ciudadana - Racionalización de Trámites - Servicio al Ciudadano"]
[null,null,"GESTIÓN PARA EL RESULTADO","GR1. Fortalecer las relaciones de las entidades del Sector Hacienda con sus grupos de valor ","SH.Ini.2019.2022.GR1.001 Promover el seguimiento y mejora continua de las acciones que se realizan para fortalecer las relaciones con los grupos de valor en las entidades del Sector Hacienda.","FONDO NACIONAL DEL AHORRO","FONDO NACIONAL DEL AHORRO >PAA 2022> Relacionamiento con el ciudadano","Kennicher Arias Roa","Participar en las mesas sectoriales programadas para las políticas que tienen relación con el Estado -Ciudadano","Las entidades del Sector Hacienda participaran en las mesas sectoriales programadas.\n\nEn el marco de la Ley 2052 de 2020, se integran las políticas de Servicio al Ciudadano, Racionalización de Trámites, Participación Ciudadana y Transparencia; esta última se incorpora dada la importancia que tiene la publicación de la información.\n\nEntregable. Registros de asistencia, presentaciones, informes","N/A","Angelica María Zapata","Helga Viviana Valencia  \nJosé Antonio  Dueñas\nMartha Milena Ramirez ",null,"Oficina de Planeación ","N/A","-","-","-","-","-","-","2022-01-01","2022-12-31","Necesidades del SH","N/A","Gestión con Valores para el Resultado","Transparencia -Participación Ciudadana - Racionalización de Trámites - Servicio al Ciudadano"]
[null,null,"GESTIÓN PARA EL RESULTADO","GR1. Fortalecer las relaciones de las entidades del Sector Hacienda con sus grupos de valor ","SH.Ini.2019.2022.GR1.001 Promover el seguimiento y mejora continua de las acciones que se realizan para fortalecer las relaciones con los grupos de valor en las entidades del Sector Hacienda.","FONDO NACIONAL DE GARANTIAS","FONDO NACIONAL DE GARANTIAS >PAA 2022> Relacionamiento con el ciudadano","Maria Angelica Burbano Sánchez","Participar en las mesas sectoriales programadas para las políticas que tienen relación con el Estado -Ciudadano","Las entidades del Sector Hacienda participaran en las mesas sectoriales programadas.\n\nEn el marco de la Ley 2052 de 2020, se integran las políticas de Servicio al Ciudadano, Racionalización de Trámites, Participación Ciudadana y Transparencia; esta última se incorpora dada la importancia que tiene la publicación de la información.\n\nEntregable. Registros de asistencia, presentaciones, informes","N/A","Diana Carolina Restrepo Velez","Andrés Estrada Cardona ",null,"Subdirección de Servicio al Cliente","N/A","-","-","-","-","-","-","2022-01-01","2022-12-31","Necesidades del SH","N/A","Gestión con Valores para el Resultado","Transparencia -Participación Ciudadana - Racionalización de Trámites - Servicio al Ciudadano"]
[null,null,"GESTIÓN PARA EL RESULTADO","GR1. Fortalecer las relaciones de las entidades del Sector Hacienda con sus grupos de valor ","SH.Ini.2019.2022.GR1.001 Promover el seguimiento y mejora continua de las acciones que se realizan para fortalecer las relaciones con los grupos de valor en las entidades del Sector Hacienda.","GRUPO BICENTENARIO","GRUPO BICENTENARIO>PAA 2022>Relacionamiento con el ciudadano","Oscar Laureano Rosero Jiménez","Participar en las mesas sectoriales programadas para las políticas que tienen relación con el Estado -Ciudadano","Las entidades del Sector Hacienda participaran en las mesas sectoriales programadas.\n\nEn el marco de la Ley 2052 de 2020, se integran las políticas de Servicio al Ciudadano, Racionalización de Trámites, Participación Ciudadana y Transparencia; esta última se incorpora dada la importancia que tiene la publicación de la información.\n\nEntregable. Registros de asistencia, presentaciones, informes","N/A","Lucía Patricia Esparza Baena","N/A",null,"Área Estrategia","N/A","-","-","-","-","-","-","2022-01-01","2022-12-31","Necesidades del SH","N/A","Gestión con Valores para el Resultado","Transparencia -Participación Ciudadana - Racionalización de Trámites - Servicio al Ciudadano"]
[null,null,"GESTIÓN PARA EL RESULTADO","GR1. Fortalecer las relaciones de las entidades del Sector Hacienda con sus grupos de valor ","SH.Ini.2019.2022.GR1.001 Promover el seguimiento y mejora continua de las acciones que se realizan para fortalecer las relaciones con los grupos de valor en las entidades del Sector Hacienda.","ICETEX","ICETEX>PAA 2022>Relacionamiento con el ciudadano","Beatriz Helena Torres Lizarazo\n","Participar en las mesas sectoriales programadas para las políticas que tienen relación con el Estado -Ciudadano","Las entidades del Sector Hacienda participaran en las mesas sectoriales programadas.\n\nEn el marco de la Ley 2052 de 2020, se integran las políticas de Servicio al Ciudadano, Racionalización de Trámites, Participación Ciudadana y Transparencia; esta última se incorpora dada la importancia que tiene la publicación de la información.\n\nEntregable. Registros de asistencia, presentaciones, informes","N/A","Libia Esperanza Fonseca Marín ","Rosa Maria Gonzalez Carvajal \nJohana Niño Acosta \nYeimmy Marisol Castellanos Alvarado",null,"Oficina Comercial y de Mercadeo - ICETEX","N/A","-","-","-","-","-","-","2022-01-01","2022-12-31","Necesidades del SH","N/A","Gestión con Valores para el Resultado","Transparencia -Participación Ciudadana - Racionalización de Trámites - Servicio al Ciudadano"]
[null,null,"GESTIÓN PARA EL RESULTADO","GR1. Fortalecer las relaciones de las entidades del Sector Hacienda con sus grupos de valor ","SH.Ini.2019.2022.GR1.001 Promover el seguimiento y mejora continua de las acciones que se realizan para fortalecer las relaciones con los grupos de valor en las entidades del Sector Hacienda.","ITRC","ITRC>PAA 2022> Relacionamiento con el ciudadano","Nohora Beltrán Céspedes","Participar en las mesas sectoriales programadas para las políticas que tienen relación con el Estado -Ciudadano","Las entidades del Sector Hacienda participaran en las mesas sectoriales programadas.\n\nEn el marco de la Ley 2052 de 2020, se integran las políticas de Servicio al Ciudadano, Racionalización de Trámites, Participación Ciudadana y Transparencia; esta última se incorpora dada la importancia que tiene la publicación de la información.\n\nEntregable. Registros de asistencia, presentaciones, informes","N/A","William Jaime Bernal Ávila","N/A",null,"Secretaría General","N/A","-","-","-","-","-","-","2022-01-01","2022-12-31","Necesidades del SH","N/A","Gestión con Valores para el Resultado","Transparencia -Participación Ciudadana - Racionalización de Trámites - Servicio al Ciudadano"]
[null,null,"GESTIÓN PARA EL RESULTADO","GR1. Fortalecer las relaciones de las entidades del Sector Hacienda con sus grupos de valor ","SH.Ini.2019.2022.GR1.001 Promover el seguimiento y mejora continua de las acciones que se realizan para fortalecer las relaciones con los grupos de valor en las entidades del Sector Hacienda.","POSITIVA","POSITIVA>PAA 2022>Relacionamiento con el ciudadano","Carlos Augusto Mesa Diaz","Participar en las mesas sectoriales programadas para las políticas que tienen relación con el Estado -Ciudadano","Las entidades del Sector Hacienda participaran en las mesas sectoriales programadas.\n\nEn el marco de la Ley 2052 de 2020, se integran las políticas de Servicio al Ciudadano, Racionalización de Trámites, Participación Ciudadana y Transparencia; esta última se incorpora dada la importancia que tiene la publicación de la información.\n\nEntregable. Registros de asistencia, presentaciones, informes","N/A","Oscar Saul Guerrero Bohórquez ","Diana Carolina Suarez Leal ",null,"Gerencia de Experiencia del Cliente","N/A","-","-","-","-","-","-","2022-01-01","2022-12-31","Necesidades del SH","N/A","Gestión con Valores para el Resultado","Transparencia -Participación Ciudadana - Racionalización de Trámites - Servicio al Ciudadano"]
[null,null,"GESTIÓN PARA EL RESULTADO","GR1. Fortalecer las relaciones de las entidades del Sector Hacienda con sus grupos de valor ","SH.Ini.2019.2022.GR1.001 Promover el seguimiento y mejora continua de las acciones que se realizan para fortalecer las relaciones con los grupos de valor en las entidades del Sector Hacienda.","PREVISORA","PREVISORA>PAA 2022> Relacionamiento con el ciudadano","José Fernando Pulido Sierra","Participar en las mesas sectoriales programadas para las políticas que tienen relación con el Estado -Ciudadano","Las entidades del Sector Hacienda participaran en las mesas sectoriales programadas.\n\nEn el marco de la Ley 2052 de 2020, se integran las políticas de Servicio al Ciudadano, Racionalización de Trámites, Participación Ciudadana y Transparencia; esta última se incorpora dada la importancia que tiene la publicación de la información.\n\nEntregable. Registros de asistencia, presentaciones, informes","N/A","Diana Paola Aragón","N/A",null,"Gerencia de Servicio","N/A","-","-","-","-","-","-","2022-01-01","2022-12-31","Necesidades del SH","N/A","Gestión con Valores para el Resultado","Transparencia -Participación Ciudadana - Racionalización de Trámites - Servicio al Ciudadano"]
[null,null,"GESTIÓN PARA EL RESULTADO","GR1. Fortalecer las relaciones de las entidades del Sector Hacienda con sus grupos de valor ","SH.Ini.2019.2022.GR1.001 Promover el seguimiento y mejora continua de las acciones que se realizan para fortalecer las relaciones con los grupos de valor en las entidades del Sector Hacienda.","SAE","SAE>PAA 2022> Relacionamiento con el ciudadano","Jaime Leon Gómez Salazar","Participar en las mesas sectoriales programadas para las políticas que tienen relación con el Estado -Ciudadano","Las entidades del Sector Hacienda participaran en las mesas sectoriales programadas.\n\nEn el marco de la Ley 2052 de 2020, se integran las políticas de Servicio al Ciudadano, Racionalización de Trámites, Participación Ciudadana y Transparencia; esta última se incorpora dada la importancia que tiene la publicación de la información.\n\nEntregable. Registros de asistencia, presentaciones, informes","N/A","Luz Amparo Guerra ","Ana Nelsy Franco",null,"Oficina de Comunicaciones y Atención al Ciudadano","N/A","-","-","-","-","-","-","2022-01-01","2022-12-31","Necesidades del SH","N/A","Gestión con Valores para el Resultado","Transparencia -Participación Ciudadana - Racionalización de Trámites - Servicio al Ciudadano"]
[null,null,"GESTIÓN PARA EL RESULTADO","GR1. Fortalecer las relaciones de las entidades del Sector Hacienda con sus grupos de valor ","SH.Ini.2019.2022.GR1.001 Promover el seguimiento y mejora continua de las acciones que se realizan para fortalecer las relaciones con los grupos de valor en las entidades del Sector Hacienda.","SUPERFINANCIERA","SUPERFINANCIERA>PAA 2022>Relacionamiento con el ciudadano","José Gabriel Sánchez Sousa","Participar en las mesas sectoriales programadas para las políticas que tienen relación con el Estado -Ciudadano","Las entidades del Sector Hacienda participaran en las mesas sectoriales programadas.\n\nEn el marco de la Ley 2052 de 2020, se integran las políticas de Servicio al Ciudadano, Racionalización de Trámites, Participación Ciudadana y Transparencia; esta última se incorpora dada la importancia que tiene la publicación de la información.\n\nEntregable. Registros de asistencia, presentaciones, informes","N/A","Sergio Esteban Varela Guzman","Luis Alfredo Leal Mojica",null,"Grupo Servicio al Ciudadano","N/A","-","-","-","-","-","-","2022-01-01","2022-12-31","Necesidades del SH","N/A","Gestión con Valores para el Resultado","Transparencia -Participación Ciudadana - Racionalización de Trámites - Servicio al Ciudadano"]
[null,null,"GESTIÓN PARA EL RESULTADO","GR1. Fortalecer las relaciones de las entidades del Sector Hacienda con sus grupos de valor ","SH.Ini.2019.2022.GR1.001 Promover el seguimiento y mejora continua de las acciones que se realizan para fortalecer las relaciones con los grupos de valor en las entidades del Sector Hacienda.","SUPERSOLIDARIA","SUPERSOLIDARIA>PAA 2022> Relacionamiento con el ciudadano","Robín Andrey Suarez Toscano","Participar en las mesas sectoriales programadas para las políticas que tienen relación con el Estado -Ciudadano","Las entidades del Sector Hacienda participaran en las mesas sectoriales programadas.\n\nEn el marco de la Ley 2052 de 2020, se integran las políticas de Servicio al Ciudadano, Racionalización de Trámites, Participación Ciudadana y Transparencia; esta última se incorpora dada la importancia que tiene la publicación de la información.\n\nEntregable. Registros de asistencia, presentaciones, informes","N/A","Felipe Mancera Rojas ","N/A",null,"Oficina Asesora de Planeación y Sistemas ","N/A","-","-","-","-","-","-","2022-01-01","2022-12-31","Necesidades del SH","N/A","Gestión con Valores para el Resultado","Transparencia -Participación Ciudadana - Racionalización de Trámites - Servicio al Ciudadano"]
[null,null,"GESTIÓN PARA EL RESULTADO","GR1. Fortalecer las relaciones de las entidades del Sector Hacienda con sus grupos de valor ","SH.Ini.2019.2022.GR1.001 Promover el seguimiento y mejora continua de las acciones que se realizan para fortalecer las relaciones con los grupos de valor en las entidades del Sector Hacienda.","UGPP","UGPP>PAA 2022>  Relacionamiento con el ciudadano","Ana María Cadena","Participar en las mesas sectoriales programadas para las políticas que tienen relación con el Estado -Ciudadano","Las entidades del Sector Hacienda participaran en las mesas sectoriales programadas.\n\nEn el marco de la Ley 2052 de 2020, se integran las políticas de Servicio al Ciudadano, Racionalización de Trámites, Participación Ciudadana y Transparencia; esta última se incorpora dada la importancia que tiene la publicación de la información.\n\nEntregable. Registros de asistencia, presentaciones, informes","N/A","Germán Vega Rodríguez","N/A",null,"Dirección de Servicios Integrados de Atención","N/A","-","-","-","-","-","-","2022-01-01","2022-12-31","Necesidades del SH","N/A","Gestión con Valores para el Resultado","Transparencia -Participación Ciudadana - Racionalización de Trámites - Servicio al Ciudadano"]
[null,null,"GESTIÓN PARA EL RESULTADO","GR1. Fortalecer las relaciones de las entidades del Sector Hacienda con sus grupos de valor ","SH.Ini.2019.2022.GR1.001 Promover el seguimiento y mejora continua de las acciones que se realizan para fortalecer las relaciones con los grupos de valor en las entidades del Sector Hacienda.","UIAF","UIAF>PAA 2022>  Relacionamiento con el ciudadano","Nilgen Vargas Garcés","Participar en las mesas sectoriales programadas para las políticas que tienen relación con el Estado -Ciudadano","Las entidades del Sector Hacienda participaran en las mesas sectoriales programadas.\n\nEn el marco de la Ley 2052 de 2020, se integran las políticas de Servicio al Ciudadano, Racionalización de Trámites, Participación Ciudadana y Transparencia; esta última se incorpora dada la importancia que tiene la publicación de la información.\n\nEntregable. Registros de asistencia, presentaciones, informes","N/A","Carlos Julio Buitrago Ortiz","Laura Alejandra Centeno Pérez",null,"Subdirección Administrativa y Financiera","N/A","-","-","-","-","-","-","2022-01-01","2022-12-31","Necesidades del SH","N/A","Gestión con Valores para el Resultado","Transparencia -Participación Ciudadana - Racionalización de Trámites - Servicio al Ciudadano"]
[null,null,"GESTIÓN PARA EL RESULTADO","GR1. Fortalecer las relaciones de las entidades del Sector Hacienda con sus grupos de valor ","SH.Ini.2019.2022.GR1.001 Promover el seguimiento y mejora continua de las acciones que se realizan para fortalecer las relaciones con los grupos de valor en las entidades del Sector Hacienda.","URF","URF>PAA 2022> Relacionamiento con el ciudadano","Ivonnie Edith Gallardo ","Participar en las mesas sectoriales programadas para las políticas que tienen relación con el Estado -Ciudadano","Las entidades del Sector Hacienda participaran en las mesas sectoriales programadas.\n\nEn el marco de la Ley 2052 de 2020, se integran las políticas de Servicio al Ciudadano, Racionalización de Trámites, Participación Ciudadana y Transparencia; esta última se incorpora dada la importancia que tiene la publicación de la información.\n\nEntregable. Registros de asistencia, presentaciones, informes","N/A","Carolina Rojas Díaz","N/A",null,"Subdirección Jurídica y de Gestión Institucional ","N/A","-","-","-","-","-","-","2022-01-01","2022-12-31","Necesidades del SH","N/A","Gestión con Valores para el Resultado","Transparencia -Participación Ciudadana - Racionalización de Trámites - Servicio al Ciudadano"]
[null,null,"GESTIÓN PARA EL RESULTADO","GR1. Fortalecer las relaciones de las entidades del Sector Hacienda con sus grupos de valor ","SH.Ini.2019.2022.GR1.001 Promover el seguimiento y mejora continua de las acciones que se realizan para fortalecer las relaciones con los grupos de valor en las entidades del Sector Hacienda.","MHCP","MHCP> PAA 2022> Relacionamiento con el Ciudadano","María del Pilar Florido Caicedo","Coordinar el segundo ejercicio de innovación abierta denominado OPEN HACIENDA para la formulación de la planeación estratégica entre otras acciones que requieran de la participación de los grupos de valor.","Estructurar el contenido temático para el desarrollo OPEN HACIENDA así como las actividades de logística, contenido de las piezas gráficas, lanzamiento del evento y consolidación  y análisis de resultados","N/A","Catherine Cifuentes","Carlos Andres Gil Santamaria\nCamilo Sánchez",null,"Oficina Asesora de Planeación","Todas las entidades","-","-","-","-","-","-","2022-01-01","2022-12-31","Necesidades del SH","N/A","Gestión con valores para el resultado (Ventanilla hacia afuera)","Participación Ciudadana en la Gestión Pública"]
[null,null,"GESTIÓN PARA EL RESULTADO","GR1. Fortalecer las relaciones de las entidades del Sector Hacienda con sus grupos de valor ","SH.Ini.2019.2022.GR1.001 Promover el seguimiento y mejora continua de las acciones que se realizan para fortalecer las relaciones con los grupos de valor en las entidades del Sector Hacienda.","BANCO AGRARIO","BANCO AGRARIO> PAA 2022> Relacionamiento con el ciudadano","Sandra Patricia Villabona","Participar en el ejercicio de innovación abierta denominado OPEN HACIENDA para la formulación de la planeación estratégica  entre otras acciones que requieran de la participación de los grupos de valor.","Participar en el ejercicio de innovación abierta denominado OPEN HACIENDA (suministro y análisis de información).","N/A","Leonardo Leal Díaz","N/A",null,"Vicepresidencia Ejecutiva","N/A","-","-","-","-","-","-","2022-01-01","2022-12-31","Necesidades del SH","N/A","Gestión con Valores para el Resultado","Transparencia -Participación Ciudadana - Racionalización de Trámites - Servicio al Ciudadano"]
[null,null,"GESTIÓN PARA EL RESULTADO","GR1. Fortalecer las relaciones de las entidades del Sector Hacienda con sus grupos de valor ","SH.Ini.2019.2022.GR1.001 Promover el seguimiento y mejora continua de las acciones que se realizan para fortalecer las relaciones con los grupos de valor en las entidades del Sector Hacienda.","BANCOLDEX","BANCOLDEX> PAA 2022>  Relacionamiento con el ciudadano","María José Naranjo","Participar en el ejercicio de innovación abierta denominado OPEN HACIENDA para la formulación de la planeación estratégica  entre otras acciones que requieran de la participación de los grupos de valor.","Participar en el ejercicio de innovación abierta denominado OPEN HACIENDA (suministro y análisis de información).","N/A","Juan Esteban Salas","N/A",null,"Oficina de efectividad de fuerza de ventas ","N/A","-","-","-","-","-","-","2022-01-01","2022-12-31","Necesidades del SH","N/A","Gestión con Valores para el Resultado","Transparencia -Participación Ciudadana - Racionalización de Trámites - Servicio al Ciudadano"]
[null,null,"GESTIÓN PARA EL RESULTADO","GR1. Fortalecer las relaciones de las entidades del Sector Hacienda con sus grupos de valor ","SH.Ini.2019.2022.GR1.001 Promover el seguimiento y mejora continua de las acciones que se realizan para fortalecer las relaciones con los grupos de valor en las entidades del Sector Hacienda.","CISA","CISA> PAA 2022>  Relacionamiento con el ciudadano","Juan Felipe Robles","Participar en el ejercicio de innovación abierta denominado OPEN HACIENDA para la formulación de la planeación estratégica  entre otras acciones que requieran de la participación de los grupos de valor.","Participar en el ejercicio de innovación abierta denominado OPEN HACIENDA (suministro y análisis de información).","N/A","Sandra Viviana Neira ","N.A",null,"Servicio Integral al Usuario","N/A","-","-","-","-","-","-","2022-01-01","2022-12-31","Necesidades del SH","N/A","Gestión con Valores para el Resultado","Transparencia -Participación Ciudadana - Racionalización de Trámites - Servicio al Ciudadano"]
[null,null,"GESTIÓN PARA EL RESULTADO","GR1. Fortalecer las relaciones de las entidades del Sector Hacienda con sus grupos de valor ","SH.Ini.2019.2022.GR1.001 Promover el seguimiento y mejora continua de las acciones que se realizan para fortalecer las relaciones con los grupos de valor en las entidades del Sector Hacienda.","COLJUEGOS","COLJUEGOS>PAA 2022>  Relacionamiento con el ciudadano","Roger José Carrillo Campo ","Participar en el ejercicio de innovación abierta denominado OPEN HACIENDA para la formulación de la planeación estratégica  entre otras acciones que requieran de la participación de los grupos de valor.","Participar en el ejercicio de innovación abierta denominado OPEN HACIENDA (suministro y análisis de información).","N/A","Alexandra Torres Gonzalez","Juan Felipe Mahecha Cordoba",null,"Oficina Asesora de Planeación","N/A","-","-","-","-","-","-","2022-01-01","2022-12-31","Necesidades del SH","N/A","Gestión con Valores para el Resultado","Transparencia -Participación Ciudadana - Racionalización de Trámites - Servicio al Ciudadano"]
[null,null,"GESTIÓN PARA EL RESULTADO","GR1. Fortalecer las relaciones de las entidades del Sector Hacienda con sus grupos de valor ","SH.Ini.2019.2022.GR1.001 Promover el seguimiento y mejora continua de las acciones que se realizan para fortalecer las relaciones con los grupos de valor en las entidades del Sector Hacienda.","CGN","CGN> PAA 2022>  Relacionamiento con el ciudadano","Henry Ramírez Montes ","Participar en el ejercicio de innovación abierta denominado OPEN HACIENDA para la formulación de la planeación estratégica  entre otras acciones que requieran de la participación de los grupos de valor.","Participar en el ejercicio de innovación abierta denominado OPEN HACIENDA (suministro y análisis de información).","N/A","Wilson Eduardo Cifuentes","N/A",null,"GIT de Planeación","N/A","-","-","-","-","-","-","2022-01-01","2022-12-31","Necesidades del SH","N/A","Gestión con Valores para el Resultado","Transparencia -Participación Ciudadana - Racionalización de Trámites - Servicio al Ciudadano"]
[null,null,"GESTIÓN PARA EL RESULTADO","GR1. Fortalecer las relaciones de las entidades del Sector Hacienda con sus grupos de valor ","SH.Ini.2019.2022.GR1.001 Promover el seguimiento y mejora continua de las acciones que se realizan para fortalecer las relaciones con los grupos de valor en las entidades del Sector Hacienda.","DIAN","DIAN>PAA 2022>  Relacionamiento con el ciudadano","Catalina Garcia Cure","Participar en el ejercicio de innovación abierta denominado OPEN HACIENDA para la formulación de la planeación estratégica  entre otras acciones que requieran de la participación de los grupos de valor.","Participar en el ejercicio de innovación abierta denominado OPEN HACIENDA (suministro y análisis de información).","N/A","Constanza Del Pilar Rodríguez Páez","Adriana del Pilar Solano",null,"Subdirección de Gestión de Asistencia al Cliente","N/A","-","-","-","-","-","-","2022-01-01","2022-12-31","Necesidades del SH","N/A","Gestión con Valores para el Resultado","Transparencia -Participación Ciudadana - Racionalización de Trámites - Servicio al Ciudadano"]
[null,null,"GESTIÓN PARA EL RESULTADO","GR1. Fortalecer las relaciones de las entidades del Sector Hacienda con sus grupos de valor ","SH.Ini.2019.2022.GR1.001 Promover el seguimiento y mejora continua de las acciones que se realizan para fortalecer las relaciones con los grupos de valor en las entidades del Sector Hacienda.","ENTERRITORIO","ENTERRITORIO>PAA 2022>  Relacionamiento con el ciudadano","Carlos Eduardo Umaña Lizarazo","Participar en el ejercicio de innovación abierta denominado OPEN HACIENDA para la formulación de la planeación estratégica  entre otras acciones que requieran de la participación de los grupos de valor.","Participar en el ejercicio de innovación abierta denominado OPEN HACIENDA (suministro y análisis de información).","N/A","Marta Liced Rodriguez Quimbayo","Anny Alvarez Mendoza",null,"Grupo de Planeación y Gestión de Riesgos","N/A","-","-","-","-","-","-","2022-01-01","2022-12-31","Necesidades del SH","N/A","Gestión con Valores para el Resultado","Transparencia -Participación Ciudadana - Racionalización de Trámites - Servicio al Ciudadano"]
[null,null,"GESTIÓN PARA EL RESULTADO","GR1. Fortalecer las relaciones de las entidades del Sector Hacienda con sus grupos de valor ","SH.Ini.2019.2022.GR1.001 Promover el seguimiento y mejora continua de las acciones que se realizan para fortalecer las relaciones con los grupos de valor en las entidades del Sector Hacienda.","FDN","FDN>PAA 2022>  Relacionamiento con el ciudadano","Carolina Hernández","Participar en el ejercicio de innovación abierta denominado OPEN HACIENDA para la formulación de la planeación estratégica  entre otras acciones que requieran de la participación de los grupos de valor.","Participar en el ejercicio de innovación abierta denominado OPEN HACIENDA (suministro y análisis de información).","N/A","Maria Alejandra Rueda","N/A",null,"Vinculación","N/A","-","-","-","-","-","-","2022-01-01","2022-12-31","Necesidades del SH","N/A","Gestión con Valores para el Resultado","Transparencia -Participación Ciudadana - Racionalización de Trámites - Servicio al Ciudadano"]
[null,null,"GESTIÓN PARA EL RESULTADO","GR1. Fortalecer las relaciones de las entidades del Sector Hacienda con sus grupos de valor ","SH.Ini.2019.2022.GR1.001 Promover el seguimiento y mejora continua de las acciones que se realizan para fortalecer las relaciones con los grupos de valor en las entidades del Sector Hacienda.","FIDUAGRARIA","FIDUAGRARIA> PAA 2022> Relacionamiento con el ciudadano","Luz Marina Fernández Bello ","Participar en el ejercicio de innovación abierta denominado OPEN HACIENDA para la formulación de la planeación estratégica  entre otras acciones que requieran de la participación de los grupos de valor.","Participar en el ejercicio de innovación abierta denominado OPEN HACIENDA (suministro y análisis de información).","N/A","Adriana Marcela Fuente Estrada","Marisol Valero Buitrago\nAlejandra Jimenez Acuña ",null,"SAC y Comunicaciones","N/A","-","-","-","-","-","-","2022-01-01","2022-12-31","Necesidades del SH","N/A","Gestión con Valores para el Resultado","Transparencia -Participación Ciudadana - Racionalización de Trámites - Servicio al Ciudadano"]
[null,null,"GESTIÓN PARA EL RESULTADO","GR1. Fortalecer las relaciones de las entidades del Sector Hacienda con sus grupos de valor ","SH.Ini.2019.2022.GR1.001 Promover el seguimiento y mejora continua de las acciones que se realizan para fortalecer las relaciones con los grupos de valor en las entidades del Sector Hacienda.","FIDUCOLDEX","FIDUCOLDEX>PAA 2022>  Relacionamiento con el ciudadano","Andrés Barco","Participar en el ejercicio de innovación abierta denominado OPEN HACIENDA para la formulación de la planeación estratégica  entre otras acciones que requieran de la participación de los grupos de valor.","Participar en el ejercicio de innovación abierta denominado OPEN HACIENDA (suministro y análisis de información).","N/A","Angelly Coy","N/A",null,"Dirección Administrativa y Servicio al Cliente","N/A","-","-","-","-","-","-","2022-01-01","2022-12-31","Necesidades del SH","N/A","Gestión con Valores para el Resultado","Transparencia -Participación Ciudadana - Racionalización de Trámites - Servicio al Ciudadano"]
[null,null,"GESTIÓN PARA EL RESULTADO","GR1. Fortalecer las relaciones de las entidades del Sector Hacienda con sus grupos de valor ","SH.Ini.2019.2022.GR1.001 Promover el seguimiento y mejora continua de las acciones que se realizan para fortalecer las relaciones con los grupos de valor en las entidades del Sector Hacienda.","FIDUPREVISORA","FIDUPREVISORA>PAA 2022>Relacionamiento con el ciudadano","Magda Nancy Manosalva Cely","Participar en el ejercicio de innovación abierta denominado OPEN HACIENDA para la formulación de la planeación estratégica  entre otras acciones que requieran de la participación de los grupos de valor.","Participar en el ejercicio de innovación abierta denominado OPEN HACIENDA (suministro y análisis de información).","N/A","Karen Pardo","Santiago Narváez",null,"Vicepresidencia de Transformación - Dirección de Servicio al Cliente y Comunicaciones","N/A","-","-","-","-","-","-","2022-01-01","2022-12-31","Necesidades del SH","N/A","Gestión con Valores para el Resultado","Transparencia -Participación Ciudadana - Racionalización de Trámites - Servicio al Ciudadano"]
[null,null,"GESTIÓN PARA EL RESULTADO","GR1. Fortalecer las relaciones de las entidades del Sector Hacienda con sus grupos de valor ","SH.Ini.2019.2022.GR1.001 Promover el seguimiento y mejora continua de las acciones que se realizan para fortalecer las relaciones con los grupos de valor en las entidades del Sector Hacienda.","FINAGRO","FINAGRO>PAA 2022>  Relacionamiento con el ciudadano","Juan Carlos Restrepo González","Participar en el ejercicio de innovación abierta denominado OPEN HACIENDA para la formulación de la planeación estratégica  entre otras acciones que requieran de la participación de los grupos de valor.","Participar en el ejercicio de innovación abierta denominado OPEN HACIENDA (suministro y análisis de información).","N/A","Juan Carlos Botero Restrepo","Isabel Cristina Jaramillo\n María Helena Reyes Donadlo \n",null,"Dirección de Servicio al Cliente","N/A","-","-","-","-","-","-","2022-01-01","2022-12-31","Necesidades del SH","N/A","Gestión con Valores para el Resultado","Transparencia -Participación Ciudadana - Racionalización de Trámites - Servicio al Ciudadano"]
[null,null,"GESTIÓN PARA EL RESULTADO","GR1. Fortalecer las relaciones de las entidades del Sector Hacienda con sus grupos de valor ","SH.Ini.2019.2022.GR1.001 Promover el seguimiento y mejora continua de las acciones que se realizan para fortalecer las relaciones con los grupos de valor en las entidades del Sector Hacienda.","FINDETER","FINDETER>PAA 2022>  Relacionamiento con el ciudadano","Laura Mercedes Peña Rodríguez","Participar en el ejercicio de innovación abierta denominado OPEN HACIENDA para la formulación de la planeación estratégica  entre otras acciones que requieran de la participación de los grupos de valor.","Participar en el ejercicio de innovación abierta denominado OPEN HACIENDA (suministro y análisis de información).","N/A","Laura Mercedes Peña","N/A",null,"Gerencia de Comunicaciones, Mercadeo y Responsabilidad Social - Jefatura de Mercadeo","N/A","-","-","-","-","-","-","2022-01-01","2022-12-31","Necesidades del SH","N/A","Gestión con Valores para el Resultado","Transparencia -Participación Ciudadana - Racionalización de Trámites - Servicio al Ciudadano"]
[null,null,"GESTIÓN PARA EL RESULTADO","GR1. Fortalecer las relaciones de las entidades del Sector Hacienda con sus grupos de valor ","SH.Ini.2019.2022.GR1.001 Promover el seguimiento y mejora continua de las acciones que se realizan para fortalecer las relaciones con los grupos de valor en las entidades del Sector Hacienda.","FOGACOOP","FOGACOOP>PAA 2022>  Relacionamiento con el ciudadano","Adriana Mcallister Braidy","Participar en el ejercicio de innovación abierta denominado OPEN HACIENDA para la formulación de la planeación estratégica  entre otras acciones que requieran de la participación de los grupos de valor.","Participar en el ejercicio de innovación abierta denominado OPEN HACIENDA (suministro y análisis de información).","N/A","Ruben Mauricio Ariza","Zulma Liliana López Zuluaga",null,"Secretaría General y de Gestión Administrativa","N/A","-","-","-","-","-","-","2022-01-01","2022-12-31","Necesidades del SH","N/A","Gestión con Valores para el Resultado","Transparencia -Participación Ciudadana - Racionalización de Trámites - Servicio al Ciudadano"]
[null,null,"GESTIÓN PARA EL RESULTADO","GR1. Fortalecer las relaciones de las entidades del Sector Hacienda con sus grupos de valor ","SH.Ini.2019.2022.GR1.001 Promover el seguimiento y mejora continua de las acciones que se realizan para fortalecer las relaciones con los grupos de valor en las entidades del Sector Hacienda.","FOGAFIN","FOGAFIN>PAA 2022>  Relacionamiento con el ciudadano","Carlos Alberto Sánchez del Valle","Participar en el ejercicio de innovación abierta denominado OPEN HACIENDA para la formulación de la planeación estratégica  entre otras acciones que requieran de la participación de los grupos de valor.","Participar en el ejercicio de innovación abierta denominado OPEN HACIENDA (suministro y análisis de información).","N/A","Carlos Alberto Sánchez del Valle","N/A",null,"Departamento de Comunicaciones y Relaciones Corporativas","N/A","-","-","-","-","-","-","2022-01-01","2022-12-31","Necesidades del SH","N/A","Gestión con Valores para el Resultado","Transparencia -Participación Ciudadana - Racionalización de Trámites - Servicio al Ciudadano"]
[null,null,"GESTIÓN PARA EL RESULTADO","GR1. Fortalecer las relaciones de las entidades del Sector Hacienda con sus grupos de valor ","SH.Ini.2019.2022.GR1.001 Promover el seguimiento y mejora continua de las acciones que se realizan para fortalecer las relaciones con los grupos de valor en las entidades del Sector Hacienda.","FONDO ADAPTACIÓN","FONDO ADAPTACIÓN>PAA 2022>Relacionamiento con el ciudadano","Alejandro Venegas ","Participar en el ejercicio de innovación abierta denominado OPEN HACIENDA para la formulación de la planeación estratégica  entre otras acciones que requieran de la participación de los grupos de valor.","Participar en el ejercicio de innovación abierta denominado OPEN HACIENDA (suministro y análisis de información).","N/A","Victor Alejandro Venegas","Myriam Gutiérrez ",null,"Atención al Ciudadano","N/A","-","-","-","-","-","-","2022-01-01","2022-12-31","Necesidades del SH","N/A","Gestión con Valores para el Resultado","Transparencia -Participación Ciudadana - Racionalización de Trámites - Servicio al Ciudadano"]
[null,null,"GESTIÓN PARA EL RESULTADO","GR1. Fortalecer las relaciones de las entidades del Sector Hacienda con sus grupos de valor ","SH.Ini.2019.2022.GR1.001 Promover el seguimiento y mejora continua de las acciones que se realizan para fortalecer las relaciones con los grupos de valor en las entidades del Sector Hacienda.","FONDO NACIONAL DEL AHORRO","FONDO NACIONAL DEL AHORRO >PAA 2022> Relacionamiento con el ciudadano","Kennicher Arias Roa","Participar en el ejercicio de innovación abierta denominado OPEN HACIENDA para la formulación de la planeación estratégica  entre otras acciones que requieran de la participación de los grupos de valor.","Participar en el ejercicio de innovación abierta denominado OPEN HACIENDA (suministro y análisis de información).","N/A","Angelica María Zapata","Helga Viviana Valencia  \nJosé Antonio  Dueñas\nMartha Milena Ramirez ",null,"Oficina de Planeación ","N/A","-","-","-","-","-","-","2022-01-01","2022-12-31","Necesidades del SH","N/A","Gestión con Valores para el Resultado","Transparencia -Participación Ciudadana - Racionalización de Trámites - Servicio al Ciudadano"]
[null,null,"GESTIÓN PARA EL RESULTADO","GR1. Fortalecer las relaciones de las entidades del Sector Hacienda con sus grupos de valor ","SH.Ini.2019.2022.GR1.001 Promover el seguimiento y mejora continua de las acciones que se realizan para fortalecer las relaciones con los grupos de valor en las entidades del Sector Hacienda.","FONDO NACIONAL DE GARANTIAS","FONDO NACIONAL DE GARANTIAS >PAA 2022> Relacionamiento con el ciudadano","Maria Angelica Burbano Sánchez","Participar en el ejercicio de innovación abierta denominado OPEN HACIENDA para la formulación de la planeación estratégica  entre otras acciones que requieran de la participación de los grupos de valor.","Participar en el ejercicio de innovación abierta denominado OPEN HACIENDA (suministro y análisis de información).","N/A","Diana Carolina Restrepo Velez","Andrés Estrada Cardona ",null,"Subdirección de Servicio al Cliente","N/A","-","-","-","-","-","-","2022-01-01","2022-12-31","Necesidades del SH","N/A","Gestión con Valores para el Resultado","Transparencia -Participación Ciudadana - Racionalización de Trámites - Servicio al Ciudadano"]
[null,null,"GESTIÓN PARA EL RESULTADO","GR1. Fortalecer las relaciones de las entidades del Sector Hacienda con sus grupos de valor ","SH.Ini.2019.2022.GR1.001 Promover el seguimiento y mejora continua de las acciones que se realizan para fortalecer las relaciones con los grupos de valor en las entidades del Sector Hacienda.","GRUPO BICENTENARIO","GRUPO BICENTENARIO>PAA 2022>Relacionamiento con el ciudadano","Oscar Laureano Rosero Jiménez","Participar en el ejercicio de innovación abierta denominado OPEN HACIENDA para la formulación de la planeación estratégica  entre otras acciones que requieran de la participación de los grupos de valor.","Participar en el ejercicio de innovación abierta denominado OPEN HACIENDA (suministro y análisis de información).","N/A","Lucía Patricia Esparza Baena","N/A",null,"Área Estrategia","N/A","-","-","-","-","-","-","2022-01-01","2022-12-31","Necesidades del SH","N/A","Gestión con Valores para el Resultado","Transparencia -Participación Ciudadana - Racionalización de Trámites - Servicio al Ciudadano"]
[null,null,"GESTIÓN PARA EL RESULTADO","GR1. Fortalecer las relaciones de las entidades del Sector Hacienda con sus grupos de valor ","SH.Ini.2019.2022.GR1.001 Promover el seguimiento y mejora continua de las acciones que se realizan para fortalecer las relaciones con los grupos de valor en las entidades del Sector Hacienda.","ICETEX","ICETEX>PAA 2022>Relacionamiento con el ciudadano","Beatriz Helena Torres Lizarazo\n","Participar en el ejercicio de innovación abierta denominado OPEN HACIENDA para la formulación de la planeación estratégica  entre otras acciones que requieran de la participación de los grupos de valor.","Participar en el ejercicio de innovación abierta denominado OPEN HACIENDA (suministro y análisis de información).","N/A","Libia Esperanza Fonseca Marín ","Rosa Maria Gonzalez Carvajal \nJohana Niño Acosta \nYeimmy Marisol Castellanos Alvarado",null,"Oficina Comercial y de Mercadeo - ICETEX","N/A","-","-","-","-","-","-","2022-01-01","2022-12-31","Necesidades del SH","N/A","Gestión con Valores para el Resultado","Transparencia -Participación Ciudadana - Racionalización de Trámites - Servicio al Ciudadano"]
[null,null,"GESTIÓN PARA EL RESULTADO","GR1. Fortalecer las relaciones de las entidades del Sector Hacienda con sus grupos de valor ","SH.Ini.2019.2022.GR1.001 Promover el seguimiento y mejora continua de las acciones que se realizan para fortalecer las relaciones con los grupos de valor en las entidades del Sector Hacienda.","ITRC","ITRC>PAA 2022> Relacionamiento con el ciudadano","Nohora Beltrán Céspedes","Participar en el ejercicio de innovación abierta denominado OPEN HACIENDA para la formulación de la planeación estratégica  entre otras acciones que requieran de la participación de los grupos de valor.","Participar en el ejercicio de innovación abierta denominado OPEN HACIENDA (suministro y análisis de información).","N/A","William Jaime Bernal Ávila","N/A",null,"Secretaría General","N/A","-","-","-","-","-","-","2022-01-01","2022-12-31","Necesidades del SH","N/A","Gestión con Valores para el Resultado","Transparencia -Participación Ciudadana - Racionalización de Trámites - Servicio al Ciudadano"]
[null,null,"GESTIÓN PARA EL RESULTADO","GR1. Fortalecer las relaciones de las entidades del Sector Hacienda con sus grupos de valor ","SH.Ini.2019.2022.GR1.001 Promover el seguimiento y mejora continua de las acciones que se realizan para fortalecer las relaciones con los grupos de valor en las entidades del Sector Hacienda.","POSITIVA","POSITIVA>PAA 2022>Relacionamiento con el ciudadano","Carlos Augusto Mesa Diaz","Participar en el ejercicio de innovación abierta denominado OPEN HACIENDA para la formulación de la planeación estratégica  entre otras acciones que requieran de la participación de los grupos de valor.","Participar en el ejercicio de innovación abierta denominado OPEN HACIENDA (suministro y análisis de información).","N/A","Oscar Saul Guerrero Bohórquez ","Diana Carolina Suarez Leal ",null,"Gerencia de Experiencia del Cliente","N/A","-","-","-","-","-","-","2022-01-01","2022-12-31","Necesidades del SH","N/A","Gestión con Valores para el Resultado","Transparencia -Participación Ciudadana - Racionalización de Trámites - Servicio al Ciudadano"]
[null,null,"GESTIÓN PARA EL RESULTADO","GR1. Fortalecer las relaciones de las entidades del Sector Hacienda con sus grupos de valor ","SH.Ini.2019.2022.GR1.001 Promover el seguimiento y mejora continua de las acciones que se realizan para fortalecer las relaciones con los grupos de valor en las entidades del Sector Hacienda.","PREVISORA","PREVISORA>PAA 2022> Relacionamiento con el ciudadano","José Fernando Pulido Sierra","Participar en el ejercicio de innovación abierta denominado OPEN HACIENDA para la formulación de la planeación estratégica  entre otras acciones que requieran de la participación de los grupos de valor.","Participar en el ejercicio de innovación abierta denominado OPEN HACIENDA (suministro y análisis de información).","N/A","Diana Paola Aragón","N/A",null,"Gerencia de Servicio","N/A","-","-","-","-","-","-","2022-01-01","2022-12-31","Necesidades del SH","N/A","Gestión con Valores para el Resultado","Transparencia -Participación Ciudadana - Racionalización de Trámites - Servicio al Ciudadano"]
[null,null,"GESTIÓN PARA EL RESULTADO","GR1. Fortalecer las relaciones de las entidades del Sector Hacienda con sus grupos de valor ","SH.Ini.2019.2022.GR1.001 Promover el seguimiento y mejora continua de las acciones que se realizan para fortalecer las relaciones con los grupos de valor en las entidades del Sector Hacienda.","SAE","SAE>PAA 2022> Relacionamiento con el ciudadano","Jaime Leon Gómez Salazar","Participar en el ejercicio de innovación abierta denominado OPEN HACIENDA para la formulación de la planeación estratégica  entre otras acciones que requieran de la participación de los grupos de valor.","Participar en el ejercicio de innovación abierta denominado OPEN HACIENDA (suministro y análisis de información).","N/A","Luz Amparo Guerra ","Ana Nelsy Franco",null,"Oficina de Comunicaciones y Atención al Ciudadano","N/A","-","-","-","-","-","-","2022-01-01","2022-12-31","Necesidades del SH","N/A","Gestión con Valores para el Resultado","Transparencia -Participación Ciudadana - Racionalización de Trámites - Servicio al Ciudadano"]
[null,null,"GESTIÓN PARA EL RESULTADO","GR1. Fortalecer las relaciones de las entidades del Sector Hacienda con sus grupos de valor ","SH.Ini.2019.2022.GR1.001 Promover el seguimiento y mejora continua de las acciones que se realizan para fortalecer las relaciones con los grupos de valor en las entidades del Sector Hacienda.","SUPERFINANCIERA","SUPERFINANCIERA>PAA 2022>Relacionamiento con el ciudadano","José Gabriel Sánchez Sousa","Participar en el ejercicio de innovación abierta denominado OPEN HACIENDA para la formulación de la planeación estratégica  entre otras acciones que requieran de la participación de los grupos de valor.","Participar en el ejercicio de innovación abierta denominado OPEN HACIENDA (suministro y análisis de información).","N/A","Sergio Esteban Varela Guzman","Luis Alfredo Leal Mojica",null,"Grupo Servicio al Ciudadano","N/A","-","-","-","-","-","-","2022-01-01","2022-12-31","Necesidades del SH","N/A","Gestión con Valores para el Resultado","Transparencia -Participación Ciudadana - Racionalización de Trámites - Servicio al Ciudadano"]
[null,null,"GESTIÓN PARA EL RESULTADO","GR1. Fortalecer las relaciones de las entidades del Sector Hacienda con sus grupos de valor ","SH.Ini.2019.2022.GR1.001 Promover el seguimiento y mejora continua de las acciones que se realizan para fortalecer las relaciones con los grupos de valor en las entidades del Sector Hacienda.","SUPERSOLIDARIA","SUPERSOLIDARIA>PAA 2022> Relacionamiento con el ciudadano","Robín Andrey Suarez Toscano","Participar en el ejercicio de innovación abierta denominado OPEN HACIENDA para la formulación de la planeación estratégica  entre otras acciones que requieran de la participación de los grupos de valor.","Participar en el ejercicio de innovación abierta denominado OPEN HACIENDA (suministro y análisis de información).","N/A","Felipe Mancera Rojas ","N/A",null,"Oficina Asesora de Planeación y Sistemas ","N/A","-","-","-","-","-","-","2022-01-01","2022-12-31","Necesidades del SH","N/A","Gestión con Valores para el Resultado","Transparencia -Participación Ciudadana - Racionalización de Trámites - Servicio al Ciudadano"]
[null,null,"GESTIÓN PARA EL RESULTADO","GR1. Fortalecer las relaciones de las entidades del Sector Hacienda con sus grupos de valor ","SH.Ini.2019.2022.GR1.001 Promover el seguimiento y mejora continua de las acciones que se realizan para fortalecer las relaciones con los grupos de valor en las entidades del Sector Hacienda.","UGPP","UGPP>PAA 2022>  Relacionamiento con el ciudadano","Ana María Cadena","Participar en el ejercicio de innovación abierta denominado OPEN HACIENDA para la formulación de la planeación estratégica  entre otras acciones que requieran de la participación de los grupos de valor.","Participar en el ejercicio de innovación abierta denominado OPEN HACIENDA (suministro y análisis de información).","N/A","Germán Vega Rodríguez","N/A",null,"Dirección de Servicios Integrados de Atención","N/A","-","-","-","-","-","-","2022-01-01","2022-12-31","Necesidades del SH","N/A","Gestión con Valores para el Resultado","Transparencia -Participación Ciudadana - Racionalización de Trámites - Servicio al Ciudadano"]
[null,null,"GESTIÓN PARA EL RESULTADO","GR1. Fortalecer las relaciones de las entidades del Sector Hacienda con sus grupos de valor ","SH.Ini.2019.2022.GR1.001 Promover el seguimiento y mejora continua de las acciones que se realizan para fortalecer las relaciones con los grupos de valor en las entidades del Sector Hacienda.","UIAF","UIAF>PAA 2022>  Relacionamiento con el ciudadano","Nilgen Vargas Garcés","Participar en el ejercicio de innovación abierta denominado OPEN HACIENDA para la formulación de la planeación estratégica  entre otras acciones que requieran de la participación de los grupos de valor.","Participar en el ejercicio de innovación abierta denominado OPEN HACIENDA (suministro y análisis de información).","N/A","Carlos Julio Buitrago Ortiz","Laura Alejandra Centeno Pérez",null,"Subdirección Administrativa y Financiera","N/A","-","-","-","-","-","-","2022-01-01","2022-12-31","Necesidades del SH","N/A","Gestión con Valores para el Resultado","Transparencia -Participación Ciudadana - Racionalización de Trámites - Servicio al Ciudadano"]
[null,null,"GESTIÓN PARA EL RESULTADO","GR1. Fortalecer las relaciones de las entidades del Sector Hacienda con sus grupos de valor ","SH.Ini.2019.2022.GR1.001 Promover el seguimiento y mejora continua de las acciones que se realizan para fortalecer las relaciones con los grupos de valor en las entidades del Sector Hacienda.","URF","URF>PAA 2022> Relacionamiento con el ciudadano","Ivonnie Edith Gallardo ","Participar en el ejercicio de innovación abierta denominado OPEN HACIENDA para la formulación de la planeación estratégica  entre otras acciones que requieran de la participación de los grupos de valor.","Participar en el ejercicio de innovación abierta denominado OPEN HACIENDA (suministro y análisis de información).","N/A","Carolina Rojas Díaz","N/A",null,"Subdirección Jurídica y de Gestión Institucional ","N/A","-","-","-","-","-","-","2022-01-01","2022-12-31","Necesidades del SH","N/A","Gestión con Valores para el Resultado","Transparencia -Participación Ciudadana - Racionalización de Trámites - Servicio al Ciudadano"]
[null,null,"GESTIÓN PARA EL RESULTADO","GR1. Fortalecer las relaciones de las entidades del Sector Hacienda con sus grupos de valor ","SH.Ini.2019.2022.GR1.001 Promover el seguimiento y mejora continua de las acciones que se realizan para fortalecer las relaciones con los grupos de valor en las entidades del Sector Hacienda.","MHCP","MHCP>PAA 2022> Relacionamiento con el ciudadano","María del Pilar Florido Caicedo","Coordinar una capacitación con el DAFP para la conformación de los nodos regionales a nivel sectorial.","Se solicitará un espacio con la Función Pública para continuar con el ejercicio de identificación de acciones para la articulación de nodos de rendición de cuentas.","N/A","Catherine Cifuentes","Carlos Gil\nJosé Peña\nOlga Ximena ",null,"Oficina Asesora de Planeación","N/A","-","-","-","-","-","-","2022-01-01","2022-05-31","Necesidades del SH","N/A","Gestión con Valores para el Resultado","Participación Ciudadana en la Gestión Pública"]
[null,null,"GESTIÓN PARA EL RESULTADO","GR2.Fortalecer la Gestión TIC y de la Información en las Entidades del Sector Hacienda","SH.Ini.2019.2022.GR2.001 Fortalecer la  Gestión Documental en las entidades del SH","MHCP","MHCP>PAA 2022>Gestión Documental","Carlos Andrés Gil Santamaría","Coordinar las mesas sectoriales de la política de gestión documental","Coordinar las mesas sectoriales de la política de gestión documental",null,"Carlos Andres Gil Santamaria","N/A",null,"Subdirección de Servicios y Relacionamiento con el Ciudadano","N/A","-","-","-","-","2021-01-01","2021-12-31","2022-01-01","31/122022","Necesidades del SH","N/A","Información y Comunicación ","Gestión Documental"]
[null,null,"GESTIÓN PARA EL RESULTADO","GR2.Fortalecer la Gestión TIC y de la Información en las Entidades del Sector Hacienda","SH.Ini.2019.2022.GR2.001 Fortalecer la  Gestión Documental en las entidades del SH","BANCO AGRARIO","BANCO AGRARIO> PAA 2022>Gestión Documental","Sandra Patricia Villabona","Participar en las mesas sectoriales de la política de gestión documental","Participar en las mesas sectoriales de la política de gestión documental","Verificar el alcance de la tarea para 2022, validar con el líder - Carlos Gil","María Luisa Escorcia Bustamante","N/A",null,"Vicepresidencia Administrativa","N/A","-","-","-","-","2021-01-01","2021-12-31","2022-01-01","31/122022","Necesidades del SH","N/A","Información y Comunicación ","Gestión Documental"]
[null,null,"GESTIÓN PARA EL RESULTADO","GR2.Fortalecer la Gestión TIC y de la Información en las Entidades del Sector Hacienda","SH.Ini.2019.2022.GR2.001 Fortalecer la  Gestión Documental en las entidades del SH","BANCOLDEX","BANCOLDEX> PAA 2022>Gestión Documental","María José Naranjo","Participar en las mesas sectoriales de la política de gestión documental","Participar en las mesas sectoriales de la política de gestión documental, coordinadas por el MHCP.\n\nEntregable. Registros de asistencia",null,"Diana Carolina Blanco","N/A",null,"Departamento de Operaciones\nOficina Gestión Documental","N/A","-","-","-","-","2021-01-01","2021-12-31","2022-01-01","31/122022","Necesidades del SH","N/A","Información y Comunicación ","Gestión Documental"]
[null,null,"GESTIÓN PARA EL RESULTADO","GR2.Fortalecer la Gestión TIC y de la Información en las Entidades del Sector Hacienda","SH.Ini.2019.2022.GR2.001 Fortalecer la  Gestión Documental en las entidades del SH","CISA","CISA> PAA 2022>Gestión Documental","Juan Felipe Robles","Participar en las mesas sectoriales de la política de gestión documental","Participar en las mesas sectoriales de la política de gestión documental, coordinadas por el MHCP.\n\nEntregable. Registros de asistencia",null,"Sandra Viviana Neira ","N.A",null,"Gerencia de Recursos","N/A","-","-","-","-","2021-01-01","2021-12-31","2022-01-01","31/122022","Necesidades del SH","N/A","Información y Comunicación ","Gestión Documental"]
[null,null,"GESTIÓN PARA EL RESULTADO","GR2.Fortalecer la Gestión TIC y de la Información en las Entidades del Sector Hacienda","SH.Ini.2019.2022.GR2.001 Fortalecer la  Gestión Documental en las entidades del SH","COLJUEGOS","COLJUEGOS> PAA 2022>Gestión Documental","Roger José Carrillo Campo ","Participar en las mesas sectoriales de la política de gestión documental","Participar en las mesas sectoriales de la política de gestión documental, coordinadas por el MHCP.\n\nEntregable. Registros de asistencia",null,"Alexandra Torres González","Juan Felipe Mahecha Córdoba",null,"Oficina Asesora de Planeación","N/A","-","-","-","-","2021-01-01","2021-12-31","2022-01-01","31/122022","Necesidades del SH","N/A","Información y Comunicación ","Gestión Documental"]
[null,null,"GESTIÓN PARA EL RESULTADO","GR2.Fortalecer la Gestión TIC y de la Información en las Entidades del Sector Hacienda","SH.Ini.2019.2022.GR2.001 Fortalecer la  Gestión Documental en las entidades del SH","CGN","CGN> PAA 2022>Gestión Documental","Henry Ramírez Montes ","Participar en las mesas sectoriales de la política de gestión documental","Participar en las mesas sectoriales de la política de gestión documental, coordinadas por el MHCP.\n\nEntregable. Registros de asistencia",null,"Wilson Eduardo Cifuentes","Martín Durán Céspedes",null,"GIT de Servicios Generales, Administrativos y Financieros","N/A","-","-","-","-","2021-01-01","2021-12-31","2022-01-01","31/122022","Necesidades del SH","N/A","Información y Comunicación ","Gestión Documental"]
[null,null,"GESTIÓN PARA EL RESULTADO","GR2.Fortalecer la Gestión TIC y de la Información en las Entidades del Sector Hacienda","SH.Ini.2019.2022.GR2.001 Fortalecer la  Gestión Documental en las entidades del SH","DIAN","DIAN> PAA 2022>Gestión Documental","Catalina Garcia Cure","Participar en las mesas sectoriales de la política de gestión documental","Participar en las mesas sectoriales de la política de gestión documental, coordinadas por el MHCP.\n\nEntregable. Registros de asistencia",null,"Constanza Del Pilar Rodríguez Páez","Camilo Octavio Contreras Bravo",null,"Subdirección de Gestión de Recursos Físicos","N/A","-","-","-","-","2021-01-01","2021-12-31","2022-01-01","31/122022","Necesidades del SH","N/A","Información y Comunicación ","Gestión Documental"]
[null,null,"GESTIÓN PARA EL RESULTADO","GR2.Fortalecer la Gestión TIC y de la Información en las Entidades del Sector Hacienda","SH.Ini.2019.2022.GR2.001 Fortalecer la  Gestión Documental en las entidades del SH","ENTERRITORIO","ENTERRITORIO> PAA 2022>Gestión Documental","Carlos Eduardo Umaña Lizarazo","Participar en las mesas sectoriales de la política de gestión documental","Participar en las mesas sectoriales de la política de gestión documental, coordinadas por el MHCP.\n\nEntregable. Registros de asistencia",null,"Marta Liced Rodriguez Quimbayo","Anny Álvarez Mendoza",null,"Grupo de Planeación y Gestión de Riesgos","N/A","-","-","-","-","2021-01-01","2021-12-31","2022-01-01","31/122022","Necesidades del SH","N/A","Información y Comunicación ","Gestión Documental"]
[null,null,"GESTIÓN PARA EL RESULTADO","GR2.Fortalecer la Gestión TIC y de la Información en las Entidades del Sector Hacienda","SH.Ini.2019.2022.GR2.001 Fortalecer la  Gestión Documental en las entidades del SH","FDN","FDN> PAA 2022>Gestión Documental","Carolina Hernández","Participar en las mesas sectoriales de la política de gestión documental","Participar en las mesas sectoriales de la política de gestión documental, coordinadas por el MHCP.\n\nEntregable. Registros de asistencia",null,"Maria Alejandra Rueda","N/A",null,"Archivo","N/A","-","-","-","-","2021-01-01","2021-12-31","2022-01-01","31/122022","Necesidades del SH","N/A","Información y Comunicación ","Gestión Documental"]
[null,null,"GESTIÓN PARA EL RESULTADO","GR2.Fortalecer la Gestión TIC y de la Información en las Entidades del Sector Hacienda","SH.Ini.2019.2022.GR2.001 Fortalecer la  Gestión Documental en las entidades del SH","FIDUAGRARIA","FIDUAGRARIA> PAA 2022>Gestión Documental","Luz Marina Fernández Bello ","Participar en las mesas sectoriales de la política de gestión documental","Participar en las mesas sectoriales de la política de gestión documental, coordinadas por el MHCP.\n\nEntregable. Registros de asistencia",null,"Adriana Marcela Fuente Estrada","Emile Yesid González Vargas \nAdriana Castillo Aunta ",null,"Jefatura Administrativa","N/A","-","-","-","-","2021-01-01","2021-12-31","2022-01-01","31/122022","Necesidades del SH","N/A","Información y Comunicación ","Gestión Documental"]
[null,null,"GESTIÓN PARA EL RESULTADO","GR2.Fortalecer la Gestión TIC y de la Información en las Entidades del Sector Hacienda","SH.Ini.2019.2022.GR2.001 Fortalecer la  Gestión Documental en las entidades del SH","FIDUCOLDEX","FIDUCOLDEX> PAA 2022>Gestión Documental","Andrés Barco","Participar en las mesas sectoriales de la política de gestión documental","Participar en las mesas sectoriales de la política de gestión documental, coordinadas por el MHCP.\n\nEntregable. Registros de asistencia",null,"Angelly Coy","N/A",null,"Gerencia de Operaciones","N/A","-","-","-","-","2021-01-01","2021-12-31","2022-01-01","31/122022","Necesidades del SH","N/A","Información y Comunicación ","Gestión Documental"]
[null,null,"GESTIÓN PARA EL RESULTADO","GR2.Fortalecer la Gestión TIC y de la Información en las Entidades del Sector Hacienda","SH.Ini.2019.2022.GR2.001 Fortalecer la  Gestión Documental en las entidades del SH","FIDUPREVISORA","FIDUPREVISORA> PAA 2022>Gestión Documental","Magda Nancy Manosalva Cely","Participar en las mesas sectoriales de la política de gestión documental","Participar en las mesas sectoriales de la política de gestión documental, coordinadas por el MHCP.\n\nEntregable. Registros de asistencia",null,"Karen Pardo","Ángela María Forero",null,"Vicepresidencia de Desarrollo y Soporte Organizacional - Dirección de Gestión Documental","N/A","-","-","-","-","2021-01-01","2021-12-31","2022-01-01","31/122022","Necesidades del SH","N/A","Información y Comunicación ","Gestión Documental"]
[null,null,"GESTIÓN PARA EL RESULTADO","GR2.Fortalecer la Gestión TIC y de la Información en las Entidades del Sector Hacienda","SH.Ini.2019.2022.GR2.001 Fortalecer la  Gestión Documental en las entidades del SH","FINAGRO","FINAGRO> PAA 2022>Gestión Documental","Juan Carlos Restrepo González","Participar en las mesas sectoriales de la política de gestión documental","Participar en las mesas sectoriales de la política de gestión documental, coordinadas por el MHCP.\n\nEntregable. Registros de asistencia",null,"Patricia Vargas Cubillos","María Helena Reyes Donadlo ",null,"Gestión Documental","N/A","-","-","-","-","2021-01-01","2021-12-31","2022-01-01","31/122022","Necesidades del SH","N/A","Información y Comunicación ","Gestión Documental"]
[null,null,"GESTIÓN PARA EL RESULTADO","GR2.Fortalecer la Gestión TIC y de la Información en las Entidades del Sector Hacienda","SH.Ini.2019.2022.GR2.001 Fortalecer la  Gestión Documental en las entidades del SH","FINDETER","FINDETER> PAA 2022>Gestión Documental","Laura Mercedes Peña Rodríguez","Participar en las mesas sectoriales de la política de gestión documental","Participar en las mesas sectoriales de la política de gestión documental, coordinadas por el MHCP.\n\nEntregable. Registros de asistencia",null,"Jorge Luis Giraldo ","N/A",null,"Jefatura de Servicios Generales","N/A","-","-","-","-","2021-01-01","2021-12-31","2022-01-01","31/122022","Necesidades del SH","N/A","Información y Comunicación ","Gestión Documental"]
[null,null,"GESTIÓN PARA EL RESULTADO","GR2.Fortalecer la Gestión TIC y de la Información en las Entidades del Sector Hacienda","SH.Ini.2019.2022.GR2.001 Fortalecer la  Gestión Documental en las entidades del SH","FOGACOOP","FOGACOOP> PAA 2022>Gestión Documental","Adriana Mcallister Braidy","Participar en las mesas sectoriales de la política de gestión documental","Participar en las mesas sectoriales de la política de gestión documental, coordinadas por el MHCP.\n\nEntregable. Registros de asistencia",null,"Elkin Raúl Ruiz López","Zulma Liliana López Zuluaga",null,"Coordinación Administrativa ","N/A","-","-","-","-","2021-01-01","2021-12-31","2022-01-01","31/122022","Necesidades del SH","N/A","Información y Comunicación ","Gestión Documental"]
[null,null,"GESTIÓN PARA EL RESULTADO","GR2.Fortalecer la Gestión TIC y de la Información en las Entidades del Sector Hacienda","SH.Ini.2019.2022.GR2.001 Fortalecer la  Gestión Documental en las entidades del SH","FOGAFIN","FOGAFIN> PAA 2022>Gestión Documental","Carlos Alberto Sánchez del Valle","Participar en las mesas sectoriales de la política de gestión documental","Participar en las mesas sectoriales de la política de gestión documental, coordinadas por el MHCP.\n\nEntregable. Registros de asistencia",null,"Carlos Alberto Sánchez del Valle","N/A",null,"Departamento de Gestión de Contenidos","N/A","-","-","-","-","2021-01-01","2021-12-31","2022-01-01","31/122022","Necesidades del SH","N/A","Información y Comunicación ","Gestión Documental"]
[null,null,"GESTIÓN PARA EL RESULTADO","GR2.Fortalecer la Gestión TIC y de la Información en las Entidades del Sector Hacienda","SH.Ini.2019.2022.GR2.001 Fortalecer la  Gestión Documental en las entidades del SH","FONDO ADAPTACIÓN","FONDO ADAPTACIÓN> PAA 2022>Gestión Documental","Alejandro Venegas ","Participar en las mesas sectoriales de la política de gestión documental","Participar en las mesas sectoriales de la política de gestión documental, coordinadas por el MHCP.\n\nEntregable. Registros de asistencia",null,"Catalina Soto Velasco","Mónica Flórez \nEduardo Orjuela \nJeimmy Andrea Castro",null,"Gestión Documental","N/A","-","-","-","-","2021-01-01","2021-12-31","2022-01-01","31/122022","Necesidades del SH","N/A","Información y Comunicación ","Gestión Documental"]
[null,null,"GESTIÓN PARA EL RESULTADO","GR2.Fortalecer la Gestión TIC y de la Información en las Entidades del Sector Hacienda","SH.Ini.2019.2022.GR2.001 Fortalecer la  Gestión Documental en las entidades del SH","FONDO NACIONAL DEL AHORRO","FONDO NACIONAL DEL AHORRO> PAA 2022>Gestión Documental","Kennicher Arias Roa","Participar en las mesas sectoriales de la política de gestión documental","Participar en las mesas sectoriales de la política de gestión documental, coordinadas por el MHCP.\n\nEntregable. Registros de asistencia",null,"Liliana García","Liliana García Velásquez ",null,"División Administrativa ","N/A","-","-","-","-","2021-01-01","2021-12-31","2022-01-01","31/122022","Necesidades del SH","N/A","Información y Comunicación ","Gestión Documental"]
[null,null,"GESTIÓN PARA EL RESULTADO","GR2.Fortalecer la Gestión TIC y de la Información en las Entidades del Sector Hacienda","SH.Ini.2019.2022.GR2.001 Fortalecer la  Gestión Documental en las entidades del SH","FONDO NACIONAL DE GARANTIAS","FONDO NACIONAL DE GARANTIAS> PAA 2022>Gestión Documental","Maria Angelica Burbano Sánchez","Participar en las mesas sectoriales de la política de gestión documental","Participar en las mesas sectoriales de la política de gestión documental, coordinadas por el MHCP.\n\nEntregable. Registros de asistencia",null,"Carolina Botero\n\n","Andrés Estrada Cardona ",null,"Dirección de Servicio al Cliente","N/A","-","-","-","-","2021-01-01","2021-12-31","2022-01-01","31/122022","Necesidades del SH","N/A","Información y Comunicación ","Gestión Documental"]
[null,null,"GESTIÓN PARA EL RESULTADO","GR2.Fortalecer la Gestión TIC y de la Información en las Entidades del Sector Hacienda","SH.Ini.2019.2022.GR2.001 Fortalecer la  Gestión Documental en las entidades del SH","GRUPO BICENTENARIO","GRUPO BICENTENARIO> PAA 2022>Gestión Documental","Oscar Laureano Rosero Jiménez","Participar en las mesas sectoriales de la política de gestión documental","Participar en las mesas sectoriales de la política de gestión documental, coordinadas por el MHCP.\n\nEntregable. Registros de asistencia",null,"Gloria Cristina Orozco Gil","Laura Rojas ",null,"Área Estrategia","N/A","-","-","-","-","2021-01-01","2021-12-31","2022-01-01","31/122022","Necesidades del SH","N/A","Información y Comunicación ","Gestión Documental"]
[null,null,"GESTIÓN PARA EL RESULTADO","GR2.Fortalecer la Gestión TIC y de la Información en las Entidades del Sector Hacienda","SH.Ini.2019.2022.GR2.001 Fortalecer la  Gestión Documental en las entidades del SH","ICETEX","ICETEX> PAA 2022>Gestión Documental","Beatriz Helena Torres Lizarazo\n","Participar en las mesas sectoriales de la política de gestión documental","Participar en las mesas sectoriales de la política de gestión documental, coordinadas por el MHCP.\n\nEntregable. Registros de asistencia",null,"Gerardo Alonso Rodríguez Pineda \n\n","Rosa María González Carvajal \nJohana Niño Acosta \nElisabeth Rojas Medina \n",null,"Grupo de Gestión documental de la Secretaria General ICETEX","N/A","-","-","-","-","2021-01-01","2021-12-31","2022-01-01","31/122022","Necesidades del SH","N/A","Información y Comunicación ","Gestión Documental"]
[null,null,"GESTIÓN PARA EL RESULTADO","GR2.Fortalecer la Gestión TIC y de la Información en las Entidades del Sector Hacienda","SH.Ini.2019.2022.GR2.001 Fortalecer la  Gestión Documental en las entidades del SH","ITRC","ITRC> PAA 2022>Gestión Documental","Nohora Beltrán Céspedes","Participar en las mesas sectoriales de la política de gestión documental","Participar en las mesas sectoriales de la política de gestión documental, coordinadas por el MHCP.\n\nEntregable. Registros de asistencia",null,"Carlos Alirio González Reyes\n","Christian Andrés Garrido Gualtero",null,"Secretaría General","N/A","-","-","-","-","2021-01-01","2021-12-31","2022-01-01","31/122022","Necesidades del SH","N/A","Información y Comunicación ","Gestión Documental"]
[null,null,"GESTIÓN PARA EL RESULTADO","GR2.Fortalecer la Gestión TIC y de la Información en las Entidades del Sector Hacienda","SH.Ini.2019.2022.GR2.001 Fortalecer la  Gestión Documental en las entidades del SH","POSITIVA","POSITIVA> PAA 2022>Gestión Documental","Carlos Augusto Mesa Diaz","Participar en las mesas sectoriales de la política de gestión documental","Participar en las mesas sectoriales de la política de gestión documental, coordinadas por el MHCP.\n\nEntregable. Registros de asistencia",null,"Oscar Saul Guerrero Bohórquez ","Oscar Saul Guerrero Bohórquez ",null,"Gerencia de Logística","N/A","-","-","-","-","2021-01-01","2021-12-31","2022-01-01","31/122022","Necesidades del SH","N/A","Información y Comunicación ","Gestión Documental"]
[null,null,"GESTIÓN PARA EL RESULTADO","GR2.Fortalecer la Gestión TIC y de la Información en las Entidades del Sector Hacienda","SH.Ini.2019.2022.GR2.001 Fortalecer la  Gestión Documental en las entidades del SH","PREVISORA","PREVISORA> PAA 2022>Gestión Documental","José Fernando Pulido Sierra","Participar en las mesas sectoriales de la política de gestión documental","Participar en las mesas sectoriales de la política de gestión documental, coordinadas por el MHCP.\n\nEntregable. Registros de asistencia",null,"Jonh Hermith Ramírez","N/A",null,"Subgerencia de Recursos Físicos","N/A","-","-","-","-","2021-01-01","2021-12-31","2022-01-01","31/122022","Necesidades del SH","N/A","Información y Comunicación ","Gestión Documental"]
[null,null,"GESTIÓN PARA EL RESULTADO","GR2.Fortalecer la Gestión TIC y de la Información en las Entidades del Sector Hacienda","SH.Ini.2019.2022.GR2.001 Fortalecer la  Gestión Documental en las entidades del SH","SAE","SAE> PAA 2022>Gestión Documental","Jaime Leon Gómez Salazar","Participar en las mesas sectoriales de la política de gestión documental","Participar en las mesas sectoriales de la política de gestión documental, coordinadas por el MHCP.\n\nEntregable. Registros de asistencia",null,"Luz Marina Castillo Muñoz ","N/A",null,"GIT de Archivo y Correspondencia","N/A","-","-","-","-","2021-01-01","2021-12-31","2022-01-01","31/122022","Necesidades del SH","N/A","Información y Comunicación ","Gestión Documental"]
[null,null,"GESTIÓN PARA EL RESULTADO","GR2.Fortalecer la Gestión TIC y de la Información en las Entidades del Sector Hacienda","SH.Ini.2019.2022.GR2.001 Fortalecer la  Gestión Documental en las entidades del SH","SUPERFINANCIERA","SUPERFINANCIERA> PAA 2022>Gestión Documental","José Gabriel Sánchez Sousa","Participar en las mesas sectoriales de la política de gestión documental","Participar en las mesas sectoriales de la política de gestión documental, coordinadas por el MHCP.\n\nEntregable. Registros de asistencia",null,"Sergio Esteban Varela Guzman","Patricia Celis Rico",null,"Grupo de Gestión Documental y Bibliográfica","N/A","-","-","-","-","2021-01-01","2021-12-31","2022-01-01","31/122022","Necesidades del SH","N/A","Información y Comunicación ","Gestión Documental"]
[null,null,"GESTIÓN PARA EL RESULTADO","GR2.Fortalecer la Gestión TIC y de la Información en las Entidades del Sector Hacienda","SH.Ini.2019.2022.GR2.001 Fortalecer la  Gestión Documental en las entidades del SH","SUPERSOLIDARIA","SUPERSOLIDARIA> PAA 2022>Gestión Documental","Robín Andrey Suarez Toscano","Participar en las mesas sectoriales de la política de gestión documental","Participar en las mesas sectoriales de la política de gestión documental, coordinadas por el MHCP.\n\nEntregable. Registros de asistencia",null,"Felipe Mancera Rojas ","N/A",null,"Oficina Asesora de Planeación y Sistemas ","N/A","-","-","-","-","2021-01-01","2021-12-31","2022-01-01","31/122022","Necesidades del SH","N/A","Información y Comunicación ","Gestión Documental"]
[null,null,"GESTIÓN PARA EL RESULTADO","GR2.Fortalecer la Gestión TIC y de la Información en las Entidades del Sector Hacienda","SH.Ini.2019.2022.GR2.001 Fortalecer la  Gestión Documental en las entidades del SH","UGPP","UGPP> PAA 2022>Gestión Documental","Ana María Cadena","Participar en las mesas sectoriales de la política de gestión documental","Participar en las mesas sectoriales de la política de gestión documental, coordinadas por el MHCP.\n\nEntregable. Registros de asistencia",null,"Germán Vega Rodríguez","N/A",null,"Subdirección de Gestión Documental","N/A","-","-","-","-","2021-01-01","2021-12-31","2022-01-01","31/122022","Necesidades del SH","N/A","Información y Comunicación ","Gestión Documental"]
[null,null,"GESTIÓN PARA EL RESULTADO","GR2.Fortalecer la Gestión TIC y de la Información en las Entidades del Sector Hacienda","SH.Ini.2019.2022.GR2.001 Fortalecer la  Gestión Documental en las entidades del SH","UIAF","UIAF> PAA 2022>Gestión Documental","Nilgen Vargas Garcés","Participar en las mesas sectoriales de la política de gestión documental","Participar en las mesas sectoriales de la política de gestión documental, coordinadas por el MHCP.\n\nEntregable. Registros de asistencia",null,"Carlos Julio Buitrago Ortiz","Sandra Milena Fuentes Latorre",null,"Subdirección Administrativa y Financiera - Gestión Documental","N/A","-","-","-","-","2021-01-01","2021-12-31","2022-01-01","31/122022","Necesidades del SH","N/A","Información y Comunicación ","Gestión Documental"]
[null,null,"GESTIÓN PARA EL RESULTADO","GR2.Fortalecer la Gestión TIC y de la Información en las Entidades del Sector Hacienda","SH.Ini.2019.2022.GR2.001 Fortalecer la  Gestión Documental en las entidades del SH","URF","URF> PAA 2022>Gestión Documental","Ivonnie Edith Gallardo ","Participar en las mesas sectoriales de la política de gestión documental","Participar en las mesas sectoriales de la política de gestión documental, coordinadas por el MHCP.\n\nEntregable. Registros de asistencia",null,"Carolina Rojas Díaz","N/A",null,"Subdirección Jurídica y de Gestión Institucional ","N/A","-","-","-","-","2021-01-01","2021-12-31","2022-01-01","31/122022","Necesidades del SH","N/A","Información y Comunicación ","Gestión Documental"]
[null,null,"GESTIÓN PARA EL RESULTADO","GR2. Fortalecer la Gestión TIC y de la Información en las entidades del Sector Hacienda","SH.Ini.2019.2022.GR2.002 Fortalecer el Gobierno Digital en las entidades del SH","MHCP","MHCP > PAA 2022 > Gobierno Digital","Ricardo Fernelix Rios","Solicitar apoyo del MinTIC para recibir orientación frente a las competencias digitales requeridas por los colaboradores de las entidades del Sector Hacienda","Con el fin de fortalecer las competencias digitales de los funcionarios que integran las entidades del Sector Hacienda, se solicitará apoyo al MinTIC para orientación.","N/A","Fredy Alexander Ramirez","N/A",null,"Dirección de Tecnología","N/A","-","-","-","-","-","-","2022-01-01","2022-12-31","Open Hacienda","N/A","Gestión con valores para el resultado (Ventanilla hacia adentro)","Gobierno Digital"]
[null,null,"GESTIÓN PARA EL RESULTADO","GR2. Fortalecer la Gestión TIC y de la Información en las entidades del Sector Hacienda","SH.Ini.2019.2022.GR2.002 Fortalecer el Gobierno Digital en las entidades del SH","MHCP","MHCP > PAA 2022 > Gobierno Digital","Ricardo Fernelix Rios","Planear la implementación de las iniciativas en el PETI Sectorial","De acuerdo al documento de PETI, adelantar las acciones priorizadas para la vigencia del 2022","En desarrollo\nValidar con Freddy cuál es el alcance de esta tarea para 2022","Fredy Alexander Ramirez","N/A",null,"Dirección de Tecnología","N/A","-","-","-","-","-","-","2022-01-01","2022-12-31","Necesidades del SH","N/A","Gestión con valores para el resultado (Ventanilla hacia adentro)","Gobierno Digital"]
[null,null,"GESTIÓN PARA EL RESULTADO","GR3. Fortalecer la gestión organizacional y por procesos de las entidades del Sector Hacienda","SH.Ini.2019.2022GR3.001 Desarrollar acciones encaminadas a fortalecer la gestión organizacional y por procesos de la entidades del Sector Hacienda","GRUPO BICENTENARIO","GRUPO BICENTENARIO>PAA 2022>Fortalecimiento de procesos","Oscar Laureano Rosero Jiménez","Implementar el Modelo Operacional Basado en Procesos","Caracterización de procesos y elaboración de procedimientos, manuales, formatos, instructivos, etc.","Nueva","Gloria Cristina Orozco Gil","Oscar Laureano Rosero Jiménez \nPablo Cabarcas.",null,"Área Estrategia","Área Estrategia","-","-","-","-","2021-01-01","2021-12-31","2022-01-01","2022-12-31","Necesidades del SH","XV. Pacto por una gestión pública efectiva ","Gestión con valores para el resultado (Ventanilla hacia adentro)","Fortalecimiento Organizacional y Simplificación de Procesos "]
[null,null,"GESTIÓN PARA EL RESULTADO","GR3. Fortalecer la gestión organizacional y por procesos de las entidades del Sector Hacienda","SH.Ini.2019.2022GR3.001 Desarrollar acciones encaminadas a fortalecer la gestión organizacional y por procesos de la entidades del Sector Hacienda","MHCP","MHCP>PAA 2022>Fortalecimiento de procesos","María del Pilar Florido Caicedo","Solicitar orientación al DAFP para consolidar el modelo de operación por procesos - MOP del Sector Hacienda ","Se realizará la indagación con el Departamento Administrativo de la Función Pública, para continuar con el análisis de estructura del MOP  y recibir la orientación correspondiente.","N/A","Giovanny Montenegro","Catherine Cifuentes",null,"Oficina Asesora de Planeación","Todas las entidades","-","-","-","-","-","-","2022-01-01","2022-04-30","Necesidades del SH","N/A","Gestión con valores para el resultado (Ventanilla hacia adentro)","Fortalecimiento Organizacional y Simplificación de Procesos "]
[null,null,"GESTIÓN PARA EL RESULTADO","GR3. Fortalecer la gestión organizacional y por procesos de las entidades del Sector Hacienda","SH.Ini.2019.2022GR3.001 Desarrollar acciones encaminadas a fortalecer la gestión organizacional y por procesos de la entidades del Sector Hacienda","MHCP","MHCP>PAA 2022>Fortalecimiento de procesos","María del Pilar Florido Caicedo","Estructurar el proyecto de modelo de operación por procesos del Sector Hacienda ","De acuerdo con el diagnóstico realizado, se continuará realizando el análisis y estructura del proyecto del modelo de procesos del Sector Hacienda, que incluya:\n\nCadena de valor, Caracterización de los procesos, Matriz de grupos de valor, productos y servicios, entre otros.\n","N/A","Giovanny Montenegro","Catherine Cifuentes",null,"Oficina Asesora de Planeación","Todas las entidades","-","-","-","-","-","-","2022-05-01","2022-12-31","Necesidades del SH","N/A","Gestión con valores para el resultado (Ventanilla hacia adentro)","Fortalecimiento Organizacional y Simplificación de Procesos "]
[null,null,"GESTIÓN PARA EL RESULTADO","GR3. Fortalecer la gestión organizacional y por procesos de las entidades del Sector Hacienda","SH.Ini.2019.2022GR3.001 Desarrollar acciones encaminadas a fortalecer la gestión organizacional y por procesos de la entidades del Sector Hacienda","MHCP","MHCP>PAA 2022> Seguimiento y evaluación del desempeño","María del Pilar Florido Caicedo","Desarrollar la estrategia de seguimiento y acompañamiento a las entidades del Sector Hacienda - Mesas de Soporte","Generar una estrategia para los niveles de atención al servicio de las entidades del Sector Hacienda, así como, realizar las mesas de soporte que apoyen el uso del SMGI y aplicación de lineamientos de las políticas MIPG","N/A","Sindy Tovar","Jose Tiberio Peña\nCatherine Cifuentes\nGiovanny Montenegro",null,"Oficina Asesora de Planeación","Todas las entidades","-","-","-","-","-","-","2022-01-01","2022-12-31","Necesidades del SH","N/A","Direccionamiento Estratégico\ny Evaluación de Resultados","Planeación Institucional y Seguimiento  y Evaluación del Desempeño Institucional"]
[null,null,"GESTIÓN PARA EL RESULTADO","GR3. Fortalecer la gestión organizacional y por procesos de las entidades del Sector Hacienda","SH.Ini.2019.2022GR3.001 Desarrollar acciones encaminadas a fortalecer la gestión organizacional y por procesos de la entidades del Sector Hacienda","MHCP","MHCP>PAA 2022> Seguimiento y evaluación del desempeño","María del Pilar Florido Caicedo","Realizar la segunda versión del Tour Hacienda","Realizar la segunda versión del Tour Hacienda con el fin de fortalecer los conocimientos en el uso y aprovechamiento del sistema SMGI.\n\nFase 1: Planeación.\nFase 2: Alistamiento.\nFase 3: Ejecución.\nFase 4: Retroalimentación ","N/A","Sindy Tovar","Catherine Cifuentes",null,"Oficina Asesora de Planeación","Todas las entidades","-","-","-","-","-","-","2022-06-01","2022-10-31","Necesidades del SH","N/A","Direccionamiento Estratégico\ny Evaluación de Resultados","Planeación Institucional y Seguimiento  y Evaluación del Desempeño Institucional"]
[null,null,"GESTIÓN PARA EL RESULTADO","GR3. Fortalecer la gestión organizacional y por procesos de las entidades del Sector Hacienda","SH.Ini.2019.2022GR3.001 Desarrollar acciones encaminadas a fortalecer la gestión organizacional y por procesos de la entidades del Sector Hacienda","MHCP","MHCP>PAA 2022> Seguimiento y evaluación del desempeño","Álvaro Mauricio Cortés Castro","Fortalecer la política de control interno en las sesiones del comité sectorial de auditoria.","Desde la secretaria técnica proponer a los miembros del  comité Sectorial la ejecución de actividades que contribuyan al  fortalecimiento  de la Política de Control Interno y al cumplimiento de las demás funciones asignadas a esta instancia. Evidencia ejecución de la actividad : Acta del Comité sectorial ","N/A","Lizeth Paola Amaya Ruiz","N/A",null,"Oficina de Control Interno","Todas las entidades","-","-","-","-","-","-","2022-01-01","2022-10-31","Cierre de brechas FURAG","N/A","Control Interno ","Control Interno"]
[null,null,"GESTIÓN PARA EL RESULTADO  ","GR1. Fortalecer las relaciones de las entidades del Sector Hacienda con sus grupos de valor ","SH.Ini.2019.2022.GR1.002 Contribuir a la obtención de niveles de excelencia en el ejercicio de la función disciplinaria","MHCP","MHCP>PAA 2022> Transparencia, acceso a la información y lucha contra la corrupción","Claudia Patricia Paz Lamir","Programar las sesiones del Colectivo Disciplinario del Sector Hacienda","Programar las cinco (5) sesiones del Colectivo Sectorial de Control Disciplinario Interno .\nLas entidades participantes tendrán una variable en el indicador, en donde deben reportar el cumplimiento de esta actividad.","Finalizada","Leidy Viviana Vanegas López","N/A",null,"Oficina de Control Disciplinario","N/A","-","-","-","-","-","-","2022-01-01","2022-12-31","Necesidades del SH","N/A","Información y Comunicación ","Transparencia, Acceso a la Información Pública y Lucha Contra la Corrupción"]
[null,null,"GESTIÓN PARA EL RESULTADO  ","GR1. Fortalecer las relaciones de las entidades del Sector Hacienda con sus grupos de valor ","SH.Ini.2019.2022.GR1.002 Contribuir a la obtención de niveles de excelencia en el ejercicio de la función disciplinaria","MHCP","MHCP>PAA 2022> Transparencia, acceso a la información y lucha contra la corrupción","Claudia Patricia Paz Lamir",{"$f":"[3]DJR_1073!$F$308","v":"#ERROR!"},"Se coordinará todo lo relacionado para el evento de celebración del día de la transparencia.","Finalizada","Leidy Viviana Vanegas López","N/A",null,"Oficina de Control Disciplinario","Todas las entidades","-","-","-","-","-","-","2022-06-01","2022-12-31","Necesidades del SH","N/A","Información y Comunicación ","Transparencia, Acceso a la Información Pública y Lucha Contra la Corrupción"]
[null,null,"GESTIÓN PARA EL RESULTADO  ","GR1. Fortalecer las relaciones de las entidades del Sector Hacienda con sus grupos de valor ","SH.Ini.2019.2022.GR1.002 Contribuir a la obtención de niveles de excelencia en el ejercicio de la función disciplinaria","BANCO AGRARIO","BANCO AGRARIO>PAA 2022>Transparencia, acceso a la información y lucha contra la corrupción","Sandra Patricia Villabona","Participar en la celebración del día de la transparencia","De acuerdo con el cronograma establecido por el líder sectorial, se participará de la celebración del día de la transparencia","Tarea incluir en 2022, Validar con la OCDI","Adriana Jerley Camelo Jimenez","N/A",null,"Vicepresidencia de Riesgos","N/A","-","-","-","-","-","-","2022-06-01","2022-12-21","Necesidades del SH","N/A","Información y Comunicación ","Transparencia, Acceso a la Información Pública y Lucha Contra la Corrupción"]
[null,null,"GESTIÓN PARA EL RESULTADO  ","GR1. Fortalecer las relaciones de las entidades del Sector Hacienda con sus grupos de valor ","SH.Ini.2019.2022.GR1.002 Contribuir a la obtención de niveles de excelencia en el ejercicio de la función disciplinaria","BANCOLDEX","BANCOLDEX>PAA 2022>Transparencia, acceso a la información y lucha contra la corrupción","María José Naranjo","Participar en la celebración del día de la transparencia","De acuerdo con el cronograma establecido por el líder sectorial, se participará de la celebración del día de la transparencia",null,"Jackeline Acuña","N/A",null,"Departamento de Direccionamiento Estratégico\n","N/A","-","-","-","-","-","-","2022-06-01","2022-12-21","Necesidades del SH","N/A","Información y Comunicación ","Transparencia, Acceso a la Información Pública y Lucha Contra la Corrupción"]
[null,null,"GESTIÓN PARA EL RESULTADO  ","GR1. Fortalecer las relaciones de las entidades del Sector Hacienda con sus grupos de valor ","SH.Ini.2019.2022.GR1.002 Contribuir a la obtención de niveles de excelencia en el ejercicio de la función disciplinaria","CISA","CISA>PAA 2022>Transparencia, acceso a la información y lucha contra la corrupción","Juan Felipe Robles","Participar en la celebración del día de la transparencia","De acuerdo con el cronograma establecido por el líder sectorial, se participará de la celebración del día de la transparencia",null,"Sandra Viviana Neira ","N.A",null,"Gerencia de Recursos","N/A","-","-","-","-","-","-","2022-06-01","2022-12-21","Necesidades del SH","N/A","Información y Comunicación ","Transparencia, Acceso a la Información Pública y Lucha Contra la Corrupción"]
[null,null,"GESTIÓN PARA EL RESULTADO  ","GR1. Fortalecer las relaciones de las entidades del Sector Hacienda con sus grupos de valor ","SH.Ini.2019.2022.GR1.002 Contribuir a la obtención de niveles de excelencia en el ejercicio de la función disciplinaria","COLJUEGOS","COLJUEGOS>PAA 2022>Transparencia, acceso a la información y lucha contra la corrupción","Roger José Carrillo Campo ","Participar en la celebración del día de la transparencia","De acuerdo con el cronograma establecido por el líder sectorial, se participará de la celebración del día de la transparencia",null,"Alexandra Torres Gonzalez","Juan Felipe Mahecha Cordoba",null,"Oficina Asesora de Planeación","N/A","-","-","-","-","-","-","2022-06-01","2022-12-21","Necesidades del SH","N/A","Información y Comunicación ","Transparencia, Acceso a la Información Pública y Lucha Contra la Corrupción"]
[null,null,"GESTIÓN PARA EL RESULTADO  ","GR1. Fortalecer las relaciones de las entidades del Sector Hacienda con sus grupos de valor ","SH.Ini.2019.2022.GR1.002 Contribuir a la obtención de niveles de excelencia en el ejercicio de la función disciplinaria","CGN","CGN>PAA 2022>Transparencia, acceso a la información y lucha contra la corrupción","Henry Ramírez Montes ","Participar en la celebración del día de la transparencia","De acuerdo con el cronograma establecido por el líder sectorial, se participará de la celebración del día de la transparencia",null,"Wilson Eduardo Cifuentes","N/A",null,"GIT de Planeación","N/A","-","-","-","-","-","-","2022-06-01","2022-12-21","Necesidades del SH","N/A","Información y Comunicación ","Transparencia, Acceso a la Información Pública y Lucha Contra la Corrupción"]
[null,null,"GESTIÓN PARA EL RESULTADO  ","GR1. Fortalecer las relaciones de las entidades del Sector Hacienda con sus grupos de valor ","SH.Ini.2019.2022.GR1.002 Contribuir a la obtención de niveles de excelencia en el ejercicio de la función disciplinaria","DIAN","DIAN>PAA 2022>Transparencia, acceso a la información y lucha contra la corrupción","Catalina Garcia Cure","Participar en la celebración del día de la transparencia","De acuerdo con el cronograma establecido por el líder sectorial, se participará de la celebración del día de la transparencia",null,"Constanza Del Pilar Rodríguez Páez","Camilo Andres Erazo Pulido",null,"Despacho de la Dirección General","N/A","-","-","-","-","-","-","2022-06-01","2022-12-21","Necesidades del SH","N/A","Información y Comunicación ","Transparencia, Acceso a la Información Pública y Lucha Contra la Corrupción"]
[null,null,"GESTIÓN PARA EL RESULTADO  ","GR1. Fortalecer las relaciones de las entidades del Sector Hacienda con sus grupos de valor ","SH.Ini.2019.2022.GR1.002 Contribuir a la obtención de niveles de excelencia en el ejercicio de la función disciplinaria","ENTERRITORIO","ENTERRITORIO>PAA 2022>Transparencia, acceso a la información y lucha contra la corrupción","Carlos Eduardo Umaña Lizarazo","Participar en la celebración del día de la transparencia","De acuerdo con el cronograma establecido por el líder sectorial, se participará de la celebración del día de la transparencia",null,"Marta Liced Rodriguez Quimbayo","Anny Alvarez Mendoza",null,"Grupo de Planeación y Gestión de Riesgos","N/A","-","-","-","-","-","-","2022-06-01","2022-12-21","Necesidades del SH","N/A","Información y Comunicación ","Transparencia, Acceso a la Información Pública y Lucha Contra la Corrupción"]
[null,null,"GESTIÓN PARA EL RESULTADO  ","GR1. Fortalecer las relaciones de las entidades del Sector Hacienda con sus grupos de valor ","SH.Ini.2019.2022.GR1.002 Contribuir a la obtención de niveles de excelencia en el ejercicio de la función disciplinaria","FDN","FDN>PAA 2022>Transparencia, acceso a la información y lucha contra la corrupción","Carolina Hernández","Participar en la celebración del día de la transparencia","De acuerdo con el cronograma establecido por el líder sectorial, se participará de la celebración del día de la transparencia",null,"Maria Alejandra Rueda","N/A",null,null,"N/A","-","-","-","-","-","-","2022-06-01","2022-12-21","Necesidades del SH","N/A","Información y Comunicación ","Transparencia, Acceso a la Información Pública y Lucha Contra la Corrupción"]
[null,null,"GESTIÓN PARA EL RESULTADO  ","GR1. Fortalecer las relaciones de las entidades del Sector Hacienda con sus grupos de valor ","SH.Ini.2019.2022.GR1.002 Contribuir a la obtención de niveles de excelencia en el ejercicio de la función disciplinaria","FIDUAGRARIA","FIDUAGRARIA>PAA 202>Transparencia, acceso a la información y lucha contra la corrupción","Luz Marina Fernández Bello ","Participar en la celebración del día de la transparencia","De acuerdo con el cronograma establecido por el líder sectorial, se participará de la celebración del día de la transparencia",null,"Adriana Marcela Fuente Estrada","N/A",null,"Planeación","N/A","-","-","-","-","-","-","2022-06-01","2022-12-21","Necesidades del SH","N/A","Información y Comunicación ","Transparencia, Acceso a la Información Pública y Lucha Contra la Corrupción"]
[null,null,"GESTIÓN PARA EL RESULTADO  ","GR1. Fortalecer las relaciones de las entidades del Sector Hacienda con sus grupos de valor ","SH.Ini.2019.2022.GR1.002 Contribuir a la obtención de niveles de excelencia en el ejercicio de la función disciplinaria","FIDUCOLDEX","FIDUCOLDEX>PAA 2022>Transparencia, acceso a la información y lucha contra la corrupción","Andrés Barco","Participar en la celebración del día de la transparencia","De acuerdo con el cronograma establecido por el líder sectorial, se participará de la celebración del día de la transparencia",null,"Angelly Coy","N/A",null,"Coordinación de Direccionamiento Estratégico","N/A","-","-","-","-","-","-","2022-06-01","2022-12-21","Necesidades del SH","N/A","Información y Comunicación ","Transparencia, Acceso a la Información Pública y Lucha Contra la Corrupción"]
[null,null,"GESTIÓN PARA EL RESULTADO  ","GR1. Fortalecer las relaciones de las entidades del Sector Hacienda con sus grupos de valor ","SH.Ini.2019.2022.GR1.002 Contribuir a la obtención de niveles de excelencia en el ejercicio de la función disciplinaria","FIDUPREVISORA","FIDUPREVISORA>PAA 2022>Transparencia, acceso a la información y lucha contra la corrupción","Magda Nancy Manosalva Cely","Participar en la celebración del día de la transparencia","De acuerdo con el cronograma establecido por el líder sectorial, se participará de la celebración del día de la transparencia",null,"Juan David Lemus","N/A",null," Auditoria Interna ","N/A","-","-","-","-","-","-","2022-06-01","2022-12-21","Necesidades del SH","N/A","Información y Comunicación ","Transparencia, Acceso a la Información Pública y Lucha Contra la Corrupción"]
[null,null,"GESTIÓN PARA EL RESULTADO  ","GR1. Fortalecer las relaciones de las entidades del Sector Hacienda con sus grupos de valor ","SH.Ini.2019.2022.GR1.002 Contribuir a la obtención de niveles de excelencia en el ejercicio de la función disciplinaria","FINAGRO","FINAGRO>PAA 2022>Transparencia, acceso a la información y lucha contra la corrupción","Juan Carlos Restrepo González","Participar en la celebración del día de la transparencia","De acuerdo con el cronograma establecido por el líder sectorial, se participará de la celebración del día de la transparencia",null,"Juan Mauricio León Ospina","Beatriz Elena Duque\nMaría Helena Reyes Donadlo",null,"Gerencia OCDO","N/A","-","-","-","-","-","-","2022-06-01","2022-12-21","Necesidades del SH","N/A","Información y Comunicación ","Transparencia, Acceso a la Información Pública y Lucha Contra la Corrupción"]
[null,null,"GESTIÓN PARA EL RESULTADO  ","GR1. Fortalecer las relaciones de las entidades del Sector Hacienda con sus grupos de valor ","SH.Ini.2019.2022.GR1.002 Contribuir a la obtención de niveles de excelencia en el ejercicio de la función disciplinaria","FINDETER","FINDETER>PAA 2022>Transparencia, acceso a la información y lucha contra la corrupción","Laura Mercedes Peña Rodríguez","Participar en la celebración del día de la transparencia","De acuerdo con el cronograma establecido por el líder sectorial, se participará de la celebración del día de la transparencia",null,"Jorge Luis Giraldo ","N/A",null,"Secretaría General","N/A","-","-","-","-","-","-","2022-06-01","2022-12-21","Necesidades del SH","N/A","Información y Comunicación ","Transparencia, Acceso a la Información Pública y Lucha Contra la Corrupción"]
[null,null,"GESTIÓN PARA EL RESULTADO  ","GR1. Fortalecer las relaciones de las entidades del Sector Hacienda con sus grupos de valor ","SH.Ini.2019.2022.GR1.002 Contribuir a la obtención de niveles de excelencia en el ejercicio de la función disciplinaria","FOGACOOP","FOGACOOP>PAA 2022>Transparencia, acceso a la información y lucha contra la corrupción","Adriana Mcallister Braidy","Participar en la celebración del día de la transparencia","De acuerdo con el cronograma establecido por el líder sectorial, se participará de la celebración del día de la transparencia",null,"Ruben Mauricio Ariza","Zulma Liliana López Zuluaga",null,"Secretaría General y de Gestión Administrativa","N/A","-","-","-","-","-","-","2022-06-01","2022-12-21","Necesidades del SH","N/A","Información y Comunicación ","Transparencia, Acceso a la Información Pública y Lucha Contra la Corrupción"]
[null,null,"GESTIÓN PARA EL RESULTADO  ","GR1. Fortalecer las relaciones de las entidades del Sector Hacienda con sus grupos de valor ","SH.Ini.2019.2022.GR1.002 Contribuir a la obtención de niveles de excelencia en el ejercicio de la función disciplinaria","FOGAFIN","FOGAFIN>PAA 2022>Transparencia, acceso a la información y lucha contra la corrupción","Carlos Alberto Sánchez del Valle","Participar en la celebración del día de la transparencia","De acuerdo con el cronograma establecido por el líder sectorial, se participará de la celebración del día de la transparencia",null,"Carlos Alberto Sánchez del Valle","N/A",null,"Departamento de Talento Humano","N/A","-","-","-","-","-","-","2022-06-01","2022-12-21","Necesidades del SH","N/A","Información y Comunicación ","Transparencia, Acceso a la Información Pública y Lucha Contra la Corrupción"]
[null,null,"GESTIÓN PARA EL RESULTADO  ","GR1. Fortalecer las relaciones de las entidades del Sector Hacienda con sus grupos de valor ","SH.Ini.2019.2022.GR1.002 Contribuir a la obtención de niveles de excelencia en el ejercicio de la función disciplinaria","FONDO ADAPTACIÓN","FONDO ADAPTACIÓN>PAA 2022>Transparencia, acceso a la información y lucha contra la corrupción","Alejandro Venegas ","Participar en la celebración del día de la transparencia","De acuerdo con el cronograma establecido por el líder sectorial, se participará de la celebración del día de la transparencia",null,"Catalina Soto Velasco","Ana Maria Gonzalez",null," E.T. Comunicaciones","N/A","-","-","-","-","-","-","2022-06-01","2022-12-21","Necesidades del SH","N/A","Información y Comunicación ","Transparencia, Acceso a la Información Pública y Lucha Contra la Corrupción"]
[null,null,"GESTIÓN PARA EL RESULTADO  ","GR1. Fortalecer las relaciones de las entidades del Sector Hacienda con sus grupos de valor ","SH.Ini.2019.2022.GR1.002 Contribuir a la obtención de niveles de excelencia en el ejercicio de la función disciplinaria","FONDO NACIONAL DEL AHORRO","FONDO NACIONAL DEL AHORRO>PAA 2022>Transparencia, acceso a la información y lucha contra la corrupción","Kennicher Arias Roa","Participar en la celebración del día de la transparencia","De acuerdo con el cronograma establecido por el líder sectorial, se participará de la celebración del día de la transparencia",null,"Helga Viviana Valencia","N/A",null,"Grupo Gestión Antifraudes","N/A","-","-","-","-","-","-","2022-06-01","2022-12-21","Necesidades del SH","N/A","Información y Comunicación ","Transparencia, Acceso a la Información Pública y Lucha Contra la Corrupción"]
[null,null,"GESTIÓN PARA EL RESULTADO  ","GR1. Fortalecer las relaciones de las entidades del Sector Hacienda con sus grupos de valor ","SH.Ini.2019.2022.GR1.002 Contribuir a la obtención de niveles de excelencia en el ejercicio de la función disciplinaria","FONDO NACIONAL DE GARANTIAS","FONDO NACIONAL DE GARANTIAS >PAA 2022>Transparencia, acceso a la información y lucha contra la corrupción","Maria Angelica Burbano Sánchez","Participar en la celebración del día de la transparencia","De acuerdo con el cronograma establecido por el líder sectorial, se participará de la celebración del día de la transparencia",null,"Diana Calderon","Andrés Estrada Cardona ",null,"Dirección Jurídica","N/A","-","-","-","-","-","-","2022-06-01","2022-12-21","Necesidades del SH","N/A","Información y Comunicación ","Transparencia, Acceso a la Información Pública y Lucha Contra la Corrupción"]
[null,null,"GESTIÓN PARA EL RESULTADO  ","GR1. Fortalecer las relaciones de las entidades del Sector Hacienda con sus grupos de valor ","SH.Ini.2019.2022.GR1.002 Contribuir a la obtención de niveles de excelencia en el ejercicio de la función disciplinaria","GRUPO BICENTENARIO","GRUPO BICENTENARIO>PAA 2022>Transparencia, acceso a la información y lucha contra la corrupción","Oscar Laureano Rosero Jiménez","Participar en la celebración del día de la transparencia","De acuerdo con el cronograma establecido por el líder sectorial, se participará de la celebración del día de la transparencia",null,"Lucía Patricia Esparza Baena","N/A",null,"Área Estrategia","N/A","-","-","-","-","-","-","2022-06-01","2022-12-21","Necesidades del SH","N/A","Información y Comunicación ","Transparencia, Acceso a la Información Pública y Lucha Contra la Corrupción"]
[null,null,"GESTIÓN PARA EL RESULTADO  ","GR1. Fortalecer las relaciones de las entidades del Sector Hacienda con sus grupos de valor ","SH.Ini.2019.2022.GR1.002 Contribuir a la obtención de niveles de excelencia en el ejercicio de la función disciplinaria","ICETEX","ICETEX>PAA 2022>Transparencia, acceso a la información y lucha contra la corrupción","Beatriz Helena Torres Lizarazo\n","Participar en la celebración del día de la transparencia","De acuerdo con el cronograma establecido por el líder sectorial, se participará de la celebración del día de la transparencia",null,"Johana Niño Acosta","Rosa Maria Gonzalez Carvajal ",null,"Oficina Asesora de planeación ICETEX","N/A","-","-","-","-","-","-","2022-06-01","2022-12-21","Necesidades del SH","N/A","Información y Comunicación ","Transparencia, Acceso a la Información Pública y Lucha Contra la Corrupción"]
[null,null,"GESTIÓN PARA EL RESULTADO  ","GR1. Fortalecer las relaciones de las entidades del Sector Hacienda con sus grupos de valor ","SH.Ini.2019.2022.GR1.002 Contribuir a la obtención de niveles de excelencia en el ejercicio de la función disciplinaria","ITRC","ITRC>PAA 2022>Transparencia, acceso a la información y lucha contra la corrupción","Nohora Beltrán Céspedes","Participar en la celebración del día de la transparencia","De acuerdo con el cronograma establecido por el líder sectorial, se participará de la celebración del día de la transparencia",null,"William Jaime Bernal Ávila","N/A",null,null,"N/A","-","-","-","-","-","-","2022-06-01","2022-12-21","Necesidades del SH","N/A","Información y Comunicación ","Transparencia, Acceso a la Información Pública y Lucha Contra la Corrupción"]
[null,null,"GESTIÓN PARA EL RESULTADO  ","GR1. Fortalecer las relaciones de las entidades del Sector Hacienda con sus grupos de valor ","SH.Ini.2019.2022.GR1.002 Contribuir a la obtención de niveles de excelencia en el ejercicio de la función disciplinaria","POSITIVA","POSITIVA>PAA 2022>Transparencia, acceso a la información y lucha contra la corrupción","Carlos Augusto Mesa Diaz","Participar en la celebración del día de la transparencia","De acuerdo con el cronograma establecido por el líder sectorial, se participará de la celebración del día de la transparencia",null,"Oscar Saul Guerrero Bohórquez","Natalia Leal",null,"Secretaría General","N/A","-","-","-","-","-","-","2022-06-01","2022-12-21","Necesidades del SH","N/A","Información y Comunicación ","Transparencia, Acceso a la Información Pública y Lucha Contra la Corrupción"]
[null,null,"GESTIÓN PARA EL RESULTADO  ","GR1. Fortalecer las relaciones de las entidades del Sector Hacienda con sus grupos de valor ","SH.Ini.2019.2022.GR1.002 Contribuir a la obtención de niveles de excelencia en el ejercicio de la función disciplinaria","PREVISORA","PREVISORA>PAA 2022>Transparencia, acceso a la información y lucha contra la corrupción","José Fernando Pulido Sierra","Participar en la celebración del día de la transparencia","De acuerdo con el cronograma establecido por el líder sectorial, se participará de la celebración del día de la transparencia",null,"Ricardo Guzmán ","N/A",null,"Oficina de Control Interno Disciplinario ","N/A","-","-","-","-","-","-","2022-06-01","2022-12-21","Necesidades del SH","N/A","Información y Comunicación ","Transparencia, Acceso a la Información Pública y Lucha Contra la Corrupción"]
[null,null,"GESTIÓN PARA EL RESULTADO  ","GR1. Fortalecer las relaciones de las entidades del Sector Hacienda con sus grupos de valor ","SH.Ini.2019.2022.GR1.002 Contribuir a la obtención de niveles de excelencia en el ejercicio de la función disciplinaria","SAE","SAE>PAA 2022>Transparencia, acceso a la información y lucha contra la corrupción","Jaime Leon Gómez Salazar","Participar en la celebración del día de la transparencia","De acuerdo con el cronograma establecido por el líder sectorial, se participará de la celebración del día de la transparencia",null,"Luz Amparo Guerra ","N/A",null,null,"N/A","-","-","-","-","-","-","2022-06-01","2022-12-21","Necesidades del SH","N/A","Información y Comunicación ","Transparencia, Acceso a la Información Pública y Lucha Contra la Corrupción"]
[null,null,"GESTIÓN PARA EL RESULTADO  ","GR1. Fortalecer las relaciones de las entidades del Sector Hacienda con sus grupos de valor ","SH.Ini.2019.2022.GR1.002 Contribuir a la obtención de niveles de excelencia en el ejercicio de la función disciplinaria","SUPERFINANCIERA","SUPERFINANCIERA>PAA 2022>Transparencia, acceso a la información y lucha contra la corrupción","José Gabriel Sánchez Sousa","Participar en la celebración del día de la transparencia","De acuerdo con el cronograma establecido por el líder sectorial, se participará de la celebración del día de la transparencia",null,"Sergio Esteban Varela Guzman","N/A",null,"Oficina Asesora de Planeación ","N/A","-","-","-","-","-","-","2022-06-01","2022-12-21","Necesidades del SH","N/A","Información y Comunicación ","Transparencia, Acceso a la Información Pública y Lucha Contra la Corrupción"]
[null,null,"GESTIÓN PARA EL RESULTADO  ","GR1. Fortalecer las relaciones de las entidades del Sector Hacienda con sus grupos de valor ","SH.Ini.2019.2022.GR1.002 Contribuir a la obtención de niveles de excelencia en el ejercicio de la función disciplinaria","SUPERSOLIDARIA","SUPERSOLIDARIA>PAA 2022>Transparencia, acceso a la información y lucha contra la corrupción","Robín Andrey Suarez Toscano","Participar en la celebración del día de la transparencia","De acuerdo con el cronograma establecido por el líder sectorial, se participará de la celebración del día de la transparencia",null,"Felipe Mancera Rojas ","N/A",null,"Oficina Asesora de Planeación y Sistemas ","N/A","-","-","-","-","-","-","2022-06-01","2022-12-21","Necesidades del SH","N/A","Información y Comunicación ","Transparencia, Acceso a la Información Pública y Lucha Contra la Corrupción"]
[null,null,"GESTIÓN PARA EL RESULTADO  ","GR1. Fortalecer las relaciones de las entidades del Sector Hacienda con sus grupos de valor ","SH.Ini.2019.2022.GR1.002 Contribuir a la obtención de niveles de excelencia en el ejercicio de la función disciplinaria","UGPP","UGPP>PAA 2022>Transparencia, acceso a la información y lucha contra la corrupción","Ana María Cadena","Participar en la celebración del día de la transparencia","De acuerdo con el cronograma establecido por el líder sectorial, se participará de la celebración del día de la transparencia",null,"Germán Vega Rodríguez","N/A",null,"Dirección de Soporte y Desarrollo Organizacional","N/A","-","-","-","-","-","-","2022-06-01","2022-12-21","Necesidades del SH","N/A","Información y Comunicación ","Transparencia, Acceso a la Información Pública y Lucha Contra la Corrupción"]
[null,null,"GESTIÓN PARA EL RESULTADO  ","GR1. Fortalecer las relaciones de las entidades del Sector Hacienda con sus grupos de valor ","SH.Ini.2019.2022.GR1.002 Contribuir a la obtención de niveles de excelencia en el ejercicio de la función disciplinaria","UIAF","UIAF>PAA 2022>Transparencia, acceso a la información y lucha contra la corrupción","Nilgen Vargas Garcés","Participar en la celebración del día de la transparencia","De acuerdo con el cronograma establecido por el líder sectorial, se participará de la celebración del día de la transparencia",null,"Carlos Julio Buitrago Ortiz"," Paola Marcela Badran Robayo",null,"Comunicaciones","N/A","-","-","-","-","-","-","2022-06-01","2022-12-21","Necesidades del SH","N/A","Información y Comunicación ","Transparencia, Acceso a la Información Pública y Lucha Contra la Corrupción"]
[null,null,"GESTIÓN PARA EL RESULTADO  ","GR1. Fortalecer las relaciones de las entidades del Sector Hacienda con sus grupos de valor ","SH.Ini.2019.2022.GR1.002 Contribuir a la obtención de niveles de excelencia en el ejercicio de la función disciplinaria","URF","URF>PAA 2022>Transparencia, acceso a la información y lucha contra la corrupción","Ivonnie Edith Gallardo ","Participar en la celebración del día de la transparencia","De acuerdo con el cronograma establecido por el líder sectorial, se participará de la celebración del día de la transparencia",null,"Catalina Torrado Ulloa","N/A",null,null,"N/A","-","-","-","-","-","-","2022-06-01","2022-12-31","Necesidades del SH","N/A","Información y Comunicación ","Transparencia, Acceso a la Información Pública y Lucha Contra la Corrupción"]
[null,null,"GESTIÓN DE CAPACIDADES INSTITUCIONALES","GCI1. Fortalecer las capacidades del Talento Humano y la Innovación en las entidades del Sector Hacienda","SH.Ini.2019.2022.GCI1.001 Fortalecer la implementación de la política del Talento Humano en las Entidades del Sector Hacienda\n\nSH.Ini.2019.2022.GCI1.002 Fortalecer la implementación de la política de integridad en las Entidades del Sector","MHCP","MHCP>PAA 2022> Dimensión de Talento Humano","Fernando Carvajal","Coordinar y adelantar las mesas sectoriales de la dimensión de Talento Humano.","Coordinar y realizar las reuniones de trabajo sectorial para fomentar el intercambio de conocimientos e información entre los líderes de las políticas de Talento Humano e Integridad del Sector Hacienda","Hilda Veronica Tapasco","Lia Carolina Cabrejo","N/A",null,"Subdirección de Gestión del Talento Humano ","N/A","-","-","-","-","2021-03-01","2021-12-31","2022-03-01","2022-12-31","Necesidades del SH","N/A","Talento Humano","Talento Humano e Integridad "]
[null,null,"GESTIÓN DE CAPACIDADES INSTITUCIONALES","GCI1. Fortalecer las capacidades del Talento Humano y la Innovación en las entidades del Sector Hacienda","SH.Ini.2019.2022. GCI1.001 Fortalecer la implementación de la política del Talento Humano en las Entidades del Sector Hacienda\n\nSH.Ini.2019.2022.GCI1.002 Fortalecer la implementación de la política de integridad en las Entidades del Sector","BANCO AGRARIO","BANCO AGRARIO> PAA 2022> Dimensión de Talento Humano","Sandra Patricia Villabona","Participar en las mesas sectoriales de la dimensión de Talento Humano.","Participar en las reuniones programadas por el líder sectorial de la política de Talento Humano e Integridad del MHCP y entregar la información requerida para el fortalecimiento y documentación  de estas políticas.","David Jimeno Saavedra Buitrago","David Jimeno Saavedra Buitrago","N/A",null,"Vicepresidencia de Talento Humano","N/A","-","-","-","-","2021-03-01","2021-12-31","2022-03-01","2022-12-31","Necesidades del SH","N/A","Talento Humano","Talento Humano e Integridad ",null,null,null,null,null,"N/A"]
[null,null,"GESTIÓN DE CAPACIDADES INSTITUCIONALES","GCI1. Fortalecer las capacidades del Talento Humano y la Innovación en las entidades del Sector Hacienda","SH.Ini.2019.2022. GCI1.001 Fortalecer la implementación de la política del Talento Humano en las Entidades del Sector Hacienda\n\nSH.Ini.2019.2022.GCI1.002 Fortalecer la implementación de la política de integridad en las Entidades del Sector","BANCOLDEX","BANCOLDEX> PAA 2022> Dimensión de Talento Humano","María José Naranjo","Participar en las mesas sectoriales de la dimensión de Talento Humano.","Participar en las reuniones programadas por el líder sectorial de la política de Talento Humano e Integridad del MHCP y entregar la información requerida para el fortalecimiento y documentación  de estas políticas.","Gloria Cortés\ngloria.cortes@bancoldex.com","Gloria Cortés\n","N/A",null,"Departamento de Talento Humano","N/A","-","-","-","-","2021-03-01","2021-12-31","2022-03-01","2022-12-31","Necesidades del SH","N/A","Talento Humano","Talento Humano e Integridad ",null,null,null,null,null,"N/A"]
[null,null,"GESTIÓN DE CAPACIDADES INSTITUCIONALES","GCI1. Fortalecer las capacidades del Talento Humano y la Innovación en las entidades del Sector Hacienda","SH.Ini.2019.2022. GCI1.001 Fortalecer la implementación de la política del Talento Humano en las Entidades del Sector Hacienda\n\nSH.Ini.2019.2022.GCI1.002 Fortalecer la implementación de la política de integridad en las Entidades del Sector","CISA","CISA > PAA 2022> Dimensión de Talento Humano","Juan Felipe Robles","Participar en las mesas sectoriales de la dimensión de Talento Humano.","Participar en las reuniones programadas por el líder sectorial de la política de Talento Humano e Integridad del MHCP y entregar la información requerida para el fortalecimiento y documentación  de estas políticas.","Sandra Viviana Neira ","Sandra Viviana Neira ","N.A",null,"Gerencia de Recursos","N/A","-","-","-","-","2021-03-01","2021-12-31","2022-03-01","2022-12-31","Necesidades del SH","N/A","Talento Humano","Talento Humano e Integridad ",null,null,null,null,null,"N/A"]
[null,null,"GESTIÓN DE CAPACIDADES INSTITUCIONALES","GCI1. Fortalecer las capacidades del Talento Humano y la Innovación en las entidades del Sector Hacienda","SH.Ini.2019.2022. GCI1.001 Fortalecer la implementación de la política del Talento Humano en las Entidades del Sector Hacienda\n\nSH.Ini.2019.2022.GCI1.002 Fortalecer la implementación de la política de integridad en las Entidades del Sector","COLJUEGOS","COLJUEGOS> PAA 2022> Dimensión de Talento Humano","Roger José Carrillo Campo ","Participar en las mesas sectoriales de la dimensión de Talento Humano.","Participar en las reuniones programadas por el líder sectorial de la política de Talento Humano e Integridad del MHCP y entregar la información requerida para el fortalecimiento y documentación  de estas políticas.","Alexandra Torres Gonzalez","Alexandra Torres Gonzalez","Juan Felipe Mahecha Cordoba",null,"Oficina Asesora de Planeación","N/A","-","-","-","-","2021-03-01","2021-12-31","2022-03-01","2022-12-31","Necesidades del SH","N/A","Talento Humano","Talento Humano e Integridad ",null,null,null,null,null,"N/A"]
[null,null,"GESTIÓN DE CAPACIDADES INSTITUCIONALES","GCI1. Fortalecer las capacidades del Talento Humano y la Innovación en las entidades del Sector Hacienda","SH.Ini.2019.2022. GCI1.001 Fortalecer la implementación de la política del Talento Humano en las Entidades del Sector Hacienda\n\nSH.Ini.2019.2022.GCI1.002 Fortalecer la implementación de la política de integridad en las Entidades del Sector","CGN","CGN > PAA 2022> Dimensión de Talento Humano","Henry Ramírez Montes","Participar en las mesas sectoriales de la dimensión de Talento Humano.","Participar en las reuniones programadas por el líder sectorial de la política de Talento Humano e Integridad del MHCP y entregar la información requerida para el fortalecimiento y documentación  de estas políticas.","Wilson Cifuentes","Wilson Cifuentes","Wilson Alberto Restrepo",null,"GIT de Talento Humano","N/A","-","-","-","-","2021-03-01","2021-12-31","2022-03-01","2022-12-31","Necesidades del SH","N/A","Talento Humano","Talento Humano e Integridad ",null,null,null,null,null,"N/A"]
[null,null,"GESTIÓN DE CAPACIDADES INSTITUCIONALES","GCI1. Fortalecer las capacidades del Talento Humano y la Innovación en las entidades del Sector Hacienda","SH.Ini.2019.2022. GCI1.001 Fortalecer la implementación de la política del Talento Humano en las Entidades del Sector Hacienda\n\nSH.Ini.2019.2022.GCI1.002 Fortalecer la implementación de la política de integridad en las Entidades del Sector","DIAN","DIAN > PAA 2022> Dimensión de Talento Humano","Catalina Garcia Cure","Participar en las mesas sectoriales de la dimensión de Talento Humano.","Participar en las reuniones programadas por el líder sectorial de la política de Talento Humano e Integridad del MHCP y entregar la información requerida para el fortalecimiento y documentación  de estas políticas.","Constanza Del Pilar Rodríguez Páez","Constanza Del Pilar Rodríguez Páez","Jaime Ricardo Saavedra Patarroyo",null,"Subdirección de Gestión de Personal","N/A","-","-","-","-","2021-03-01","2021-12-31","2022-03-01","2022-12-31","Necesidades del SH","N/A","Talento Humano","Talento Humano e Integridad ",null,null,null,null,null,"N/A"]
[null,null,"GESTIÓN DE CAPACIDADES INSTITUCIONALES","GCI1. Fortalecer las capacidades del Talento Humano y la Innovación en las entidades del Sector Hacienda","SH.Ini.2019.2022. GCI1.001 Fortalecer la implementación de la política del Talento Humano en las Entidades del Sector Hacienda\n\nSH.Ini.2019.2022.GCI1.002 Fortalecer la implementación de la política de integridad en las Entidades del Sector","ENTERRITORIO","ENTERRITORIO> PAA 2022> Dimensión de Talento Humano","Carlos Eduardo Umaña Lizarazo","Participar en las mesas sectoriales de la dimensión de Talento Humano.","Participar en las reuniones programadas por el líder sectorial de la política de Talento Humano e Integridad del MHCP y entregar la información requerida para el fortalecimiento y documentación  de estas políticas.","Marta Liced Rodriguez Quimbayo","Marta Liced Rodriguez Quimbayo","Anny Alvarez Mendoza",null,"Grupo de Planeación y Gestión de Riesgos","N/A","-","-","-","-","2021-03-01","2021-12-31","2022-03-01","2022-12-31","Necesidades del SH","N/A","Talento Humano","Talento Humano e Integridad ",null,null,null,null,null,"N/A"]
[null,null,"GESTIÓN DE CAPACIDADES INSTITUCIONALES","GCI1. Fortalecer las capacidades del Talento Humano y la Innovación en las entidades del Sector Hacienda","SH.Ini.2019.2022. GCI1.001 Fortalecer la implementación de la política del Talento Humano en las Entidades del Sector Hacienda\n\nSH.Ini.2019.2022.GCI1.002 Fortalecer la implementación de la política de integridad en las Entidades del Sector","FDN","FDN > PAA 2022> Dimensión de Talento Humano","Carolina Hernández","Participar en las mesas sectoriales de la dimensión de Talento Humano.","Participar en las reuniones programadas por el líder sectorial de la política de Talento Humano e Integridad del MHCP y entregar la información requerida para el fortalecimiento y documentación  de estas políticas.","Maria Alejandra Rueda, mrueda@fdn.com.co","Maria Alejandra Rueda, ","N/A",null,"Talento Humano y Administrativo","N/A","-","-","-","-","2021-03-01","2021-12-31","2022-03-01","2022-12-31","Necesidades del SH","N/A","Talento Humano","Talento Humano e Integridad ",null,null,null,null,null,"N/A"]
[null,null,"GESTIÓN DE CAPACIDADES INSTITUCIONALES","GCI1. Fortalecer las capacidades del Talento Humano y la Innovación en las entidades del Sector Hacienda","SH.Ini.2019.2022. GCI1.001 Fortalecer la implementación de la política del Talento Humano en las Entidades del Sector Hacienda\n\nSH.Ini.2019.2022.GCI1.002 Fortalecer la implementación de la política de integridad en las Entidades del Sector","FIDUAGRARIA","FIDUAGRARIA> PAA 2022> Dimensión de Talento Humano","Luz Marina Fernández Bello - ","Participar en las mesas sectoriales de la dimensión de Talento Humano.","Participar en las reuniones programadas por el líder sectorial de la política de Talento Humano e Integridad del MHCP y entregar la información requerida para el fortalecimiento y documentación  de estas políticas.","Adriana Marcela Fuente Estrada","Adriana Marcela Fuente Estrada","Melissa Lorena Lasprilla \nMariana Morales Rojas - I",null,"Jefatura de Talento Humano","N/A","-","-","-","-","2021-03-01","2021-12-31","2022-03-01","2022-12-31","Necesidades del SH","N/A","Talento Humano","Talento Humano e Integridad ",null,null,null,null,null,"N/A"]
[null,null,"GESTIÓN DE CAPACIDADES INSTITUCIONALES","GCI1. Fortalecer las capacidades del Talento Humano y la Innovación en las entidades del Sector Hacienda","SH.Ini.2019.2022. GCI1.001 Fortalecer la implementación de la política del Talento Humano en las Entidades del Sector Hacienda\n\nSH.Ini.2019.2022.GCI1.002 Fortalecer la implementación de la política de integridad en las Entidades del Sector","FIDUCOLDEX","FIDUCOLDEX> PAA 2022> Dimensión de Talento Humano","Andrés Barco\n","Participar en las mesas sectoriales de la dimensión de Talento Humano.","Participar en las reuniones programadas por el líder sectorial de la política de Talento Humano e Integridad del MHCP y entregar la información requerida para el fortalecimiento y documentación  de estas políticas.","Angelly Coy \nProfesional de Direccionamiento Estratégico","Angelly Coy \n","N/A",null,"Dirección de Gestión Humana","N/A","-","-","-","-","2021-03-01","2021-12-31","2022-03-01","2022-12-31","Necesidades del SH","N/A","Talento Humano","Talento Humano e Integridad ",null,null,null,null,null,"N/A"]
[null,null,"GESTIÓN DE CAPACIDADES INSTITUCIONALES","GCI1. Fortalecer las capacidades del Talento Humano y la Innovación en las entidades del Sector Hacienda","SH.Ini.2019.2022. GCI1.001 Fortalecer la implementación de la política del Talento Humano en las Entidades del Sector Hacienda\n\nSH.Ini.2019.2022.GCI1.002 Fortalecer la implementación de la política de integridad en las Entidades del Sector","FIDUPREVISORA","FIDUPREVISORA > PAA 2022> Dimensión de Talento Humano","Magda Nancy Manosalva Cely","Participar en las mesas sectoriales de la dimensión de Talento Humano.","Participar en las reuniones programadas por el líder sectorial de la política de Talento Humano e Integridad del MHCP y entregar la información requerida para el fortalecimiento y documentación  de estas políticas.","Karen Pardo","Karen Pardo","Maria Fernanda Gomez",null,"Vicepresidencia de Desarrollo y Soporte Organizacional - Dirección de Talento Humano","N/A","-","-","-","-","2021-03-01","2021-12-31","2022-03-01","2022-12-31","Necesidades del SH","N/A","Talento Humano","Talento Humano e Integridad ",null,null,null,null,null,"N/A"]
[null,null,"GESTIÓN DE CAPACIDADES INSTITUCIONALES","GCI1. Fortalecer las capacidades del Talento Humano y la Innovación en las entidades del Sector Hacienda","SH.Ini.2019.2022. GCI1.001 Fortalecer la implementación de la política del Talento Humano en las Entidades del Sector Hacienda\n\nSH.Ini.2019.2022.GCI1.002 Fortalecer la implementación de la política de integridad en las Entidades del Sector","FINAGRO","FINAGRO> PAA 2022> Dimensión de Talento Humano","Juan Carlos Restrepo González\n","Participar en las mesas sectoriales de la dimensión de Talento Humano.","Participar en las reuniones programadas por el líder sectorial de la política de Talento Humano e Integridad del MHCP y entregar la información requerida para el fortalecimiento y documentación  de estas políticas.","Marisol Duque Gómez\nmduque@finagro.com.co","Marisol Duque Gómez\n","Dalia Marcela Leaño\n\nMaría Helena Reyes Donadlo \n",null,"Dirección de Talento Humano","N/A","-","-","-","-","2021-03-01","2021-12-31","2022-03-01","2022-12-31","Necesidades del SH","N/A","Talento Humano","Talento Humano e Integridad ",null,null,null,null,null,"N/A"]
[null,null,"GESTIÓN DE CAPACIDADES INSTITUCIONALES","GCI1. Fortalecer las capacidades del Talento Humano y la Innovación en las entidades del Sector Hacienda","SH.Ini.2019.2022. GCI1.001 Fortalecer la implementación de la política del Talento Humano en las Entidades del Sector Hacienda\n\nSH.Ini.2019.2022.GCI1.002 Fortalecer la implementación de la política de integridad en las Entidades del Sector","FINDETER","FINDETER > PAA 2022> Dimensión de Talento Humano","Laura Mercedes Peña ","Participar en las mesas sectoriales de la dimensión de Talento Humano.","Participar en las reuniones programadas por el líder sectorial de la política de Talento Humano e Integridad del MHCP y entregar la información requerida para el fortalecimiento y documentación  de estas políticas.","Jorge Luis Giraldo  - Gerente de Planeación y Gestión","Jorge Luis Giraldo ","N/A",null," Jefatura de Talento Humano","N/A","-","-","-","-","2021-03-01","2021-12-31","2022-03-01","2022-12-31","Necesidades del SH","N/A","Talento Humano","Talento Humano e Integridad ",null,null,null,null,null,"N/A"]
[null,null,"GESTIÓN DE CAPACIDADES INSTITUCIONALES","GCI1. Fortalecer las capacidades del Talento Humano y la Innovación en las entidades del Sector Hacienda","SH.Ini.2019.2022. GCI1.001 Fortalecer la implementación de la política del Talento Humano en las Entidades del Sector Hacienda\n\nSH.Ini.2019.2022.GCI1.002 Fortalecer la implementación de la política de integridad en las Entidades del Sector","FOGACOOP","FOGACOOP > PAA 2022> Dimensión de Talento Humano","Adriana Mcallister Braidy","Participar en las mesas sectoriales de la dimensión de Talento Humano.","Participar en las reuniones programadas por el líder sectorial de la política de Talento Humano e Integridad del MHCP y entregar la información requerida para el fortalecimiento y documentación  de estas políticas.","Elena Alexandra Bustos Duran - Profesional Asesor","Elena Alexandra Bustos Duran ","Zulma Liliana López Zuluaga",null,"Coordinación Administrativa ","N/A","-","-","-","-","2021-03-01","2021-12-31","2022-03-01","2022-12-31","Necesidades del SH","N/A","Talento Humano","Talento Humano e Integridad ",null,null,null,null,null,"N/A"]
[null,null,"GESTIÓN DE CAPACIDADES INSTITUCIONALES","GCI1. Fortalecer las capacidades del Talento Humano y la Innovación en las entidades del Sector Hacienda","SH.Ini.2019.2022. GCI1.001 Fortalecer la implementación de la política del Talento Humano en las Entidades del Sector Hacienda\n\nSH.Ini.2019.2022.GCI1.002 Fortalecer la implementación de la política de integridad en las Entidades del Sector","FOGAFIN","FOGAFIN > PAA 2022> Dimensión de Talento Humano","Carlos Alberto Sánchez del Valle","Participar en las mesas sectoriales de la dimensión de Talento Humano.","Participar en las reuniones programadas por el líder sectorial de la política de Talento Humano e Integridad del MHCP y entregar la información requerida para el fortalecimiento y documentación  de estas políticas.","Carlos Alberto Sánchez del Valle","Carlos Alberto Sánchez del Valle","N/A",null,"Departamento de Talento Humano","N/A","-","-","-","-","2021-03-01","2021-12-31","2022-03-01","2022-12-31","Necesidades del SH","N/A","Talento Humano","Talento Humano e Integridad ",null,null,null,null,null,"N/A"]
[null,null,"GESTIÓN DE CAPACIDADES INSTITUCIONALES","GCI1. Fortalecer las capacidades del Talento Humano y la Innovación en las entidades del Sector Hacienda","SH.Ini.2019.2022. GCI1.001 Fortalecer la implementación de la política del Talento Humano en las Entidades del Sector Hacienda\n\nSH.Ini.2019.2022.GCI1.002 Fortalecer la implementación de la política de integridad en las Entidades del Sector","FONDO ADAPTACIÓN","FONDO ADAPTACIÓN > PAA 2022> Dimensión de Talento Humano","Alejandro Venegas","Participar en las mesas sectoriales de la dimensión de Talento Humano.","Participar en las reuniones programadas por el líder sectorial de la política de Talento Humano e Integridad del MHCP y entregar la información requerida para el fortalecimiento y documentación  de estas políticas.","Catalina Soto","Catalina Soto","Mónica Flórez ",null,"Talento Humano","N/A","-","-","-","-","2021-03-01","2021-12-31","2022-03-01","2022-12-31","Necesidades del SH","N/A","Talento Humano","Talento Humano e Integridad ",null,null,null,null,null,"N/A"]
[null,null,"GESTIÓN DE CAPACIDADES INSTITUCIONALES","GCI1. Fortalecer las capacidades del Talento Humano y la Innovación en las entidades del Sector Hacienda","SH.Ini.2019.2022. GCI1.001 Fortalecer la implementación de la política del Talento Humano en las Entidades del Sector Hacienda\n\nSH.Ini.2019.2022.GCI1.002 Fortalecer la implementación de la política de integridad en las Entidades del Sector","FONDO NACIONAL DEL AHORRO","FONDO NACIONAL DEL AHORRO > PAA 2022> Dimensión de Talento Humano","Kennicher Arias Roa","Participar en las mesas sectoriales de la dimensión de Talento Humano.","Participar en las reuniones programadas por el líder sectorial de la política de Talento Humano e Integridad del MHCP y entregar la información requerida para el fortalecimiento y documentación  de estas políticas.","Yolanda Beatriz Riaño Garzón\nyriano@fna.gov.co","Yolanda Beatriz Riaño Garzón\n","Monica Pedraza Mónica Bibiana Martínez ",null,"División Gestión Humana","N/A","-","-","-","-","2021-03-01","2021-12-31","2022-03-01","2022-12-31","Necesidades del SH","N/A","Talento Humano","Talento Humano e Integridad ",null,null,null,null,null,"N/A"]
[null,null,"GESTIÓN DE CAPACIDADES INSTITUCIONALES","GCI1. Fortalecer las capacidades del Talento Humano y la Innovación en las entidades del Sector Hacienda","SH.Ini.2019.2022. GCI1.001 Fortalecer la implementación de la política del Talento Humano en las Entidades del Sector Hacienda\n\nSH.Ini.2019.2022.GCI1.002 Fortalecer la implementación de la política de integridad en las Entidades del Sector","FONDO NACIONAL DE GARANTIAS","FONDO NACIONAL DE GARANTIAS > PAA 2022> Dimensión de Talento Humano","Maria Angelica Burbano Sanchez \n","Participar en las mesas sectoriales de la dimensión de Talento Humano.","Participar en las reuniones programadas por el líder sectorial de la política de Talento Humano e Integridad del MHCP y entregar la información requerida para el fortalecimiento y documentación  de estas políticas.","Esther Julia Hernandez\nDirectora de Gestión Humana\nesther.hernandez@fng.gov.co\n","Esther Julia Hernandez\n\n","Andrés Estrada Cardona \n",null,"Dirección de Gestión Humana","N/A","-","-","-","-","2021-03-01","2021-12-31","2022-03-01","2022-12-31","Necesidades del SH","N/A","Talento Humano","Talento Humano e Integridad ",null,null,null,null,null,"N/A"]
[null,null,"GESTIÓN DE CAPACIDADES INSTITUCIONALES","GCI1. Fortalecer las capacidades del Talento Humano y la Innovación en las entidades del Sector Hacienda","SH.Ini.2019.2022. GCI1.001 Fortalecer la implementación de la política del Talento Humano en las Entidades del Sector Hacienda\n\nSH.Ini.2019.2022.GCI1.002 Fortalecer la implementación de la política de integridad en las Entidades del Sector","GRUPO BICENTENARIO","GRUPO BICENTENARIO > PAA 2022> Dimensión de Talento Humano","Oscar Laureano Rosero Jiménez","Participar en las mesas sectoriales de la dimensión de Talento Humano.","Participar en las reuniones programadas por el líder sectorial de la política de Talento Humano e Integridad del MHCP y entregar la información requerida para el fortalecimiento y documentación  de estas políticas.","María Juliana Gutiérrez","María Juliana Gutiérrez","N/A",null,"Área Estrategia","N/A","-","-","-","-","2021-03-01","2021-12-31","2022-03-01","2022-12-31","Necesidades del SH","N/A","Talento Humano","Talento Humano e Integridad ",null,null,null,null,null,"N/A"]
[null,null,"GESTIÓN DE CAPACIDADES INSTITUCIONALES","GCI1. Fortalecer las capacidades del Talento Humano y la Innovación en las entidades del Sector Hacienda","SH.Ini.2019.2022. GCI1.001 Fortalecer la implementación de la política del Talento Humano en las Entidades del Sector Hacienda\n\nSH.Ini.2019.2022.GCI1.002 Fortalecer la implementación de la política de integridad en las Entidades del Sector","ICETEX","ICETEX > PAA 2022> Dimensión de Talento Humano","Beatriz Helena Torres Lizarazo\n","Participar en las mesas sectoriales de la dimensión de Talento Humano.","Participar en las reuniones programadas por el líder sectorial de la política de Talento Humano e Integridad del MHCP y entregar la información requerida para el fortalecimiento y documentación  de estas políticas.","Monica Daniela Cortes Muñoz <mcortesm@icetex.gov.co>","Monica Daniela Cortes Muñoz ","Rosa Maria Gonzalez Carvajal \nJohana Niño Acosta ",null,"Grupo de Talento humano de la Secretaria General ICETEX","N/A","-","-","-","-","2021-03-01","2021-12-31","2022-03-01","2022-12-31","Necesidades del SH","N/A","Talento Humano","Talento Humano e Integridad ",null,null,null,null,null,"N/A"]
[null,null,"GESTIÓN DE CAPACIDADES INSTITUCIONALES","GCI1. Fortalecer las capacidades del Talento Humano y la Innovación en las entidades del Sector Hacienda","SH.Ini.2019.2022. GCI1.001 Fortalecer la implementación de la política del Talento Humano en las Entidades del Sector Hacienda\n\nSH.Ini.2019.2022.GCI1.002 Fortalecer la implementación de la política de integridad en las Entidades del Sector","ITRC","ITRC > PAA 2022> Dimensión de Talento Humano","Nohora Beltrán Céspedes","Participar en las mesas sectoriales de la dimensión de Talento Humano.","Participar en las reuniones programadas por el líder sectorial de la política de Talento Humano e Integridad del MHCP y entregar la información requerida para el fortalecimiento y documentación  de estas políticas.","Ana Milena Ramírez Montealegre\nExperta Líder Talento Humano aramirez@itrc.gov.co","Ana Milena Ramírez Montealegre\n","William Jaime Bernal Ávila\n",null,"Secretaría General","N/A","-","-","-","-","2021-03-01","2021-12-31","2022-03-01","2022-12-31","Necesidades del SH","N/A","Talento Humano","Talento Humano e Integridad ",null,null,null,null,null,"N/A"]
[null,null,"GESTIÓN DE CAPACIDADES INSTITUCIONALES","GCI1. Fortalecer las capacidades del Talento Humano y la Innovación en las entidades del Sector Hacienda","SH.Ini.2019.2022. GCI1.001 Fortalecer la implementación de la política del Talento Humano en las Entidades del Sector Hacienda\n\nSH.Ini.2019.2022.GCI1.002 Fortalecer la implementación de la política de integridad en las Entidades del Sector","POSITIVA","POSITIVA > PAA 2022> Dimensión de Talento Humano","Carlos Augusto Mesa Diaz","Participar en las mesas sectoriales de la dimensión de Talento Humano.","Participar en las reuniones programadas por el líder sectorial de la política de Talento Humano e Integridad del MHCP y entregar la información requerida para el fortalecimiento y documentación  de estas políticas.","Oscar Saul Guerrero Bohórquez ","Oscar Saul Guerrero Bohórquez ","Oscar Saul Guerrero Bohórquez ",null,"Gerencia de Talento Humano","N/A","-","-","-","-","2021-03-01","2021-12-31","2022-03-01","2022-12-31","Necesidades del SH","N/A","Talento Humano","Talento Humano e Integridad ",null,null,null,null,null,"N/A"]
[null,null,"GESTIÓN DE CAPACIDADES INSTITUCIONALES","GCI1. Fortalecer las capacidades del Talento Humano y la Innovación en las entidades del Sector Hacienda","SH.Ini.2019.2022. GCI1.001 Fortalecer la implementación de la política del Talento Humano en las Entidades del Sector Hacienda\n\nSH.Ini.2019.2022.GCI1.002 Fortalecer la implementación de la política de integridad en las Entidades del Sector","PREVISORA","PREVISORA > PAA 2022> Dimensión de Talento Humano","José Fernando Pulido Sierra","Participar en las mesas sectoriales de la dimensión de Talento Humano.","Participar en las reuniones programadas por el líder sectorial de la política de Talento Humano e Integridad del MHCP y entregar la información requerida para el fortalecimiento y documentación  de estas políticas.","Verónica Tatiana Urrutia","Verónica Tatiana Urrutia","N/A",null,"Gerencia de Talento Humano","N/A","-","-","-","-","2021-03-01","2021-12-31","2022-03-01","2022-12-31","Necesidades del SH","N/A","Talento Humano","Talento Humano e Integridad ",null,null,null,null,null,"N/A"]
[null,null,"GESTIÓN DE CAPACIDADES INSTITUCIONALES","GCI1. Fortalecer las capacidades del Talento Humano y la Innovación en las entidades del Sector Hacienda","SH.Ini.2019.2022. GCI1.001 Fortalecer la implementación de la política del Talento Humano en las Entidades del Sector Hacienda\n\nSH.Ini.2019.2022.GCI1.002 Fortalecer la implementación de la política de integridad en las Entidades del Sector","SAE","SAE > PAA 2022> Dimensión de Talento Humano","Jaime Leon Gómez Salazar","Participar en las mesas sectoriales de la dimensión de Talento Humano.","Participar en las reuniones programadas por el líder sectorial de la política de Talento Humano e Integridad del MHCP y entregar la información requerida para el fortalecimiento y documentación  de estas políticas.","Sandra Milena Martinez\nsmartinez@saesas.gov.co","Sandra Milena Martinez\n","Maria Consuelo Garcia\n",null,"Gerencia Talento Humano","N/A","-","-","-","-","2021-03-01","2021-12-31","2022-03-01","2022-12-31","Necesidades del SH","N/A","Talento Humano","Talento Humano e Integridad ",null,null,null,null,null,"N/A"]
[null,null,"GESTIÓN DE CAPACIDADES INSTITUCIONALES","GCI1. Fortalecer las capacidades del Talento Humano y la Innovación en las entidades del Sector Hacienda","SH.Ini.2019.2022. GCI1.001 Fortalecer la implementación de la política del Talento Humano en las Entidades del Sector Hacienda\n\nSH.Ini.2019.2022.GCI1.002 Fortalecer la implementación de la política de integridad en las Entidades del Sector","SUPERFINANCIERA","SUPERFINANCIERA > PAA 2022> Dimensión de Talento Humano","José Gabriel Sánchez Sousa","Participar en las mesas sectoriales de la dimensión de Talento Humano.","Participar en las reuniones programadas por el líder sectorial de la política de Talento Humano e Integridad del MHCP y entregar la información requerida para el fortalecimiento y documentación  de estas políticas.","Sergio Esteban Varela","Sergio Esteban Varela","Haydee Vanessa Ibagon Ibagon ",null,"Subdirección de Talento Humano","N/A","-","-","-","-","2021-03-01","2021-12-31","2022-03-01","2022-12-31","Necesidades del SH","N/A","Talento Humano","Talento Humano e Integridad ",null,null,null,null,null,"N/A"]
[null,null,"GESTIÓN DE CAPACIDADES INSTITUCIONALES","GCI1. Fortalecer las capacidades del Talento Humano y la Innovación en las entidades del Sector Hacienda","SH.Ini.2019.2022. GCI1.001 Fortalecer la implementación de la política del Talento Humano en las Entidades del Sector Hacienda\n\nSH.Ini.2019.2022.GCI1.002 Fortalecer la implementación de la política de integridad en las Entidades del Sector","SUPERSOLIDARIA","SUPERSOLIDARIA > PAA 2022> Dimensión de Talento Humano","Robin Andrey Suarez Toscano ","Participar en las mesas sectoriales de la dimensión de Talento Humano.","Participar en las reuniones programadas por el líder sectorial de la política de Talento Humano e Integridad del MHCP y entregar la información requerida para el fortalecimiento y documentación  de estas políticas.","Olga Lucia Muñoz Muñoz","Felipe Mancera Rojas ","N/A",null,"Oficina Asesora de Planeación y Sistemas ","N/A","-","-","-","-","2021-03-01","2021-12-31","2022-03-01","2022-12-31","Necesidades del SH","N/A","Talento Humano","Talento Humano e Integridad ",null,null,null,null,null,"N/A"]
[null,null,"GESTIÓN DE CAPACIDADES INSTITUCIONALES","GCI1. Fortalecer las capacidades del Talento Humano y la Innovación en las entidades del Sector Hacienda","SH.Ini.2019.2022. GCI1.001 Fortalecer la implementación de la política del Talento Humano en las Entidades del Sector Hacienda\n\nSH.Ini.2019.2022.GCI1.002 Fortalecer la implementación de la política de integridad en las Entidades del Sector","UGPP","UGPP > PAA 2022> Dimensión de Talento Humano","Ana María Cadena","Participar en las mesas sectoriales de la dimensión de Talento Humano.","Participar en las reuniones programadas por el líder sectorial de la política de Talento Humano e Integridad del MHCP y entregar la información requerida para el fortalecimiento y documentación  de estas políticas.","Germán Vega Rodríguez","Germán Vega Rodríguez","N/A",null,"Subdirección de Gestión Humana","N/A","-","-","-","-","2021-03-01","2021-12-31","2022-03-01","2022-12-31","Necesidades del SH","N/A","Talento Humano","Talento Humano e Integridad ",null,null,null,null,null,"N/A"]
[null,null,"GESTIÓN DE CAPACIDADES INSTITUCIONALES","GCI1. Fortalecer las capacidades del Talento Humano y la Innovación en las entidades del Sector Hacienda","SH.Ini.2019.2022. GCI1.001 Fortalecer la implementación de la política del Talento Humano en las Entidades del Sector Hacienda\n\nSH.Ini.2019.2022.GCI1.002 Fortalecer la implementación de la política de integridad en las Entidades del Sector","UIAF","UIAF > PAA 2022> Dimensión de Talento Humano","Nilgen Vargas Garcés","Participar en las mesas sectoriales de la dimensión de Talento Humano.","Participar en las reuniones programadas por el líder sectorial de la política de Talento Humano e Integridad del MHCP y entregar la información requerida para el fortalecimiento y documentación  de estas políticas.","Carlos Julio Buitrago Ortiz","Carlos Julio Buitrago Ortiz","Diana Katherine Gomez Salazar",null,"Subdirección Administrativa y Financiera - Talento Humano","N/A","-","-","-","-","2021-03-01","2021-12-31","2022-03-01","2022-12-31","Necesidades del SH","N/A","Talento Humano","Talento Humano e Integridad ",null,null,null,null,null,"N/A"]
[null,null,"GESTIÓN DE CAPACIDADES INSTITUCIONALES","GCI1. Fortalecer las capacidades del Talento Humano y la Innovación en las entidades del Sector Hacienda","SH.Ini.2019.2022. GCI1.001 Fortalecer la implementación de la política del Talento Humano en las Entidades del Sector Hacienda\n\nSH.Ini.2019.2022.GCI1.002 Fortalecer la implementación de la política de integridad en las Entidades del Sector","URF","URF > PAA 2022> Dimensión de Talento Humano","Ivonnie Edith Gallardo","Participar en las mesas sectoriales de la dimensión de Talento Humano.","Participar en las reuniones programadas por el líder sectorial de la política de Talento Humano e Integridad del MHCP y entregar la información requerida para el fortalecimiento y documentación  de estas políticas.","Paola Patricia Rodriguez","Paola Patricia Rodriguez","N/A",null,"Subdirección Jurídica y de Gestión Institucional ","N/A","-","-","-","-","2021-03-01","2021-12-31","2022-03-01","2022-12-31","Necesidades del SH","N/A","Talento Humano","Talento Humano e Integridad ",null,null,null,null,null,"N/A"]
[null,null,"GESTIÓN DE CAPACIDADES INSTITUCIONALES","GCI1. Fortalecer las capacidades del Talento Humano y la Innovación en las entidades del Sector Hacienda","SH.Ini.2019.2022.GCI1.001 Fortalecer la implementación de la política del Talento Humano en las Entidades del Sector Hacienda\n\nSH.Ini.2019.2022.GCI1.002 Fortalecer la implementación de la política de integridad en las Entidades del Sector","MHCP","MHCP>PAA 2022>Ruta de Creación de Valor","Fernando Carvajal","Coordinar las capacitaciones sectoriales de la dimensión de Talento Humano","Organizar las capacitaciones sectoriales de la política de Talento Humano de conformidad con las posibilidades y apoyo de las demás Entidades del Sector según el caso.\n\nEntregable. Listado de asistencia o presentación de la capacitación.","En desarrollo","Lia Carolina Cabrejo","N/A",null,"Subdirección de Gestión del Talento Humano ","N/A","-","-","-","-","2021-03-01","2021-12-31","2022-03-01","2022-12-31","Necesidades del SH","N/A","Talento Humano","Talento Humano e Integridad "]
[null,null,"GESTIÓN DE CAPACIDADES INSTITUCIONALES","GCI1. Fortalecer las capacidades del Talento Humano y la Innovación en las entidades del Sector Hacienda","SH.Ini.2019.2022.GCI1.001 Fortalecer la implementación de la política del Talento Humano en las Entidades del Sector Hacienda\n\nSH.Ini.2019.2022.GCI1.002 Fortalecer la implementación de la política de integridad en las Entidades del Sector","BANCO AGRARIO","BANCO AGRARIO> PAA 2022> Ruta de Creación de Valor","Sandra Patricia Villabona","Participar en las capacitaciones sectoriales de la dimensión de Talento Humano","Participar en las capacitaciones sectoriales de la dimensión de Talento Humano de conformidad con las posibilidades y apoyo de las demás Entidades del Sector según el caso.",null,"David Jimeno Saavedra Buitrago","N/A",null,"Vicepresidencia de Talento Humano","N/A","-","-","-","-","2021-03-01","2021-12-31","2022-03-01","2022-12-31","Necesidades del SH","N/A","Talento Humano","Talento Humano e Integridad "]
[null,null,"GESTIÓN DE CAPACIDADES INSTITUCIONALES","GCI1. Fortalecer las capacidades del Talento Humano y la Innovación en las entidades del Sector Hacienda","SH.Ini.2019.2022.GCI1.001 Fortalecer la implementación de la política del Talento Humano en las Entidades del Sector Hacienda\n\nSH.Ini.2019.2022.GCI1.002 Fortalecer la implementación de la política de integridad en las Entidades del Sector","BANCOLDEX","BANCOLDEX> PAA 2022 > Ruta de Creación de Valor","María José Naranjo","Participar en las capacitaciones sectoriales de la dimensión de Talento Humano","Participar en las capacitaciones sectoriales de la dimensión de Talento Humano de conformidad con las posibilidades y apoyo de las demás Entidades del Sector según el caso.\n",null,"Gloria Cortés\n","N/A",null,"Departamento de Talento Humano","N/A","-","-","-","-","2021-03-01","2021-12-31","2022-03-01","2022-12-31","Necesidades del SH","N/A","Talento Humano","Talento Humano e Integridad "]
[null,null,"GESTIÓN DE CAPACIDADES INSTITUCIONALES","GCI1. Fortalecer las capacidades del Talento Humano y la Innovación en las entidades del Sector Hacienda","SH.Ini.2019.2022.GCI1.001 Fortalecer la implementación de la política del Talento Humano en las Entidades del Sector Hacienda\n\nSH.Ini.2019.2022.GCI1.002 Fortalecer la implementación de la política de integridad en las Entidades del Sector","CISA","CISA> PAA 2022> Ruta de Creación de Valor","Juan Felipe Robles","Participar en las capacitaciones sectoriales de la dimensión de Talento Humano","Participar en las capacitaciones sectoriales de la dimensión de Talento Humano de conformidad con las posibilidades y apoyo de las demás Entidades del Sector según el caso.\n",null,"Sandra Viviana Neira ","N.A",null,"Departamento de Talento Humano","N/A","-","-","-","-","2021-03-01","2021-12-31","2022-03-01","2022-12-31","Necesidades del SH","N/A","Talento Humano","Talento Humano e Integridad "]
[null,null,"GESTIÓN DE CAPACIDADES INSTITUCIONALES","GCI1. Fortalecer las capacidades del Talento Humano y la Innovación en las entidades del Sector Hacienda","SH.Ini.2019.2022.GCI1.001 Fortalecer la implementación de la política del Talento Humano en las Entidades del Sector Hacienda\n\nSH.Ini.2019.2022.GCI1.002 Fortalecer la implementación de la política de integridad en las Entidades del Sector","COLJUEGOS","COLJUEGOS> PAA 2022> Ruta de Creación de Valor","Roger José Carrillo Campo ","Participar en las capacitaciones sectoriales de la dimensión de Talento Humano","Participar en las capacitaciones sectoriales de la dimensión de Talento Humano de conformidad con las posibilidades y apoyo de las demás Entidades del Sector según el caso.\n",null,"Alexandra Torres Gonzalez","Juan Felipe Mahecha Cordoba",null,"Oficina Asesora de Planeación","N/A","-","-","-","-","2021-03-01","2021-12-31","2022-03-01","2022-12-31","Necesidades del SH","N/A","Talento Humano","Talento Humano e Integridad "]
[null,null,"GESTIÓN DE CAPACIDADES INSTITUCIONALES","GCI1. Fortalecer las capacidades del Talento Humano y la Innovación en las entidades del Sector Hacienda","SH.Ini.2019.2022.GCI1.001 Fortalecer la implementación de la política del Talento Humano en las Entidades del Sector Hacienda\n\nSH.Ini.2019.2022.GCI1.002 Fortalecer la implementación de la política de integridad en las Entidades del Sector","CGN","CGN > PAA 2022> Ruta de Creación de Valor","Henry Ramírez Montes","Participar en las capacitaciones sectoriales de la dimensión de Talento Humano","Participar en las capacitaciones sectoriales de la dimensión de Talento Humano de conformidad con las posibilidades y apoyo de las demás Entidades del Sector según el caso.\n",null,"Wilson Eduardo Cifuentes","Wilson Alberto Restrepo",null,"GIT de Talento Humano","N/A","-","-","-","-","2021-03-01","2021-12-31","2022-03-01","2022-12-31","Necesidades del SH","N/A","Talento Humano","Talento Humano e Integridad "]
[null,null,"GESTIÓN DE CAPACIDADES INSTITUCIONALES","GCI1. Fortalecer las capacidades del Talento Humano y la Innovación en las entidades del Sector Hacienda","SH.Ini.2019.2022.GCI1.001 Fortalecer la implementación de la política del Talento Humano en las Entidades del Sector Hacienda\n\nSH.Ini.2019.2022.GCI1.002 Fortalecer la implementación de la política de integridad en las Entidades del Sector","DIAN","DIAN > PAA 2022> Ruta de Creación de Valor","Catalina Garcia Cure","Participar en las capacitaciones sectoriales de la dimensión de Talento Humano","Participar en las capacitaciones sectoriales de la dimensión de Talento Humano de conformidad con las posibilidades y apoyo de las demás Entidades del Sector según el caso.\n",null,"Constanza Del Pilar Rodríguez Páez","Jaime Ricardo Saavedra Patarroyo",null,"Subdirección de Gestión de Personal","N/A","-","-","-","-","2021-03-01","2021-12-31","2022-03-01","2022-12-31","Necesidades del SH","N/A","Talento Humano","Talento Humano e Integridad "]
[null,null,"GESTIÓN DE CAPACIDADES INSTITUCIONALES","GCI1. Fortalecer las capacidades del Talento Humano y la Innovación en las entidades del Sector Hacienda","SH.Ini.2019.2022.GCI1.001 Fortalecer la implementación de la política del Talento Humano en las Entidades del Sector Hacienda\n\nSH.Ini.2019.2022.GCI1.002 Fortalecer la implementación de la política de integridad en las Entidades del Sector","ENTERRITORIO","ENTERRITORIO> PAA 2022 > Ruta de Creación de Valor","Carlos Eduardo Umaña Lizarazo","Participar en las capacitaciones sectoriales de la dimensión de Talento Humano","Participar en las capacitaciones sectoriales de la dimensión de Talento Humano de conformidad con las posibilidades y apoyo de las demás Entidades del Sector según el caso.\n",null,"Marta Liced Rodriguez Quimbayo","Anny Alvarez Mendoza",null,"Grupo de Planeación y Gestión de Riesgos","N/A","-","-","-","-","2021-03-01","2021-12-31","2022-03-01","2022-12-31","Necesidades del SH","N/A","Talento Humano","Talento Humano e Integridad "]
[null,null,"GESTIÓN DE CAPACIDADES INSTITUCIONALES","GCI1. Fortalecer las capacidades del Talento Humano y la Innovación en las entidades del Sector Hacienda","SH.Ini.2019.2022.GCI1.001 Fortalecer la implementación de la política del Talento Humano en las Entidades del Sector Hacienda\n\nSH.Ini.2019.2022.GCI1.002 Fortalecer la implementación de la política de integridad en las Entidades del Sector","FDN","FDN > PAA 2022 > Ruta de Creación de Valor","Carolina Hernández","Participar en las capacitaciones sectoriales de la dimensión de Talento Humano","Participar en las capacitaciones sectoriales de la dimensión de Talento Humano de conformidad con las posibilidades y apoyo de las demás Entidades del Sector según el caso.\n",null,"Maria Alejandra Rueda","N/A",null,"Talento Humano y Administrativo","N/A","-","-","-","-","2021-03-01","2021-12-31","2022-03-01","2022-12-31","Necesidades del SH","N/A","Talento Humano","Talento Humano e Integridad "]
[null,null,"GESTIÓN DE CAPACIDADES INSTITUCIONALES","GCI1. Fortalecer las capacidades del Talento Humano y la Innovación en las entidades del Sector Hacienda","SH.Ini.2019.2022.GCI1.001 Fortalecer la implementación de la política del Talento Humano en las Entidades del Sector Hacienda\n\nSH.Ini.2019.2022.GCI1.002 Fortalecer la implementación de la política de integridad en las Entidades del Sector","FIDUAGRARIA","FIDUAGRARIA> PAA 2022> Ruta de Creación de Valor","Luz Marina Fernández Bello ","Participar en las capacitaciones sectoriales de la dimensión de Talento Humano","Participar en las capacitaciones sectoriales de la dimensión de Talento Humano de conformidad con las posibilidades y apoyo de las demás Entidades del Sector según el caso.\n",null,"Adriana Marcela Fuente Estrada","Melissa Lorena Lasprilla Vanegas\n\nMariana Morales Rojas ",null,"Jefatura de Talento Humano","N/A","-","-","-","-","2021-03-01","2021-12-31","2022-03-01","2022-12-31","Necesidades del SH","N/A","Talento Humano","Talento Humano e Integridad "]
[null,null,"GESTIÓN DE CAPACIDADES INSTITUCIONALES","GCI1. Fortalecer las capacidades del Talento Humano y la Innovación en las entidades del Sector Hacienda","SH.Ini.2019.2022.GCI1.001 Fortalecer la implementación de la política del Talento Humano en las Entidades del Sector Hacienda\n\nSH.Ini.2019.2022.GCI1.002 Fortalecer la implementación de la política de integridad en las Entidades del Sector","FIDUCOLDEX","FIDUCOLDEX> PAA 2022> Ruta de Creación de Valor","Andrés Barco","Participar en las capacitaciones sectoriales de la dimensión de Talento Humano","Participar en las capacitaciones sectoriales de la dimensión de Talento Humano de conformidad con las posibilidades y apoyo de las demás Entidades del Sector según el caso.\n",null,"Angelly Coy","N/A",null,"Dirección de Gestión Humana","N/A","-","-","-","-","2021-03-01","2021-12-31","2022-03-01","2022-12-31","Necesidades del SH","N/A","Talento Humano","Talento Humano e Integridad "]
[null,null,"GESTIÓN DE CAPACIDADES INSTITUCIONALES","GCI1. Fortalecer las capacidades del Talento Humano y la Innovación en las entidades del Sector Hacienda","SH.Ini.2019.2022.GCI1.001 Fortalecer la implementación de la política del Talento Humano en las Entidades del Sector Hacienda\n\nSH.Ini.2019.2022.GCI1.002 Fortalecer la implementación de la política de integridad en las Entidades del Sector","FIDUPREVISORA","FIDUPREVISORA > PAA 2022 > Ruta de Creación de Valor","Magda Nancy Manosalva Cely","Participar en las capacitaciones sectoriales de la dimensión de Talento Humano","Participar en las capacitaciones sectoriales de la dimensión de Talento Humano de conformidad con las posibilidades y apoyo de las demás Entidades del Sector según el caso.\n",null,"Karen Pardo","Maria Fernanda Gómez",null,"Vicepresidencia de Desarrollo y Soporte Organizacional - Dirección de Talento Humano","N/A","-","-","-","-","2021-03-01","2021-12-31","2022-03-01","2022-12-31","Necesidades del SH","N/A","Talento Humano","Talento Humano e Integridad "]
[null,null,"GESTIÓN DE CAPACIDADES INSTITUCIONALES","GCI1. Fortalecer las capacidades del Talento Humano y la Innovación en las entidades del Sector Hacienda","SH.Ini.2019.2022.GCI1.001 Fortalecer la implementación de la política del Talento Humano en las Entidades del Sector Hacienda\n\nSH.Ini.2019.2022.GCI1.002 Fortalecer la implementación de la política de integridad en las Entidades del Sector","FINAGRO","FINAGRO> PAA 2022> Ruta de Creación de Valor","Juan Carlos Restrepo González","Participar en las capacitaciones sectoriales de la dimensión de Talento Humano","Participar en las capacitaciones sectoriales de la dimensión de Talento Humano de conformidad con las posibilidades y apoyo de las demás Entidades del Sector según el caso.\n",null,"Marisol Duque Gómez\n","Dalia Marcela Leaño\nMaría Helena Reyes Donadlo \n",null,"Dirección de Talento Humano","N/A","-","-","-","-","2021-03-01","2021-12-31","2022-03-01","2022-12-31","Necesidades del SH","N/A","Talento Humano","Talento Humano e Integridad "]
[null,null,"GESTIÓN DE CAPACIDADES INSTITUCIONALES","GCI1. Fortalecer las capacidades del Talento Humano y la Innovación en las entidades del Sector Hacienda","SH.Ini.2019.2022.GCI1.001 Fortalecer la implementación de la política del Talento Humano en las Entidades del Sector Hacienda\n\nSH.Ini.2019.2022.GCI1.002 Fortalecer la implementación de la política de integridad en las Entidades del Sector","FINDETER","FINDETER > PAA 2022 > Ruta de Creación de Valor","Laura Mercedes Peña Rodríguez","Participar en las capacitaciones sectoriales de la dimensión de Talento Humano","Participar en las capacitaciones sectoriales de la dimensión de Talento Humano de conformidad con las posibilidades y apoyo de las demás Entidades del Sector según el caso.\n",null,"Jorge Luis Giraldo ","N/A",null," Jefatura de Talento Humano","N/A","-","-","-","-","2021-03-01","2021-12-31","2022-03-01","2022-12-31","Necesidades del SH","N/A","Talento Humano","Talento Humano e Integridad "]
[null,null,"GESTIÓN DE CAPACIDADES INSTITUCIONALES","GCI1. Fortalecer las capacidades del Talento Humano y la Innovación en las entidades del Sector Hacienda","SH.Ini.2019.2022.GCI1.001 Fortalecer la implementación de la política del Talento Humano en las Entidades del Sector Hacienda\n\nSH.Ini.2019.2022.GCI1.002 Fortalecer la implementación de la política de integridad en las Entidades del Sector","FOGACOOP","FOGACOOP > PAA 2022> Ruta de Creación de Valor","Adriana Mcallister Braidy","Participar en las capacitaciones sectoriales de la dimensión de Talento Humano","Participar en las capacitaciones sectoriales de la dimensión de Talento Humano de conformidad con las posibilidades y apoyo de las demás Entidades del Sector según el caso.\n",null,"Elena Alexandra Bustos Duran ","Zulma Liliana López Zuluaga",null,"Coordinación Administrativa ","N/A","-","-","-","-","2021-03-01","2021-12-31","2022-03-01","2022-12-31","Necesidades del SH","N/A","Talento Humano","Talento Humano e Integridad "]
[null,null,"GESTIÓN DE CAPACIDADES INSTITUCIONALES","GCI1. Fortalecer las capacidades del Talento Humano y la Innovación en las entidades del Sector Hacienda","SH.Ini.2019.2022.GCI1.001 Fortalecer la implementación de la política del Talento Humano en las Entidades del Sector Hacienda\n\nSH.Ini.2019.2022.GCI1.002 Fortalecer la implementación de la política de integridad en las Entidades del Sector","FOGAFIN","FOGAFIN > PAA 2022> Ruta de Creación de Valor","Carlos Alberto Sánchez del Valle","Participar en las capacitaciones sectoriales de la dimensión de Talento Humano","Participar en las capacitaciones sectoriales de la dimensión de Talento Humano de conformidad con las posibilidades y apoyo de las demás Entidades del Sector según el caso.\n",null,"Carlos Alberto Sánchez del Valle","N/A",null,"Departamento de Talento Humano","N/A","-","-","-","-","2021-03-01","2021-12-31","2022-03-01","2022-12-31","Necesidades del SH","N/A","Talento Humano","Talento Humano e Integridad "]
[null,null,"GESTIÓN DE CAPACIDADES INSTITUCIONALES","GCI1. Fortalecer las capacidades del Talento Humano y la Innovación en las entidades del Sector Hacienda","SH.Ini.2019.2022.GCI1.001 Fortalecer la implementación de la política del Talento Humano en las Entidades del Sector Hacienda\n\nSH.Ini.2019.2022.GCI1.002 Fortalecer la implementación de la política de integridad en las Entidades del Sector","FONDO ADAPTACIÓN","FONDO ADAPTACIÓN > PAA 2022> Ruta de Creación de Valor","Alejandro Venegas","Participar en las capacitaciones sectoriales de la dimensión de Talento Humano","Participar en las capacitaciones sectoriales de la dimensión de Talento Humano de conformidad con las posibilidades y apoyo de las demás Entidades del Sector según el caso.\n",null,"Catalina Soto Velasco","Mónica Flórez ",null,"Talento Humano","N/A","-","-","-","-","2021-03-01","2021-12-31","2022-03-01","2022-12-31","Necesidades del SH","N/A","Talento Humano","Talento Humano e Integridad "]
[null,null,"GESTIÓN DE CAPACIDADES INSTITUCIONALES","GCI1. Fortalecer las capacidades del Talento Humano y la Innovación en las entidades del Sector Hacienda","SH.Ini.2019.2022.GCI1.001 Fortalecer la implementación de la política del Talento Humano en las Entidades del Sector Hacienda\n\nSH.Ini.2019.2022.GCI1.002 Fortalecer la implementación de la política de integridad en las Entidades del Sector","FONDO NACIONAL DEL AHORRO","FONDO NACIONAL DEL AHORRO> PAA 2022> Ruta de Creación de Valor","Kennicher Arias Roa","Participar en las capacitaciones sectoriales de la dimensión de Talento Humano","Participar en las capacitaciones sectoriales de la dimensión de Talento Humano de conformidad con las posibilidades y apoyo de las demás Entidades del Sector según el caso.\n",null,"Monica Bibiana Martinez\n","Monica Pedraza \n Mónica Bibiana Martínez",null,"División Gestión Humana","N/A","-","-","-","-","2021-03-01","2021-12-31","2022-03-01","2022-12-31","Necesidades del SH","N/A","Talento Humano","Talento Humano e Integridad "]
[null,null,"GESTIÓN DE CAPACIDADES INSTITUCIONALES","GCI1. Fortalecer las capacidades del Talento Humano y la Innovación en las entidades del Sector Hacienda","SH.Ini.2019.2022.GCI1.001 Fortalecer la implementación de la política del Talento Humano en las Entidades del Sector Hacienda\n\nSH.Ini.2019.2022.GCI1.002 Fortalecer la implementación de la política de integridad en las Entidades del Sector","FONDO NACIONAL DE GARANTIAS","FONDO NACIONAL DE GARANTIAS> PAA 2022 > Ruta de Creación de Valor","Maria Angelica Burbano Sánchez","Participar en las capacitaciones sectoriales de la dimensión de Talento Humano","Participar en las capacitaciones sectoriales de la dimensión de Talento Humano de conformidad con las posibilidades y apoyo de las demás Entidades del Sector según el caso.\n",null,"Esther Julia Hernandez\n","Andrés Estrada Cardona \n",null,"Dirección de Gestión Humana","N/A","-","-","-","-","2021-03-01","2021-12-31","2022-03-01","2022-12-31","Necesidades del SH","N/A","Talento Humano","Talento Humano e Integridad "]
[null,null,"GESTIÓN DE CAPACIDADES INSTITUCIONALES","GCI1. Fortalecer las capacidades del Talento Humano y la Innovación en las entidades del Sector Hacienda","SH.Ini.2019.2022.GCI1.001 Fortalecer la implementación de la política del Talento Humano en las Entidades del Sector Hacienda\n\nSH.Ini.2019.2022.GCI1.002 Fortalecer la implementación de la política de integridad en las Entidades del Sector","GRUPO BICENTENARIO","GRUPO BICENTENARIO> PAA 2022> Ruta de Creación de Valor","Oscar Laureano Rosero Jiménez","Participar en las capacitaciones sectoriales de la dimensión de Talento Humano","Participar en las capacitaciones sectoriales de la dimensión de Talento Humano de conformidad con las posibilidades y apoyo de las demás Entidades del Sector según el caso.\n",null,"María Juliana Gutiérrez","N/A",null,"Área Estrategia","N/A","-","-","-","-","2021-03-01","2021-12-31","2022-03-01","2022-12-31","Necesidades del SH","N/A","Talento Humano","Talento Humano e Integridad "]
[null,null,"GESTIÓN DE CAPACIDADES INSTITUCIONALES","GCI1. Fortalecer las capacidades del Talento Humano y la Innovación en las entidades del Sector Hacienda","SH.Ini.2019.2022.GCI1.001 Fortalecer la implementación de la política del Talento Humano en las Entidades del Sector Hacienda\n\nSH.Ini.2019.2022.GCI1.002 Fortalecer la implementación de la política de integridad en las Entidades del Sector","ICETEX","ICETEX> PAA 2022> Ruta de Creación de Valor","Beatriz Helena Torres Lizarazo\n","Participar en las capacitaciones sectoriales de la dimensión de Talento Humano","Participar en las capacitaciones sectoriales de la dimensión de Talento Humano de conformidad con las posibilidades y apoyo de las demás Entidades del Sector según el caso.\n",null,"Monica Daniela Cortes Muñoz ","Rosa Maria Gonzalez Carvajal \nJohana Niño Acosta \nMiriam Cardona Giraldo ",null,"Grupo de Talento humano de la Secretaria General ICETEX","N/A","-","-","-","-","2021-03-01","2021-12-31","2022-03-01","2022-12-31","Necesidades del SH","N/A","Talento Humano","Talento Humano e Integridad "]
[null,null,"GESTIÓN DE CAPACIDADES INSTITUCIONALES","GCI1. Fortalecer las capacidades del Talento Humano y la Innovación en las entidades del Sector Hacienda","SH.Ini.2019.2022.GCI1.001 Fortalecer la implementación de la política del Talento Humano en las Entidades del Sector Hacienda\n\nSH.Ini.2019.2022.GCI1.002 Fortalecer la implementación de la política de integridad en las Entidades del Sector","ITRC","ITRC > PAA 2022> Ruta de Creación de Valor","Nohora Beltrán Céspedes","Participar en las capacitaciones sectoriales de la dimensión de Talento Humano","Participar en las capacitaciones sectoriales de la dimensión de Talento Humano de conformidad con las posibilidades y apoyo de las demás Entidades del Sector según el caso.\n",null,"Ana Milena Ramírez Montealegre\n","Karem Jimenez ",null,"Secretaría General","N/A","-","-","-","-","2021-03-01","2021-12-31","2022-03-01","2022-12-31","Necesidades del SH","N/A","Talento Humano","Talento Humano e Integridad "]
[null,null,"GESTIÓN DE CAPACIDADES INSTITUCIONALES","GCI1. Fortalecer las capacidades del Talento Humano y la Innovación en las entidades del Sector Hacienda","SH.Ini.2019.2022.GCI1.001 Fortalecer la implementación de la política del Talento Humano en las Entidades del Sector Hacienda\n\nSH.Ini.2019.2022.GCI1.002 Fortalecer la implementación de la política de integridad en las Entidades del Sector","POSITIVA","POSITIVA > PAA 2022> Ruta de Creación de Valor","Carlos Augusto Mesa Diaz","Participar en las capacitaciones sectoriales de la dimensión de Talento Humano","Participar en las capacitaciones sectoriales de la dimensión de Talento Humano de conformidad con las posibilidades y apoyo de las demás Entidades del Sector según el caso.\n",null,"Oscar Saul Guerrero Bohórquez ","Oscar Saul Guerrero Bohórquez",null,"Gerencia de Talento Humano","N/A","-","-","-","-","2021-03-01","2021-12-31","2022-03-01","2022-12-31","Necesidades del SH","N/A","Talento Humano","Talento Humano e Integridad "]
[null,null,"GESTIÓN DE CAPACIDADES INSTITUCIONALES","GCI1. Fortalecer las capacidades del Talento Humano y la Innovación en las entidades del Sector Hacienda","SH.Ini.2019.2022.GCI1.001 Fortalecer la implementación de la política del Talento Humano en las Entidades del Sector Hacienda\n\nSH.Ini.2019.2022.GCI1.002 Fortalecer la implementación de la política de integridad en las Entidades del Sector","PREVISORA","PREVISORA > PAA 2022> Ruta de Creación de Valor","José Fernando Pulido Sierra","Participar en las capacitaciones sectoriales de la dimensión de Talento Humano","Participar en las capacitaciones sectoriales de la dimensión de Talento Humano de conformidad con las posibilidades y apoyo de las demás Entidades del Sector según el caso.\n",null,"Verónica Tatiana Urrutia","N/A",null,"Gerencia de Talento Humano","N/A","-","-","-","-","2021-03-01","2021-12-31","2022-03-01","2022-12-31","Necesidades del SH","N/A","Talento Humano","Talento Humano e Integridad "]
[null,null,"GESTIÓN DE CAPACIDADES INSTITUCIONALES","GCI1. Fortalecer las capacidades del Talento Humano y la Innovación en las entidades del Sector Hacienda","SH.Ini.2019.2022.GCI1.001 Fortalecer la implementación de la política del Talento Humano en las Entidades del Sector Hacienda\n\nSH.Ini.2019.2022.GCI1.002 Fortalecer la implementación de la política de integridad en las Entidades del Sector","SAE","SAE > PAA 2022 > Ruta de Creación de Valor","Jaime Leon Gómez Salazar","Participar en las capacitaciones sectoriales de la dimensión de Talento Humano","Participar en las capacitaciones sectoriales de la dimensión de Talento Humano de conformidad con las posibilidades y apoyo de las demás Entidades del Sector según el caso.\n",null,"Sandra Milena Martinez","Maria Consuelo Garcia",null,"Gerencia Talento Humano","N/A","-","-","-","-","2021-03-01","2021-12-31","2022-03-01","2022-12-31","Necesidades del SH","N/A","Talento Humano","Talento Humano e Integridad "]
[null,null,"GESTIÓN DE CAPACIDADES INSTITUCIONALES","GCI1. Fortalecer las capacidades del Talento Humano y la Innovación en las entidades del Sector Hacienda","SH.Ini.2019.2022.GCI1.001 Fortalecer la implementación de la política del Talento Humano en las Entidades del Sector Hacienda\n\nSH.Ini.2019.2022.GCI1.002 Fortalecer la implementación de la política de integridad en las Entidades del Sector","SUPERFINANCIERA","SUPERFINANCIERA > PAA 2022> Ruta de Creación de Valor","José Gabriel Sánchez Sousa","Participar en las capacitaciones sectoriales de la dimensión de Talento Humano","Participar en las capacitaciones sectoriales de la dimensión de Talento Humano de conformidad con las posibilidades y apoyo de las demás Entidades del Sector según el caso.\n",null,"Sergio Esteban Varela Guzman","Haydee Vanessa Ibagon Ibagon ",null,"Subdirección de Talento Humano","N/A","-","-","-","-","2021-03-01","2021-12-31","2022-03-01","2022-12-31","Necesidades del SH","N/A","Talento Humano","Talento Humano e Integridad "]
[null,null,"GESTIÓN DE CAPACIDADES INSTITUCIONALES","GCI1. Fortalecer las capacidades del Talento Humano y la Innovación en las entidades del Sector Hacienda","SH.Ini.2019.2022.GCI1.001 Fortalecer la implementación de la política del Talento Humano en las Entidades del Sector Hacienda\n\nSH.Ini.2019.2022.GCI1.002 Fortalecer la implementación de la política de integridad en las Entidades del Sector","SUPERSOLIDARIA","SUPERSOLIDARIA> PAA 2022> Ruta de Creación de Valor","Robín Andrey Suarez Toscano","Participar en las capacitaciones sectoriales de la dimensión de Talento Humano","Participar en las capacitaciones sectoriales de la dimensión de Talento Humano de conformidad con las posibilidades y apoyo de las demás Entidades del Sector según el caso.\n",null,"Felipe Mancera Rojas ","N/A",null,"Oficina Asesora de Planeación y Sistemas ","N/A","-","-","-","-","2021-03-01","2021-12-31","2022-03-01","2022-12-31","Necesidades del SH","N/A","Talento Humano","Talento Humano e Integridad "]
[null,null,"GESTIÓN DE CAPACIDADES INSTITUCIONALES","GCI1. Fortalecer las capacidades del Talento Humano y la Innovación en las entidades del Sector Hacienda","SH.Ini.2019.2022.GCI1.001 Fortalecer la implementación de la política del Talento Humano en las Entidades del Sector Hacienda\n\nSH.Ini.2019.2022.GCI1.002 Fortalecer la implementación de la política de integridad en las Entidades del Sector","UGPP","UGPP > PAA 2022> Ruta de Creación de Valor","Ana María Cadena","Participar en las capacitaciones sectoriales de la dimensión de Talento Humano","Participar en las capacitaciones sectoriales de la dimensión de Talento Humano de conformidad con las posibilidades y apoyo de las demás Entidades del Sector según el caso.\n",null,"Germán Vega Rodríguez","N/A",null,"Subdirección de Gestión Humana","N/A","-","-","-","-","2021-03-01","2021-12-31","2022-03-01","2022-12-31","Necesidades del SH","N/A","Talento Humano","Talento Humano e Integridad "]
[null,null,"GESTIÓN DE CAPACIDADES INSTITUCIONALES","GCI1. Fortalecer las capacidades del Talento Humano y la Innovación en las entidades del Sector Hacienda","SH.Ini.2019.2022.GCI1.001 Fortalecer la implementación de la política del Talento Humano en las Entidades del Sector Hacienda\n\nSH.Ini.2019.2022.GCI1.002 Fortalecer la implementación de la política de integridad en las Entidades del Sector","UIAF","UIAF > PAA 2022> Ruta de Creación de Valor","Nilgen Vargas Garcés","Participar en las capacitaciones sectoriales de la dimensión de Talento Humano","Participar en las capacitaciones sectoriales de la dimensión de Talento Humano de conformidad con las posibilidades y apoyo de las demás Entidades del Sector según el caso.\n",null,"Carlos Julio Buitrago Ortiz","Diana Katherine Gomez Salazar",null,"Subdirección Administrativa y Financiera - Talento Humano","N/A","-","-","-","-","2021-03-01","2021-12-31","2022-03-01","2022-12-31","Necesidades del SH","N/A","Talento Humano","Talento Humano e Integridad "]
[null,null,"GESTIÓN DE CAPACIDADES INSTITUCIONALES","GCI1. Fortalecer las capacidades del Talento Humano y la Innovación en las entidades del Sector Hacienda","SH.Ini.2019.2022.GCI1.001 Fortalecer la implementación de la política del Talento Humano en las Entidades del Sector Hacienda\n\nSH.Ini.2019.2022.GCI1.002 Fortalecer la implementación de la política de integridad en las Entidades del Sector","URF","URF > PAA 2022 > Ruta de Creación de Valor","Ivonnie Edith Gallardo","Participar en las capacitaciones sectoriales de la dimensión de Talento Humano","Participar en las capacitaciones sectoriales de la dimensión de Talento Humano de conformidad con las posibilidades y apoyo de las demás Entidades del Sector según el caso.\n",null,"Paola Patricia Rodriguez","N/A",null,"Subdirección Jurídica y de Gestión Institucional ","N/A","-","-","-","-","2021-03-01","2021-12-31","2022-03-01","2022-12-31","Necesidades del SH","N/A","Talento Humano","Talento Humano e Integridad "]
[null,null,"GESTIÓN DE CAPACIDADES INSTITUCIONALES","GCI1. Fortalecer las capacidades del Talento Humano y la Innovación en las entidades del Sector Hacienda","SH.Ini.2019.2022.GCI1.002 Fortalecer la implementación de la política de integridad en las Entidades del Sector","MHCP","MHCP>PAA 2022 > Integridad","Fernando Carvajal","Participar en el conversatorio sobre conflicto de interés y lucha contra la corrupción.","Participarenelconversatorioparafortalecealinteriordelasentidadeslaimplementación de la política de integridad y los temas de conflicto de interés.\nEntregable: Listado de asistencia del conversatorio o reporte del MHCP indicando la asistencia por parte de la entidad correspondiente.","N/A","Hilda Veronica Tapasco","N/A",null,"Subdirección de Gestión del Talento Humano","N/A","-","-","-","-","-","-",null,null,"Necesidades del SH","N/A","Talento Humano","Talento Humano e Integridad "]
[null,null,"GESTIÓN DE CAPACIDADES INSTITUCIONALES","GCI1. Fortalecer las capacidades del Talento Humano y la Innovación en las entidades del Sector Hacienda","SH.Ini.2019.2022.GCI1.001 Fortalecer la implementación de la política del Talento Humano en las Entidades del Sector Hacienda","MHCP","MHCP>PAA 2022 > Ruta de Creación de Valor","Fernando Carvajal","Participar en el conversatorio sobre teletrabajo, trabajo en casa, trabajo remoto","Participar en el conversatorio que se gestionará con el apoyo del Departamento Administrativo de la Función Pública, Ministerio de Trabajo y Mintic, para fortalecer al interior de las entidades la implementación del teletrabajo, trabajo en casa y remoto. Entregable: Listado de asistencia del conversatorio o reporte del MHCP indicando la asistencia por parte de la entidad correspondiente","N/A","Hilda Veronica Tapasco","N/A",null,"Subdirección de Gestión del Talento Humano","N/A","-","-","-","-","-","-",null,null,"Necesidades del SH","N/A","Talento Humano","Talento Humano e Integridad "]
[null,null,"GESTIÓN DE CAPACIDADES INSTITUCIONALES","GCI1. Fortalecer las capacidades del Talento Humano y la Innovación en las entidades del Sector Hacienda","SH.Ini.2019.2022. GCI1.001 Fortalecer la implementación de la política del Talento Humano en las Entidades del Sector Hacienda","BANCO AGRARIO","BANCO AGRARIO > PAA 2022 > Ruta de Creación de Valor","Sandra Patricia Villabona","Analizar los resultados de la dimensión de Talento Humano en la medición del  Furag  de la vigencia  2020.","De acuerdo con los resultados obtenidos en la medición del FURAG de la gestión 2020, que realiza el DAFP en la vigencia 2021. Cada entidad del Sector Hacienda, analizará sus resultados y ajustará cuando lo considere pertinente, los planes con el propósito de generar acciones que permitan cerrar brecha, en relación con la política de Talento Humano y de integridad.\nEntregable. Documento que soporte el análisis de los resultados del Furag o planes ajustados.","David Jimeno Saavedra Buitrago","N/A","Vicepresidencia de Talento Humano",null,"N/A","-","-","-","-","2021-03-01","2021-11-30","-","2022-03-01","2022-11-30","Necesidades del SH","N/A","Talento Humano","Talento Humano e Integridad "]
[null,207.0,"GESTIÓN DE CAPACIDADES INSTITUCIONALES","GCI1. Fortalecer las capacidades del Talento Humano y la Innovación en las entidades del Sector Hacienda","SH.Ini.2019.2022. GCI1.001 Fortalecer la implementación de la política del Talento Humano en las Entidades del Sector Hacienda","CISA","CISA >PAA 2022 > Ruta de Creación de Valor","Juan Felipe Robles","Analizar los resultados de la dimensión de Talento Humano en la medición del  Furag  de la vigencia  2020.","De acuerdo con los resultados obtenidos en la medición del FURAG de la gestión 2020, que realiza el DAFP en la vigencia 2021. Cada entidad del Sector Hacienda, analizará sus resultados y ajustará cuando lo considere pertinente, los planes con el propósito de generar acciones que permitan cerrar brecha, en relación con la política de Talento Humano y de integridad.\nEntregable. Documento que soporte el análisis de los resultados del Furag o planes ajustados.","Sandra Viviana Neira ","N.A","Gerencia de Recursos",null,"N/A","-","-","-","-","2021-03-01","2021-11-30","-","2022-03-01","2022-11-30","Necesidades del SH","N/A","Talento Humano","Talento Humano e Integridad "]
[null,208.0,"GESTIÓN DE CAPACIDADES INSTITUCIONALES","GCI1. Fortalecer las capacidades del Talento Humano y la Innovación en las entidades del Sector Hacienda","SH.Ini.2019.2022. GCI1.001 Fortalecer la implementación de la política del Talento Humano en las Entidades del Sector Hacienda","COLJUEGOS","COLJUEGOS> PAA 2022 > Ruta de Creación de Valor","Roger José Carrillo Campo ","Analizar los resultados de la dimensión de Talento Humano en la medición del  Furag  de la vigencia  2020.","De acuerdo con los resultados obtenidos en la medición del FURAG de la gestión 2020, que realiza el DAFP en la vigencia 2021. Cada entidad del Sector Hacienda, analizará sus resultados y ajustará cuando lo considere pertinente, los planes con el propósito de generar acciones que permitan cerrar brecha, en relación con la política de Talento Humano y de integridad.\nEntregable. Documento que soporte el análisis de los resultados del Furag o planes ajustados.","Alexandra Torres Gonzalez","Juan Felipe Mahecha Cordoba","Oficina Asesora de Planeación",null,"N/A","-","-","-","-","2021-03-01","2021-11-30","-","2022-03-01","2022-11-30","Necesidades del SH","N/A","Talento Humano","Talento Humano e Integridad "]
[null,209.0,"GESTIÓN DE CAPACIDADES INSTITUCIONALES","GCI1. Fortalecer las capacidades del Talento Humano y la Innovación en las entidades del Sector Hacienda","SH.Ini.2019.2022. GCI1.001 Fortalecer la implementación de la política del Talento Humano en las Entidades del Sector Hacienda","CGN","CGN > PAA 2022 > Ruta de Creación de Valor","Henry Ramírez Montes","Analizar los resultados de la dimensión de Talento Humano en la medición del  Furag  de la vigencia  2020.","De acuerdo con los resultados obtenidos en la medición del FURAG de la gestión 2020, que realiza el DAFP en la vigencia 2021. Cada entidad del Sector Hacienda, analizará sus resultados y ajustará cuando lo considere pertinente, los planes con el propósito de generar acciones que permitan cerrar brecha, en relación con la política de Talento Humano y de integridad.\nEntregable. Documento que soporte el análisis de los resultados del Furag o planes ajustados.","Wilson Cifuentes","Wilson Alberto Restrepo","GIT de Talento Humano",null,"N/A","-","-","-","-","2021-03-01","2021-11-30","-","2022-03-01","2022-11-30","Necesidades del SH","N/A","Talento Humano","Talento Humano e Integridad "]
[null,210.0,"GESTIÓN DE CAPACIDADES INSTITUCIONALES","GCI1. Fortalecer las capacidades del Talento Humano y la Innovación en las entidades del Sector Hacienda","SH.Ini.2019.2022. GCI1.001 Fortalecer la implementación de la política del Talento Humano en las Entidades del Sector Hacienda","DIAN","DIAN > PAA 2022 > Ruta de Creación de Valor","Catalina Garcia Cure","Analizar los resultados de la dimensión de Talento Humano en la medición del  Furag  de la vigencia  2020.","De acuerdo con los resultados obtenidos en la medición del FURAG de la gestión 2020, que realiza el DAFP en la vigencia 2021. Cada entidad del Sector Hacienda, analizará sus resultados y ajustará cuando lo considere pertinente, los planes con el propósito de generar acciones que permitan cerrar brecha, en relación con la política de Talento Humano y de integridad.\nEntregable. Documento que soporte el análisis de los resultados del Furag o planes ajustados.","Constanza Del Pilar Rodríguez Páez","Jaime Ricardo Saavedra Patarroyo","Subdirección de Gestión de Personal",null,"N/A","-","-","-","-","2021-03-01","2021-11-30","-","2022-03-01","2022-11-30","Necesidades del SH","N/A","Talento Humano","Talento Humano e Integridad "]
[null,211.0,"GESTIÓN DE CAPACIDADES INSTITUCIONALES","GCI1. Fortalecer las capacidades del Talento Humano y la Innovación en las entidades del Sector Hacienda","SH.Ini.2019.2022. GCI1.001 Fortalecer la implementación de la política del Talento Humano en las Entidades del Sector Hacienda","ENTERRITORIO","ENTERRITORIO>PAA 2022 > Ruta de Creación de Valor","Carlos Eduardo Umaña Lizarazo","Analizar los resultados de la dimensión de Talento Humano en la medición del  Furag  de la vigencia  2020.","De acuerdo con los resultados obtenidos en la medición del FURAG de la gestión 2020, que realiza el DAFP en la vigencia 2021. Cada entidad del Sector Hacienda, analizará sus resultados y ajustará cuando lo considere pertinente, los planes con el propósito de generar acciones que permitan cerrar brecha, en relación con la política de Talento Humano y de integridad.\nEntregable. Documento que soporte el análisis de los resultados del Furag o planes ajustados.","Marta Liced Rodriguez Quimbayo","Anny Alvarez Mendoza","Grupo de Planeación y Gestión de Riesgos",null,"N/A","-","-","-","-","2021-03-01","2021-11-30","-","2022-03-01","2022-11-30","Necesidades del SH","N/A","Talento Humano","Talento Humano e Integridad "]
[null,212.0,"GESTIÓN DE CAPACIDADES INSTITUCIONALES","GCI1. Fortalecer las capacidades del Talento Humano y la Innovación en las entidades del Sector Hacienda","SH.Ini.2019.2022. GCI1.001 Fortalecer la implementación de la política del Talento Humano en las Entidades del Sector Hacienda","FIDUAGRARIA","FIDUAGRARIA>PAA 2022 > Ruta de Creación de Valor","Luz Marina Fernández Bello ","Analizar los resultados de la dimensión de Talento Humano en la medición del  Furag  de la vigencia  2020.","De acuerdo con los resultados obtenidos en la medición del FURAG de la gestión 2020, que realiza el DAFP en la vigencia 2021. Cada entidad del Sector Hacienda, analizará sus resultados y ajustará cuando lo considere pertinente, los planes con el propósito de generar acciones que permitan cerrar brecha, en relación con la política de Talento Humano y de integridad.\nEntregable. Documento que soporte el análisis de los resultados del Furag o planes ajustados.","Adriana Marcela Fuente Estrada","Melissa Lorena Lasprilla \n\nMariana Morales Rojas  ","Jefatura de Talento Humano",null,"N/A","-","-","-","-","2021-03-01","2021-11-30","-","2022-03-01","2022-11-30","Necesidades del SH","N/A","Talento Humano","Talento Humano e Integridad "]
[null,213.0,"GESTIÓN DE CAPACIDADES INSTITUCIONALES","GCI1. Fortalecer las capacidades del Talento Humano y la Innovación en las entidades del Sector Hacienda","SH.Ini.2019.2022. GCI1.001 Fortalecer la implementación de la política del Talento Humano en las Entidades del Sector Hacienda","FIDUPREVISORA","FIDUPREVISORA > PAA 2022 > Ruta de Creación de Valor","Magda Nancy Manosalva Cely","Analizar los resultados de la dimensión de Talento Humano en la medición del  Furag  de la vigencia  2020.","De acuerdo con los resultados obtenidos en la medición del FURAG de la gestión 2020, que realiza el DAFP en la vigencia 2021. Cada entidad del Sector Hacienda, analizará sus resultados y ajustará cuando lo considere pertinente, los planes con el propósito de generar acciones que permitan cerrar brecha, en relación con la política de Talento Humano y de integridad.\nEntregable. Documento que soporte el análisis de los resultados del Furag o planes ajustados.","Karen Pardo","Maria Fernanda Gómez","Vicepresidencia de Desarrollo y Soporte Organizacional - Dirección de Talento Humano",null,"N/A","-","-","-","-","2021-03-01","2021-11-30","-","2022-03-01","2022-11-30","Necesidades del SH","N/A","Talento Humano","Talento Humano e Integridad "]
[null,214.0,"GESTIÓN DE CAPACIDADES INSTITUCIONALES","GCI1. Fortalecer las capacidades del Talento Humano y la Innovación en las entidades del Sector Hacienda","SH.Ini.2019.2022. GCI1.001 Fortalecer la implementación de la política del Talento Humano en las Entidades del Sector Hacienda","FINAGRO","FINAGRO> PAA 2022 > Ruta de Creación de Valor","Juan Carlos Restrepo González\n","Analizar los resultados de la dimensión de Talento Humano en la medición del  Furag  de la vigencia  2020.","De acuerdo con los resultados obtenidos en la medición del FURAG de la gestión 2020, que realiza el DAFP en la vigencia 2021. Cada entidad del Sector Hacienda, analizará sus resultados y ajustará cuando lo considere pertinente, los planes con el propósito de generar acciones que permitan cerrar brecha, en relación con la política de Talento Humano y de integridad.\nEntregable. Documento que soporte el análisis de los resultados del Furag o planes ajustados.","Marisol Duque Gómez\nmduque@finagro.com.co","Dalia Marcela Leaño\n\nMaría Helena Reyes Donadlo ","Dirección de Talento Humano",null,"N/A","-","-","-","-","2021-03-01","2021-11-30","-","2022-03-01","2022-11-30","Necesidades del SH","N/A","Talento Humano","Talento Humano e Integridad "]
[null,215.0,"GESTIÓN DE CAPACIDADES INSTITUCIONALES","GCI1. Fortalecer las capacidades del Talento Humano y la Innovación en las entidades del Sector Hacienda","SH.Ini.2019.2022. GCI1.001 Fortalecer la implementación de la política del Talento Humano en las Entidades del Sector Hacienda","FINDETER","FINDETER > PAA 2022 > Ruta de Creación de Valor","Laura Mercedes Peña Rodríguez","Analizar los resultados de la dimensión de Talento Humano en la medición del  Furag  de la vigencia  2020.","De acuerdo con los resultados obtenidos en la medición del FURAG de la gestión 2020, que realiza el DAFP en la vigencia 2021. Cada entidad del Sector Hacienda, analizará sus resultados y ajustará cuando lo considere pertinente, los planes con el propósito de generar acciones que permitan cerrar brecha, en relación con la política de Talento Humano y de integridad.\nEntregable. Documento que soporte el análisis de los resultados del Furag o planes ajustados.","Jorge Luis Giraldo  - Gerente de Planeación y Gestión","N/A"," Jefatura de Talento Humano",null,"N/A","-","-","-","-","2021-03-01","2021-11-30","-","2022-03-01","2022-11-30","Necesidades del SH","N/A","Talento Humano","Talento Humano e Integridad "]
[null,216.0,"GESTIÓN DE CAPACIDADES INSTITUCIONALES","GCI1. Fortalecer las capacidades del Talento Humano y la Innovación en las entidades del Sector Hacienda","SH.Ini.2019.2022. GCI1.001 Fortalecer la implementación de la política del Talento Humano en las Entidades del Sector Hacienda","FOGAFIN","FOGAFIN > PAA 2022 > Ruta de Creación de Valor","Carlos Alberto Sánchez del Valle","Analizar los resultados de la dimensión de Talento Humano en la medición del  Furag  de la vigencia  2020.","De acuerdo con los resultados obtenidos en la medición del FURAG de la gestión 2020, que realiza el DAFP en la vigencia 2021. Cada entidad del Sector Hacienda, analizará sus resultados y ajustará cuando lo considere pertinente, los planes con el propósito de generar acciones que permitan cerrar brecha, en relación con la política de Talento Humano y de integridad.\nEntregable. Documento que soporte el análisis de los resultados del Furag o planes ajustados.","Carlos Alberto Sánchez del Valle","N/A","Departamento de Talento Humano",null,"N/A","-","-","-","-","2021-03-01","2021-11-30","-","2022-03-01","2022-11-30","Necesidades del SH","N/A","Talento Humano","Talento Humano e Integridad "]
[null,217.0,"GESTIÓN DE CAPACIDADES INSTITUCIONALES","GCI1. Fortalecer las capacidades del Talento Humano y la Innovación en las entidades del Sector Hacienda","SH.Ini.2019.2022. GCI1.001 Fortalecer la implementación de la política del Talento Humano en las Entidades del Sector Hacienda","FONDO ADAPTACIÓN","FONDO ADAPTACIÓN >PAA 2022 > Ruta de Creación de Valor","Alejandro Venegas","Analizar los resultados de la dimensión de Talento Humano en la medición del  Furag  de la vigencia  2020.","De acuerdo con los resultados obtenidos en la medición del FURAG de la gestión 2020, que realiza el DAFP en la vigencia 2021. Cada entidad del Sector Hacienda, analizará sus resultados y ajustará cuando lo considere pertinente, los planes con el propósito de generar acciones que permitan cerrar brecha, en relación con la política de Talento Humano y de integridad.\nEntregable. Documento que soporte el análisis de los resultados del Furag o planes ajustados.","Catalina Soto","Mónica Flórez ","Talento Humano",null,"N/A","-","-","-","-","2021-03-01","2021-11-30","-","2022-03-01","2022-11-30","Necesidades del SH","N/A","Talento Humano","Talento Humano e Integridad "]
[null,218.0,"GESTIÓN DE CAPACIDADES INSTITUCIONALES","GCI1. Fortalecer las capacidades del Talento Humano y la Innovación en las entidades del Sector Hacienda","SH.Ini.2019.2022. GCI1.001 Fortalecer la implementación de la política del Talento Humano en las Entidades del Sector Hacienda","FONDO NACIONAL DEL AHORRO","FONDO NACIONAL DEL AHORRO> PAA 2022 > Ruta de Creación de Valor","Kennicher Arias Roa","Analizar los resultados de la dimensión de Talento Humano en la medición del  Furag  de la vigencia  2020.","De acuerdo con los resultados obtenidos en la medición del FURAG de la gestión 2020, que realiza el DAFP en la vigencia 2021. Cada entidad del Sector Hacienda, analizará sus resultados y ajustará cuando lo considere pertinente, los planes con el propósito de generar acciones que permitan cerrar brecha, en relación con la política de Talento Humano y de integridad.\nEntregable. Documento que soporte el análisis de los resultados del Furag o planes ajustados.","Monica Bibiana Martinez\nmbmartinezm@fna.gov.co","Monica Pedraza \nMónica Bibiana Martínez Liliana Valenzuela ","División Gestión Humana",null,"N/A","-","-","-","-","2021-03-01","2021-11-30","-","2022-03-01","2022-11-30","Necesidades del SH","N/A","Talento Humano","Talento Humano e Integridad "]
[null,219.0,"GESTIÓN DE CAPACIDADES INSTITUCIONALES","GCI1. Fortalecer las capacidades del Talento Humano y la Innovación en las entidades del Sector Hacienda","SH.Ini.2019.2022. GCI1.001 Fortalecer la implementación de la política del Talento Humano en las Entidades del Sector Hacienda","FONDO NACIONAL DE GARANTIAS","FONDO NACIONAL DE GARANTIAS> PAA 2022 > Ruta de Creación de Valor","Maria Angelica Burbano Sanchez \n","Analizar los resultados de la dimensión de Talento Humano en la medición del  Furag  de la vigencia  2020.","De acuerdo con los resultados obtenidos en la medición del FURAG de la gestión 2020, que realiza el DAFP en la vigencia 2021. Cada entidad del Sector Hacienda, analizará sus resultados y ajustará cuando lo considere pertinente, los planes con el propósito de generar acciones que permitan cerrar brecha, en relación con la política de Talento Humano y de integridad.\nEntregable. Documento que soporte el análisis de los resultados del Furag o planes ajustados.","Esther Julia Hernandez\nDirectora de Gestión Humana\nesther.hernandez@fng.gov.co\n","Andrés Estrada Cardona \n","Dirección de Gestión Humana",null,"N/A","-","-","-","-","2021-03-01","2021-11-30","-","2022-03-01","2022-11-30","Necesidades del SH","N/A","Talento Humano","Talento Humano e Integridad "]
[null,220.0,"GESTIÓN DE CAPACIDADES INSTITUCIONALES","GCI1. Fortalecer las capacidades del Talento Humano y la Innovación en las entidades del Sector Hacienda","SH.Ini.2019.2022. GCI1.001 Fortalecer la implementación de la política del Talento Humano en las Entidades del Sector Hacienda","ICETEX","ICETEX> PAA 2022 > Ruta de Creación de Valor","Beatriz Helena Torres Lizarazo\n","Analizar los resultados de la dimensión de Talento Humano en la medición del  Furag  de la vigencia  2020.","De acuerdo con los resultados obtenidos en la medición del FURAG de la gestión 2020, que realiza el DAFP en la vigencia 2021. Cada entidad del Sector Hacienda, analizará sus resultados y ajustará cuando lo considere pertinente, los planes con el propósito de generar acciones que permitan cerrar brecha, en relación con la política de Talento Humano y de integridad.\nEntregable. Documento que soporte el análisis de los resultados del Furag o planes ajustados.","Monica Daniela Cortes Muñoz <mcortesm@icetex.gov.co>","Rosa Maria Gonzalez Carvajal \nJohana Niño Acosta \nMiriam Cardona Giraldo ","Grupo de Talento humano de la Secretaria General ICETEX",null,"N/A","-","-","-","-","2021-03-01","2021-11-30","-","2022-03-01","2022-11-30","Necesidades del SH","N/A","Talento Humano","Talento Humano e Integridad "]
[null,221.0,"GESTIÓN DE CAPACIDADES INSTITUCIONALES","GCI1. Fortalecer las capacidades del Talento Humano y la Innovación en las entidades del Sector Hacienda","SH.Ini.2019.2022. GCI1.001 Fortalecer la implementación de la política del Talento Humano en las Entidades del Sector Hacienda","ITRC","ITRC > PAA 2022 > Ruta de Creación de Valor","Nohora Beltrán Céspedes","Analizar los resultados de la dimensión de Talento Humano en la medición del  Furag  de la vigencia  2020.","De acuerdo con los resultados obtenidos en la medición del FURAG de la gestión 2020, que realiza el DAFP en la vigencia 2021. Cada entidad del Sector Hacienda, analizará sus resultados y ajustará cuando lo considere pertinente, los planes con el propósito de generar acciones que permitan cerrar brecha, en relación con la política de Talento Humano y de integridad.\nEntregable. Documento que soporte el análisis de los resultados del Furag o planes ajustados.","Ana Milena Ramírez Montealegre\nExperta Líder Talento Humano aramirez@itrc.gov.co","Karem Jimenez \n","Secretaría General",null,"N/A","-","-","-","-","2021-03-01","2021-11-30","-","2022-03-01","2022-11-30","Necesidades del SH","N/A","Talento Humano","Talento Humano e Integridad "]
[null,null,"GESTIÓN DE CAPACIDADES INSTITUCIONALES","GCI1. Fortalecer las capacidades del Talento Humano y la Innovación en las entidades del Sector Hacienda","SH.Ini.2019.2022.GCI1.001 Fortalecer la implementación de la política del Talento Humano en las Entidades del Sector Hacienda\n\nSH.Ini.2019.2022.GCI1.002 Fortalecer la implementación de la política de integridad en las Entidades del Sector","MHCP","xxxxx > PAA 2022> Ruta de Creación de Valor","Carlos Augusto Mesa Diaz","Analizar los resultados de la dimensión de Talento Humano en la medición del  Furag  de la vigencia  2021.","De acuerdo con los resultados obtenidos en la medición del FURAG de la gestión 2021, que realiza el DAFP en la vigencia 2022. Cada entidad del Sector Hacienda, analizará sus resultados y ajustará cuando lo considere pertinente, formulará los planes con el propósito de generar acciones que permitan cerrar brecha, en relación con la política de Talento Humano y de integridad.\n\nLa entidad debe documentar la política que le sea aplicable. \n\nEntregable. Documento que soporte el análisis de los resultados del Furag o planes ajustados.",null,"Oscar Saul Guerrero Bohórquez ","Oscar Saul Guerrero Bohórquez ",null,"Gerencia de Talento Humano","N/A","-","-","-","-","2021-03-01","2021-11-30","2022-03-01","2022-11-30","Necesidades del SH","N/A","Talento Humano","Talento Humano e Integridad "]
[null,null,"GESTIÓN DE CAPACIDADES INSTITUCIONALES","GCI1. Fortalecer las capacidades del Talento Humano y la Innovación en las entidades del Sector Hacienda","SH.Ini.2019.2022.GCI1.001 Fortalecer la implementación de la política del Talento Humano en las Entidades del Sector Hacienda\n\nSH.Ini.2019.2022.GCI1.002 Fortalecer la implementación de la política de integridad en las Entidades del Sector","POSITIVA","POSITIVA > PAA 2022> Ruta de Creación de Valor","Carlos Augusto Mesa Diaz","Analizar los resultados de la dimensión de Talento Humano en la medición del  Furag  de la vigencia  2021.","De acuerdo con los resultados obtenidos en la medición del FURAG de la gestión 2021, que realiza el DAFP en la vigencia 2022. Cada entidad del Sector Hacienda, analizará sus resultados y ajustará cuando lo considere pertinente, formulará los planes con el propósito de generar acciones que permitan cerrar brecha, en relación con la política de Talento Humano y de integridad.\n\nLa entidad debe documentar la política que le sea aplicable. \n\nEntregable. Documento que soporte el análisis de los resultados del Furag o planes ajustados.",null,"Oscar Saul Guerrero Bohórquez ","Oscar Saul Guerrero Bohórquez ",null,"Gerencia de Talento Humano","N/A","-","-","-","-","2021-03-01","2021-11-30","2022-03-01","2022-11-30","Necesidades del SH","N/A","Talento Humano","Talento Humano e Integridad "]
[null,null,"GESTIÓN DE CAPACIDADES INSTITUCIONALES","GCI1. Fortalecer las capacidades del Talento Humano y la Innovación en las entidades del Sector Hacienda","SH.Ini.2019.2022.GCI1.001 Fortalecer la implementación de la política del Talento Humano en las Entidades del Sector Hacienda\n\nSH.Ini.2019.2022.GCI1.002 Fortalecer la implementación de la política de integridad en las Entidades del Sector","SAE","SAE > PAA 2022> Ruta de Creación de Valor","Jaime Leon Gómez Salazar","Analizar los resultados de la dimensión de Talento Humano en la medición del  Furag  de la vigencia  2021.","De acuerdo con los resultados obtenidos en la medición del FURAG de la gestión 2021, que realiza el DAFP en la vigencia 2022. Cada entidad del Sector Hacienda, analizará sus resultados y ajustará cuando lo considere pertinente, formulará los planes con el propósito de generar acciones que permitan cerrar brecha, en relación con la política de Talento Humano y de integridad.\n\nLa entidad debe documentar la política que le sea aplicable. \n\nEntregable. Documento que soporte el análisis de los resultados del Furag o planes ajustados.",null,"Sandra Milena Martinez","Maria Consuelo Garcia\n",null,"Gerencia Talento Humano","N/A","-","-","-","-","2021-03-01","2021-11-30","2022-03-01","2022-11-30","Necesidades del SH","N/A","Talento Humano","Talento Humano e Integridad "]
[null,null,"GESTIÓN DE CAPACIDADES INSTITUCIONALES","GCI1. Fortalecer las capacidades del Talento Humano y la Innovación en las entidades del Sector Hacienda","SH.Ini.2019.2022.GCI1.001 Fortalecer la implementación de la política del Talento Humano en las Entidades del Sector Hacienda\n\nSH.Ini.2019.2022.GCI1.002 Fortalecer la implementación de la política de integridad en las Entidades del Sector","SUPERFINANCIERA","SUPERFINANCIERA > PAA 2022> Ruta de Creación de Valor","José Gabriel Sánchez Sousa","Analizar los resultados de la dimensión de Talento Humano en la medición del  Furag  de la vigencia  2021.","De acuerdo con los resultados obtenidos en la medición del FURAG de la gestión 2021, que realiza el DAFP en la vigencia 2022. Cada entidad del Sector Hacienda, analizará sus resultados y ajustará cuando lo considere pertinente, formulará los planes con el propósito de generar acciones que permitan cerrar brecha, en relación con la política de Talento Humano y de integridad.\n\nLa entidad debe documentar la política que le sea aplicable. \n\nEntregable. Documento que soporte el análisis de los resultados del Furag o planes ajustados.",null,"Sergio Esteban Varela Guzman","Haydee Vanessa Ibagon Ibagon ",null,"Subdirección de Talento Humano","N/A","-","-","-","-","2021-03-01","2021-11-30","2022-03-01","2022-11-30","Necesidades del SH","N/A","Talento Humano","Talento Humano e Integridad "]
[null,null,"GESTIÓN DE CAPACIDADES INSTITUCIONALES","GCI1. Fortalecer las capacidades del Talento Humano y la Innovación en las entidades del Sector Hacienda","SH.Ini.2019.2022.GCI1.001 Fortalecer la implementación de la política del Talento Humano en las Entidades del Sector Hacienda\n\nSH.Ini.2019.2022.GCI1.002 Fortalecer la implementación de la política de integridad en las Entidades del Sector","SUPERSOLIDARIA","SUPERSOLIDARIA> PAA 2022> Ruta de Creación de Valor","Robín Andrey Suarez Toscano","Analizar los resultados de la dimensión de Talento Humano en la medición del  Furag  de la vigencia  2021.","De acuerdo con los resultados obtenidos en la medición del FURAG de la gestión 2021, que realiza el DAFP en la vigencia 2022. Cada entidad del Sector Hacienda, analizará sus resultados y ajustará cuando lo considere pertinente, formulará los planes con el propósito de generar acciones que permitan cerrar brecha, en relación con la política de Talento Humano y de integridad.\n\nLa entidad debe documentar la política que le sea aplicable. \n\nEntregable. Documento que soporte el análisis de los resultados del Furag o planes ajustados.",null,"Felipe Mancera Rojas ","N/A",null,"Oficina Asesora de Planeación y Sistemas ","N/A","-","-","-","-","2021-03-01","2021-11-30","2022-07-01","2022-11-30","Necesidades del SH","N/A","Talento Humano","Talento Humano e Integridad "]
[null,null,"GESTIÓN DE CAPACIDADES INSTITUCIONALES","GCI1. Fortalecer las capacidades del Talento Humano y la Innovación en las entidades del Sector Hacienda","SH.Ini.2019.2022.GCI1.001 Fortalecer la implementación de la política del Talento Humano en las Entidades del Sector Hacienda\n\nSH.Ini.2019.2022.GCI1.002 Fortalecer la implementación de la política de integridad en las Entidades del Sector","UGPP","UGGP > PAA 2022> Ruta de Creación de Valor","Ana María Cadena","Analizar los resultados de la dimensión de Talento Humano en la medición del  Furag  de la vigencia  2021.","De acuerdo con los resultados obtenidos en la medición del FURAG de la gestión 2021, que realiza el DAFP en la vigencia 2022. Cada entidad del Sector Hacienda, analizará sus resultados y ajustará cuando lo considere pertinente, formulará los planes con el propósito de generar acciones que permitan cerrar brecha, en relación con la política de Talento Humano y de integridad.\n\nLa entidad debe documentar la política que le sea aplicable. \n\nEntregable. Documento que soporte el análisis de los resultados del Furag o planes ajustados.",null,"Germán Vega Rodríguez","N/A",null,"Subdirección de Gestión Humana","N/A","-","-","-","-","2021-03-01","2021-11-30","2022-03-01","2022-11-30","Necesidades del SH","N/A","Talento Humano","Talento Humano e Integridad "]
[null,null,"GESTIÓN DE CAPACIDADES INSTITUCIONALES","GCI1. Fortalecer las capacidades del Talento Humano y la Innovación en las entidades del Sector Hacienda","SH.Ini.2019.2022.GCI1.001 Fortalecer la implementación de la política del Talento Humano en las Entidades del Sector Hacienda\n\nSH.Ini.2019.2022.GCI1.002 Fortalecer la implementación de la política de integridad en las Entidades del Sector","URF","URF > PAA 2022> Ruta de Creación de Valor","Ivonnie Edith Gallardo","Analizar los resultados de la dimensión de Talento Humano en la medición del  Furag  de la vigencia  2021.","De acuerdo con los resultados obtenidos en la medición del FURAG de la gestión 2021, que realiza el DAFP en la vigencia 2022. Cada entidad del Sector Hacienda, analizará sus resultados y ajustará cuando lo considere pertinente, formulará los planes con el propósito de generar acciones que permitan cerrar brecha, en relación con la política de Talento Humano y de integridad.\n\nLa entidad debe documentar la política que le sea aplicable. \n\nEntregable. Documento que soporte el análisis de los resultados del Furag o planes ajustados.",null,"Paola Patricia Rodriguez","N/A",null,"Subdirección Jurídica y de Gestión Institucional ","N/A","-","-","-","-","2021-03-01","2021-11-30","2022-03-01","2022-11-30","Necesidades del SH","N/A","Talento Humano","Talento Humano e Integridad "]
[null,null,"GESTIÓN DE CAPACIDADES INSTITUCIONALES","GCI1. Fortalecer las capacidades del Talento Humano y la Innovación en las entidades del Sector Hacienda","SH.Ini.2019.2022.GCI1.003 Fortalecer la implementación de la política de Gestión de Conocimiento e Innovación en las Entidades del Sector","BANCO AGRARIO","BANCO AGRARIO > PAA 2022 > Ruta de Creación de Valor","Sandra Patricia Villabona","Analizar los resultados de la política de Gestión del Conocimiento y la Innovación en la medición del  Furag  de la vigencia  2021.","De acuerdo con los resultados obtenidos en la medición del FURAG de la gestión 2021, que realiza el DAFP en la vigencia 2022. Cada entidad del Sector Hacienda, analizará sus resultados y ajustará cuando lo considere pertinente, el plan de Gestión del Conocimiento y la Innovación con el propósito de generar acciones que permitan cerrar brecha, según el caso.\n\nEntregable. Documento que soporte el análisis de los resultados del Furag, plan de mejora, plan ajustados o documento que evidencie el ejercicio de análisis.\n",null,"Diana Marcela Caballero","N/A",null,"Vicepresidencia de Tecnología e Innovación","N/A","-","-","-","-",null,null,"2022-06-01","2022-11-30","Necesidades del SH","N/A","Gestión de Conocimiento e Innovación","Gestión del Conocimiento y la Innovación "]
[null,null,"GESTIÓN DE CAPACIDADES INSTITUCIONALES","GCI1. Fortalecer las capacidades del Talento Humano y la Innovación en las entidades del Sector Hacienda","SH.Ini.2019.2022.GCI1.003 Fortalecer la implementación de la política de Gestión de Conocimiento e Innovación en las Entidades del Sector","BANCOLDEX","BANCOLDEX > PAA 2022> Ruta de Creación de Valor","María José Naranjo","Analizar los resultados de la política de Gestión del Conocimiento y la Innovación en la medición del  Furag  de la vigencia  2021.","De acuerdo con los resultados obtenidos en la medición del FURAG de la gestión 2021, que realiza el DAFP en la vigencia 2022. Cada entidad del Sector Hacienda, analizará sus resultados y ajustará cuando lo considere pertinente, el plan de Gestión del Conocimiento y la Innovación con el propósito de generar acciones que permitan cerrar brecha, según el caso.\n\nEntregable. Documento que soporte el análisis de los resultados del Furag, plan de mejora, plan ajustados o documento que evidencie el ejercicio de análisis.\n",null,"Gloria Cortés\n","Jessica Rodríguez\n",null,"Departamento Talento Humano\nOficina de Innovación","N/A","-","-","-","-",null,null,"2021-06-01","2021-11-30","Necesidades del SH","N/A","Gestión de Conocimiento e Innovación","Gestión del Conocimiento y la Innovación "]
[null,null,"GESTIÓN DE CAPACIDADES INSTITUCIONALES","GCI1. Fortalecer las capacidades del Talento Humano y la Innovación en las entidades del Sector Hacienda","SH.Ini.2019.2022.GCI1.003 Fortalecer la implementación de la política de Gestión de Conocimiento e Innovación en las Entidades del Sector","CISA","CISA > PAA 2022> Gestión del conocimiento e innovación","Juan Felipe Robles","Analizar los resultados de la política de Gestión del Conocimiento y la Innovación en la medición del  Furag  de la vigencia  2021.","De acuerdo con los resultados obtenidos en la medición del FURAG de la gestión 2021, que realiza el DAFP en la vigencia 2022. Cada entidad del Sector Hacienda, analizará sus resultados y ajustará cuando lo considere pertinente, el plan de Gestión del Conocimiento y la Innovación con el propósito de generar acciones que permitan cerrar brecha, según el caso.\n\nEntregable. Documento que soporte el análisis de los resultados del Furag, plan de mejora, plan ajustados o documento que evidencie el ejercicio de análisis.\n",null,"Sandra Viviana Neira ","N.A",null,"Gerencia de Recursos","N/A","-","-","-","-",null,null,"2021-06-01","2021-11-30","Necesidades del SH","N/A","Gestión de Conocimiento e Innovación","Gestión del Conocimiento y la Innovación "]
[null,null,"GESTIÓN DE CAPACIDADES INSTITUCIONALES","GCI1. Fortalecer las capacidades del Talento Humano y la Innovación en las entidades del Sector Hacienda","SH.Ini.2019.2022.GCI1.003 Fortalecer la implementación de la política de Gestión de Conocimiento e Innovación en las Entidades del Sector","COLJUEGOS","COLJUEGOS> PAA 2022> Gestión del conocimiento e innovación","Roger José Carrillo Campo ","Analizar los resultados de la política de Gestión del Conocimiento y la Innovación en la medición del  Furag  de la vigencia  2021.","De acuerdo con los resultados obtenidos en la medición del FURAG de la gestión 2021, que realiza el DAFP en la vigencia 2022. Cada entidad del Sector Hacienda, analizará sus resultados y ajustará cuando lo considere pertinente, el plan de Gestión del Conocimiento y la Innovación con el propósito de generar acciones que permitan cerrar brecha, según el caso.\n\nEntregable. Documento que soporte el análisis de los resultados del Furag, plan de mejora, plan ajustados o documento que evidencie el ejercicio de análisis.\n",null,"Alexandra Torres Gonzalez","Juan Felipe Mahecha Cordoba",null,"Oficina Asesora de Planeación","N/A","-","-","-","-",null,null,"2021-06-01","2021-11-30","Necesidades del SH","N/A","Gestión de Conocimiento e Innovación","Gestión del Conocimiento y la Innovación "]
[null,null,"GESTIÓN DE CAPACIDADES INSTITUCIONALES","GCI1. Fortalecer las capacidades del Talento Humano y la Innovación en las entidades del Sector Hacienda","SH.Ini.2019.2022.GCI1.003 Fortalecer la implementación de la política de Gestión de Conocimiento e Innovación en las Entidades del Sector","CGN","CGN > PAA 2022> Gestión del conocimiento e innovación","Henry Ramírez Montes","Analizar los resultados de la política de Gestión del Conocimiento y la Innovación en la medición del  Furag  de la vigencia  2021.","De acuerdo con los resultados obtenidos en la medición del FURAG de la gestión 2021, que realiza el DAFP en la vigencia 2022. Cada entidad del Sector Hacienda, analizará sus resultados y ajustará cuando lo considere pertinente, el plan de Gestión del Conocimiento y la Innovación con el propósito de generar acciones que permitan cerrar brecha, según el caso.\n\nEntregable. Documento que soporte el análisis de los resultados del Furag, plan de mejora, plan ajustados o documento que evidencie el ejercicio de análisis.\n",null,"Wilson Eduardo Cifuentes","N/A",null,"GIT de Planeación","N/A","-","-","-","-",null,null,"2021-06-01","2021-11-30","Necesidades del SH","N/A","Gestión de Conocimiento e Innovación","Gestión del Conocimiento y la Innovación "]
[null,null,"GESTIÓN DE CAPACIDADES INSTITUCIONALES","GCI1. Fortalecer las capacidades del Talento Humano y la Innovación en las entidades del Sector Hacienda","SH.Ini.2019.2022.GCI1.003 Fortalecer la implementación de la política de Gestión de Conocimiento e Innovación en las Entidades del Sector","DIAN","DIAN > PAA 2022> Gestión del conocimiento e innovación","Catalina Garcia Cure","Analizar los resultados de la política de Gestión del Conocimiento y la Innovación en la medición del  Furag  de la vigencia  2021.","De acuerdo con los resultados obtenidos en la medición del FURAG de la gestión 2021, que realiza el DAFP en la vigencia 2022. Cada entidad del Sector Hacienda, analizará sus resultados y ajustará cuando lo considere pertinente, el plan de Gestión del Conocimiento y la Innovación con el propósito de generar acciones que permitan cerrar brecha, según el caso.\n\nEntregable. Documento que soporte el análisis de los resultados del Furag, plan de mejora, plan ajustados o documento que evidencie el ejercicio de análisis.\n",null,"Constanza Del Pilar Rodríguez Páez","Héctor Leonel Mesa Lara",null,"Subdirección de Gestión de Tecnología","N/A","-","-","-","-",null,null,"2021-06-01","2021-11-30","Necesidades del SH","N/A","Gestión de Conocimiento e Innovación","Gestión del Conocimiento y la Innovación "]
[null,null,"GESTIÓN DE CAPACIDADES INSTITUCIONALES","GCI1. Fortalecer las capacidades del Talento Humano y la Innovación en las entidades del Sector Hacienda","SH.Ini.2019.2022.GCI1.003 Fortalecer la implementación de la política de Gestión de Conocimiento e Innovación en las Entidades del Sector","ENTERRITORIO","ENTERRITORIO> PAA 2022> Gestión del conocimiento e innovación","Carlos Eduardo Umaña Lizarazo","Analizar los resultados de la política de Gestión del Conocimiento y la Innovación en la medición del  Furag  de la vigencia  2021.","De acuerdo con los resultados obtenidos en la medición del FURAG de la gestión 2021, que realiza el DAFP en la vigencia 2022. Cada entidad del Sector Hacienda, analizará sus resultados y ajustará cuando lo considere pertinente, el plan de Gestión del Conocimiento y la Innovación con el propósito de generar acciones que permitan cerrar brecha, según el caso.\n\nEntregable. Documento que soporte el análisis de los resultados del Furag, plan de mejora, plan ajustados o documento que evidencie el ejercicio de análisis.\n",null,"Marta Liced Rodriguez Quimbayo","Anny Alvarez Mendoza",null,"Grupo de Planeación y Gestión de Riesgos","N/A","-","-","-","-",null,null,"2021-06-01","2021-11-30","Necesidades del SH","N/A","Gestión de Conocimiento e Innovación","Gestión del Conocimiento y la Innovación "]
[null,null,"GESTIÓN DE CAPACIDADES INSTITUCIONALES","GCI1. Fortalecer las capacidades del Talento Humano y la Innovación en las entidades del Sector Hacienda","SH.Ini.2019.2022.GCI1.003 Fortalecer la implementación de la política de Gestión de Conocimiento e Innovación en las Entidades del Sector","FIDUAGRARIA","FIDUAGRARIA> PAA 2022> Gestión del conocimiento e innovación","Luz Marina Fernández Bello ","Analizar los resultados de la política de Gestión del Conocimiento y la Innovación en la medición del  Furag  de la vigencia  2021.","De acuerdo con los resultados obtenidos en la medición del FURAG de la gestión 2021, que realiza el DAFP en la vigencia 2022. Cada entidad del Sector Hacienda, analizará sus resultados y ajustará cuando lo considere pertinente, el plan de Gestión del Conocimiento y la Innovación con el propósito de generar acciones que permitan cerrar brecha, según el caso.\n\nEntregable. Documento que soporte el análisis de los resultados del Furag, plan de mejora, plan ajustados o documento que evidencie el ejercicio de análisis.\n",null,"Adriana Marcela Fuente Estrada","Melissa Lorena Lasprilla \nMariana Morales Rojas",null,"Jefatura de Talento Humano","N/A","-","-","-","-",null,null,"2021-06-01","2021-11-30","Necesidades del SH","N/A","Gestión de Conocimiento e Innovación","Gestión del Conocimiento y la Innovación "]
[null,null,"GESTIÓN DE CAPACIDADES INSTITUCIONALES","GCI1. Fortalecer las capacidades del Talento Humano y la Innovación en las entidades del Sector Hacienda","SH.Ini.2019.2022.GCI1.003 Fortalecer la implementación de la política de Gestión de Conocimiento e Innovación en las Entidades del Sector","FIDUPREVISORA","FIDUPREVISORA > PAA 2022> Dimensión de Integridad","Magda Nancy Manosalva Cely","Analizar los resultados de la política de Gestión del Conocimiento y la Innovación en la medición del  Furag  de la vigencia  2021.","De acuerdo con los resultados obtenidos en la medición del FURAG de la gestión 2021, que realiza el DAFP en la vigencia 2022. Cada entidad del Sector Hacienda, analizará sus resultados y ajustará cuando lo considere pertinente, el plan de Gestión del Conocimiento y la Innovación con el propósito de generar acciones que permitan cerrar brecha, según el caso.\n\nEntregable. Documento que soporte el análisis de los resultados del Furag, plan de mejora, plan ajustados o documento que evidencie el ejercicio de análisis.\n",null,"Karen Pardo","Maria Fernanda Gómez",null,"Vicepresidencia de Desarrollo y Soporte Organizacional - Dirección de Talento Humano","N/A","-","-","-","-",null,null,"2021-06-01","2021-11-30","Necesidades del SH","N/A","Gestión de Conocimiento e Innovación","Gestión del Conocimiento y la Innovación "]
[null,null,"GESTIÓN DE CAPACIDADES INSTITUCIONALES","GCI1. Fortalecer las capacidades del Talento Humano y la Innovación en las entidades del Sector Hacienda","SH.Ini.2019.2022.GCI1.003 Fortalecer la implementación de la política de Gestión de Conocimiento e Innovación en las Entidades del Sector","FINAGRO","FINAGRO > PAA 2022 > Dimensión de Integridad","Juan Carlos Restrepo González","Analizar los resultados de la política de Gestión del Conocimiento y la Innovación en la medición del  Furag  de la vigencia  2021.","De acuerdo con los resultados obtenidos en la medición del FURAG de la gestión 2021, que realiza el DAFP en la vigencia 2022. Cada entidad del Sector Hacienda, analizará sus resultados y ajustará cuando lo considere pertinente, el plan de Gestión del Conocimiento y la Innovación con el propósito de generar acciones que permitan cerrar brecha, según el caso.\n\nEntregable. Documento que soporte el análisis de los resultados del Furag, plan de mejora, plan ajustados o documento que evidencie el ejercicio de análisis.\n",null,"Julian García Cardona\n","Maria Fernanda Guerra\nMiguel Alexander patiño\nMaría Helena Reyes Donadlo ",null,"Gerencia de Investigaciones Económicas","N/A","-","-","-","-",null,null,"2021-06-01","2021-11-30","Necesidades del SH","N/A","Gestión de Conocimiento e Innovación","Gestión del Conocimiento y la Innovación "]
[null,null,"GESTIÓN DE CAPACIDADES INSTITUCIONALES","GCI1. Fortalecer las capacidades del Talento Humano y la Innovación en las entidades del Sector Hacienda","SH.Ini.2019.2022.GCI1.003 Fortalecer la implementación de la política de Gestión de Conocimiento e Innovación en las Entidades del Sector","FINDETER","FINDETER > PAA 2022> Gestión del conocimiento e innovación","Laura Mercedes Peña Rodríguez","Analizar los resultados de la política de Gestión del Conocimiento y la Innovación en la medición del  Furag  de la vigencia  2021.","De acuerdo con los resultados obtenidos en la medición del FURAG de la gestión 2021, que realiza el DAFP en la vigencia 2022. Cada entidad del Sector Hacienda, analizará sus resultados y ajustará cuando lo considere pertinente, el plan de Gestión del Conocimiento y la Innovación con el propósito de generar acciones que permitan cerrar brecha, según el caso.\n\nEntregable. Documento que soporte el análisis de los resultados del Furag, plan de mejora, plan ajustados o documento que evidencie el ejercicio de análisis.\n",null,"Jorge Luis Giraldo","N/A",null," Gerencia de Planeación y Gestión - Gerencia de Planeación y Gestión - Equipo CIC","N/A","-","-","-","-",null,null,"2021-06-01","2021-11-30","Necesidades del SH","N/A","Gestión de Conocimiento e Innovación","Gestión del Conocimiento y la Innovación "]
[null,null,"GESTIÓN DE CAPACIDADES INSTITUCIONALES","GCI1. Fortalecer las capacidades del Talento Humano y la Innovación en las entidades del Sector Hacienda","SH.Ini.2019.2022.GCI1.003 Fortalecer la implementación de la política de Gestión de Conocimiento e Innovación en las Entidades del Sector","FOGACOOP","FOGACOOP> PAA 2022> Gestión del conocimiento e innovación","Adriana Mcallister Braidy","Analizar los resultados de la política de Gestión del Conocimiento y la Innovación en la medición del  Furag  de la vigencia  2021.","De acuerdo con los resultados obtenidos en la medición del FURAG de la gestión 2021, que realiza el DAFP en la vigencia 2022. Cada entidad del Sector Hacienda, analizará sus resultados y ajustará cuando lo considere pertinente, el plan de Gestión del Conocimiento y la Innovación con el propósito de generar acciones que permitan cerrar brecha, según el caso.\n\nEntregable. Documento que soporte el análisis de los resultados del Furag, plan de mejora, plan ajustados o documento que evidencie el ejercicio de análisis.\n",null,"María Consuelo Corredor","Zulma Liliana López Zuluaga",null,"Coordinación Administrativa ","N/A","-","-","-","-",null,null,"2021-06-01","2021-11-30","Necesidades del SH","N/A","Gestión de Conocimiento e Innovación","Gestión del Conocimiento y la Innovación "]
[null,null,"GESTIÓN DE CAPACIDADES INSTITUCIONALES","GCI1. Fortalecer las capacidades del Talento Humano y la Innovación en las entidades del Sector Hacienda","SH.Ini.2019.2022.GCI1.003 Fortalecer la implementación de la política de Gestión de Conocimiento e Innovación en las Entidades del Sector","FOGAFIN","FOGAFIN > PAA 2022> Gestión del conocimiento e innovación","Carlos Alberto Sánchez del Valle","Analizar los resultados de la política de Gestión del Conocimiento y la Innovación en la medición del  Furag  de la vigencia  2021.","De acuerdo con los resultados obtenidos en la medición del FURAG de la gestión 2021, que realiza el DAFP en la vigencia 2022. Cada entidad del Sector Hacienda, analizará sus resultados y ajustará cuando lo considere pertinente, el plan de Gestión del Conocimiento y la Innovación con el propósito de generar acciones que permitan cerrar brecha, según el caso.\n\nEntregable. Documento que soporte el análisis de los resultados del Furag, plan de mejora, plan ajustados o documento que evidencie el ejercicio de análisis.\n",null,"Carlos Alberto Sánchez del Valle","N/A",null,"Departamento de Gestión de Contenidos, Planeación y Proyectos y Riesgo Operativo y Procesos","N/A","-","-","-","-",null,null,"2021-06-01","2021-11-30","Necesidades del SH","N/A","Gestión de Conocimiento e Innovación","Gestión del Conocimiento y la Innovación "]
[null,null,"GESTIÓN DE CAPACIDADES INSTITUCIONALES","GCI1. Fortalecer las capacidades del Talento Humano y la Innovación en las entidades del Sector Hacienda","SH.Ini.2019.2022.GCI1.003 Fortalecer la implementación de la política de Gestión de Conocimiento e Innovación en las Entidades del Sector","FONDO ADAPTACIÓN","FONDO ADAPTACIÓN > PAA 2022 > Gestión del conocimiento e innovación","Alejandro Venegas","Analizar los resultados de la política de Gestión del Conocimiento y la Innovación en la medición del  Furag  de la vigencia  2021.","De acuerdo con los resultados obtenidos en la medición del FURAG de la gestión 2021, que realiza el DAFP en la vigencia 2022. Cada entidad del Sector Hacienda, analizará sus resultados y ajustará cuando lo considere pertinente, el plan de Gestión del Conocimiento y la Innovación con el propósito de generar acciones que permitan cerrar brecha, según el caso.\n\nEntregable. Documento que soporte el análisis de los resultados del Furag, plan de mejora, plan ajustados o documento que evidencie el ejercicio de análisis.\n",null,"Catalina Soto Velasco","Gabriel Amarillo",null,"Oficina de Planeación","N/A","-","-","-","-",null,null,"2021-06-01","2021-11-30","Necesidades del SH","N/A","Gestión de Conocimiento e Innovación","Gestión del Conocimiento y la Innovación "]
[null,null,"GESTIÓN DE CAPACIDADES INSTITUCIONALES","GCI1. Fortalecer las capacidades del Talento Humano y la Innovación en las entidades del Sector Hacienda","SH.Ini.2019.2022.GCI1.003 Fortalecer la implementación de la política de Gestión de Conocimiento e Innovación en las Entidades del Sector","FONDO NACIONAL DEL AHORRO","FONDO NACIONAL DEL AHORRO> PAA 2022> Gestión del conocimiento e innovación","Kennicher Arias Roa","Analizar los resultados de la política de Gestión del Conocimiento y la Innovación en la medición del  Furag  de la vigencia  2021.","De acuerdo con los resultados obtenidos en la medición del FURAG de la gestión 2021, que realiza el DAFP en la vigencia 2022. Cada entidad del Sector Hacienda, analizará sus resultados y ajustará cuando lo considere pertinente, el plan de Gestión del Conocimiento y la Innovación con el propósito de generar acciones que permitan cerrar brecha, según el caso.\n\nEntregable. Documento que soporte el análisis de los resultados del Furag, plan de mejora, plan ajustados o documento que evidencie el ejercicio de análisis.\n",null,"Kennicher Arias Roa","Monica Pedraza\n Mónica Bibiana Martínez Liliana Valenzuela ",null,"Oficina de Planeación","N/A","-","-","-","-",null,null,"2021-06-01","2021-11-30","Necesidades del SH","N/A","Gestión de Conocimiento e Innovación","Gestión del Conocimiento y la Innovación "]
[null,null,"GESTIÓN DE CAPACIDADES INSTITUCIONALES","GCI1. Fortalecer las capacidades del Talento Humano y la Innovación en las entidades del Sector Hacienda","SH.Ini.2019.2022.GCI1.003 Fortalecer la implementación de la política de Gestión de Conocimiento e Innovación en las Entidades del Sector","FONDO NACIONAL DE GARANTIAS","FONDO NACIONAL DE GARANTIAS> PAA 2022> Gestión del conocimiento e innovación","Maria Angelica Burbano Sánchez","Analizar los resultados de la política de Gestión del Conocimiento y la Innovación en la medición del  Furag  de la vigencia  2021.","De acuerdo con los resultados obtenidos en la medición del FURAG de la gestión 2021, que realiza el DAFP en la vigencia 2022. Cada entidad del Sector Hacienda, analizará sus resultados y ajustará cuando lo considere pertinente, el plan de Gestión del Conocimiento y la Innovación con el propósito de generar acciones que permitan cerrar brecha, según el caso.\n\nEntregable. Documento que soporte el análisis de los resultados del Furag, plan de mejora, plan ajustados o documento que evidencie el ejercicio de análisis.\n",null,"Esther Julia Hernandez\n","Andrés Estrada Cardona \n",null,"Dirección de Gestión Humana","N/A","-","-","-","-",null,null,"2021-06-01","2021-11-30","Necesidades del SH","N/A","Gestión de Conocimiento e Innovación","Gestión del Conocimiento y la Innovación "]
[null,null,"GESTIÓN DE CAPACIDADES INSTITUCIONALES","GCI1. Fortalecer las capacidades del Talento Humano y la Innovación en las entidades del Sector Hacienda","SH.Ini.2019.2022.GCI1.003 Fortalecer la implementación de la política de Gestión de Conocimiento e Innovación en las Entidades del Sector","ICETEX","ICETEX> PAA 2022> Gestión del conocimiento e innovación","Beatriz Helena Torres Lizarazo\n","Analizar los resultados de la política de Gestión del Conocimiento y la Innovación en la medición del  Furag  de la vigencia  2021.","De acuerdo con los resultados obtenidos en la medición del FURAG de la gestión 2021, que realiza el DAFP en la vigencia 2022. Cada entidad del Sector Hacienda, analizará sus resultados y ajustará cuando lo considere pertinente, el plan de Gestión del Conocimiento y la Innovación con el propósito de generar acciones que permitan cerrar brecha, según el caso.\n\nEntregable. Documento que soporte el análisis de los resultados del Furag, plan de mejora, plan ajustados o documento que evidencie el ejercicio de análisis.\n",null,"Monica Daniela Cortes Muñoz","Rosa Maria Gonzalez Carvajal \nJohana Niño Acosta \nMiriam Cardona Giraldo ",null,"Grupo de Talento humano de la Secretaria General ICETEX","N/A","-","-","-","-",null,null,"2021-06-01","2021-11-30","Necesidades del SH","N/A","Gestión de Conocimiento e Innovación","Gestión del Conocimiento y la Innovación "]
[null,null,"GESTIÓN DE CAPACIDADES INSTITUCIONALES","GCI1. Fortalecer las capacidades del Talento Humano y la Innovación en las entidades del Sector Hacienda","SH.Ini.2019.2022.GCI1.003 Fortalecer la implementación de la política de Gestión de Conocimiento e Innovación en las Entidades del Sector","ITRC","ITRC > PAA 2022> Gestión del conocimiento e innovación","Nohora Beltrán Céspedes","Analizar los resultados de la política de Gestión del Conocimiento y la Innovación en la medición del  Furag  de la vigencia  2021.","De acuerdo con los resultados obtenidos en la medición del FURAG de la gestión 2021, que realiza el DAFP en la vigencia 2022. Cada entidad del Sector Hacienda, analizará sus resultados y ajustará cuando lo considere pertinente, el plan de Gestión del Conocimiento y la Innovación con el propósito de generar acciones que permitan cerrar brecha, según el caso.\n\nEntregable. Documento que soporte el análisis de los resultados del Furag, plan de mejora, plan ajustados o documento que evidencie el ejercicio de análisis.\n",null,"Ana Milena Ramírez Montealegre\n","Camilo Dussán Vargas\nDiego Ángel Mendoza",null,"Secretaría General / Oficina Asesora de Planeación","N/A","-","-","-","-",null,null,"2021-06-01","2021-11-30","Necesidades del SH","N/A","Gestión de Conocimiento e Innovación","Gestión del Conocimiento y la Innovación "]
[null,null,"GESTIÓN DE CAPACIDADES INSTITUCIONALES","GCI1. Fortalecer las capacidades del Talento Humano y la Innovación en las entidades del Sector Hacienda","SH.Ini.2019.2022.GCI1.003 Fortalecer la implementación de la política de Gestión de Conocimiento e Innovación en las Entidades del Sector","MHCP","MHCP > PAA 2022> Gestión del conocimiento e innovación","Fernando Carvajal","Analizar los resultados de la política de Gestión del Conocimiento y la Innovación en la medición del  Furag  de la vigencia  2021.","De acuerdo con los resultados obtenidos en la medición del FURAG de la gestión 2021, que realiza el DAFP en la vigencia 2022. Cada entidad del Sector Hacienda, analizará sus resultados y ajustará cuando lo considere pertinente, el plan de Gestión del Conocimiento y la Innovación con el propósito de generar acciones que permitan cerrar brecha, según el caso.\n\nEntregable. Documento que soporte el análisis de los resultados del Furag, plan de mejora, plan ajustados o documento que evidencie el ejercicio de análisis.\n",null,"Hilda Veronica Tapasco","Catherine Cifuentes\nYeinmy Rozo",null,"Oficina Asesora de Planeación\nSubdirección de Talento Humano \n","N/A","-","-","-","-",null,null,"2021-06-01","2021-11-30","Necesidades del SH","N/A","Gestión de Conocimiento e Innovación","Gestión del Conocimiento y la Innovación "]
[null,null,"GESTIÓN DE CAPACIDADES INSTITUCIONALES","GCI1. Fortalecer las capacidades del Talento Humano y la Innovación en las entidades del Sector Hacienda","SH.Ini.2019.2022.GCI1.003 Fortalecer la implementación de la política de Gestión de Conocimiento e Innovación en las Entidades del Sector","POSITIVA","POSITIVA > PAA 2022> Gestión del conocimiento e innovación","Carlos Augusto Mesa Diaz","Analizar los resultados de la política de Gestión del Conocimiento y la Innovación en la medición del  Furag  de la vigencia  2021.","De acuerdo con los resultados obtenidos en la medición del FURAG de la gestión 2021, que realiza el DAFP en la vigencia 2022. Cada entidad del Sector Hacienda, analizará sus resultados y ajustará cuando lo considere pertinente, el plan de Gestión del Conocimiento y la Innovación con el propósito de generar acciones que permitan cerrar brecha, según el caso.\n\nEntregable. Documento que soporte el análisis de los resultados del Furag, plan de mejora, plan ajustados o documento que evidencie el ejercicio de análisis.\n",null,"Oscar Saul Guerrero Bohórquez ","Oscar Saul Guerrero Bohórquez ",null,"Gerencia de Talento Humano","N/A","-","-","-","-",null,null,"2021-06-01","2021-11-30","Necesidades del SH","N/A","Gestión de Conocimiento e Innovación","Gestión del Conocimiento y la Innovación "]
[null,null,"GESTIÓN DE CAPACIDADES INSTITUCIONALES","GCI1. Fortalecer las capacidades del Talento Humano y la Innovación en las entidades del Sector Hacienda","SH.Ini.2019.2022.GCI1.003 Fortalecer la implementación de la política de Gestión de Conocimiento e Innovación en las Entidades del Sector","PREVISORA","PREVISORA > PAA 2022> Gestión del conocimiento e innovación","José Fernando Pulido Sierra","Analizar los resultados de la política de Gestión del Conocimiento y la Innovación en la medición del  Furag  de la vigencia  2021.","De acuerdo con los resultados obtenidos en la medición del FURAG de la gestión 2021, que realiza el DAFP en la vigencia 2022. Cada entidad del Sector Hacienda, analizará sus resultados y ajustará cuando lo considere pertinente, el plan de Gestión del Conocimiento y la Innovación con el propósito de generar acciones que permitan cerrar brecha, según el caso.\n\nEntregable. Documento que soporte el análisis de los resultados del Furag, plan de mejora, plan ajustados o documento que evidencie el ejercicio de análisis.\n",null,"Jose Fernando Pulido Sierra","N/A",null,"Gerencia de Innovación y Procesos","N/A","-","-","-","-",null,null,"2021-06-01","2021-11-30","Necesidades del SH","N/A","Gestión de Conocimiento e Innovación","Gestión del Conocimiento y la Innovación "]
[null,null,"GESTIÓN DE CAPACIDADES INSTITUCIONALES","GCI1. Fortalecer las capacidades del Talento Humano y la Innovación en las entidades del Sector Hacienda","SH.Ini.2019.2022.GCI1.003 Fortalecer la implementación de la política de Gestión de Conocimiento e Innovación en las Entidades del Sector","SAE","SAE > PAA 2022> Gestión del conocimiento e innovación","Jaime Leon Gómez Salazar","Analizar los resultados de la política de Gestión del Conocimiento y la Innovación en la medición del  Furag  de la vigencia  2021.","De acuerdo con los resultados obtenidos en la medición del FURAG de la gestión 2021, que realiza el DAFP en la vigencia 2022. Cada entidad del Sector Hacienda, analizará sus resultados y ajustará cuando lo considere pertinente, el plan de Gestión del Conocimiento y la Innovación con el propósito de generar acciones que permitan cerrar brecha, según el caso.\n\nEntregable. Documento que soporte el análisis de los resultados del Furag, plan de mejora, plan ajustados o documento que evidencie el ejercicio de análisis.\n",null,"Sandra Milena Martinez","Maria Consuelo Garcia",null,"Gerencia Talento Humano","N/A","-","-","-","-",null,null,"2021-06-01","2021-11-30","Necesidades del SH","N/A","Gestión de Conocimiento e Innovación","Gestión del Conocimiento y la Innovación "]
[null,null,"GESTIÓN DE CAPACIDADES INSTITUCIONALES","GCI1. Fortalecer las capacidades del Talento Humano y la Innovación en las entidades del Sector Hacienda","SH.Ini.2019.2022.GCI1.003 Fortalecer la implementación de la política de Gestión de Conocimiento e Innovación en las Entidades del Sector","SUPERFINANCIERA","SUPERFINANCIERA > PAA 2022 > Gestión del conocimiento e innovación","José Gabriel Sánchez Sousa","Analizar los resultados de la política de Gestión del Conocimiento y la Innovación en la medición del  Furag  de la vigencia  2021.","De acuerdo con los resultados obtenidos en la medición del FURAG de la gestión 2021, que realiza el DAFP en la vigencia 2022. Cada entidad del Sector Hacienda, analizará sus resultados y ajustará cuando lo considere pertinente, el plan de Gestión del Conocimiento y la Innovación con el propósito de generar acciones que permitan cerrar brecha, según el caso.\n\nEntregable. Documento que soporte el análisis de los resultados del Furag, plan de mejora, plan ajustados o documento que evidencie el ejercicio de análisis.\n",null,"Sergio Esteban Varela Guzman","Haydee Vanessa Ibagon Ibagon ",null,"Subdirección de Talento Humano","N/A","-","-","-","-",null,null,"2021-06-01","2021-11-30","Necesidades del SH","N/A","Gestión de Conocimiento e Innovación","Gestión del Conocimiento y la Innovación "]
[null,null,"GESTIÓN DE CAPACIDADES INSTITUCIONALES","GCI1. Fortalecer las capacidades del Talento Humano y la Innovación en las entidades del Sector Hacienda","SH.Ini.2019.2022.GCI1.003 Fortalecer la implementación de la política de Gestión de Conocimiento e Innovación en las Entidades del Sector","SUPERSOLIDARIA","SUPERSOLIDARIA> PAA 2022> Gestión del conocimiento e innovación","Robín Andrey Suarez Toscano","Analizar los resultados de la política de Gestión del Conocimiento y la Innovación en la medición del  Furag  de la vigencia  2021.","De acuerdo con los resultados obtenidos en la medición del FURAG de la gestión 2021, que realiza el DAFP en la vigencia 2022. Cada entidad del Sector Hacienda, analizará sus resultados y ajustará cuando lo considere pertinente, el plan de Gestión del Conocimiento y la Innovación con el propósito de generar acciones que permitan cerrar brecha, según el caso.\n\nEntregable. Documento que soporte el análisis de los resultados del Furag, plan de mejora, plan ajustados o documento que evidencie el ejercicio de análisis.\n",null,"Felipe Mancera Rojas ","N/A",null,"Oficina Asesora de Planeación y Sistemas ","N/A","-","-","-","-",null,null,"2022-07-01","2021-11-30","Necesidades del SH","N/A","Gestión de Conocimiento e Innovación","Gestión del Conocimiento y la Innovación "]
[null,null,"GESTIÓN DE CAPACIDADES INSTITUCIONALES","GCI1. Fortalecer las capacidades del Talento Humano y la Innovación en las entidades del Sector Hacienda","SH.Ini.2019.2022.GCI1.003 Fortalecer la implementación de la política de Gestión de Conocimiento e Innovación en las Entidades del Sector","UGPP","UGGP > PAA 2022> Gestión del conocimiento e innovación","Ana María Cadena","Analizar los resultados de la política de Gestión del Conocimiento y la Innovación en la medición del  Furag  de la vigencia  2021.","De acuerdo con los resultados obtenidos en la medición del FURAG de la gestión 2021, que realiza el DAFP en la vigencia 2022. Cada entidad del Sector Hacienda, analizará sus resultados y ajustará cuando lo considere pertinente, el plan de Gestión del Conocimiento y la Innovación con el propósito de generar acciones que permitan cerrar brecha, según el caso.\n\nEntregable. Documento que soporte el análisis de los resultados del Furag, plan de mejora, plan ajustados o documento que evidencie el ejercicio de análisis.\n",null,"Germán Vega Rodríguez","N/A",null,"Subdirección de Gestión Humana","N/A","-","-","-","-",null,null,"2021-06-01","2021-11-30","Necesidades del SH","N/A","Gestión de Conocimiento e Innovación","Gestión del Conocimiento y la Innovación "]
[null,null,"GESTIÓN DE CAPACIDADES INSTITUCIONALES","GCI1. Fortalecer las capacidades del Talento Humano y la Innovación en las entidades del Sector Hacienda","SH.Ini.2019.2022.GCI1.003 Fortalecer la implementación de la política de Gestión de Conocimiento e Innovación en las Entidades del Sector","URF","URF > PAA 2022> Gestión del conocimiento e innovación","Ivonnie Edith Gallardo","Analizar los resultados de la política de Gestión del Conocimiento y la Innovación en la medición del  Furag  de la vigencia  2021.","De acuerdo con los resultados obtenidos en la medición del FURAG de la gestión 2021, que realiza el DAFP en la vigencia 2022. Cada entidad del Sector Hacienda, analizará sus resultados y ajustará cuando lo considere pertinente, el plan de Gestión del Conocimiento y la Innovación con el propósito de generar acciones que permitan cerrar brecha, según el caso.\n\nEntregable. Documento que soporte el análisis de los resultados del Furag, plan de mejora, plan ajustados o documento que evidencie el ejercicio de análisis.\n",null,"Paola Patricia Rodriguez","N/A",null,"Subdirección Jurídica y de Gestión Institucional ","N/A","-","-","-","-",null,null,"2021-06-01","2021-11-30","Necesidades del SH","N/A","Gestión de Conocimiento e Innovación","Gestión del Conocimiento y la Innovación "]
[null,null,"GESTIÓN DE CAPACIDADES INSTITUCIONALES","GCI1. Fortalecer las capacidades del Talento Humano y la Innovación en las entidades del Sector Hacienda","SH.Ini.2019.2022.GCI1.003 Fortalecer la implementación de la política de Gestión de Conocimiento e Innovación en las Entidades del Sector","MHCP","MHCP > PAA 2022> Gestión del conocimiento e innovación","Fernando Carvajal","Coordinar y adelantar las mesas de trabajo sectoriales de la política de Gestión del Conocimiento e innovación","Coordinar y adelantar dos mesas de trabajo sectoriales de la política de Gestión del conocimiento e innovación. 1 cada semestre.",null,"Hilda Veronica Tapasco","Camilo Sánchez\nCatherine Cifuentes\nYeinmy Rozo",null,"Oficina Asesora de Planeación\nSubdirección de Talento Humano \n","N/A","-","-","-","-","-","-","2022-03-01","2022-11-30","Necesidades del SH","N/A","Gestión de Conocimiento e Innovación","Gestión del Conocimiento y la Innovación "]
[null,null,"GESTIÓN DE CAPACIDADES INSTITUCIONALES","GCI1. Fortalecer las capacidades del Talento Humano y la Innovación en las entidades del Sector Hacienda","SH.Ini.2019.2022.GCI1.003 Fortalecer la implementación de la política de Gestión de Conocimiento e Innovación en las Entidades del Sector","BANCO AGRARIO","BANCO AGRARIO> PAA 2022> Gestión del conocimiento e innovación","Sandra Patricia Villabona","Participar en  las mesas sectoriales de la política de Gestión del Conocimiento e innovación","Asistir a las reuniones de trabajo sectorial para fomentar el intercambio de conocimientos e información entre los líderes de la política de Gestión del Conocimiento y la Innovación.\n\nEntregable:  listados de asistencia de dos (2) reuniones en la vigencia 2022 o reporte del MHCP sobre la asistencia de las entidades.\n",null,"Diana Marcela Caballero","N/A",null,"Vicepresidencia de Tecnología e Innovación","N/A","-","-","-","-",null,null,"2022-03-01","2022-11-30","Necesidades del SH","N/A","Gestión de Conocimiento e Innovación","Gestión del Conocimiento y la Innovación "]
[null,null,"GESTIÓN DE CAPACIDADES INSTITUCIONALES","GCI1. Fortalecer las capacidades del Talento Humano y la Innovación en las entidades del Sector Hacienda","SH.Ini.2019.2022.GCI1.003 Fortalecer la implementación de la política de Gestión de Conocimiento e Innovación en las Entidades del Sector","BANCOLDEX","BANCOLDEX> PAA 2022 > Gestión del conocimiento e innovación","María José Naranjo","Participar en  las mesas sectoriales de la política de Gestión del Conocimiento e innovación","Asistir a las reuniones de trabajo sectorial para fomentar el intercambio de conocimientos e información entre los líderes de la política de Gestión del Conocimiento y la Innovación.\n\nEntregable:  listados de asistencia de dos (2) reuniones en la vigencia 2022 o reporte del MHCP sobre la asistencia de las entidades.\n",null,"Gloria Cortés\n","Jessica Rodríguez",null,"Departamento Talento Humano\nOficina de Innovación","N/A","-","-","-","-",null,null,"2022-03-01","2022-11-30","Necesidades del SH","N/A","Gestión de Conocimiento e Innovación","Gestión del Conocimiento y la Innovación "]
[null,null,"GESTIÓN DE CAPACIDADES INSTITUCIONALES","GCI1. Fortalecer las capacidades del Talento Humano y la Innovación en las entidades del Sector Hacienda","SH.Ini.2019.2022.GCI1.003 Fortalecer la implementación de la política de Gestión de Conocimiento e Innovación en las Entidades del Sector","CISA","CISA > PAA 2022> Gestión del conocimiento e innovación","Juan Felipe Robles","Participar en  las mesas sectoriales de la política de Gestión del Conocimiento e innovación","Asistir a las reuniones de trabajo sectorial para fomentar el intercambio de conocimientos e información entre los líderes de la política de Gestión del Conocimiento y la Innovación.\n\nEntregable:  listados de asistencia de dos (2) reuniones en la vigencia 2022 o reporte del MHCP sobre la asistencia de las entidades.\n",null,"Sandra Viviana Neira ","N.A",null,"Gerencia de Recursos","N/A","-","-","-","-",null,null,"2022-03-01","2022-11-30","Necesidades del SH","N/A","Gestión de Conocimiento e Innovación","Gestión del Conocimiento y la Innovación "]
[null,null,"GESTIÓN DE CAPACIDADES INSTITUCIONALES","GCI1. Fortalecer las capacidades del Talento Humano y la Innovación en las entidades del Sector Hacienda","SH.Ini.2019.2022.GCI1.003 Fortalecer la implementación de la política de Gestión de Conocimiento e Innovación en las Entidades del Sector","COLJUEGOS","COLJUEGOS> PAA 2022 > Gestión del conocimiento e innovación","Roger José Carrillo Campo ","Participar en  las mesas sectoriales de la política de Gestión del Conocimiento e innovación","Asistir a las reuniones de trabajo sectorial para fomentar el intercambio de conocimientos e información entre los líderes de la política de Gestión del Conocimiento y la Innovación.\n\nEntregable:  listados de asistencia de dos (2) reuniones en la vigencia 2022 o reporte del MHCP sobre la asistencia de las entidades.\n",null,"Alexandra Torres Gonzalez","Juan Felipe Mahecha Cordoba",null,"Oficina Asesora de Planeación","N/A","-","-","-","-","2021-02-01","2021-12-31","2022-02-01","2022-12-31","Necesidades del SH","N/A","Gestión de Conocimiento e Innovación","Gestión del Conocimiento y la Innovación "]
[null,null,"GESTIÓN DE CAPACIDADES INSTITUCIONALES","GCI1. Fortalecer las capacidades del Talento Humano y la Innovación en las entidades del Sector Hacienda","SH.Ini.2019.2022.GCI1.003 Fortalecer la implementación de la política de Gestión de Conocimiento e Innovación en las Entidades del Sector","CGN","CGN > PAA 2022> Gestión del conocimiento e innovación","Henry Ramírez Montes","Participar en  las mesas sectoriales de la política de Gestión del Conocimiento e innovación","Asistir a las reuniones de trabajo sectorial para fomentar el intercambio de conocimientos e información entre los líderes de la política de Gestión del Conocimiento y la Innovación.\n\nEntregable:  listados de asistencia de dos (2) reuniones en la vigencia 2022 o reporte del MHCP sobre la asistencia de las entidades.\n",null,"Wilson Eduardo Cifuentes","N/A",null,"GIT de Planeación","N/A","-","-","-","-","2021-02-01","2021-12-31","2021-02-01","2021-12-31","Necesidades del SH","N/A","Gestión de Conocimiento e Innovación","Gestión del Conocimiento y la Innovación "]
[null,null,"GESTIÓN DE CAPACIDADES INSTITUCIONALES","GCI1. Fortalecer las capacidades del Talento Humano y la Innovación en las entidades del Sector Hacienda","SH.Ini.2019.2022.GCI1.003 Fortalecer la implementación de la política de Gestión de Conocimiento e Innovación en las Entidades del Sector","DIAN","DIAN > PAA 2022> Gestión del conocimiento e innovación","Catalina Garcia Cure","Participar en  las mesas sectoriales de la política de Gestión del Conocimiento e innovación","Asistir a las reuniones de trabajo sectorial para fomentar el intercambio de conocimientos e información entre los líderes de la política de Gestión del Conocimiento y la Innovación.\n\nEntregable:  listados de asistencia de dos (2) reuniones en la vigencia 2022 o reporte del MHCP sobre la asistencia de las entidades.\n",null,"Constanza Del Pilar Rodríguez Páez","Héctor Leonel Mesa Lara",null,"Subdirección de Gestión de Tecnología","N/A","-","-","-","-","2021-02-01","2021-12-31","2021-02-01","2021-12-31","Necesidades del SH","N/A","Gestión de Conocimiento e Innovación","Gestión del Conocimiento y la Innovación "]
[null,null,"GESTIÓN DE CAPACIDADES INSTITUCIONALES","GCI1. Fortalecer las capacidades del Talento Humano y la Innovación en las entidades del Sector Hacienda","SH.Ini.2019.2022.GCI1.003 Fortalecer la implementación de la política de Gestión de Conocimiento e Innovación en las Entidades del Sector","ENTERRITORIO","ENTERRITORIO> PAA 2022> Gestión del conocimiento e innovación","Carlos Eduardo Umaña Lizarazo","Participar en  las mesas sectoriales de la política de Gestión del Conocimiento e innovación","Asistir a las reuniones de trabajo sectorial para fomentar el intercambio de conocimientos e información entre los líderes de la política de Gestión del Conocimiento y la Innovación.\n\nEntregable:  listados de asistencia de dos (2) reuniones en la vigencia 2022 o reporte del MHCP sobre la asistencia de las entidades.\n",null,"Marta Liced Rodriguez Quimbayo","Anny Alvarez Mendoza",null,"Grupo de Planeación y Gestión de Riesgos","N/A","-","-","-","-","2021-02-01","2021-12-31","2021-02-01","2021-12-31","Necesidades del SH","N/A","Gestión de Conocimiento e Innovación","Gestión del Conocimiento y la Innovación "]
[null,null,"GESTIÓN DE CAPACIDADES INSTITUCIONALES","GCI1. Fortalecer las capacidades del Talento Humano y la Innovación en las entidades del Sector Hacienda","SH.Ini.2019.2022.GCI1.003 Fortalecer la implementación de la política de Gestión de Conocimiento e Innovación en las Entidades del Sector","FDN","FDN > PAA 2022> Gestión del conocimiento e innovación","Carolina Hernández","Participar en  las mesas sectoriales de la política de Gestión del Conocimiento e innovación","Asistir a las reuniones de trabajo sectorial para fomentar el intercambio de conocimientos e información entre los líderes de la política de Gestión del Conocimiento y la Innovación.\n\nEntregable:  listados de asistencia de dos (2) reuniones en la vigencia 2022 o reporte del MHCP sobre la asistencia de las entidades.\n",null,"Maria Alejandra Rueda","N/A",null,"NA","N/A","-","-","-","-","2021-02-01","2021-12-31","2021-02-01","2021-12-31","Necesidades del SH","N/A","Gestión de Conocimiento e Innovación","Gestión del Conocimiento y la Innovación "]
[null,null,"GESTIÓN DE CAPACIDADES INSTITUCIONALES","GCI1. Fortalecer las capacidades del Talento Humano y la Innovación en las entidades del Sector Hacienda","SH.Ini.2019.2022.GCI1.003 Fortalecer la implementación de la política de Gestión de Conocimiento e Innovación en las Entidades del Sector","FIDUAGRARIA","FIDUAGRARIA> PAA 2022> Gestión del conocimiento e innovación","Luz Marina Fernández Bello ","Participar en  las mesas sectoriales de la política de Gestión del Conocimiento e innovación","Asistir a las reuniones de trabajo sectorial para fomentar el intercambio de conocimientos e información entre los líderes de la política de Gestión del Conocimiento y la Innovación.\n\nEntregable:  listados de asistencia de dos (2) reuniones en la vigencia 2022 o reporte del MHCP sobre la asistencia de las entidades.\n",null,"Adriana Marcela Fuente Estrada","Melissa Lorena Lasprilla Vanegas \nMariana Morales Rojas",null,"Jefatura de Talento Humano","N/A","-","-","-","-","2021-02-01","2021-12-31","2021-02-01","2021-12-31","Necesidades del SH","N/A","Gestión de Conocimiento e Innovación","Gestión del Conocimiento y la Innovación "]
[null,null,"GESTIÓN DE CAPACIDADES INSTITUCIONALES","GCI1. Fortalecer las capacidades del Talento Humano y la Innovación en las entidades del Sector Hacienda","SH.Ini.2019.2022.GCI1.003 Fortalecer la implementación de la política de Gestión de Conocimiento e Innovación en las Entidades del Sector","FIDUCOLDEX","FIDUCOLDEX> PAA 2022 > Gestión del conocimiento e innovación","Andrés Barco","Participar en  las mesas sectoriales de la política de Gestión del Conocimiento e innovación","Asistir a las reuniones de trabajo sectorial para fomentar el intercambio de conocimientos e información entre los líderes de la política de Gestión del Conocimiento y la Innovación.\n\nEntregable:  listados de asistencia de dos (2) reuniones en la vigencia 2022 o reporte del MHCP sobre la asistencia de las entidades.\n",null,"Angelly Coy","N/A",null,"Coordinación de Direccionamiento Estratégico","N/A","-","-","-","-","2021-02-01","2021-12-31","2021-02-01","2021-12-31","Necesidades del SH","N/A","Gestión de Conocimiento e Innovación","Gestión del Conocimiento y la Innovación "]
[null,null,"GESTIÓN DE CAPACIDADES INSTITUCIONALES","GCI1. Fortalecer las capacidades del Talento Humano y la Innovación en las entidades del Sector Hacienda","SH.Ini.2019.2022.GCI1.003 Fortalecer la implementación de la política de Gestión de Conocimiento e Innovación en las Entidades del Sector","FIDUPREVISORA","FIDUPREVISORA > PAA 2022 > Gestión del conocimiento e innovación","Magda Nancy Manosalva Cely","Participar en  las mesas sectoriales de la política de Gestión del Conocimiento e innovación","Asistir a las reuniones de trabajo sectorial para fomentar el intercambio de conocimientos e información entre los líderes de la política de Gestión del Conocimiento y la Innovación.\n\nEntregable:  listados de asistencia de dos (2) reuniones en la vigencia 2022 o reporte del MHCP sobre la asistencia de las entidades.\n",null,"Karen Pardo","Maria Fernanda Gómez",null,"Vicepresidencia de Desarrollo y Soporte Organizacional - Dirección de Talento Humano","N/A","-","-","-","-","2021-02-01","2021-12-31","2021-02-01","2021-12-31","Necesidades del SH","N/A","Gestión de Conocimiento e Innovación","Gestión del Conocimiento y la Innovación "]
[null,null,"GESTIÓN DE CAPACIDADES INSTITUCIONALES","GCI1. Fortalecer las capacidades del Talento Humano y la Innovación en las entidades del Sector Hacienda","SH.Ini.2019.2022.GCI1.003 Fortalecer la implementación de la política de Gestión de Conocimiento e Innovación en las Entidades del Sector","FINAGRO","FINAGRO> PAA 2022> Gestión del conocimiento e innovación","Juan Carlos Restrepo González","Participar en  las mesas sectoriales de la política de Gestión del Conocimiento e innovación","Asistir a las reuniones de trabajo sectorial para fomentar el intercambio de conocimientos e información entre los líderes de la política de Gestión del Conocimiento y la Innovación.\n\nEntregable:  listados de asistencia de dos (2) reuniones en la vigencia 2022 o reporte del MHCP sobre la asistencia de las entidades.\n",null,"Julian García Cardona\n","Maria Fernanda Guerra\nMiguel Alexander patiño\nMaría Helena Reyes Donadlo \n",null,"Gerencia de Investigaciones Económicas","N/A","-","-","-","-","2021-02-01","2021-12-31","2021-02-01","2021-12-31","Necesidades del SH","N/A","Gestión de Conocimiento e Innovación","Gestión del Conocimiento y la Innovación "]
[null,null,"GESTIÓN DE CAPACIDADES INSTITUCIONALES","GCI1. Fortalecer las capacidades del Talento Humano y la Innovación en las entidades del Sector Hacienda","SH.Ini.2019.2022.GCI1.003 Fortalecer la implementación de la política de Gestión de Conocimiento e Innovación en las Entidades del Sector","FINDETER","FINDETER > PAA 2022 > Gestión del conocimiento e innovación","Laura Mercedes Peña Rodríguez","Participar en  las mesas sectoriales de la política de Gestión del Conocimiento e innovación","Asistir a las reuniones de trabajo sectorial para fomentar el intercambio de conocimientos e información entre los líderes de la política de Gestión del Conocimiento y la Innovación.\n\nEntregable:  listados de asistencia de dos (2) reuniones en la vigencia 2022 o reporte del MHCP sobre la asistencia de las entidades.\n",null,"Jorge Luis Giraldo  ","N/A",null," Gerencia de Planeación y Gestión - Gerencia de Planeación y Gestión - Equipo CIC","N/A","-","-","-","-","2021-02-01","2021-12-31","2021-02-01","2021-12-31","Necesidades del SH","N/A","Gestión de Conocimiento e Innovación","Gestión del Conocimiento y la Innovación "]
[null,null,"GESTIÓN DE CAPACIDADES INSTITUCIONALES","GCI1. Fortalecer las capacidades del Talento Humano y la Innovación en las entidades del Sector Hacienda","SH.Ini.2019.2022.GCI1.003 Fortalecer la implementación de la política de Gestión de Conocimiento e Innovación en las Entidades del Sector","FOGACOOP","FOGACOOP> PAA 2022> Gestión del conocimiento e innovación","Adriana Mcallister Braidy","Participar en  las mesas sectoriales de la política de Gestión del Conocimiento e innovación","Asistir a las reuniones de trabajo sectorial para fomentar el intercambio de conocimientos e información entre los líderes de la política de Gestión del Conocimiento y la Innovación.\n\nEntregable:  listados de asistencia de dos (2) reuniones en la vigencia 2022 o reporte del MHCP sobre la asistencia de las entidades.\n",null,"María Consuelo Corredor","Zulma Liliana López Zuluaga",null,"Coordinación Administrativa ","N/A","-","-","-","-","2021-02-01","2021-12-31","2021-02-01","2021-12-31","Necesidades del SH","N/A","Gestión de Conocimiento e Innovación","Gestión del Conocimiento y la Innovación "]
[null,null,"GESTIÓN DE CAPACIDADES INSTITUCIONALES","GCI1. Fortalecer las capacidades del Talento Humano y la Innovación en las entidades del Sector Hacienda","SH.Ini.2019.2022.GCI1.003 Fortalecer la implementación de la política de Gestión de Conocimiento e Innovación en las Entidades del Sector","FOGAFIN","FOGAFIN > PAA 2022 > Gestión del conocimiento e innovación","Carlos Alberto Sánchez del Valle","Participar en  las mesas sectoriales de la política de Gestión del Conocimiento e innovación","Asistir a las reuniones de trabajo sectorial para fomentar el intercambio de conocimientos e información entre los líderes de la política de Gestión del Conocimiento y la Innovación.\n\nEntregable:  listados de asistencia de dos (2) reuniones en la vigencia 2022 o reporte del MHCP sobre la asistencia de las entidades.\n",null,"Carlos Alberto Sánchez del Valle","N/A",null,"Departamento de Gestión de Contenidos, Planeación y Proyectos y Riesgo Operativo y Procesos","N/A","-","-","-","-","2021-02-01","2021-12-31","2021-02-01","2021-12-31","Necesidades del SH","N/A","Gestión de Conocimiento e Innovación","Gestión del Conocimiento y la Innovación "]
[null,null,"GESTIÓN DE CAPACIDADES INSTITUCIONALES","GCI1. Fortalecer las capacidades del Talento Humano y la Innovación en las entidades del Sector Hacienda","SH.Ini.2019.2022.GCI1.003 Fortalecer la implementación de la política de Gestión de Conocimiento e Innovación en las Entidades del Sector","FONDO ADAPTACIÓN","FONDO ADAPTACIÓN > PAA 2022 > Gestión del conocimiento e innovación","Alejandro Venegas","Participar en  las mesas sectoriales de la política de Gestión del Conocimiento e innovación","Asistir a las reuniones de trabajo sectorial para fomentar el intercambio de conocimientos e información entre los líderes de la política de Gestión del Conocimiento y la Innovación.\n\nEntregable:  listados de asistencia de dos (2) reuniones en la vigencia 2022 o reporte del MHCP sobre la asistencia de las entidades.\n",null,"Catalina Soto Velasco","Gabriel Amarillo",null,"Oficina de Planeación","N/A","-","-","-","-","2021-02-01","2021-12-31","2021-02-01","2021-12-31","Necesidades del SH","N/A","Gestión de Conocimiento e Innovación","Gestión del Conocimiento y la Innovación "]
[null,null,"GESTIÓN DE CAPACIDADES INSTITUCIONALES","GCI1. Fortalecer las capacidades del Talento Humano y la Innovación en las entidades del Sector Hacienda","SH.Ini.2019.2022.GCI1.003 Fortalecer la implementación de la política de Gestión de Conocimiento e Innovación en las Entidades del Sector","FONDO NACIONAL DEL AHORRO","FONDO NACIONAL DE AHORRO> PAA 2022 > Gestión del conocimiento e innovación","Kennicher Arias Roa","Participar en  las mesas sectoriales de la política de Gestión del Conocimiento e innovación","Asistir a las reuniones de trabajo sectorial para fomentar el intercambio de conocimientos e información entre los líderes de la política de Gestión del Conocimiento y la Innovación.\n\nEntregable:  listados de asistencia de dos (2) reuniones en la vigencia 2022 o reporte del MHCP sobre la asistencia de las entidades.\n",null,"Kennicher Arias Roa","Monica Pedraza \n Mónica Bibiana Martínez Liliana Valenzuela ",null,"Oficina de Planeación","N/A","-","-","-","-","2021-02-01","2021-12-31","2021-02-01","2021-12-31","Necesidades del SH","N/A","Gestión de Conocimiento e Innovación","Gestión del Conocimiento y la Innovación "]
[null,null,"GESTIÓN DE CAPACIDADES INSTITUCIONALES","GCI1. Fortalecer las capacidades del Talento Humano y la Innovación en las entidades del Sector Hacienda","SH.Ini.2019.2022.GCI1.003 Fortalecer la implementación de la política de Gestión de Conocimiento e Innovación en las Entidades del Sector","FONDO NACIONAL DE GARANTIAS","FONDO NACIONAL DE GARANTIAS> PAA 2022 > Gestión del conocimiento e innovación","Maria Angelica Burbano Sánchez","Participar en  las mesas sectoriales de la política de Gestión del Conocimiento e innovación","Asistir a las reuniones de trabajo sectorial para fomentar el intercambio de conocimientos e información entre los líderes de la política de Gestión del Conocimiento y la Innovación.\n\nEntregable:  listados de asistencia de dos (2) reuniones en la vigencia 2022 o reporte del MHCP sobre la asistencia de las entidades.\n",null,"Esther Julia Hernandez\n","Andrés Estrada Cardona \n",null,"Dirección de Gestión Humana","N/A","-","-","-","-","2021-02-01","2021-12-31","2021-02-01","2021-12-31","Necesidades del SH","N/A","Gestión de Conocimiento e Innovación","Gestión del Conocimiento y la Innovación "]
[null,null,"GESTIÓN DE CAPACIDADES INSTITUCIONALES","GCI1. Fortalecer las capacidades del Talento Humano y la Innovación en las entidades del Sector Hacienda","SH.Ini.2019.2022.GCI1.003 Fortalecer la implementación de la política de Gestión de Conocimiento e Innovación en las Entidades del Sector","GRUPO BICENTENARIO","GRUPO BICENTENARIO> PAA 2022 > Gestión del conocimiento e innovación","Oscar Laureano Rosero Jiménez","Participar en  las mesas sectoriales de la política de Gestión del Conocimiento e innovación","Asistir a las reuniones de trabajo sectorial para fomentar el intercambio de conocimientos e información entre los líderes de la política de Gestión del Conocimiento y la Innovación.\n\nEntregable:  listados de asistencia de dos (2) reuniones en la vigencia 2022 o reporte del MHCP sobre la asistencia de las entidades.\n",null,"Oscar Laureano Rosero Jiménez ","N/A",null,"Área Estrategia","N/A","-","-","-","-","2021-02-01","2021-12-31","2021-02-01","2021-12-31","Necesidades del SH","N/A","Gestión de Conocimiento e Innovación","Gestión del Conocimiento y la Innovación "]
[null,null,"GESTIÓN DE CAPACIDADES INSTITUCIONALES","GCI1. Fortalecer las capacidades del Talento Humano y la Innovación en las entidades del Sector Hacienda","SH.Ini.2019.2022.GCI1.003 Fortalecer la implementación de la política de Gestión de Conocimiento e Innovación en las Entidades del Sector","ICETEX","ICETEX> PAA 2022 > Gestión del conocimiento e innovación","Beatriz Helena Torres Lizarazo\n","Participar en  las mesas sectoriales de la política de Gestión del Conocimiento e innovación","Asistir a las reuniones de trabajo sectorial para fomentar el intercambio de conocimientos e información entre los líderes de la política de Gestión del Conocimiento y la Innovación.\n\nEntregable:  listados de asistencia de dos (2) reuniones en la vigencia 2022 o reporte del MHCP sobre la asistencia de las entidades.\n",null,"\nMonica Daniela Cortes Muñoz ","Johana Niño Acosta \nMiriam Cardona Giraldo ",null,"Grupo de Talento humano de la Secretaria General ICETEX","N/A","-","-","-","-","2021-02-01","2021-12-31","2021-02-01","2021-12-31","Necesidades del SH","N/A","Gestión de Conocimiento e Innovación","Gestión del Conocimiento y la Innovación "]
[null,null,"GESTIÓN DE CAPACIDADES INSTITUCIONALES","GCI1. Fortalecer las capacidades del Talento Humano y la Innovación en las entidades del Sector Hacienda","SH.Ini.2019.2022.GCI1.003 Fortalecer la implementación de la política de Gestión de Conocimiento e Innovación en las Entidades del Sector","ITRC","ITRC > PAA 2022 > Gestión del conocimiento e innovación","Nohora Beltrán Céspedes","Participar en  las mesas sectoriales de la política de Gestión del Conocimiento e innovación","Asistir a las reuniones de trabajo sectorial para fomentar el intercambio de conocimientos e información entre los líderes de la política de Gestión del Conocimiento y la Innovación.\n\nEntregable:  listados de asistencia de dos (2) reuniones en la vigencia 2022 o reporte del MHCP sobre la asistencia de las entidades.\n",null,"Ana Milena Ramírez Montealegre\n","Camilo Dussán Vargas\nDiego Ángel Mendoza\n",null,"Secretaría General / Oficina Asesora de Planeación","N/A","-","-","-","-","2021-02-01","2021-12-31","2021-02-01","2021-12-31","Necesidades del SH","N/A","Gestión de Conocimiento e Innovación","Gestión del Conocimiento y la Innovación "]
[null,null,"GESTIÓN DE CAPACIDADES INSTITUCIONALES","GCI1. Fortalecer las capacidades del Talento Humano y la Innovación en las entidades del Sector Hacienda","SH.Ini.2019.2022.GCI1.003 Fortalecer la implementación de la política de Gestión de Conocimiento e Innovación en las Entidades del Sector","POSITIVA","POSITIVA > PAA 2022> Gestión del conocimiento e innovación","Carlos Augusto Mesa Diaz","Participar en  las mesas sectoriales de la política de Gestión del Conocimiento e innovación","Asistir a las reuniones de trabajo sectorial para fomentar el intercambio de conocimientos e información entre los líderes de la política de Gestión del Conocimiento y la Innovación.\n\nEntregable:  listados de asistencia de dos (2) reuniones en la vigencia 2022 o reporte del MHCP sobre la asistencia de las entidades.\n",null,"Oscar Saul Guerrero Bohórquez ","Oscar Saul Guerrero Bohórquez ",null,"Gerencia de Talento Humano","N/A","-","-","-","-","2021-02-01","2021-12-31","2021-02-01","2021-12-31","Necesidades del SH","N/A","Gestión de Conocimiento e Innovación","Gestión del Conocimiento y la Innovación "]
[null,null,"GESTIÓN DE CAPACIDADES INSTITUCIONALES","GCI1. Fortalecer las capacidades del Talento Humano y la Innovación en las entidades del Sector Hacienda","SH.Ini.2019.2022.GCI1.003 Fortalecer la implementación de la política de Gestión de Conocimiento e Innovación en las Entidades del Sector","PREVISORA","PREVISORA > PAA 2022 > Gestión del conocimiento e innovación","José Fernando Pulido Sierra","Participar en  las mesas sectoriales de la política de Gestión del Conocimiento e innovación","Asistir a las reuniones de trabajo sectorial para fomentar el intercambio de conocimientos e información entre los líderes de la política de Gestión del Conocimiento y la Innovación.\n\nEntregable:  listados de asistencia de dos (2) reuniones en la vigencia 2022 o reporte del MHCP sobre la asistencia de las entidades.\n",null,"Jose Fernando Pulido Sierra","N/A",null,"Gerencia de Innovación y Procesos","N/A","-","-","-","-","2021-02-01","2021-12-31","2021-02-01","2021-12-31","Necesidades del SH","N/A","Gestión de Conocimiento e Innovación","Gestión del Conocimiento y la Innovación "]
[null,null,"GESTIÓN DE CAPACIDADES INSTITUCIONALES","GCI1. Fortalecer las capacidades del Talento Humano y la Innovación en las entidades del Sector Hacienda","SH.Ini.2019.2022.GCI1.003 Fortalecer la implementación de la política de Gestión de Conocimiento e Innovación en las Entidades del Sector","SAE","SAE > PAA 2022 > Gestión del conocimiento e innovación","Jaime Leon Gómez Salazar","Participar en  las mesas sectoriales de la política de Gestión del Conocimiento e innovación","Asistir a las reuniones de trabajo sectorial para fomentar el intercambio de conocimientos e información entre los líderes de la política de Gestión del Conocimiento y la Innovación.\n\nEntregable:  listados de asistencia de dos (2) reuniones en la vigencia 2022 o reporte del MHCP sobre la asistencia de las entidades.\n",null,"Sandra Milena Martinez","Maria Consuelo Garcia\n",null,"Gerencia Talento Humano","N/A","-","-","-","-","2021-02-01","2021-12-31","2021-02-01","2021-12-31","Necesidades del SH","N/A","Gestión de Conocimiento e Innovación","Gestión del Conocimiento y la Innovación "]
[null,null,"GESTIÓN DE CAPACIDADES INSTITUCIONALES","GCI1. Fortalecer las capacidades del Talento Humano y la Innovación en las entidades del Sector Hacienda","SH.Ini.2019.2022.GCI1.003 Fortalecer la implementación de la política de Gestión de Conocimiento e Innovación en las Entidades del Sector","SUPERFINANCIERA","SUPERFINANCIERA > PAA 2022 > Gestión del conocimiento e innovación","José Gabriel Sánchez Sousa","Participar en  las mesas sectoriales de la política de Gestión del Conocimiento e innovación","Asistir a las reuniones de trabajo sectorial para fomentar el intercambio de conocimientos e información entre los líderes de la política de Gestión del Conocimiento y la Innovación.\n\nEntregable:  listados de asistencia de dos (2) reuniones en la vigencia 2022 o reporte del MHCP sobre la asistencia de las entidades.\n",null,"Sergio Esteban Varela Guzman","Haydee Vanessa Ibagon Ibagon ",null,"Subdirección de Talento Humano","N/A","-","-","-","-","2021-02-01","2021-12-31","2021-02-01","2021-12-31","Necesidades del SH","N/A","Gestión de Conocimiento e Innovación","Gestión del Conocimiento y la Innovación "]
[null,null,"GESTIÓN DE CAPACIDADES INSTITUCIONALES","GCI1. Fortalecer las capacidades del Talento Humano y la Innovación en las entidades del Sector Hacienda","SH.Ini.2019.2022.GCI1.003 Fortalecer la implementación de la política de Gestión de Conocimiento e Innovación en las Entidades del Sector","SUPERSOLIDARIA","SUPERSOLIDARIA> PAA 2022> Gestión del conocimiento e innovación","Robín Andrey Suarez Toscano","Participar en  las mesas sectoriales de la política de Gestión del Conocimiento e innovación","Asistir a las reuniones de trabajo sectorial para fomentar el intercambio de conocimientos e información entre los líderes de la política de Gestión del Conocimiento y la Innovación.\n\nEntregable:  listados de asistencia de dos (2) reuniones en la vigencia 2022 o reporte del MHCP sobre la asistencia de las entidades.\n",null,"Felipe Mancera Rojas ","N/A",null,"Oficina Asesora de Planeación y Sistemas ","N/A","-","-","-","-","2021-02-01","2021-12-31","2021-02-01","2021-12-31","Necesidades del SH","N/A","Gestión de Conocimiento e Innovación","Gestión del Conocimiento y la Innovación "]
[null,null,"GESTIÓN DE CAPACIDADES INSTITUCIONALES","GCI1. Fortalecer las capacidades del Talento Humano y la Innovación en las entidades del Sector Hacienda","SH.Ini.2019.2022.GCI1.003 Fortalecer la implementación de la política de Gestión de Conocimiento e Innovación en las Entidades del Sector","UGPP","UGGP > PAA 2022 > Gestión del conocimiento e innovación","Ana María Cadena","Participar en  las mesas sectoriales de la política de Gestión del Conocimiento e innovación","Asistir a las reuniones de trabajo sectorial para fomentar el intercambio de conocimientos e información entre los líderes de la política de Gestión del Conocimiento y la Innovación.\n\nEntregable:  listados de asistencia de dos (2) reuniones en la vigencia 2022 o reporte del MHCP sobre la asistencia de las entidades.\n",null,"Germán Vega Rodríguez","N/A",null,"Subdirección de Gestión Humana","N/A","-","-","-","-","2021-02-01","2021-12-31","2021-02-01","2021-12-31","Necesidades del SH","N/A","Gestión de Conocimiento e Innovación","Gestión del Conocimiento y la Innovación "]
[null,null,"GESTIÓN DE CAPACIDADES INSTITUCIONALES","GCI1. Fortalecer las capacidades del Talento Humano y la Innovación en las entidades del Sector Hacienda","SH.Ini.2019.2022.GCI1.003 Fortalecer la implementación de la política de Gestión de Conocimiento e Innovación en las Entidades del Sector","UIAF","UIAF > PAA 2022 > Gestión del conocimiento e innovación","Nilgen Vargas Garcés","Participar en  las mesas sectoriales de la política de Gestión del Conocimiento e innovación","Asistir a las reuniones de trabajo sectorial para fomentar el intercambio de conocimientos e información entre los líderes de la política de Gestión del Conocimiento y la Innovación.\n\nEntregable:  listados de asistencia de dos (2) reuniones en la vigencia 2022 o reporte del MHCP sobre la asistencia de las entidades.\n",null,"Carlos Julio Buitrago Ortiz","Diana Katherine Gomez Salazar",null,"Subdirección Administrativa y Financiera","N/A","-","-","-","-","2021-02-01","2021-12-31","2021-02-01","2021-12-31","Necesidades del SH","N/A","Gestión de Conocimiento e Innovación","Gestión del Conocimiento y la Innovación "]
[null,null,"GESTIÓN DE CAPACIDADES INSTITUCIONALES","GCI1. Fortalecer las capacidades del Talento Humano y la Innovación en las entidades del Sector Hacienda","SH.Ini.2019.2022.GCI1.003 Fortalecer la implementación de la política de Gestión de Conocimiento e Innovación en las Entidades del Sector","URF","URF > PAA 2022 > Gestión del conocimiento e innovación","Ivonnie Edith Gallardo","Participar en  las mesas sectoriales de la política de Gestión del Conocimiento e innovación","Asistir a las reuniones de trabajo sectorial para fomentar el intercambio de conocimientos e información entre los líderes de la política de Gestión del Conocimiento y la Innovación.\n\nEntregable:  listados de asistencia de dos (2) reuniones en la vigencia 2022 o reporte del MHCP sobre la asistencia de las entidades.\n",null,"Paola Patricia Rodriguez","N/A",null,"Subdirección Jurídica y de Gestión Institucional ","N/A","-","-","-","-","2021-02-01","2021-12-31","2021-02-01","2021-12-31","Necesidades del SH","N/A","Gestión de Conocimiento e Innovación","Gestión del Conocimiento y la Innovación "]
[null,null,"GESTIÓN DE CAPACIDADES INSTITUCIONALES","GCI1. Fortalecer las capacidades del Talento Humano y la Innovación en las entidades del Sector Hacienda","SH.Ini.2019.2022.GCI1.003 Fortalecer la implementación de la política de Gestión de Conocimiento e Innovación en las Entidades del Sector","MHCP","MHCP > PAA 2022> Gestión del conocimiento e innovación","Fernando Carvajal","Coordinar la cuarta semana de gestión del conocimiento y la Innovación","Coordinar la cuarta semana de gestión del conocimiento y la Innovación",null,"Hilda Veronica Tapasco","Camilo Sánchez\nCatherine Cifuentes\nYeinmy Rozo",null,"Oficina Asesora de Planeación\nSubdirección de Talento Humano \n","N/A","-","-","-","-","-","-","2022-03-01","2022-11-30","Necesidades del SH","N/A","Gestión de Conocimiento e Innovación","Gestión del Conocimiento y la Innovación "]
[null,null,"GESTIÓN DE CAPACIDADES INSTITUCIONALES","GCI1. Fortalecer las capacidades del Talento Humano y la Innovación en las entidades del Sector Hacienda","SH.Ini.2019.2022.GCI1.003 Fortalecer la implementación de la política de Gestión de Conocimiento e Innovación en las Entidades del Sector","BANCO AGRARIO","BANCO AGRARIO> PAA 2022> Gestión del conocimiento e innovación","Sandra Patricia Villabona","Participar en la cuarta semana de gestión del conocimiento y la Innovación","Participar en la cuarta semana de gestión del conocimiento y la Innovación",null,"Diana Marcela Caballero","N/A",null,"Vicepresidencia de Tecnología e Innovación","N/A","-","-","-","-",null,null,"2022-06-01","2022-11-30","Necesidades del SH","N/A","Gestión de Conocimiento e Innovación","Gestión del Conocimiento y la Innovación "]
[null,null,"GESTIÓN DE CAPACIDADES INSTITUCIONALES","GCI1. Fortalecer las capacidades del Talento Humano y la Innovación en las entidades del Sector Hacienda","SH.Ini.2019.2022.GCI1.003 Fortalecer la implementación de la política de Gestión de Conocimiento e Innovación en las Entidades del Sector","BANCOLDEX","BANCOLDEX> PAA 2022 > Gestión del conocimiento e innovación","María José Naranjo","Participar en la cuarta semana de gestión del conocimiento y la Innovación","Participar en la cuarta semana de gestión del conocimiento y la Innovación",null,"Gloria Cortés\n","Jessica Rodríguez",null,"Departamento Talento Humano\nOficina de Innovación","N/A","-","-","-","-",null,null,"2022-06-01","2022-11-30","Necesidades del SH","N/A","Gestión de Conocimiento e Innovación","Gestión del Conocimiento y la Innovación "]
[null,null,"GESTIÓN DE CAPACIDADES INSTITUCIONALES","GCI1. Fortalecer las capacidades del Talento Humano y la Innovación en las entidades del Sector Hacienda","SH.Ini.2019.2022.GCI1.003 Fortalecer la implementación de la política de Gestión de Conocimiento e Innovación en las Entidades del Sector","CISA","CISA > PAA 2022> Gestión del conocimiento e innovación","Juan Felipe Robles","Participar en la cuarta semana de gestión del conocimiento y la Innovación","Participar en la cuarta semana de gestión del conocimiento y la Innovación",null,"Sandra Viviana Neira ","N.A",null,"Gerencia de Recursos","N/A","-","-","-","-",null,null,"2022-06-01","2022-11-30","Necesidades del SH","N/A","Gestión de Conocimiento e Innovación","Gestión del Conocimiento y la Innovación "]
[null,null,"GESTIÓN DE CAPACIDADES INSTITUCIONALES","GCI1. Fortalecer las capacidades del Talento Humano y la Innovación en las entidades del Sector Hacienda","SH.Ini.2019.2022.GCI1.003 Fortalecer la implementación de la política de Gestión de Conocimiento e Innovación en las Entidades del Sector","COLJUEGOS","COLJUEGOS> PAA 2022 > Gestión del conocimiento e innovación","Roger José Carrillo Campo ","Participar en la cuarta semana de gestión del conocimiento y la Innovación","Participar en la cuarta semana de gestión del conocimiento y la Innovación",null,"Alexandra Torres Gonzalez","Juan Felipe Mahecha Cordoba",null,"Oficina Asesora de Planeación","N/A","-","-","-","-","2021-02-01","2021-12-31","2022-06-01","2022-11-30","Necesidades del SH","N/A","Gestión de Conocimiento e Innovación","Gestión del Conocimiento y la Innovación "]
[null,null,"GESTIÓN DE CAPACIDADES INSTITUCIONALES","GCI1. Fortalecer las capacidades del Talento Humano y la Innovación en las entidades del Sector Hacienda","SH.Ini.2019.2022.GCI1.003 Fortalecer la implementación de la política de Gestión de Conocimiento e Innovación en las Entidades del Sector","CGN","CGN > PAA 2022> Gestión del conocimiento e innovación","Henry Ramírez Montes","Participar en la cuarta semana de gestión del conocimiento y la Innovación","Participar en la cuarta semana de gestión del conocimiento y la Innovación",null,"Wilson Eduardo Cifuentes","N/A",null,"GIT de Planeación","N/A","-","-","-","-","2021-02-01","2021-12-31","2022-06-01","2022-11-30","Necesidades del SH","N/A","Gestión de Conocimiento e Innovación","Gestión del Conocimiento y la Innovación "]
[null,null,"GESTIÓN DE CAPACIDADES INSTITUCIONALES","GCI1. Fortalecer las capacidades del Talento Humano y la Innovación en las entidades del Sector Hacienda","SH.Ini.2019.2022.GCI1.003 Fortalecer la implementación de la política de Gestión de Conocimiento e Innovación en las Entidades del Sector","DIAN","DIAN > PAA 2022> Gestión del conocimiento e innovación","Catalina Garcia Cure","Participar en la cuarta semana de gestión del conocimiento y la Innovación","Participar en la cuarta semana de gestión del conocimiento y la Innovación",null,"Constanza Del Pilar Rodríguez Páez","Héctor Leonel Mesa Lara",null,"Subdirección de Gestión de Tecnología","N/A","-","-","-","-","2021-02-01","2021-12-31","2022-06-01","2022-11-30","Necesidades del SH","N/A","Gestión de Conocimiento e Innovación","Gestión del Conocimiento y la Innovación "]
[null,null,"GESTIÓN DE CAPACIDADES INSTITUCIONALES","GCI1. Fortalecer las capacidades del Talento Humano y la Innovación en las entidades del Sector Hacienda","SH.Ini.2019.2022.GCI1.003 Fortalecer la implementación de la política de Gestión de Conocimiento e Innovación en las Entidades del Sector","ENTERRITORIO","ENTERRITORIO> PAA 2022> Gestión del conocimiento e innovación","Carlos Eduardo Umaña Lizarazo","Participar en la cuarta semana de gestión del conocimiento y la Innovación","Participar en la cuarta semana de gestión del conocimiento y la Innovación",null,"Marta Liced Rodriguez Quimbayo","Anny Alvarez Mendoza",null,"Grupo de Planeación y Gestión de Riesgos","N/A","-","-","-","-","2021-02-01","2021-12-31","2022-06-01","2022-11-30","Necesidades del SH","N/A","Gestión de Conocimiento e Innovación","Gestión del Conocimiento y la Innovación "]
[null,null,"GESTIÓN DE CAPACIDADES INSTITUCIONALES","GCI1. Fortalecer las capacidades del Talento Humano y la Innovación en las entidades del Sector Hacienda","SH.Ini.2019.2022.GCI1.003 Fortalecer la implementación de la política de Gestión de Conocimiento e Innovación en las Entidades del Sector","FDN","FDN > PAA 2022> Gestión del conocimiento e innovación","Carolina Hernández","Participar en la cuarta semana de gestión del conocimiento y la Innovación","Participar en la cuarta semana de gestión del conocimiento y la Innovación",null,"Maria Alejandra Rueda","N/A",null,"NA","N/A","-","-","-","-","2021-02-01","2021-12-31","2022-06-01","2022-11-30","Necesidades del SH","N/A","Gestión de Conocimiento e Innovación","Gestión del Conocimiento y la Innovación "]
[null,null,"GESTIÓN DE CAPACIDADES INSTITUCIONALES","GCI1. Fortalecer las capacidades del Talento Humano y la Innovación en las entidades del Sector Hacienda","SH.Ini.2019.2022.GCI1.003 Fortalecer la implementación de la política de Gestión de Conocimiento e Innovación en las Entidades del Sector","FIDUAGRARIA","FIDUAGRARIA> PAA 2022> Gestión del conocimiento e innovación","Luz Marina Fernández Bello ","Participar en la cuarta semana de gestión del conocimiento y la Innovación","Participar en la cuarta semana de gestión del conocimiento y la Innovación",null,"Adriana Marcela Fuente Estrada","Melissa Lorena Lasprilla Vanegas \nMariana Morales Rojas",null,"Jefatura de Talento Humano","N/A","-","-","-","-","2021-02-01","2021-12-31","2022-06-01","2022-11-30","Necesidades del SH","N/A","Gestión de Conocimiento e Innovación","Gestión del Conocimiento y la Innovación "]
[null,null,"GESTIÓN DE CAPACIDADES INSTITUCIONALES","GCI1. Fortalecer las capacidades del Talento Humano y la Innovación en las entidades del Sector Hacienda","SH.Ini.2019.2022.GCI1.003 Fortalecer la implementación de la política de Gestión de Conocimiento e Innovación en las Entidades del Sector","FIDUCOLDEX","FIDUCOLDEX> PAA 2022 > Gestión del conocimiento e innovación","Andrés Barco","Participar en la cuarta semana de gestión del conocimiento y la Innovación","Participar en la cuarta semana de gestión del conocimiento y la Innovación",null,"Angelly Coy","N/A",null,"Coordinación de Direccionamiento Estratégico","N/A","-","-","-","-","2021-02-01","2021-12-31","2022-06-01","2022-11-30","Necesidades del SH","N/A","Gestión de Conocimiento e Innovación","Gestión del Conocimiento y la Innovación "]
[null,null,"GESTIÓN DE CAPACIDADES INSTITUCIONALES","GCI1. Fortalecer las capacidades del Talento Humano y la Innovación en las entidades del Sector Hacienda","SH.Ini.2019.2022.GCI1.003 Fortalecer la implementación de la política de Gestión de Conocimiento e Innovación en las Entidades del Sector","FIDUPREVISORA","FIDUPREVISORA > PAA 2022 > Gestión del conocimiento e innovación","Magda Nancy Manosalva Cely","Participar en la cuarta semana de gestión del conocimiento y la Innovación","Participar en la cuarta semana de gestión del conocimiento y la Innovación",null,"Karen Pardo","Maria Fernanda Gómez",null,"Vicepresidencia de Desarrollo y Soporte Organizacional - Dirección de Talento Humano","N/A","-","-","-","-","2021-02-01","2021-12-31","2022-06-01","2022-11-30","Necesidades del SH","N/A","Gestión de Conocimiento e Innovación","Gestión del Conocimiento y la Innovación "]
[null,null,"GESTIÓN DE CAPACIDADES INSTITUCIONALES","GCI1. Fortalecer las capacidades del Talento Humano y la Innovación en las entidades del Sector Hacienda","SH.Ini.2019.2022.GCI1.003 Fortalecer la implementación de la política de Gestión de Conocimiento e Innovación en las Entidades del Sector","FINAGRO","FINAGRO> PAA 2022> Gestión del conocimiento e innovación","Juan Carlos Restrepo González","Participar en la cuarta semana de gestión del conocimiento y la Innovación","Participar en la cuarta semana de gestión del conocimiento y la Innovación",null,"Julian García Cardona\n","Maria Fernanda Guerra\nMiguel Alexander patiño\nMaría Helena Reyes Donadlo \n",null,"Gerencia de Investigaciones Económicas","N/A","-","-","-","-","2021-02-01","2021-12-31","2022-06-01","2022-11-30","Necesidades del SH","N/A","Gestión de Conocimiento e Innovación","Gestión del Conocimiento y la Innovación "]
[null,null,"GESTIÓN DE CAPACIDADES INSTITUCIONALES","GCI1. Fortalecer las capacidades del Talento Humano y la Innovación en las entidades del Sector Hacienda","SH.Ini.2019.2022.GCI1.003 Fortalecer la implementación de la política de Gestión de Conocimiento e Innovación en las Entidades del Sector","FINDETER","FINDETER > PAA 2022 > Gestión del conocimiento e innovación","Laura Mercedes Peña Rodríguez","Participar en la cuarta semana de gestión del conocimiento y la Innovación","Participar en la cuarta semana de gestión del conocimiento y la Innovación",null,"Jorge Luis Giraldo  ","N/A",null," Gerencia de Planeación y Gestión - Gerencia de Planeación y Gestión - Equipo CIC","N/A","-","-","-","-","2021-02-01","2021-12-31","2022-06-01","2022-11-30","Necesidades del SH","N/A","Gestión de Conocimiento e Innovación","Gestión del Conocimiento y la Innovación "]
[null,null,"GESTIÓN DE CAPACIDADES INSTITUCIONALES","GCI1. Fortalecer las capacidades del Talento Humano y la Innovación en las entidades del Sector Hacienda","SH.Ini.2019.2022.GCI1.003 Fortalecer la implementación de la política de Gestión de Conocimiento e Innovación en las Entidades del Sector","FOGACOOP","FOGACOOP> PAA 2022> Gestión del conocimiento e innovación","Adriana Mcallister Braidy","Participar en la cuarta semana de gestión del conocimiento y la Innovación","Participar en la cuarta semana de gestión del conocimiento y la Innovación",null,"María Consuelo Corredor","Zulma Liliana López Zuluaga",null,"Coordinación Administrativa ","N/A","-","-","-","-","2021-02-01","2021-12-31","2022-06-01","2022-11-30","Necesidades del SH","N/A","Gestión de Conocimiento e Innovación","Gestión del Conocimiento y la Innovación "]
[null,null,"GESTIÓN DE CAPACIDADES INSTITUCIONALES","GCI1. Fortalecer las capacidades del Talento Humano y la Innovación en las entidades del Sector Hacienda","SH.Ini.2019.2022.GCI1.003 Fortalecer la implementación de la política de Gestión de Conocimiento e Innovación en las Entidades del Sector","FOGAFIN","FOGAFIN > PAA 2022 > Gestión del conocimiento e innovación","Carlos Alberto Sánchez del Valle","Participar en la cuarta semana de gestión del conocimiento y la Innovación","Participar en la cuarta semana de gestión del conocimiento y la Innovación",null,"Carlos Alberto Sánchez del Valle","N/A",null,"Departamento de Gestión de Contenidos, Planeación y Proyectos y Riesgo Operativo y Procesos","N/A","-","-","-","-","2021-02-01","2021-12-31","2022-06-01","2022-11-30","Necesidades del SH","N/A","Gestión de Conocimiento e Innovación","Gestión del Conocimiento y la Innovación "]
[null,null,"GESTIÓN DE CAPACIDADES INSTITUCIONALES","GCI1. Fortalecer las capacidades del Talento Humano y la Innovación en las entidades del Sector Hacienda","SH.Ini.2019.2022.GCI1.003 Fortalecer la implementación de la política de Gestión de Conocimiento e Innovación en las Entidades del Sector","FONDO ADAPTACIÓN","FONDO ADAPTACIÓN > PAA 2022 > Gestión del conocimiento e innovación","Alejandro Venegas","Participar en la cuarta semana de gestión del conocimiento y la Innovación","Participar en la cuarta semana de gestión del conocimiento y la Innovación",null,"Catalina Soto Velasco","Gabriel Amarillo",null,"Oficina de Planeación","N/A","-","-","-","-","2021-02-01","2021-12-31","2022-06-01","2022-11-30","Necesidades del SH","N/A","Gestión de Conocimiento e Innovación","Gestión del Conocimiento y la Innovación "]
[null,null,"GESTIÓN DE CAPACIDADES INSTITUCIONALES","GCI1. Fortalecer las capacidades del Talento Humano y la Innovación en las entidades del Sector Hacienda","SH.Ini.2019.2022.GCI1.003 Fortalecer la implementación de la política de Gestión de Conocimiento e Innovación en las Entidades del Sector","FONDO NACIONAL DEL AHORRO","FONDO NACIONAL DE AHORRO> PAA 2022 > Gestión del conocimiento e innovación","Kennicher Arias Roa","Participar en la cuarta semana de gestión del conocimiento y la Innovación","Participar en la cuarta semana de gestión del conocimiento y la Innovación",null,"Kennicher Arias Roa","Monica Pedraza \n Mónica Bibiana Martínez Liliana Valenzuela ",null,"Oficina de Planeación","N/A","-","-","-","-","2021-02-01","2021-12-31","2022-06-01","2022-11-30","Necesidades del SH","N/A","Gestión de Conocimiento e Innovación","Gestión del Conocimiento y la Innovación "]
[null,null,"GESTIÓN DE CAPACIDADES INSTITUCIONALES","GCI1. Fortalecer las capacidades del Talento Humano y la Innovación en las entidades del Sector Hacienda","SH.Ini.2019.2022.GCI1.003 Fortalecer la implementación de la política de Gestión de Conocimiento e Innovación en las Entidades del Sector","FONDO NACIONAL DE GARANTIAS","FONDO NACIONAL DE GARANTIAS> PAA 2022 > Gestión del conocimiento e innovación","Maria Angelica Burbano Sánchez","Participar en la cuarta semana de gestión del conocimiento y la Innovación","Participar en la cuarta semana de gestión del conocimiento y la Innovación",null,"Esther Julia Hernandez\n","Andrés Estrada Cardona \n",null,"Dirección de Gestión Humana","N/A","-","-","-","-","2021-02-01","2021-12-31","2022-06-01","2022-11-30","Necesidades del SH","N/A","Gestión de Conocimiento e Innovación","Gestión del Conocimiento y la Innovación "]
[null,null,"GESTIÓN DE CAPACIDADES INSTITUCIONALES","GCI1. Fortalecer las capacidades del Talento Humano y la Innovación en las entidades del Sector Hacienda","SH.Ini.2019.2022.GCI1.003 Fortalecer la implementación de la política de Gestión de Conocimiento e Innovación en las Entidades del Sector","GRUPO BICENTENARIO","GRUPO BICENTENARIO> PAA 2022 > Gestión del conocimiento e innovación","Oscar Laureano Rosero Jiménez","Participar en la cuarta semana de gestión del conocimiento y la Innovación","Participar en la cuarta semana de gestión del conocimiento y la Innovación",null,"Oscar Laureano Rosero Jiménez ","N/A",null,"Área Estrategia","N/A","-","-","-","-","2021-02-01","2021-12-31","2022-06-01","2022-11-30","Necesidades del SH","N/A","Gestión de Conocimiento e Innovación","Gestión del Conocimiento y la Innovación "]
[null,null,"GESTIÓN DE CAPACIDADES INSTITUCIONALES","GCI1. Fortalecer las capacidades del Talento Humano y la Innovación en las entidades del Sector Hacienda","SH.Ini.2019.2022.GCI1.003 Fortalecer la implementación de la política de Gestión de Conocimiento e Innovación en las Entidades del Sector","ICETEX","ICETEX> PAA 2022 > Gestión del conocimiento e innovación","Beatriz Helena Torres Lizarazo\n","Participar en la cuarta semana de gestión del conocimiento y la Innovación","Participar en la cuarta semana de gestión del conocimiento y la Innovación",null,"\nMonica Daniela Cortes Muñoz ","Johana Niño Acosta \nMiriam Cardona Giraldo ",null,"Grupo de Talento humano de la Secretaria General ICETEX","N/A","-","-","-","-","2021-02-01","2021-12-31","2022-06-01","2022-11-30","Necesidades del SH","N/A","Gestión de Conocimiento e Innovación","Gestión del Conocimiento y la Innovación "]
[null,null,"GESTIÓN DE CAPACIDADES INSTITUCIONALES","GCI1. Fortalecer las capacidades del Talento Humano y la Innovación en las entidades del Sector Hacienda","SH.Ini.2019.2022.GCI1.003 Fortalecer la implementación de la política de Gestión de Conocimiento e Innovación en las Entidades del Sector","ITRC","ITRC > PAA 2022 > Gestión del conocimiento e innovación","Nohora Beltrán Céspedes","Participar en la cuarta semana de gestión del conocimiento y la Innovación","Participar en la cuarta semana de gestión del conocimiento y la Innovación",null,"Ana Milena Ramírez Montealegre\n","Camilo Dussán Vargas\nDiego Ángel Mendoza\n",null,"Secretaría General / Oficina Asesora de Planeación","N/A","-","-","-","-","2021-02-01","2021-12-31","2022-06-01","2022-11-30","Necesidades del SH","N/A","Gestión de Conocimiento e Innovación","Gestión del Conocimiento y la Innovación "]
[null,null,"GESTIÓN DE CAPACIDADES INSTITUCIONALES","GCI1. Fortalecer las capacidades del Talento Humano y la Innovación en las entidades del Sector Hacienda","SH.Ini.2019.2022.GCI1.003 Fortalecer la implementación de la política de Gestión de Conocimiento e Innovación en las Entidades del Sector","POSITIVA","POSITIVA > PAA 2022> Gestión del conocimiento e innovación","Carlos Augusto Mesa Diaz","Participar en la cuarta semana de gestión del conocimiento y la Innovación","Participar en la cuarta semana de gestión del conocimiento y la Innovación",null,"Oscar Saul Guerrero Bohórquez ","Oscar Saul Guerrero Bohórquez ",null,"Gerencia de Talento Humano","N/A","-","-","-","-","2021-02-01","2021-12-31","2022-06-01","2022-11-30","Necesidades del SH","N/A","Gestión de Conocimiento e Innovación","Gestión del Conocimiento y la Innovación "]
[null,null,"GESTIÓN DE CAPACIDADES INSTITUCIONALES","GCI1. Fortalecer las capacidades del Talento Humano y la Innovación en las entidades del Sector Hacienda","SH.Ini.2019.2022.GCI1.003 Fortalecer la implementación de la política de Gestión de Conocimiento e Innovación en las Entidades del Sector","PREVISORA","PREVISORA > PAA 2022 > Gestión del conocimiento e innovación","José Fernando Pulido Sierra","Participar en la cuarta semana de gestión del conocimiento y la Innovación","Participar en la cuarta semana de gestión del conocimiento y la Innovación",null,"Jose Fernando Pulido Sierra","N/A",null,"Gerencia de Innovación y Procesos","N/A","-","-","-","-","2021-02-01","2021-12-31","2022-06-01","2022-11-30","Necesidades del SH","N/A","Gestión de Conocimiento e Innovación","Gestión del Conocimiento y la Innovación "]
[null,null,"GESTIÓN DE CAPACIDADES INSTITUCIONALES","GCI1. Fortalecer las capacidades del Talento Humano y la Innovación en las entidades del Sector Hacienda","SH.Ini.2019.2022.GCI1.003 Fortalecer la implementación de la política de Gestión de Conocimiento e Innovación en las Entidades del Sector","SAE","SAE > PAA 2022 > Gestión del conocimiento e innovación","Jaime Leon Gómez Salazar","Participar en la cuarta semana de gestión del conocimiento y la Innovación","Participar en la cuarta semana de gestión del conocimiento y la Innovación",null,"Sandra Milena Martinez","Maria Consuelo Garcia\n",null,"Gerencia Talento Humano","N/A","-","-","-","-","2021-02-01","2021-12-31","2022-06-01","2022-11-30","Necesidades del SH","N/A","Gestión de Conocimiento e Innovación","Gestión del Conocimiento y la Innovación "]
[null,null,"GESTIÓN DE CAPACIDADES INSTITUCIONALES","GCI1. Fortalecer las capacidades del Talento Humano y la Innovación en las entidades del Sector Hacienda","SH.Ini.2019.2022.GCI1.003 Fortalecer la implementación de la política de Gestión de Conocimiento e Innovación en las Entidades del Sector","SUPERFINANCIERA","SUPERFINANCIERA > PAA 2022 > Gestión del conocimiento e innovación","José Gabriel Sánchez Sousa","Participar en la cuarta semana de gestión del conocimiento y la Innovación","Participar en la cuarta semana de gestión del conocimiento y la Innovación",null,"Sergio Esteban Varela Guzman","Haydee Vanessa Ibagon Ibagon ",null,"Subdirección de Talento Humano","N/A","-","-","-","-","2021-02-01","2021-12-31","2022-06-01","2022-11-30","Necesidades del SH","N/A","Gestión de Conocimiento e Innovación","Gestión del Conocimiento y la Innovación "]
[null,null,"GESTIÓN DE CAPACIDADES INSTITUCIONALES","GCI1. Fortalecer las capacidades del Talento Humano y la Innovación en las entidades del Sector Hacienda","SH.Ini.2019.2022.GCI1.003 Fortalecer la implementación de la política de Gestión de Conocimiento e Innovación en las Entidades del Sector","SUPERSOLIDARIA","SUPERSOLIDARIA> PAA 2022> Gestión del conocimiento e innovación","Robín Andrey Suarez Toscano","Participar en la cuarta semana de gestión del conocimiento y la Innovación","Participar en la cuarta semana de gestión del conocimiento y la Innovación",null,"Felipe Mancera Rojas ","N/A",null,"Oficina Asesora de Planeación y Sistemas ","N/A","-","-","-","-","2021-02-01","2021-12-31","2022-06-01","2022-11-30","Necesidades del SH","N/A","Gestión de Conocimiento e Innovación","Gestión del Conocimiento y la Innovación "]
[null,null,"GESTIÓN DE CAPACIDADES INSTITUCIONALES","GCI1. Fortalecer las capacidades del Talento Humano y la Innovación en las entidades del Sector Hacienda","SH.Ini.2019.2022.GCI1.003 Fortalecer la implementación de la política de Gestión de Conocimiento e Innovación en las Entidades del Sector","UGPP","UGGP > PAA 2022 > Gestión del conocimiento e innovación","Ana María Cadena","Participar en la cuarta semana de gestión del conocimiento y la Innovación","Participar en la cuarta semana de gestión del conocimiento y la Innovación",null,"Germán Vega Rodríguez","N/A",null,"Subdirección de Gestión Humana","N/A","-","-","-","-","2021-02-01","2021-12-31","2022-06-01","2022-11-30","Necesidades del SH","N/A","Gestión de Conocimiento e Innovación","Gestión del Conocimiento y la Innovación "]
[null,null,"GESTIÓN DE CAPACIDADES INSTITUCIONALES","GCI1. Fortalecer las capacidades del Talento Humano y la Innovación en las entidades del Sector Hacienda","SH.Ini.2019.2022.GCI1.003 Fortalecer la implementación de la política de Gestión de Conocimiento e Innovación en las Entidades del Sector","UIAF","UIAF > PAA 2022 > Gestión del conocimiento e innovación","Nilgen Vargas Garcés","Participar en la cuarta semana de gestión del conocimiento y la Innovación","Participar en la cuarta semana de gestión del conocimiento y la Innovación",null,"Carlos Julio Buitrago Ortiz","Diana Katherine Gomez Salazar",null,"Subdirección Administrativa y Financiera","N/A","-","-","-","-","2021-02-01","2021-12-31","2022-06-01","2022-11-30","Necesidades del SH","N/A","Gestión de Conocimiento e Innovación","Gestión del Conocimiento y la Innovación "]
[null,null,"GESTIÓN DE CAPACIDADES INSTITUCIONALES","GCI1. Fortalecer las capacidades del Talento Humano y la Innovación en las entidades del Sector Hacienda","SH.Ini.2019.2022.GCI1.003 Fortalecer la implementación de la política de Gestión de Conocimiento e Innovación en las Entidades del Sector","URF","URF > PAA 2022 > Gestión del conocimiento e innovación","Ivonnie Edith Gallardo","Participar en la cuarta semana de gestión del conocimiento y la Innovación","Participar en la cuarta semana de gestión del conocimiento y la Innovación",null,"Paola Patricia Rodriguez","N/A",null,"Subdirección Jurídica y de Gestión Institucional ","N/A","-","-","-","-","2021-02-01","2021-12-31","2022-06-01","2022-11-30","Necesidades del SH","N/A","Gestión de Conocimiento e Innovación","Gestión del Conocimiento y la Innovación "]
[null,null,"GESTIÓN DE CAPACIDADES INSTITUCIONALES","GCI1. Fortalecer las capacidades del Talento Humano y la Innovación en las entidades del Sector Hacienda","SH.Ini.2019.2022.GCI1.003 Fortalecer la implementación de la política de Gestión de Conocimiento e Innovación en las Entidades del Sector","MHCP","MHCP > PAA 2022 > Gestión del conocimiento e innovación","Fernando Carvajal","Actualizar el banco de expertos 2022","Continuar con la actualización del documento denominado Banco de Expertos para lo cual cada entidad del Sector Hacienda partiendo del escrito de la vigencia 2021, revisará la información y enviará al MHCP su respectiva actualización para la vigencia 2022.\n",null,"Hilda Veronica Tapasco","Jecenith Cepeda\nCamilo Sanchez\n",null,"Oficina Asesora de Planeación\nSubdirección de Talento Humano\nGrupo Gestión de Información \n","N/A","-","-","-","-","2021-02-01","2021-12-31","2022-02-01","2022-12-31","Necesidades del SH","N/A","Gestión de Conocimiento e Innovación","Gestión del Conocimiento y la Innovación "]
[null,null,"GESTIÓN DE CAPACIDADES INSTITUCIONALES","GCI2. Promover la adecuada administración de los recursos físicos, financieros y la defensa técnica de las Entidades del Sector Hacienda.","SH.Ini.2019.2022.GCI2.002 Desarrollar mecanismos para un adecuado ejercicio de defensa jurídica de las Entidades del Sector Hacienda","BANCO AGRARIO","BANCO AGRARIO >PAA 2022 > Defensa Jurídica","Sandra Patricia Villabona","Construir el reporte de índice de condenas en los estudios y/o análisis que realiza la entidad de los procesos que cursan o hayan cursado en su contra, con el fin de proponer las mejoras o correctivos que se requieran","Realizar el análisis de casos perdidos y ganados. (línea base, pronunciamientos durante la vigencia o anteriores)\n\nElaborar informe cualitativo y analítico a partir del cual se formulen conclusiones concretas con las respectivas propuestas de solución, mejora y/o prevención, según corresponda.\n\nEntregable: (Pte. determinar instrumento) Reporte de índice de condenas\n\nPeriodicidad: una (1) vez al año - Plazo: 30 noviembre 2022",null,"Elizabeth Gomez Roa","N/A",null,"Vicepresidencia Jurídica","N/A","-","-","-","-","-","-","2022-03-01","2022-12-31","Necesidades del SH","N/A","Gestión con valores para el resultado (Ventanilla hacia adentro)","Defensa Jurídica "]
[null,null,"GESTIÓN DE CAPACIDADES INSTITUCIONALES","GCI2. Promover la adecuada administración de los recursos físicos, financieros y la defensa técnica de las Entidades del Sector Hacienda.","SH.Ini.2019.2022.GCI2.002 Desarrollar mecanismos para un adecuado ejercicio de defensa jurídica de las Entidades del Sector Hacienda","BANCOLDEX","BANCOLDEX >PAA 2022 > Defensa Jurídica","María José Naranjo","Construir el reporte de índice de condenas en los estudios y/o análisis que realiza la entidad de los procesos que cursan o hayan cursado en su contra, con el fin de proponer las mejoras o correctivos que se requieran","Realizar el análisis de casos perdidos y ganados. (línea base, pronunciamientos durante la vigencia o anteriores)\n\nElaborar informe cualitativo y analítico a partir del cual se formulen conclusiones concretas con las respectivas propuestas de solución, mejora y/o prevención, según corresponda.\n\nEntregable: (Pte. determinar instrumento) Reporte de índice de condenas\n\nPeriodicidad: una (1) vez al año - Plazo: 30 noviembre 2022",null,"Jose Luis Cañas","N/A",null,"\nDepartamento Jurídico","N/A","-","-","-","-","-","-","2022-03-01","2022-12-31","Necesidades del SH","N/A","Gestión con valores para el resultado (Ventanilla hacia adentro)","Defensa Jurídica "]
[null,null,"GESTIÓN DE CAPACIDADES INSTITUCIONALES","GCI2. Promover la adecuada administración de los recursos físicos, financieros y la defensa técnica de las Entidades del Sector Hacienda.","SH.Ini.2019.2022.GCI2.002 Desarrollar mecanismos para un adecuado ejercicio de defensa jurídica de las Entidades del Sector Hacienda","CISA","CISA >PAA 2022 > Defensa Jurídica","Juan Felipe Robles","Construir el reporte de índice de condenas en los estudios y/o análisis que realiza la entidad de los procesos que cursan o hayan cursado en su contra, con el fin de proponer las mejoras o correctivos que se requieran","Realizar el análisis de casos perdidos y ganados. (línea base, pronunciamientos durante la vigencia o anteriores)\n\nElaborar informe cualitativo y analítico a partir del cual se formulen conclusiones concretas con las respectivas propuestas de solución, mejora y/o prevención, según corresponda.\n\nEntregable: (Pte. determinar instrumento) Reporte de índice de condenas\n\nPeriodicidad: una (1) vez al año - Plazo: 30 noviembre 2022",null,"Sandra Viviana Neira ","N.A",null,"Gerencia Jurídica del Negocio","N/A","-","-","-","-","-","-","2022-03-01","2022-12-31","Necesidades del SH","N/A","Gestión con valores para el resultado (Ventanilla hacia adentro)","Defensa Jurídica "]
[null,null,"GESTIÓN DE CAPACIDADES INSTITUCIONALES","GCI2. Promover la adecuada administración de los recursos físicos, financieros y la defensa técnica de las Entidades del Sector Hacienda.","SH.Ini.2019.2022.GCI2.002 Desarrollar mecanismos para un adecuado ejercicio de defensa jurídica de las Entidades del Sector Hacienda","COLJUEGOS","COLJUEGOS>PAA 2022 > Defensa Jurídica","Roger José Carrillo Campo ","Construir el reporte de índice de condenas en los estudios y/o análisis que realiza la entidad de los procesos que cursan o hayan cursado en su contra, con el fin de proponer las mejoras o correctivos que se requieran","Realizar el análisis de casos perdidos y ganados. (línea base, pronunciamientos durante la vigencia o anteriores)\n\nElaborar informe cualitativo y analítico a partir del cual se formulen conclusiones concretas con las respectivas propuestas de solución, mejora y/o prevención, según corresponda.\n\nEntregable: (Pte. determinar instrumento) Reporte de índice de condenas\n\nPeriodicidad: una (1) vez al año - Plazo: 30 noviembre 2022",null,"Alexandra Torres Gonzalez","Juan Felipe Mahecha Cordoba",null,"Oficina Asesora de Planeación","N/A","-","-","-","-","-","-","2022-03-01","2022-12-31","Necesidades del SH","N/A","Gestión con valores para el resultado (Ventanilla hacia adentro)","Defensa Jurídica "]
[null,null,"GESTIÓN DE CAPACIDADES INSTITUCIONALES","GCI2. Promover la adecuada administración de los recursos físicos, financieros y la defensa técnica de las Entidades del Sector Hacienda.","SH.Ini.2019.2022.GCI2.002 Desarrollar mecanismos para un adecuado ejercicio de defensa jurídica de las Entidades del Sector Hacienda","CGN","CGN>PAA 2022 > Defensa Jurídica","Henry Ramírez Montes","Construir el reporte de índice de condenas en los estudios y/o análisis que realiza la entidad de los procesos que cursan o hayan cursado en su contra, con el fin de proponer las mejoras o correctivos que se requieran","Realizar el análisis de casos perdidos y ganados. (línea base, pronunciamientos durante la vigencia o anteriores)\n\nElaborar informe cualitativo y analítico a partir del cual se formulen conclusiones concretas con las respectivas propuestas de solución, mejora y/o prevención, según corresponda.\n\nEntregable: (Pte. determinar instrumento) Reporte de índice de condenas\n\nPeriodicidad: una (1) vez al año - Plazo: 30 noviembre 2022",null,"Wilson Eduardo Cifuentes","Edgar Díaz V.",null,"GIT de Jurídica","N/A","-","-","-","-","-","-","2022-03-01","2022-12-31","Necesidades del SH","N/A","Gestión con valores para el resultado (Ventanilla hacia adentro)","Defensa Jurídica "]
[null,null,"GESTIÓN DE CAPACIDADES INSTITUCIONALES","GCI2. Promover la adecuada administración de los recursos físicos, financieros y la defensa técnica de las Entidades del Sector Hacienda.","SH.Ini.2019.2022.GCI2.002 Desarrollar mecanismos para un adecuado ejercicio de defensa jurídica de las Entidades del Sector Hacienda","DIAN","DIAN>PAA 2022 > Defensa Jurídica","Catalina Garcia Cure","Construir el reporte de índice de condenas en los estudios y/o análisis que realiza la entidad de los procesos que cursan o hayan cursado en su contra, con el fin de proponer las mejoras o correctivos que se requieran","Realizar el análisis de casos perdidos y ganados. (línea base, pronunciamientos durante la vigencia o anteriores)\n\nElaborar informe cualitativo y analítico a partir del cual se formulen conclusiones concretas con las respectivas propuestas de solución, mejora y/o prevención, según corresponda.\n\nEntregable: (Pte. determinar instrumento) Reporte de índice de condenas\n\nPeriodicidad: una (1) vez al año - Plazo: 30 noviembre 2022",null,"Constanza Del Pilar Rodríguez Páez","Liliana Andrea Forero Gómez",null,"Dirección de Gestión Jurídica","N/A","-","-","-","-","-","-","2022-03-01","2022-12-31","Necesidades del SH","N/A","Gestión con valores para el resultado (Ventanilla hacia adentro)","Defensa Jurídica "]
[null,null,"GESTIÓN DE CAPACIDADES INSTITUCIONALES","GCI2. Promover la adecuada administración de los recursos físicos, financieros y la defensa técnica de las Entidades del Sector Hacienda.","SH.Ini.2019.2022.GCI2.002 Desarrollar mecanismos para un adecuado ejercicio de defensa jurídica de las Entidades del Sector Hacienda","ENTERRITORIO","ENTERRITORIO >PAA 2022 > Defensa Jurídica","Carlos Eduardo Umaña Lizarazo","Construir el reporte de índice de condenas en los estudios y/o análisis que realiza la entidad de los procesos que cursan o hayan cursado en su contra, con el fin de proponer las mejoras o correctivos que se requieran","Realizar el análisis de casos perdidos y ganados. (línea base, pronunciamientos durante la vigencia o anteriores)\n\nElaborar informe cualitativo y analítico a partir del cual se formulen conclusiones concretas con las respectivas propuestas de solución, mejora y/o prevención, según corresponda.\n\nEntregable: (Pte. determinar instrumento) Reporte de índice de condenas\n\nPeriodicidad: una (1) vez al año - Plazo: 30 noviembre 2022",null,"Marta Liced Rodriguez Quimbayo","Anny Alvarez Mendoza",null,"Grupo de Planeación y Gestión de Riesgos","N/A","-","-","-","-","-","-","2022-03-01","2022-12-31","Necesidades del SH","N/A","Gestión con valores para el resultado (Ventanilla hacia adentro)","Defensa Jurídica "]
[null,null,"GESTIÓN DE CAPACIDADES INSTITUCIONALES","GCI2. Promover la adecuada administración de los recursos físicos, financieros y la defensa técnica de las Entidades del Sector Hacienda.","SH.Ini.2019.2022.GCI2.002 Desarrollar mecanismos para un adecuado ejercicio de defensa jurídica de las Entidades del Sector Hacienda","FDN","FDN>PAA 2022 > Defensa Jurídica","Carolina Hernández","Construir el reporte de índice de condenas en los estudios y/o análisis que realiza la entidad de los procesos que cursan o hayan cursado en su contra, con el fin de proponer las mejoras o correctivos que se requieran","Realizar el análisis de casos perdidos y ganados. (línea base, pronunciamientos durante la vigencia o anteriores)\n\nElaborar informe cualitativo y analítico a partir del cual se formulen conclusiones concretas con las respectivas propuestas de solución, mejora y/o prevención, según corresponda.\n\nEntregable: (Pte. determinar instrumento) Reporte de índice de condenas\n\nPeriodicidad: una (1) vez al año - Plazo: 30 noviembre 2022",null,"Maria Alejandra Rueda","N/A",null,"Jurídica","N/A","-","-","-","-","-","-","2022-03-01","2022-12-31","Necesidades del SH","N/A","Gestión con valores para el resultado (Ventanilla hacia adentro)","Defensa Jurídica "]
[null,null,"GESTIÓN DE CAPACIDADES INSTITUCIONALES","GCI2. Promover la adecuada administración de los recursos físicos, financieros y la defensa técnica de las Entidades del Sector Hacienda.","SH.Ini.2019.2022.GCI2.002 Desarrollar mecanismos para un adecuado ejercicio de defensa jurídica de las Entidades del Sector Hacienda","FIDUAGRARIA","FIDUAGRARIA >PAA 2022> Defensa Jurídica","Luz Marina Fernández Bello ","Construir el reporte de índice de condenas en los estudios y/o análisis que realiza la entidad de los procesos que cursan o hayan cursado en su contra, con el fin de proponer las mejoras o correctivos que se requieran","Realizar el análisis de casos perdidos y ganados. (línea base, pronunciamientos durante la vigencia o anteriores)\n\nElaborar informe cualitativo y analítico a partir del cual se formulen conclusiones concretas con las respectivas propuestas de solución, mejora y/o prevención, según corresponda.\n\nEntregable: (Pte. determinar instrumento) Reporte de índice de condenas\n\nPeriodicidad: una (1) vez al año - Plazo: 30 noviembre 2022",null,"Adriana Marcela Fuente Estrada","Andres Fernando Rubio Castro\nEliana Lizeth Rodriguez Bohorquez\n",null,"Jefatura de Asuntos judiciales","N/A","-","-","-","-","-","-","2022-03-01","2022-12-31","Necesidades del SH","N/A","Gestión con valores para el resultado (Ventanilla hacia adentro)","Defensa Jurídica "]
[null,null,"GESTIÓN DE CAPACIDADES INSTITUCIONALES","GCI2. Promover la adecuada administración de los recursos físicos, financieros y la defensa técnica de las Entidades del Sector Hacienda.","SH.Ini.2019.2022.GCI2.002 Desarrollar mecanismos para un adecuado ejercicio de defensa jurídica de las Entidades del Sector Hacienda","FIDUCOLDEX","FIDUCOLDEX >PAA 2022 > Defensa Jurídica","Andrés Barco","Construir el reporte de índice de condenas en los estudios y/o análisis que realiza la entidad de los procesos que cursan o hayan cursado en su contra, con el fin de proponer las mejoras o correctivos que se requieran","Realizar el análisis de casos perdidos y ganados. (línea base, pronunciamientos durante la vigencia o anteriores)\n\nElaborar informe cualitativo y analítico a partir del cual se formulen conclusiones concretas con las respectivas propuestas de solución, mejora y/o prevención, según corresponda.\n\nEntregable: (Pte. determinar instrumento) Reporte de índice de condenas\n\nPeriodicidad: una (1) vez al año - Plazo: 30 noviembre 2022",null,"Angelly Coy","N/A",null,"Dirección Jurídica","N/A","-","-","-","-","-","-","2022-03-01","2022-12-31","Necesidades del SH","N/A","Gestión con valores para el resultado (Ventanilla hacia adentro)","Defensa Jurídica "]
[null,null,"GESTIÓN DE CAPACIDADES INSTITUCIONALES","GCI2. Promover la adecuada administración de los recursos físicos, financieros y la defensa técnica de las Entidades del Sector Hacienda.","SH.Ini.2019.2022.GCI2.002 Desarrollar mecanismos para un adecuado ejercicio de defensa jurídica de las Entidades del Sector Hacienda","FIDUPREVISORA","FIDUPREVISORA>PAA 2022> Defensa Jurídica","Magda Nancy Manosalva Cely","Construir el reporte de índice de condenas en los estudios y/o análisis que realiza la entidad de los procesos que cursan o hayan cursado en su contra, con el fin de proponer las mejoras o correctivos que se requieran","Realizar el análisis de casos perdidos y ganados. (línea base, pronunciamientos durante la vigencia o anteriores)\n\nElaborar informe cualitativo y analítico a partir del cual se formulen conclusiones concretas con las respectivas propuestas de solución, mejora y/o prevención, según corresponda.\n\nEntregable: (Pte. determinar instrumento) Reporte de índice de condenas\n\nPeriodicidad: una (1) vez al año - Plazo: 30 noviembre 2022",null,"Karen Pardo","Juan Pablo Suarez",null,"Vicepresidencia Jurídica","N/A","-","-","-","-","-","-","2022-03-01","2022-12-31","Necesidades del SH","N/A","Gestión con valores para el resultado (Ventanilla hacia adentro)","Defensa Jurídica "]
[null,null,"GESTIÓN DE CAPACIDADES INSTITUCIONALES","GCI2. Promover la adecuada administración de los recursos físicos, financieros y la defensa técnica de las Entidades del Sector Hacienda.","SH.Ini.2019.2022.GCI2.002 Desarrollar mecanismos para un adecuado ejercicio de defensa jurídica de las Entidades del Sector Hacienda","FINAGRO","FINAGRO >PAA 2022> Defensa Jurídica","Juan Carlos Restrepo González","Construir el reporte de índice de condenas en los estudios y/o análisis que realiza la entidad de los procesos que cursan o hayan cursado en su contra, con el fin de proponer las mejoras o correctivos que se requieran","Realizar el análisis de casos perdidos y ganados. (línea base, pronunciamientos durante la vigencia o anteriores)\n\nElaborar informe cualitativo y analítico a partir del cual se formulen conclusiones concretas con las respectivas propuestas de solución, mejora y/o prevención, según corresponda.\n\nEntregable: (Pte. determinar instrumento) Reporte de índice de condenas\n\nPeriodicidad: una (1) vez al año - Plazo: 30 noviembre 2022",null,"William García","Andrés Francisco Posada\nMaría Helena Reyes Donadlo ",null,"Vicepresidente Financiero","N/A","-","-","-","-","-","-","2022-03-01","2022-12-31","Necesidades del SH","N/A","Gestión con valores para el resultado (Ventanilla hacia adentro)","Defensa Jurídica "]
[null,null,"GESTIÓN DE CAPACIDADES INSTITUCIONALES","GCI2. Promover la adecuada administración de los recursos físicos, financieros y la defensa técnica de las Entidades del Sector Hacienda.","SH.Ini.2019.2022.GCI2.002 Desarrollar mecanismos para un adecuado ejercicio de defensa jurídica de las Entidades del Sector Hacienda","FINDETER","FINDETER>PAA 2022> Defensa Jurídica","Laura Mercedes Peña Rodríguez","Construir el reporte de índice de condenas en los estudios y/o análisis que realiza la entidad de los procesos que cursan o hayan cursado en su contra, con el fin de proponer las mejoras o correctivos que se requieran","Realizar el análisis de casos perdidos y ganados. (línea base, pronunciamientos durante la vigencia o anteriores)\n\nElaborar informe cualitativo y analítico a partir del cual se formulen conclusiones concretas con las respectivas propuestas de solución, mejora y/o prevención, según corresponda.\n\nEntregable: (Pte. determinar instrumento) Reporte de índice de condenas\n\nPeriodicidad: una (1) vez al año - Plazo: 30 noviembre 2022",null,"Jorge Luis Giraldo ","N/A",null,"Dirección Jurídica","N/A","-","-","-","-","-","-","2022-03-01","2022-12-31","Necesidades del SH","N/A","Gestión con valores para el resultado (Ventanilla hacia adentro)","Defensa Jurídica "]
[null,null,"GESTIÓN DE CAPACIDADES INSTITUCIONALES","GCI2. Promover la adecuada administración de los recursos físicos, financieros y la defensa técnica de las Entidades del Sector Hacienda.","SH.Ini.2019.2022.GCI2.002 Desarrollar mecanismos para un adecuado ejercicio de defensa jurídica de las Entidades del Sector Hacienda","FOGACOOP","FOGACOOP>PAA 2022> Defensa Jurídica","Adriana Mcallister Braidy","Construir el reporte de índice de condenas en los estudios y/o análisis que realiza la entidad de los procesos que cursan o hayan cursado en su contra, con el fin de proponer las mejoras o correctivos que se requieran","Realizar el análisis de casos perdidos y ganados. (línea base, pronunciamientos durante la vigencia o anteriores)\n\nElaborar informe cualitativo y analítico a partir del cual se formulen conclusiones concretas con las respectivas propuestas de solución, mejora y/o prevención, según corresponda.\n\nEntregable: (Pte. determinar instrumento) Reporte de índice de condenas\n\nPeriodicidad: una (1) vez al año - Plazo: 30 noviembre 2022",null,"Ruben Mauricio Ariza","Zulma Liliana López Zuluaga",null,"Secretaría General y de Gestión Administrativa","N/A","-","-","-","-","-","-","2022-03-01","2022-12-31","Necesidades del SH","N/A","Gestión con valores para el resultado (Ventanilla hacia adentro)","Defensa Jurídica "]
[null,null,"GESTIÓN DE CAPACIDADES INSTITUCIONALES","GCI2. Promover la adecuada administración de los recursos físicos, financieros y la defensa técnica de las Entidades del Sector Hacienda.","SH.Ini.2019.2022.GCI2.002 Desarrollar mecanismos para un adecuado ejercicio de defensa jurídica de las Entidades del Sector Hacienda","FOGAFIN","FOGAFIN>PAA 2022 > Defensa Jurídica","Carlos Alberto Sánchez del Valle","Construir el reporte de índice de condenas en los estudios y/o análisis que realiza la entidad de los procesos que cursan o hayan cursado en su contra, con el fin de proponer las mejoras o correctivos que se requieran","Realizar el análisis de casos perdidos y ganados. (línea base, pronunciamientos durante la vigencia o anteriores)\n\nElaborar informe cualitativo y analítico a partir del cual se formulen conclusiones concretas con las respectivas propuestas de solución, mejora y/o prevención, según corresponda.\n\nEntregable: (Pte. determinar instrumento) Reporte de índice de condenas\n\nPeriodicidad: una (1) vez al año - Plazo: 30 noviembre 2022",null,"Carlos Alberto Sánchez del Valle","N/A",null,"Departamento Jurídico","N/A","-","-","-","-","-","-","2022-03-01","2022-12-31","Necesidades del SH","N/A","Gestión con valores para el resultado (Ventanilla hacia adentro)","Defensa Jurídica "]
[null,null,"GESTIÓN DE CAPACIDADES INSTITUCIONALES","GCI2. Promover la adecuada administración de los recursos físicos, financieros y la defensa técnica de las Entidades del Sector Hacienda.","SH.Ini.2019.2022.GCI2.002 Desarrollar mecanismos para un adecuado ejercicio de defensa jurídica de las Entidades del Sector Hacienda","FONDO ADAPTACIÓN","FONDO ADAPTACIÓN>PAA 2022 > Defensa Jurídica","Alejandro Venegas","Construir el reporte de índice de condenas en los estudios y/o análisis que realiza la entidad de los procesos que cursan o hayan cursado en su contra, con el fin de proponer las mejoras o correctivos que se requieran","Realizar el análisis de casos perdidos y ganados. (línea base, pronunciamientos durante la vigencia o anteriores)\n\nElaborar informe cualitativo y analítico a partir del cual se formulen conclusiones concretas con las respectivas propuestas de solución, mejora y/o prevención, según corresponda.\n\nEntregable: (Pte. determinar instrumento) Reporte de índice de condenas\n\nPeriodicidad: una (1) vez al año - Plazo: 30 noviembre 2022",null,"Catalina Soto Velasco","Fernando Salazar ",null,"Defensa Judicial","N/A","-","-","-","-","-","-","2022-03-01","2022-12-31","Necesidades del SH","N/A","Gestión con valores para el resultado (Ventanilla hacia adentro)","Defensa Jurídica "]
[null,null,"GESTIÓN DE CAPACIDADES INSTITUCIONALES","GCI2. Promover la adecuada administración de los recursos físicos, financieros y la defensa técnica de las Entidades del Sector Hacienda.","SH.Ini.2019.2022.GCI2.002 Desarrollar mecanismos para un adecuado ejercicio de defensa jurídica de las Entidades del Sector Hacienda","FONDO NACIONAL DEL AHORRO","FONDO NACIONAL DEL AHORRO >PAA 2022 > Defensa Jurídica","Kennicher Arias Roa","Construir el reporte de índice de condenas en los estudios y/o análisis que realiza la entidad de los procesos que cursan o hayan cursado en su contra, con el fin de proponer las mejoras o correctivos que se requieran","Realizar el análisis de casos perdidos y ganados. (línea base, pronunciamientos durante la vigencia o anteriores)\n\nElaborar informe cualitativo y analítico a partir del cual se formulen conclusiones concretas con las respectivas propuestas de solución, mejora y/o prevención, según corresponda.\n\nEntregable: (Pte. determinar instrumento) Reporte de índice de condenas\n\nPeriodicidad: una (1) vez al año - Plazo: 30 noviembre 2022",null,"Natalia Bustamante\n","Natalia Bustamante ",null,"Oficina Jurídica","N/A","-","-","-","-","-","-","2022-03-01","2022-12-31","Necesidades del SH","N/A","Gestión con valores para el resultado (Ventanilla hacia adentro)","Defensa Jurídica "]
[null,null,"GESTIÓN DE CAPACIDADES INSTITUCIONALES","GCI2. Promover la adecuada administración de los recursos físicos, financieros y la defensa técnica de las Entidades del Sector Hacienda.","SH.Ini.2019.2022.GCI2.002 Desarrollar mecanismos para un adecuado ejercicio de defensa jurídica de las Entidades del Sector Hacienda","FONDO NACIONAL DE GARANTIAS","FONDO NACIONAL DE GARANTIAS >PAA 2022 > Defensa Jurídica","Maria Angelica Burbano Sánchez","Construir el reporte de índice de condenas en los estudios y/o análisis que realiza la entidad de los procesos que cursan o hayan cursado en su contra, con el fin de proponer las mejoras o correctivos que se requieran","Realizar el análisis de casos perdidos y ganados. (línea base, pronunciamientos durante la vigencia o anteriores)\n\nElaborar informe cualitativo y analítico a partir del cual se formulen conclusiones concretas con las respectivas propuestas de solución, mejora y/o prevención, según corresponda.\n\nEntregable: (Pte. determinar instrumento) Reporte de índice de condenas\n\nPeriodicidad: una (1) vez al año - Plazo: 30 noviembre 2022",null,"Diana Constanza Calderón ","Andrés Estrada Cardona ",null,"Dirección Jurídica","N/A","-","-","-","-","-","-","2022-03-01","2022-12-31","Necesidades del SH","N/A","Gestión con valores para el resultado (Ventanilla hacia adentro)","Defensa Jurídica "]
[null,null,"GESTIÓN DE CAPACIDADES INSTITUCIONALES","GCI2. Promover la adecuada administración de los recursos físicos, financieros y la defensa técnica de las Entidades del Sector Hacienda.","SH.Ini.2019.2022.GCI2.002 Desarrollar mecanismos para un adecuado ejercicio de defensa jurídica de las Entidades del Sector Hacienda","GRUPO BICENTENARIO","GRUPO BICENTENARIO >PAA 2022 > Defensa Jurídica","Oscar Laureano Rosero Jiménez","Construir el reporte de índice de condenas en los estudios y/o análisis que realiza la entidad de los procesos que cursan o hayan cursado en su contra, con el fin de proponer las mejoras o correctivos que se requieran","Realizar el análisis de casos perdidos y ganados. (línea base, pronunciamientos durante la vigencia o anteriores)\n\nElaborar informe cualitativo y analítico a partir del cual se formulen conclusiones concretas con las respectivas propuestas de solución, mejora y/o prevención, según corresponda.\n\nEntregable: (Pte. determinar instrumento) Reporte de índice de condenas\n\nPeriodicidad: una (1) vez al año - Plazo: 30 noviembre 2022",null,"Pablo Cabarcas ","Sebastián Echeverry",null,"Área Jurídica","N/A","-","-","-","-","-","-","2022-03-01","2022-12-31","Necesidades del SH","N/A","Gestión con valores para el resultado (Ventanilla hacia adentro)","Defensa Jurídica "]
[null,null,"GESTIÓN DE CAPACIDADES INSTITUCIONALES","GCI2. Promover la adecuada administración de los recursos físicos, financieros y la defensa técnica de las Entidades del Sector Hacienda.","SH.Ini.2019.2022.GCI2.002 Desarrollar mecanismos para un adecuado ejercicio de defensa jurídica de las Entidades del Sector Hacienda","ICETEX","ICETEX >PAA 2022 > Defensa Jurídica","Beatriz Helena Torres Lizarazo\n","Construir el reporte de índice de condenas en los estudios y/o análisis que realiza la entidad de los procesos que cursan o hayan cursado en su contra, con el fin de proponer las mejoras o correctivos que se requieran","Realizar el análisis de casos perdidos y ganados. (línea base, pronunciamientos durante la vigencia o anteriores)\n\nElaborar informe cualitativo y analítico a partir del cual se formulen conclusiones concretas con las respectivas propuestas de solución, mejora y/o prevención, según corresponda.\n\nEntregable: (Pte. determinar instrumento) Reporte de índice de condenas\n\nPeriodicidad: una (1) vez al año - Plazo: 30 noviembre 2022",null,"Ricardo Cortes Pardo ","Rosa Maria Gonzalez Carvajal \nJohana Niño Acosta \nAna Lucy Castro Castro \n",null,"Oficina Asesora Jurídica ICETEX","N/A","-","-","-","-","-","-","2022-03-01","2022-12-31","Necesidades del SH","N/A","Gestión con valores para el resultado (Ventanilla hacia adentro)","Defensa Jurídica "]
[null,null,"GESTIÓN DE CAPACIDADES INSTITUCIONALES","GCI2. Promover la adecuada administración de los recursos físicos, financieros y la defensa técnica de las Entidades del Sector Hacienda.","SH.Ini.2019.2022.GCI2.002 Desarrollar mecanismos para un adecuado ejercicio de defensa jurídica de las Entidades del Sector Hacienda","ITRC","ITRC>PAA 2022 > Defensa Jurídica","Nohora Beltrán Céspedes","Construir el reporte de índice de condenas en los estudios y/o análisis que realiza la entidad de los procesos que cursan o hayan cursado en su contra, con el fin de proponer las mejoras o correctivos que se requieran","Realizar el análisis de casos perdidos y ganados. (línea base, pronunciamientos durante la vigencia o anteriores)\n\nElaborar informe cualitativo y analítico a partir del cual se formulen conclusiones concretas con las respectivas propuestas de solución, mejora y/o prevención, según corresponda.\n\nEntregable: (Pte. determinar instrumento) Reporte de índice de condenas\n\nPeriodicidad: una (1) vez al año - Plazo: 30 noviembre 2022",null,"Claudia Marcela Maldonado\n","John Alexander Luna Pinzón\n",null,"Oficina Asesora Jurídica","N/A","-","-","-","-","-","-","2022-03-01","2022-12-31","Necesidades del SH","N/A","Gestión con valores para el resultado (Ventanilla hacia adentro)","Defensa Jurídica "]
[null,null,"GESTIÓN DE CAPACIDADES INSTITUCIONALES","GCI2. Promover la adecuada administración de los recursos físicos, financieros y la defensa técnica de las Entidades del Sector Hacienda.","SH.Ini.2019.2022.GCI2.002 Desarrollar mecanismos para un adecuado ejercicio de defensa jurídica de las Entidades del Sector Hacienda","MHCP","MHCP>PAA 2022 > Defensa Jurídica","Diego Ignacio Rivera Mantilla","Construir el reporte de índice de condenas en los estudios y/o análisis que realiza la entidad de los procesos que cursan o hayan cursado en su contra, con el fin de proponer las mejoras o correctivos que se requieran","Realizar el análisis de casos perdidos y ganados. (línea base, pronunciamientos durante la vigencia o anteriores)\n\nElaborar informe cualitativo y analítico a partir del cual se formulen conclusiones concretas con las respectivas propuestas de solución, mejora y/o prevención, según corresponda.\n\nEntregable: (Pte. determinar instrumento) Reporte de índice de condenas\n\nPeriodicidad: una (1) vez al año - Plazo: 30 noviembre 2022",null,"Sandra Diaz Castellanos",null,null,"Subdirección Jurídica","Todas las entidades","-","-","-","-","-","-","2022-03-01","2022-12-31","Necesidades del SH","N/A","Gestión con valores para el resultado (Ventanilla hacia adentro)","Defensa Jurídica "]
[null,null,"GESTIÓN DE CAPACIDADES INSTITUCIONALES","GCI2. Promover la adecuada administración de los recursos físicos, financieros y la defensa técnica de las Entidades del Sector Hacienda.","SH.Ini.2019.2022.GCI2.002 Desarrollar mecanismos para un adecuado ejercicio de defensa jurídica de las Entidades del Sector Hacienda","POSITIVA","POSITIVA>PAA 2022 > Defensa Jurídica","Carlos Augusto Mesa Diaz","Construir el reporte de índice de condenas en los estudios y/o análisis que realiza la entidad de los procesos que cursan o hayan cursado en su contra, con el fin de proponer las mejoras o correctivos que se requieran","Realizar el análisis de casos perdidos y ganados. (línea base, pronunciamientos durante la vigencia o anteriores)\n\nElaborar informe cualitativo y analítico a partir del cual se formulen conclusiones concretas con las respectivas propuestas de solución, mejora y/o prevención, según corresponda.\n\nEntregable: (Pte. determinar instrumento) Reporte de índice de condenas\n\nPeriodicidad: una (1) vez al año - Plazo: 30 noviembre 2022",null,"Oscar Saul Guerrero Bohórquez ","Oscar Saul Guerrero Bohórquez \nSandra Milena Salamanca Gutiérrez ",null,"Gerencia Jurídica","N/A","-","-","-","-","-","-","2022-03-01","2022-12-31","Necesidades del SH","N/A","Gestión con valores para el resultado (Ventanilla hacia adentro)","Defensa Jurídica "]
[null,null,"GESTIÓN DE CAPACIDADES INSTITUCIONALES","GCI2. Promover la adecuada administración de los recursos físicos, financieros y la defensa técnica de las Entidades del Sector Hacienda.","SH.Ini.2019.2022.GCI2.002 Desarrollar mecanismos para un adecuado ejercicio de defensa jurídica de las Entidades del Sector Hacienda","PREVISORA","PREVISORA>PAA 2022 > Defensa Jurídica","José Fernando Pulido Sierra","Construir el reporte de índice de condenas en los estudios y/o análisis que realiza la entidad de los procesos que cursan o hayan cursado en su contra, con el fin de proponer las mejoras o correctivos que se requieran","Realizar el análisis de casos perdidos y ganados. (línea base, pronunciamientos durante la vigencia o anteriores)\n\nElaborar informe cualitativo y analítico a partir del cual se formulen conclusiones concretas con las respectivas propuestas de solución, mejora y/o prevención, según corresponda.\n\nEntregable: (Pte. determinar instrumento) Reporte de índice de condenas\n\nPeriodicidad: una (1) vez al año - Plazo: 30 noviembre 2022",null,"Gina Patricia Cortés Paez","N/A",null,"Gerencia de Litigios","N/A","-","-","-","-","-","-","2022-03-01","2022-12-31","Necesidades del SH","N/A","Gestión con valores para el resultado (Ventanilla hacia adentro)","Defensa Jurídica "]
[null,null,"GESTIÓN DE CAPACIDADES INSTITUCIONALES","GCI2. Promover la adecuada administración de los recursos físicos, financieros y la defensa técnica de las Entidades del Sector Hacienda.","SH.Ini.2019.2022.GCI2.002 Desarrollar mecanismos para un adecuado ejercicio de defensa jurídica de las Entidades del Sector Hacienda","SAE","SAE>PAA 2022> Defensa Jurídica","Jaime Leon Gómez Salazar","Construir el reporte de índice de condenas en los estudios y/o análisis que realiza la entidad de los procesos que cursan o hayan cursado en su contra, con el fin de proponer las mejoras o correctivos que se requieran","Realizar el análisis de casos perdidos y ganados. (línea base, pronunciamientos durante la vigencia o anteriores)\n\nElaborar informe cualitativo y analítico a partir del cual se formulen conclusiones concretas con las respectivas propuestas de solución, mejora y/o prevención, según corresponda.\n\nEntregable: (Pte. determinar instrumento) Reporte de índice de condenas\n\nPeriodicidad: una (1) vez al año - Plazo: 30 noviembre 2022",null,"Daniela Alejandra Benavidez \n","N/A",null,"Gerencia Asuntos Legales","N/A","-","-","-","-","-","-","2022-03-01","2022-12-31","Necesidades del SH","N/A","Gestión con valores para el resultado (Ventanilla hacia adentro)","Defensa Jurídica "]
[null,null,"GESTIÓN DE CAPACIDADES INSTITUCIONALES","GCI2. Promover la adecuada administración de los recursos físicos, financieros y la defensa técnica de las Entidades del Sector Hacienda.","SH.Ini.2019.2022.GCI2.002 Desarrollar mecanismos para un adecuado ejercicio de defensa jurídica de las Entidades del Sector Hacienda","SUPERFINANCIERA","SUPERFINANCIERA>PAA 2022 > Defensa Jurídica","José Gabriel Sánchez Sousa","Construir el reporte de índice de condenas en los estudios y/o análisis que realiza la entidad de los procesos que cursan o hayan cursado en su contra, con el fin de proponer las mejoras o correctivos que se requieran","Realizar el análisis de casos perdidos y ganados. (línea base, pronunciamientos durante la vigencia o anteriores)\n\nElaborar informe cualitativo y analítico a partir del cual se formulen conclusiones concretas con las respectivas propuestas de solución, mejora y/o prevención, según corresponda.\n\nEntregable: (Pte. determinar instrumento) Reporte de índice de condenas\n\nPeriodicidad: una (1) vez al año - Plazo: 30 noviembre 2022",null,"Sergio Esteban Varela Guzman","Juan Pablo Buitrago León",null,"Subdirección de Defensa Jurídica","N/A","-","-","-","-","-","-","2022-03-01","2022-12-31","Necesidades del SH","N/A","Gestión con valores para el resultado (Ventanilla hacia adentro)","Defensa Jurídica "]
[null,null,"GESTIÓN DE CAPACIDADES INSTITUCIONALES","GCI2. Promover la adecuada administración de los recursos físicos, financieros y la defensa técnica de las Entidades del Sector Hacienda.","SH.Ini.2019.2022.GCI2.002 Desarrollar mecanismos para un adecuado ejercicio de defensa jurídica de las Entidades del Sector Hacienda","SUPERSOLIDARIA","SUPERSOLIDARIA>PAA 2022 > Defensa Jurídica","Robín Andrey Suarez Toscano","Construir el reporte de índice de condenas en los estudios y/o análisis que realiza la entidad de los procesos que cursan o hayan cursado en su contra, con el fin de proponer las mejoras o correctivos que se requieran","Realizar el análisis de casos perdidos y ganados. (línea base, pronunciamientos durante la vigencia o anteriores)\n\nElaborar informe cualitativo y analítico a partir del cual se formulen conclusiones concretas con las respectivas propuestas de solución, mejora y/o prevención, según corresponda.\n\nEntregable: (Pte. determinar instrumento) Reporte de índice de condenas\n\nPeriodicidad: una (1) vez al año - Plazo: 30 noviembre 2022",null,"Felipe Mancera Rojas ","N/A",null,"Oficina Asesora de Planeación y Sistemas ","N/A","-","-","-","-","-","-","2022-03-01","2022-12-31","Necesidades del SH","N/A","Gestión con valores para el resultado (Ventanilla hacia adentro)","Defensa Jurídica "]
[null,null,"GESTIÓN DE CAPACIDADES INSTITUCIONALES","GCI2. Promover la adecuada administración de los recursos físicos, financieros y la defensa técnica de las Entidades del Sector Hacienda.","SH.Ini.2019.2022.GCI2.002 Desarrollar mecanismos para un adecuado ejercicio de defensa jurídica de las Entidades del Sector Hacienda","UGPP","UGPP>PAA 2022 > Defensa Jurídica","Ana María Cadena","Construir el reporte de índice de condenas en los estudios y/o análisis que realiza la entidad de los procesos que cursan o hayan cursado en su contra, con el fin de proponer las mejoras o correctivos que se requieran","Realizar el análisis de casos perdidos y ganados. (línea base, pronunciamientos durante la vigencia o anteriores)\n\nElaborar informe cualitativo y analítico a partir del cual se formulen conclusiones concretas con las respectivas propuestas de solución, mejora y/o prevención, según corresponda.\n\nEntregable: (Pte. determinar instrumento) Reporte de índice de condenas\n\nPeriodicidad: una (1) vez al año - Plazo: 30 noviembre 2022",null,"Germán Vega Rodríguez","N/A",null,"Dirección Jurídica","N/A","-","-","-","-","-","-","2022-03-01","2022-12-31","Necesidades del SH","N/A","Gestión con valores para el resultado (Ventanilla hacia adentro)","Defensa Jurídica "]
[null,null,"GESTIÓN DE CAPACIDADES INSTITUCIONALES","GCI2. Promover la adecuada administración de los recursos físicos, financieros y la defensa técnica de las Entidades del Sector Hacienda.","SH.Ini.2019.2022.GCI2.002 Desarrollar mecanismos para un adecuado ejercicio de defensa jurídica de las Entidades del Sector Hacienda","UIAF","UIAF>PAA 2022 > Defensa Jurídica","Nilgen Vargas Garcés","Construir el reporte de índice de condenas en los estudios y/o análisis que realiza la entidad de los procesos que cursan o hayan cursado en su contra, con el fin de proponer las mejoras o correctivos que se requieran","Realizar el análisis de casos perdidos y ganados. (línea base, pronunciamientos durante la vigencia o anteriores)\n\nElaborar informe cualitativo y analítico a partir del cual se formulen conclusiones concretas con las respectivas propuestas de solución, mejora y/o prevención, según corresponda.\n\nEntregable: (Pte. determinar instrumento) Reporte de índice de condenas\n\nPeriodicidad: una (1) vez al año - Plazo: 30 noviembre 2022",null,"Carlos Julio Buitrago Ortiz","Andrés Augusto Díaz Sáenz",null,"Oficina Asesora Jurídica","N/A","-","-","-","-","-","-","2022-03-01","2022-12-31","Necesidades del SH","N/A","Gestión con valores para el resultado (Ventanilla hacia adentro)","Defensa Jurídica "]
[null,null,"GESTIÓN DE CAPACIDADES INSTITUCIONALES","GCI2. Promover la adecuada administración de los recursos físicos, financieros y la defensa técnica de las Entidades del Sector Hacienda.","SH.Ini.2019.2022.GCI2.002 Desarrollar mecanismos para un adecuado ejercicio de defensa jurídica de las Entidades del Sector Hacienda","MHCP","MHCP>PAA 2022 > Defensa Jurídica","Diego Ignacio Rivera Mantilla","Programar dos sesiones del Subcomité Sectorial para la Defensa Jurídica del Sector Hacienda.","De acuerdo con la Resolución 1107 del 20 de abril de 2016 de creación del Subcomité, se programaran las dos sesiones en donde se tratan temas defensa judicial transversales a las entidades que hacen parte del Sector Hacienda.\nEntregable. Actas de Subcomité y listas de asistencia.\n\nPeriodicidad: Dos veces al año",null,"Sandra Diaz Castellanos","N/A",null,"Subdirección Jurídica","N/A","-","-","-","-","-","-","2022-01-01","2022-12-31","Necesidades del SH","N/A","Gestión con valores para el resultado (Ventanilla hacia adentro)","Defensa Jurídica "]
[null,null,"GESTIÓN DE CAPACIDADES INSTITUCIONALES","GCI2. Promover la adecuada administración de los recursos físicos, financieros y la defensa técnica de las Entidades del Sector Hacienda.","SH.Ini.2019.2022.GCI2.002 Desarrollar mecanismos para un adecuado ejercicio de defensa jurídica de las Entidades del Sector Hacienda","BANCO AGRARIO","BANCO AGRARIO >PAA 2022 > Defensa Jurídica","Sandra Patricia Villabona","Participar en las mesas sectoriales de la política de Defensa Jurídica del Sector Hacienda","Participar en dos mesas programadas por el líder sectorial de la política de Defensa Jurídica del MHCP y entregar la información requerida para el fortalecimiento y documentación  de estas políticas.",null,"Elizabeth Gomez Roa","N/A",null,"Vicepresidencia Jurídica","N/A","-","-","-","-","-","-","2022-01-01","2022-12-31","Necesidades del SH","N/A","Gestión con valores para el resultado (Ventanilla hacia adentro)","Defensa Jurídica "]
[null,null,"GESTIÓN DE CAPACIDADES INSTITUCIONALES","GCI2. Promover la adecuada administración de los recursos físicos, financieros y la defensa técnica de las Entidades del Sector Hacienda.","SH.Ini.2019.2022.GCI2.002 Desarrollar mecanismos para un adecuado ejercicio de defensa jurídica de las Entidades del Sector Hacienda","BANCOLDEX","BANCOLDEX >PAA 2022 > Defensa Jurídica","María José Naranjo","Participar en las mesas sectoriales de la política de Defensa Jurídica del Sector Hacienda","Participar en dos mesas programadas por el líder sectorial de la política de Defensa Jurídica del MHCP y entregar la información requerida para el fortalecimiento y documentación  de estas políticas.",null,"Jose Luis Cañas","N/A",null,"\nDepartamento Jurídico","N/A","-","-","-","-","-","-","2022-01-01","2022-12-31","Necesidades del SH","N/A","Gestión con valores para el resultado (Ventanilla hacia adentro)","Defensa Jurídica "]
[null,null,"GESTIÓN DE CAPACIDADES INSTITUCIONALES","GCI2. Promover la adecuada administración de los recursos físicos, financieros y la defensa técnica de las Entidades del Sector Hacienda.","SH.Ini.2019.2022.GCI2.002 Desarrollar mecanismos para un adecuado ejercicio de defensa jurídica de las Entidades del Sector Hacienda","CISA","CISA > PAA 2022 > Defensa Jurídica","Juan Felipe Robles","Participar en las mesas sectoriales de la política de Defensa Jurídica del Sector Hacienda","Participar en dos mesas programadas por el líder sectorial de la política de Defensa Jurídica del MHCP y entregar la información requerida para el fortalecimiento y documentación  de estas políticas.",null,"Sandra Viviana Neira ","N.A",null,"Gerencia Jurídica del Negocio","N/A","-","-","-","-","-","-","2022-01-01","2022-12-31","Necesidades del SH","N/A","Gestión con valores para el resultado (Ventanilla hacia adentro)","Defensa Jurídica "]
[null,null,"GESTIÓN DE CAPACIDADES INSTITUCIONALES","GCI2. Promover la adecuada administración de los recursos físicos, financieros y la defensa técnica de las Entidades del Sector Hacienda.","SH.Ini.2019.2022.GCI2.002 Desarrollar mecanismos para un adecuado ejercicio de defensa jurídica de las Entidades del Sector Hacienda","COLJUEGOS","COLJUEGOS> PAA 2022 > Defensa Jurídica","Roger José Carrillo Campo ","Participar en las mesas sectoriales de la política de Defensa Jurídica del Sector Hacienda","Participar en dos mesas programadas por el líder sectorial de la política de Defensa Jurídica del MHCP y entregar la información requerida para el fortalecimiento y documentación  de estas políticas.",null,"Alexandra Torres Gonzalez","Juan Felipe Mahecha Cordoba",null,"Oficina Asesora de Planeación","N/A","-","-","-","-","-","-","2022-01-01","2022-12-31","Necesidades del SH","N/A","Gestión con valores para el resultado (Ventanilla hacia adentro)","Defensa Jurídica "]
[null,null,"GESTIÓN DE CAPACIDADES INSTITUCIONALES","GCI2. Promover la adecuada administración de los recursos físicos, financieros y la defensa técnica de las Entidades del Sector Hacienda.","SH.Ini.2019.2022.GCI2.002 Desarrollar mecanismos para un adecuado ejercicio de defensa jurídica de las Entidades del Sector Hacienda","CGN","CGN > PAA 2022 > Defensa Jurídica","Henry Ramírez Montes","Participar en las mesas sectoriales de la política de Defensa Jurídica del Sector Hacienda","Participar en dos mesas programadas por el líder sectorial de la política de Defensa Jurídica del MHCP y entregar la información requerida para el fortalecimiento y documentación  de estas políticas.",null,"Wilson Eduardo Cifuentes","Edgar Díaz V.",null,"GIT de Jurídica","N/A","-","-","-","-","-","-","2022-01-01","2022-12-31","Necesidades del SH","N/A","Gestión con valores para el resultado (Ventanilla hacia adentro)","Defensa Jurídica "]
[null,null,"GESTIÓN DE CAPACIDADES INSTITUCIONALES","GCI2. Promover la adecuada administración de los recursos físicos, financieros y la defensa técnica de las Entidades del Sector Hacienda.","SH.Ini.2019.2022.GCI2.002 Desarrollar mecanismos para un adecuado ejercicio de defensa jurídica de las Entidades del Sector Hacienda","DIAN","DIAN > PAA 2022 > Defensa Jurídica","Catalina Garcia Cure","Participar en las mesas sectoriales de la política de Defensa Jurídica del Sector Hacienda","Participar en dos mesas programadas por el líder sectorial de la política de Defensa Jurídica del MHCP y entregar la información requerida para el fortalecimiento y documentación  de estas políticas.",null,"Constanza Del Pilar Rodríguez Páez","Diana Astrid Chaparro Manosalva",null,"Subdirección de Gestión de Representación Externa","N/A","-","-","-","-","-","-","2022-01-01","2022-12-31","Necesidades del SH","N/A","Gestión con valores para el resultado (Ventanilla hacia adentro)","Defensa Jurídica "]
[null,null,"GESTIÓN DE CAPACIDADES INSTITUCIONALES","GCI2. Promover la adecuada administración de los recursos físicos, financieros y la defensa técnica de las Entidades del Sector Hacienda.","SH.Ini.2019.2022.GCI2.002 Desarrollar mecanismos para un adecuado ejercicio de defensa jurídica de las Entidades del Sector Hacienda","ENTERRITORIO","ENTERRITORIO >PAA 2022 > Defensa Jurídica","Carlos Eduardo Umaña Lizarazo","Participar en las mesas sectoriales de la política de Defensa Jurídica del Sector Hacienda","Participar en dos mesas programadas por el líder sectorial de la política de Defensa Jurídica del MHCP y entregar la información requerida para el fortalecimiento y documentación  de estas políticas.",null,"Marta Liced Rodriguez Quimbayo","Anny Alvarez Mendoza",null,"Grupo de Planeación y Gestión de Riesgos","N/A","-","-","-","-","-","-","2022-01-01","2022-12-31","Necesidades del SH","N/A","Gestión con valores para el resultado (Ventanilla hacia adentro)","Defensa Jurídica "]
[null,null,"GESTIÓN DE CAPACIDADES INSTITUCIONALES","GCI2. Promover la adecuada administración de los recursos físicos, financieros y la defensa técnica de las Entidades del Sector Hacienda.","SH.Ini.2019.2022.GCI2.002 Desarrollar mecanismos para un adecuado ejercicio de defensa jurídica de las Entidades del Sector Hacienda","FDN","FDN > PAA 2022 > Defensa Jurídica","Carolina Hernández","Participar en las mesas sectoriales de la política de Defensa Jurídica del Sector Hacienda","Participar en dos mesas programadas por el líder sectorial de la política de Defensa Jurídica del MHCP y entregar la información requerida para el fortalecimiento y documentación  de estas políticas.",null,"Maria Alejandra Rueda","N/A",null,"Jurídica","N/A","-","-","-","-","-","-","2022-01-01","2022-12-31","Necesidades del SH","N/A","Gestión con valores para el resultado (Ventanilla hacia adentro)","Defensa Jurídica "]
[null,null,"GESTIÓN DE CAPACIDADES INSTITUCIONALES","GCI2. Promover la adecuada administración de los recursos físicos, financieros y la defensa técnica de las Entidades del Sector Hacienda.","SH.Ini.2019.2022.GCI2.002 Desarrollar mecanismos para un adecuado ejercicio de defensa jurídica de las Entidades del Sector Hacienda","FIDUAGRARIA","FIDUAGRARIA >PAA 2022 > Defensa Jurídica","Luz Marina Fernández Bello ","Participar en las mesas sectoriales de la política de Defensa Jurídica del Sector Hacienda","Participar en dos mesas programadas por el líder sectorial de la política de Defensa Jurídica del MHCP y entregar la información requerida para el fortalecimiento y documentación  de estas políticas.",null,"Adriana Marcela Fuente Estrada","Andres Fernando Rubio Castro\nEliana Lizeth Rodriguez Bohorquez",null,"Jefatura de Asuntos judiciales","N/A","-","-","-","-","-","-","2022-01-01","2022-12-31","Necesidades del SH","N/A","Gestión con valores para el resultado (Ventanilla hacia adentro)","Defensa Jurídica "]
[null,null,"GESTIÓN DE CAPACIDADES INSTITUCIONALES","GCI2. Promover la adecuada administración de los recursos físicos, financieros y la defensa técnica de las Entidades del Sector Hacienda.","SH.Ini.2019.2022.GCI2.002 Desarrollar mecanismos para un adecuado ejercicio de defensa jurídica de las Entidades del Sector Hacienda","FIDUCOLDEX","FIDUCOLDEX >PAA 2022 > Defensa Jurídica","Andrés Barco","Participar en las mesas sectoriales de la política de Defensa Jurídica del Sector Hacienda","Participar en dos mesas programadas por el líder sectorial de la política de Defensa Jurídica del MHCP y entregar la información requerida para el fortalecimiento y documentación  de estas políticas.",null,"Angelly Coy","N/A",null,"Dirección Jurídica","N/A","-","-","-","-","-","-","2022-01-01","2022-12-31","Necesidades del SH","N/A","Gestión con valores para el resultado (Ventanilla hacia adentro)","Defensa Jurídica "]
[null,null,"GESTIÓN DE CAPACIDADES INSTITUCIONALES","GCI2. Promover la adecuada administración de los recursos físicos, financieros y la defensa técnica de las Entidades del Sector Hacienda.","SH.Ini.2019.2022.GCI2.002 Desarrollar mecanismos para un adecuado ejercicio de defensa jurídica de las Entidades del Sector Hacienda","FIDUPREVISORA","FIDUPREVISORA > PAA 2022 > Defensa Jurídica","Magda Nancy Manosalva Cely","Participar en las mesas sectoriales de la política de Defensa Jurídica del Sector Hacienda","Participar en dos mesas programadas por el líder sectorial de la política de Defensa Jurídica del MHCP y entregar la información requerida para el fortalecimiento y documentación  de estas políticas.",null,"Karen Pardo","Juan Pablo Suarez",null,"Vicepresidencia Jurídica","N/A","-","-","-","-","-","-","2022-01-01","2022-12-31","Necesidades del SH","N/A","Gestión con valores para el resultado (Ventanilla hacia adentro)","Defensa Jurídica "]
[null,null,"GESTIÓN DE CAPACIDADES INSTITUCIONALES","GCI2. Promover la adecuada administración de los recursos físicos, financieros y la defensa técnica de las Entidades del Sector Hacienda.","SH.Ini.2019.2022.GCI2.002 Desarrollar mecanismos para un adecuado ejercicio de defensa jurídica de las Entidades del Sector Hacienda","FINAGRO","FINAGRO >PAA 2022 > Defensa Jurídica","Juan Carlos Restrepo González","Participar en las mesas sectoriales de la política de Defensa Jurídica del Sector Hacienda","Participar en dos mesas programadas por el líder sectorial de la política de Defensa Jurídica del MHCP y entregar la información requerida para el fortalecimiento y documentación  de estas políticas.",null,"William García","Andrés Francisco Posada\nMaría Helena Reyes Donadlo \n",null,"Vicepresidente Financiero","N/A","-","-","-","-","-","-","2022-01-01","2022-12-31","Necesidades del SH","N/A","Gestión con valores para el resultado (Ventanilla hacia adentro)","Defensa Jurídica "]
[null,null,"GESTIÓN DE CAPACIDADES INSTITUCIONALES","GCI2. Promover la adecuada administración de los recursos físicos, financieros y la defensa técnica de las Entidades del Sector Hacienda.","SH.Ini.2019.2022.GCI2.002 Desarrollar mecanismos para un adecuado ejercicio de defensa jurídica de las Entidades del Sector Hacienda","FINDETER","FINDETER > PAA 2022 > Defensa Jurídica","Laura Mercedes Peña Rodríguez","Participar en las mesas sectoriales de la política de Defensa Jurídica del Sector Hacienda","Participar en dos mesas programadas por el líder sectorial de la política de Defensa Jurídica del MHCP y entregar la información requerida para el fortalecimiento y documentación  de estas políticas.",null,"Jorge Luis Giraldo ","N/A",null,"Dirección Jurídica","N/A","-","-","-","-","-","-","2022-01-01","2022-12-31","Necesidades del SH","N/A","Gestión con valores para el resultado (Ventanilla hacia adentro)","Defensa Jurídica "]
[null,null,"GESTIÓN DE CAPACIDADES INSTITUCIONALES","GCI2. Promover la adecuada administración de los recursos físicos, financieros y la defensa técnica de las Entidades del Sector Hacienda.","SH.Ini.2019.2022.GCI2.002 Desarrollar mecanismos para un adecuado ejercicio de defensa jurídica de las Entidades del Sector Hacienda","FOGACOOP","FOGACOOP > PAA 2022> Defensa Jurídica","Adriana Mcallister Braidy","Participar en las mesas sectoriales de la política de Defensa Jurídica del Sector Hacienda","Participar en dos mesas programadas por el líder sectorial de la política de Defensa Jurídica del MHCP y entregar la información requerida para el fortalecimiento y documentación  de estas políticas.",null,"Ruben Mauricio Ariza","Zulma Liliana López Zuluaga",null,"Secretaría General y de Gestión Administrativa","N/A","-","-","-","-","-","-","2022-01-01","2022-12-31","Necesidades del SH","N/A","Gestión con valores para el resultado (Ventanilla hacia adentro)","Defensa Jurídica "]
[null,null,"GESTIÓN DE CAPACIDADES INSTITUCIONALES","GCI2. Promover la adecuada administración de los recursos físicos, financieros y la defensa técnica de las Entidades del Sector Hacienda.","SH.Ini.2019.2022.GCI2.002 Desarrollar mecanismos para un adecuado ejercicio de defensa jurídica de las Entidades del Sector Hacienda","FOGAFIN","FOGAFIN > PAA 2022 > Defensa Jurídica","Carlos Alberto Sánchez del Valle","Participar en las mesas sectoriales de la política de Defensa Jurídica del Sector Hacienda","Participar en dos mesas programadas por el líder sectorial de la política de Defensa Jurídica del MHCP y entregar la información requerida para el fortalecimiento y documentación  de estas políticas.",null,"Carlos Alberto Sánchez del Valle","N/A",null,"Departamento Jurídico","N/A","-","-","-","-","-","-","2022-01-01","2022-12-31","Necesidades del SH","N/A","Gestión con valores para el resultado (Ventanilla hacia adentro)","Defensa Jurídica "]
[null,null,"GESTIÓN DE CAPACIDADES INSTITUCIONALES","GCI2. Promover la adecuada administración de los recursos físicos, financieros y la defensa técnica de las Entidades del Sector Hacienda.","SH.Ini.2019.2022.GCI2.002 Desarrollar mecanismos para un adecuado ejercicio de defensa jurídica de las Entidades del Sector Hacienda","FONDO ADAPTACIÓN","FONDO ADAPTACIÓN > PAA 2022 >Defensa Jurídica","Alejandro Venegas","Participar en las mesas sectoriales de la política de Defensa Jurídica del Sector Hacienda","Participar en dos mesas programadas por el líder sectorial de la política de Defensa Jurídica del MHCP y entregar la información requerida para el fortalecimiento y documentación  de estas políticas.",null,"Catalina Soto Velasco","Fernando Salazar ",null,"Defensa Judicial","N/A","-","-","-","-","-","-","2022-01-01","2022-12-31","Necesidades del SH","N/A","Gestión con valores para el resultado (Ventanilla hacia adentro)","Defensa Jurídica "]
[null,null,"GESTIÓN DE CAPACIDADES INSTITUCIONALES","GCI2. Promover la adecuada administración de los recursos físicos, financieros y la defensa técnica de las Entidades del Sector Hacienda.","SH.Ini.2019.2022.GCI2.002 Desarrollar mecanismos para un adecuado ejercicio de defensa jurídica de las Entidades del Sector Hacienda","FONDO NACIONAL DEL AHORRO","FONDO NACIONAL DE AHORRO >PAA 2022 > Defensa Jurídica","Kennicher Arias Roa","Participar en las mesas sectoriales de la política de Defensa Jurídica del Sector Hacienda","Participar en dos mesas programadas por el líder sectorial de la política de Defensa Jurídica del MHCP y entregar la información requerida para el fortalecimiento y documentación  de estas políticas.",null,"Natalia Bustamante\n","Natalia Bustamante ",null,"Oficina Jurídica","N/A","-","-","-","-","-","-","2022-01-01","2022-12-31","Necesidades del SH","N/A","Gestión con valores para el resultado (Ventanilla hacia adentro)","Defensa Jurídica "]
[null,null,"GESTIÓN DE CAPACIDADES INSTITUCIONALES","GCI2. Promover la adecuada administración de los recursos físicos, financieros y la defensa técnica de las Entidades del Sector Hacienda.","SH.Ini.2019.2022.GCI2.002 Desarrollar mecanismos para un adecuado ejercicio de defensa jurídica de las Entidades del Sector Hacienda","FONDO NACIONAL DE GARANTIAS","FONDO NACIONAL DE GARANTIAS >PAA 2022 > Defensa Jurídica","Maria Angelica Burbano Sánchez","Participar en las mesas sectoriales de la política de Defensa Jurídica del Sector Hacienda","Participar en dos mesas programadas por el líder sectorial de la política de Defensa Jurídica del MHCP y entregar la información requerida para el fortalecimiento y documentación  de estas políticas.",null,"Diana Constanza Calderón ","Andrés Estrada Cardona \n",null,"Dirección Jurídica","N/A","-","-","-","-","-","-","2022-01-01","2022-12-31","Necesidades del SH","N/A","Gestión con valores para el resultado (Ventanilla hacia adentro)","Defensa Jurídica "]
[null,null,"GESTIÓN DE CAPACIDADES INSTITUCIONALES","GCI2. Promover la adecuada administración de los recursos físicos, financieros y la defensa técnica de las Entidades del Sector Hacienda.","SH.Ini.2019.2022.GCI2.002 Desarrollar mecanismos para un adecuado ejercicio de defensa jurídica de las Entidades del Sector Hacienda","GRUPO BICENTENARIO","GRUPO BICENTENARIO >PAA 2022 > Defensa Jurídica","Oscar Laureano Rosero Jiménez","Participar en las mesas sectoriales de la política de Defensa Jurídica del Sector Hacienda","Participar en dos mesas programadas por el líder sectorial de la política de Defensa Jurídica del MHCP y entregar la información requerida para el fortalecimiento y documentación  de estas políticas.",null,"Pablo Cabarcas","Sebastián Echeverry ",null,"Área Jurídica","N/A","-","-","-","-","-","-","2022-01-01","2022-12-31","Necesidades del SH","N/A","Gestión con valores para el resultado (Ventanilla hacia adentro)","Defensa Jurídica "]
[null,null,"GESTIÓN DE CAPACIDADES INSTITUCIONALES","GCI2. Promover la adecuada administración de los recursos físicos, financieros y la defensa técnica de las Entidades del Sector Hacienda.","SH.Ini.2019.2022.GCI2.002 Desarrollar mecanismos para un adecuado ejercicio de defensa jurídica de las Entidades del Sector Hacienda","ICETEX","ICETEX >PAA 2022 > Defensa Jurídica","Beatriz Helena Torres Lizarazo\n","Participar en las mesas sectoriales de la política de Defensa Jurídica del Sector Hacienda","Participar en dos mesas programadas por el líder sectorial de la política de Defensa Jurídica del MHCP y entregar la información requerida para el fortalecimiento y documentación  de estas políticas.",null,"\n Ricardo Cortes Pardo ","Rosa Maria Gonzalez Carvajal \nJohana Niño Acosta \nAna Lucy Castro Castro ",null,"Oficina Asesora Jurídica ICETEX","N/A","-","-","-","-","-","-","2022-01-01","2022-12-31","Necesidades del SH","N/A","Gestión con valores para el resultado (Ventanilla hacia adentro)","Defensa Jurídica "]
[null,null,"GESTIÓN DE CAPACIDADES INSTITUCIONALES","GCI2. Promover la adecuada administración de los recursos físicos, financieros y la defensa técnica de las Entidades del Sector Hacienda.","SH.Ini.2019.2022.GCI2.002 Desarrollar mecanismos para un adecuado ejercicio de defensa jurídica de las Entidades del Sector Hacienda","ITRC","ITRC > PAA 2022 > Defensa Jurídica","Nohora Beltrán Céspedes","Participar en las mesas sectoriales de la política de Defensa Jurídica del Sector Hacienda","Participar en dos mesas programadas por el líder sectorial de la política de Defensa Jurídica del MHCP y entregar la información requerida para el fortalecimiento y documentación  de estas políticas.",null,"Claudia Marcela Maldonado\n","John Alexander Luna Pinzón\n",null,"Oficina Asesora Jurídica","N/A","-","-","-","-","-","-","2022-01-01","2022-12-31","Necesidades del SH","N/A","Gestión con valores para el resultado (Ventanilla hacia adentro)","Defensa Jurídica "]
[null,null,"GESTIÓN DE CAPACIDADES INSTITUCIONALES","GCI2. Promover la adecuada administración de los recursos físicos, financieros y la defensa técnica de las Entidades del Sector Hacienda.","SH.Ini.2019.2022.GCI2.002 Desarrollar mecanismos para un adecuado ejercicio de defensa jurídica de las Entidades del Sector Hacienda","POSITIVA","POSITIVA > PAA 2022 > Defensa Jurídica","Carlos Augusto Mesa Diaz","Participar en las mesas sectoriales de la política de Defensa Jurídica del Sector Hacienda","Participar en dos mesas programadas por el líder sectorial de la política de Defensa Jurídica del MHCP y entregar la información requerida para el fortalecimiento y documentación  de estas políticas.",null,"Oscar Saul Guerrero Bohórquez ","Oscar Saul Guerrero Bohórquez \nSandra Milena Salamanca Gutiérrez ",null,"Gerencia Jurídica","N/A","-","-","-","-","-","-","2022-01-01","2022-12-31","Necesidades del SH","N/A","Gestión con valores para el resultado (Ventanilla hacia adentro)","Defensa Jurídica "]
[null,null,"GESTIÓN DE CAPACIDADES INSTITUCIONALES","GCI2. Promover la adecuada administración de los recursos físicos, financieros y la defensa técnica de las Entidades del Sector Hacienda.","SH.Ini.2019.2022.GCI2.002 Desarrollar mecanismos para un adecuado ejercicio de defensa jurídica de las Entidades del Sector Hacienda","PREVISORA","PREVISORA > PAA 2022 > Defensa Jurídica","José Fernando Pulido Sierra","Participar en las mesas sectoriales de la política de Defensa Jurídica del Sector Hacienda","Participar en dos mesas programadas por el líder sectorial de la política de Defensa Jurídica del MHCP y entregar la información requerida para el fortalecimiento y documentación  de estas políticas.",null,"Gina Patricia Cortés Paez","N/A",null,"Gerencia de Litigios","N/A","-","-","-","-","-","-","2022-01-01","2022-12-31","Necesidades del SH","N/A","Gestión con valores para el resultado (Ventanilla hacia adentro)","Defensa Jurídica "]
[null,null,"GESTIÓN DE CAPACIDADES INSTITUCIONALES","GCI2. Promover la adecuada administración de los recursos físicos, financieros y la defensa técnica de las Entidades del Sector Hacienda.","SH.Ini.2019.2022.GCI2.002 Desarrollar mecanismos para un adecuado ejercicio de defensa jurídica de las Entidades del Sector Hacienda","SAE","SAE > PAA 2022 > Defensa Jurídica","Jaime Leon Gómez Salazar","Participar en las mesas sectoriales de la política de Defensa Jurídica del Sector Hacienda","Participar en dos mesas programadas por el líder sectorial de la política de Defensa Jurídica del MHCP y entregar la información requerida para el fortalecimiento y documentación  de estas políticas.",null,"Daniela Alejandra Benavidez \n","N/A",null,"Gerencia Asuntos Legales","N/A","-","-","-","-","-","-","2022-01-01","2022-12-31","Necesidades del SH","N/A","Gestión con valores para el resultado (Ventanilla hacia adentro)","Defensa Jurídica "]
[null,null,"GESTIÓN DE CAPACIDADES INSTITUCIONALES","GCI2. Promover la adecuada administración de los recursos físicos, financieros y la defensa técnica de las Entidades del Sector Hacienda.","SH.Ini.2019.2022.GCI2.002 Desarrollar mecanismos para un adecuado ejercicio de defensa jurídica de las Entidades del Sector Hacienda","SUPERFINANCIERA","SUPERFINANCIERA > PAA 2022 > Defensa Jurídica","José Gabriel Sánchez Sousa","Participar en las mesas sectoriales de la política de Defensa Jurídica del Sector Hacienda","Participar en dos mesas programadas por el líder sectorial de la política de Defensa Jurídica del MHCP y entregar la información requerida para el fortalecimiento y documentación  de estas políticas.",null,"Sergio Esteban Varela Guzman","Juan Pablo Buitrago León",null,"Subdirección de Defensa Jurídica","N/A","-","-","-","-","-","-","2022-01-01","2022-12-31","Necesidades del SH","N/A","Gestión con valores para el resultado (Ventanilla hacia adentro)","Defensa Jurídica "]
[null,null,"GESTIÓN DE CAPACIDADES INSTITUCIONALES","GCI2. Promover la adecuada administración de los recursos físicos, financieros y la defensa técnica de las Entidades del Sector Hacienda.","SH.Ini.2019.2022.GCI2.002 Desarrollar mecanismos para un adecuado ejercicio de defensa jurídica de las Entidades del Sector Hacienda","SUPERSOLIDARIA","SUPERSOLIDARIA> PAA 2022 > Defensa Jurídica","Robín Andrey Suarez Toscano","Participar en las mesas sectoriales de la política de Defensa Jurídica del Sector Hacienda","Participar en dos mesas programadas por el líder sectorial de la política de Defensa Jurídica del MHCP y entregar la información requerida para el fortalecimiento y documentación  de estas políticas.",null,"Felipe Mancera Rojas ","N/A",null,"Oficina Asesora de Planeación y Sistemas ","N/A","-","-","-","-","-","-","2022-01-01","2022-12-31","Necesidades del SH","N/A","Gestión con valores para el resultado (Ventanilla hacia adentro)","Defensa Jurídica "]
[null,null,"GESTIÓN DE CAPACIDADES INSTITUCIONALES","GCI2. Promover la adecuada administración de los recursos físicos, financieros y la defensa técnica de las Entidades del Sector Hacienda.","SH.Ini.2019.2022.GCI2.002 Desarrollar mecanismos para un adecuado ejercicio de defensa jurídica de las Entidades del Sector Hacienda","UGPP","UGGP > PAA 2022 > Defensa Jurídica","Ana María Cadena","Participar en las mesas sectoriales de la política de Defensa Jurídica del Sector Hacienda","Participar en dos mesas programadas por el líder sectorial de la política de Defensa Jurídica del MHCP y entregar la información requerida para el fortalecimiento y documentación  de estas políticas.",null,"Germán Vega Rodríguez","N/A",null,"Dirección Jurídica","N/A","-","-","-","-","-","-","2022-01-01","2022-12-31","Necesidades del SH","N/A","Gestión con valores para el resultado (Ventanilla hacia adentro)","Defensa Jurídica "]
[null,null,"GESTIÓN DE CAPACIDADES INSTITUCIONALES","GCI2. Promover la adecuada administración de los recursos físicos, financieros y la defensa técnica de las Entidades del Sector Hacienda.","SH.Ini.2019.2022.GCI2.002 Desarrollar mecanismos para un adecuado ejercicio de defensa jurídica de las Entidades del Sector Hacienda","UIAF","UIAF > PAA 2022 > Defensa Jurídica","Nilgen Vargas Garcés","Participar en las mesas sectoriales de la política de Defensa Jurídica del Sector Hacienda","Participar en dos mesas programadas por el líder sectorial de la política de Defensa Jurídica del MHCP y entregar la información requerida para el fortalecimiento y documentación  de estas políticas.",null,"Carlos Julio Buitrago Ortiz","Andrés Augusto Díaz Sáenz",null,"Oficina Asesora Jurídica","N/A","-","-","-","-","-","-","2022-01-01","2022-12-31","Necesidades del SH","N/A","Gestión con valores para el resultado (Ventanilla hacia adentro)","Defensa Jurídica "]
[null,null,"GESTIÓN DE CAPACIDADES INSTITUCIONALES","GCI2. Promover la adecuada administración de los recursos físicos, financieros y la defensa técnica de las Entidades del Sector Hacienda.","SH.Ini.2019.2022.GCI2.002 Desarrollar mecanismos para un adecuado ejercicio de defensa jurídica de las Entidades del Sector Hacienda","URF","URF > PAA 2022 > Defensa Jurídica","Ivonnie Edith Gallardo","Participar en las mesas sectoriales de la política de Defensa Jurídica del Sector Hacienda","Participar en dos mesas programadas por el líder sectorial de la política de Defensa Jurídica del MHCP y entregar la información requerida para el fortalecimiento y documentación  de estas políticas.",null,"Catalina Torrado Ulloa","N/A",null,"Subdirección Jurídica y de Gestión Institucional ","N/A","-","-","-","-","-","-","2022-01-01","2022-12-31","Necesidades del SH","N/A","Gestión con valores para el resultado (Ventanilla hacia adentro)","Defensa Jurídica "]
[null,null,"GESTIÓN DE CAPACIDADES INSTITUCIONALES","GCI2. Promover la adecuada administración de los recursos físicos, financieros y la defensa técnica de las Entidades del Sector Hacienda.","SH.Ini.2019.2022.GCI2.002 Desarrollar mecanismos para un adecuado ejercicio de defensa jurídica de las Entidades del Sector Hacienda","MHCP","MHCP> PAA 2022> Mejora Normativa","Sheila Milena Montoya ","Realizar el plan de trabajo para la implementación de la Política de Mejora Normativa","Realizar Mesas de trabajo con el Equipo de Eficiencia Regulatoria del DNP para detectar las debilidades del Sector y definir el Plan de Trabajo para la implementación de la Política.\n","Nuevo","Diana Catalina Chirivi","Liliana Parra",null,"Secretaria General","Todas las entidades","-","-","-","-","-","-","2022-01-01","2022-12-31","Necesidades del SH","N/A","Gestión con valores para el resultado (Ventanilla hacia adentro)","Mejora Normativa"]
[null,null,"GESTIÓN DE CAPACIDADES INSTITUCIONALES","GCI2. Promover la adecuada administración de los recursos físicos, financieros y la defensa técnica de las Entidades del Sector Hacienda.","SH.Ini.2019.2022.GCI2.001 Implementar buenas practicas para la administración de recursos financieros en las Entidades del Sector Hacienda","MHCP","MHCP>PAA 2022 > Gestión Presupuestal","María del Pilar Florido Caicedo","Establecer “alertas tempranas” con las entidades del Sector que tienen PGN para mayor ejecución presupuestal, mediante el reporte de seguimiento.","Establecer estrategias a seguir para una eficiente ejecución presupuestal desde la perspectiva de programación hasta el uso de los recursos en la vigencia fiscal","N/A","Victor Manuel Ciro","Subdirección Financiera ",null,"Oficina Asesora de Planeación ","Entidades con PGN","-","-","-","-","-","-","2022-01-01","31/012/2022","Necesidades del SH","N/A","Direccionamiento Estratégico","Gestión Presupuestal y Eficiencia del Gasto Público  "]

{"sheet":"Listas","index":5,"n_rows":26,"n_cols":4,"rows_kept":26,"cut":false,"hidden":true,"merged":[]}
[]
[null,"DIMENSIÓN","N°","POLÍTICAS MIPG"]
[null,"Talento Humano",1.0,"Planeación Institucional "]
[null,"Direccionamiento Estratégico",2.0,"Gestión Presupuestal y Eficiencia del Gasto Público  "]
[null,"Gestión con valores para el resultado (Ventanilla hacia afuera)",3.0,"Talento Humano"]
[null,"Gestión con valores para el resultado (Ventanilla hacia adentro)",4.0,"Integridad"]
[null,"Gestión con valores para el resultado (Ventanilla hacia afuera-hacia adentro)",5.0,"Transparencia, Acceso a la Información Pública y Lucha Contra la Corrupción"]
[null,"Evaluación de Resultados",6.0,"Fortalecimiento Organizacional y Simplificación de Procesos "]
[null,"Información y Comunicación ",7.0,"Servicio al Ciudadano"]
[null,"Gestión de Conocimiento e Innovación",8.0,"Participación Ciudadana en la Gestión Pública"]
[null,"Control Interno ",9.0,"Racionalización de Trámites"]
[null,"N/A",10.0,"Gestión Documental"]
[null,"Direccionamiento Estratégico\ny Evaluación de Resultados",11.0,"Gobierno Digital"]
[null,null,12.0,"Seguridad Digital"]
[null,null,13.0,"Defensa Jurídica "]
[null,null,14.0,"Gestión del Conocimiento y la Innovación "]
[null,null,15.0,"Control Interno"]
[null,null,16.0,"Seguimiento y Evaluación del Desempeño Institucional "]
[null,null,17.0,"Mejora Normativa"]
[null,null,18.0,"Gestión de Información Estadística "]
[null,null,19.0,"Compras y contratación pública "]
[null,null,null,"N/A"]
[null,null,"Más de una política","Planeación Institucional y Seguimiento  y Evaluación del Desempeño Institucional"]
[null,null,"Más de una política","Transparencia -Participación Ciudadana - Racionalización de Trámites - Servicio al Ciudadano"]
[null,null,"Más de una política","Talento Humano e Integridad "]
[null,null,"Más de una política","Gobierno Digital y Seguridad Digital"]